Workbook

Sheet INFO
A1: COMPETIÇÃO: | C1: 32º Campeonato Brasileiro Individual
A2: LOCAL: | C2: SÃO PAULO/SP
A3: DATA: | C3: 16 a 19/junho de 2022
A4: CATEGORIA: | C4: Adulto
A6: FONTE UTILIZADA: | B6: ARIAL
A8: CORES UTILIZADAS:
B10: R: 255 | C10: 1a Divisão (Série Ouro) | D10: R: 255 | E10: 5a Divisão (Copa) | F10: R: 0
B11: G: 255 | D11: G: 192 | F11: G: 176
B12: B: 0 | D12: B: 0 | F12: B: 240
B14: R: 0 | C14: =$C$10 -> 1a Divisão (Série Ouro) | D14: R: 255 | E14: =$E$10 -> 5a Divisão (Copa) | F14: R: 204
B15: G: 96 | D15: G: 226 | F15: G: 236
B16: B: 39 | D16: B: 133 | F16: B: 255
B18: R: 0 | C18: 2a Divisão (Série Prata) | D18: R: 191 | E18: 6a Divisão | F18: R: 54
B19: G: 255 | D19: G: 191 | F19: G: 96
B20: B: 0 | D20: B: 191 | F20: B: 146
B22: R: 0 | C22: =$C$18 -> 2a Divisão (Série Prata) | D22: R: 234 | E22: =$E$18 -> 6a Divisão | F22: R: 255
B23: G: 32 | D23: G: 234 | F23: G: 255
B24: B: 96 | D24: B: 234 | F24: B: 204
B26: R: 54 | C26: 3a Divisão (Série Bronze) | D26: R: 247 | E26: 7a Divisão | F26: R: 255
B27: G: 96 | D27: G: 150 | F27: G: 0
B28: B: 146 | D28: B: 70 | F28: B: 255
B30: R: 184 | C30: =$C$26 -> 3a Divisão (Série Bronze) | D30: R: 250 | E30: =$E$26 -> 7a Divisão | F30: R: 255
B31: G: 204 | D31: G: 191 | F31: G: 255
B32: B: 228 | D32: B: 143 | F32: B: 204
C34: 4a Divisão (Série Extra) | D34: R: 0
D35: G: 176
D36: B: 80
C38: =$C$34 -> 4a Divisão (Série Extra) | D38: R: 204
D39: G: 255
D40: B: 204

Sheet RANKING
A1: COL. | B1: BOTONISTA | C1: ESTADO | D1: POTES
A2: 1 | B2: THIAGO LIMA | C2: SAO PAULO | D2: POTE 1
A3: 2 | B3: VICTOR VAROLI | C3: SAO PAULO
A4: 3 | B4: ARTHURZINHO | C4: SAO PAULO
A5: 4 | B5: JEFFERSON | C5: SAO PAULO
A6: 5 | B6: MICHILIN | C6: SAO PAULO
A7: 6 | B7: QUINHO | C7: SAO PAULO
A8: 7 | B8: FACCIO | C8: SAO PAULO
A9: 8 | B9: ALEX BAHR | C9: SAO PAULO
A10: 9 | B10: RODRIGO RIBEIRO | C10: SAO PAULO
A11: 10 | B11: BELINI | C11: SAO PAULO
A12: 11 | B12: PEDRO NETO | C12: SAO PAULO
A13: 12 | B13: ALBARELLO | C13: SAO PAULO
A14: 13 | B14: DUDA | C14: SAO PAULO
A15: 14 | B15: BRUNO BLOIS | C15: SAO PAULO
A16: 15 | B16: GALDEANO | C16: SAO PAULO
A17: 16 | B17: DINEY | C17: SAO PAULO
A18: 17 | B18: SERGIO NENE | C18: SAO PAULO | D18: POTE 2
A19: 18 | B19: ALEX LUCATELLI | C19: SAO PAULO
A20: 19 | B20: DILE | C20: SAO PAULO
A21: 20 | B21: ANDRE RAFAEL | C21: SAO PAULO
A22: 21 | B22: FARINHA | C22: SAO PAULO
A23: 22 | B23: PIETRO VAROLI | C23: SAO PAULO
A24: 23 | B24: RAFAEL SANTOS | C24: SAO PAULO
A25: 24 | B25: ERISMAR | C25: SAO PAULO
A26: 25 | B26: CLEO JR | C26: SAO PAULO
A27: 26 | B27: NILO | C27: SAO PAULO
A28: 27 | B28: GUERREIRO | C28: SAO PAULO
A29: 28 | B29: ALDECOA | C29: SAO PAULO
A30: 29 | B30: LEANDRIN | C30: SAO PAULO
A31: 30 | B31: ESPEL | C31: SAO PAULO
A32: 31 | B32: BV | C32: SAO PAULO
A33: 32 | B33: LOIACONO | C33: SAO PAULO
A34: 33 | B34: PICOLINO | C34: SAO PAULO | D34: POTE 3
A35: 34 | B35: RINCO | C35: SAO PAULO
A36: 35 | B36: QUARTIM | C36: SAO PAULO
A37: 36 | B37: FRANÇA | C37: SAO PAULO
A38: 37 | B38: IVAN LEITE | C38: SAO PAULO
A39: 38 | B39: FRANCISCO JR | C39: SAO PAULO
A40: 39 | B40: CASSIO | C40: SAO PAULO
A41: 40 | B41: TADEU | C41: SAO PAULO
A42: 41 | B42: ZERO | C42: SAO PAULO
A43: 42 | B43: RODRIGO MORO | C43: SAO PAULO
A44: 43 | B44: OG GIRAO | C44: SAO PAULO
A45: 44 | B45: PEDREIRA | C45: SAO PAULO
A46: 45 | B46: TIAGO MACHADO | C46: SAO PAULO
A47: 46 | B47: AMADEU | C47: SAO PAULO
A48: 47 | B48: DIOGO FARIAS | C48: SAO PAULO
A49: 48 | B49: RICARDO BONUCCI | C49: SAO PAULO
A50: 49 | B50: MARCO BUTANTA | C50: SAO PAULO | D50: POTE 4
A51: 50 | B51: REGIS ABBOUD | C51: SAO PAULO
A52: 51 | B52: CELINHO | C52: SAO PAULO
A53: 52 | B53: MURATORE | C53: SAO PAULO
A54: 53 | B54: NATHAN | C54: MINAS GERAIS
A55: 54 | B55: LEANDRO SCHMIDT | C55: MINAS GERAIS
A56: 55 | B56: VANDER FELIPE | C56: MINAS GERAIS
A57: 56 | B57: BRENO CASTILHO | C57: MINAS GERAIS
A58: 57 | B58: BETO | C58: MINAS GERAIS
A59: 58 | B59: SAMIR | C59: MINAS GERAIS
A60: 59 | B60: MARCOS ALVES | C60: CEARA
A61: 60 | B61: RODRIGO MARTINS | C61: CEARA
A62: 61 | B62: RAFAEL MOREIRA | C62: CEARA
A63: 62 | B63: ALCIDES | C63: DISTRITO FEDERAL
A64: 63 | B64: DIGAO | C64: DISTRITO FEDERAL
A65: 64 | B65: CHICONES | C65: DISTRITO FEDERAL
A66: 65 | B66: NANDO | C66: RIO DE JANEIRO | D66: POTE 5
A67: 66 | B67: ALESSANDRO | C67: RIO DE JANEIRO
A68: 67 | B68: CHRISTOFER | C68: RIO DE JANEIRO
A69: 68 | B69: VINICIUS MENDES | C69: RIO DE JANEIRO
A70: 69 | B70: IGOR | C70: RIO DE JANEIRO
A71: 70 | B71: MARCUS VINICIUS | C71: RIO DE JANEIRO
A72: 71 | B72: PABINHO | C72: RIO DE JANEIRO
A73: 72 | B73: RODOLFO | C73: RIO DE JANEIRO
A74: 73 | B74: ROGERINHO | C74: RIO DE JANEIRO
A75: 74 | B75: BIRA | C75: RIO DE JANEIRO
A76: 75 | B76: DIOGO | C76: RIO DE JANEIRO
A77: 76 | B77: ANDERSON | C77: RIO DE JANEIRO
A78: 77 | B78: MOACIR HENZE | C78: RIO DE JANEIRO
A79: 78 | B79: FLAVINHO | C79: RIO DE JANEIRO
A80: 79 | B80: PIRICA | C80: RIO DE JANEIRO
A81: 80 | B81: LUCAS CAVALCANTE | C81: RIO DE JANEIRO
A82: 81 | B82: RHANIERY | C82: RIO DE JANEIRO | D82: POTE 6
A83: 82 | B83: AMON-RA | C83: RIO DE JANEIRO
A84: 83 | B84: FAUSTINHO | C84: RIO DE JANEIRO
A85: 84 | B85: FAUSTO LIMA | C85: RIO DE JANEIRO
A86: 85 | B86: THIAGO PENNA | C86: RIO DE JANEIRO
A87: 86 | B87: LUCAS BOA MORTE | C87: RIO DE JANEIRO
A88: 87 | B88: THIAGO ASA | C88: ALAGOAS
A89: 88 | B89: RENATO BORGES | C89: GOIAS
A90: 89 | B90: ALAN SILVA | C90: GOIAS
A91: 90 | B91: MARCO AURELIO | C91: PARAIBA
A92: 91 | B92: KEVIN | C92: RIO GRANDE DO SUL
A93: 92 | B93: WEBER | C93: RIO GRANDE DO SUL
A94: 93 | B94: DENIS SNICHELOTTO | C94: SANTA CATARINA
A95: 94 | B95: SCHINA | C95: SANTA CATARINA
A96: 95 | B96: RAFAEL AQUINO | C96: PERNAMBUCO
A97: 96 | B97: DIEGO FERREIRA | C97: PERNAMBUCO
A98: 97 | B98: MATHEUS CARVALHO | C98: PERNAMBUCO | D98: POTE 7
A99: 98 | B99: WALLACE MARINHO | C99: PERNAMBUCO
A100: 99 | B100: EMANUEL | C100: PERNAMBUCO
A101: 100 | B101: MATHEUS TINE | C101: PERNAMBUCO
A102: 101 | B102: DHOLL | C102: PERNAMBUCO
A103: 102 | B103: RENATO VARZEA | C103: PERNAMBUCO
A104: 103 | B104: MARCELO UCHOA | C104: PERNAMBUCO
A105: 104 | B105: ANDERSON FEST | C105: PERNAMBUCO
A106: 105 | B106: CLAUDIANOR | C106: PERNAMBUCO
A107: 106 | B107: ERMESON | C107: PERNAMBUCO
A108: 107 | B108: RYCHARDSON | C108: PERNAMBUCO
A109: 108 | B109: ADONES | C109: PERNAMBUCO
A110: 109 | B110: PAPA | C110: PERNAMBUCO
A111: 110 | B111: CAETANO | C111: PERNAMBUCO
A112: 111 | B112: HELVIO | C112: PERNAMBUCO
A113: 112 | B113: BEL | C113: PERNAMBUCO
A114: 113 | B114: ROBERTINHO | C114: PARANA | D114: POTE 8
A115: 114 | B115: LEO GONÇALVES | C115: PARANA
A116: 115 | B116: FARO | C116: PARANA
A117: 116 | B117: PEDRO PRANDO | C117: PARANA
A118: 117 | B118: GONZO | C118: PARANA
A119: 118 | B119: FERNANDO ET | C119: PARANA
A120: 119 | B120: PEDRO GERONASSO | C120: PARANA
A121: 120 | B121: LUCAS JAKA | C121: PARANA
A122: 121 | B122: MANTENA | C122: PARANA
A123: 122 | B123: ROGER | C123: PARANA
A124: 123 | B124: ROGERIO | C124: PARANA
A125: 124 | B125: IBSEN | C125: PARANA
A126: 125 | B126: BIRIGUI | C126: PARANA
A127: 126 | B127: LUCAS PRANDO | C127: PARANA
A128: 127 | B128: IVAN SANTOS | C128: PARANA
A129: 128 | B129: RENAN PIMENTA | C129: PARANA

Sheet SORTEIO
C1: SORTEIO DOS GRUPOS 16 x 8
A9: GRUPO 1 | B9: GRUPO 2 | C9: GRUPO 3 | D9: GRUPO 4 | E9: GRUPO 5 | F9: GRUPO 6 | K9: GRUPO 1 | P9: GRUPO 2 | U9: GRUPO 3 | Z9: GRUPO 4 | AE9: =K9 -> GRUPO 1 | AI9: =P9 -> GRUPO 2 | AM9: =U9 -> GRUPO 3 | AQ9: =Z9 -> GRUPO 4 | AU9: =AE9 -> GRUPO 1 | AX9: =AI9 -> GRUPO 2 | BA9: =AM9 -> GRUPO 3 | BD9: =AQ9 -> GRUPO 4
A10: 11 | B10: 6 | C10: 8 | D10: 1 | E10: 2 | F10: 5 | K10: =A42 -> 11 | L10: =VLOOKUP(K10,RANKING!$A$2:$C$129,2,FALSE) -> PEDRO NETO | M10: =VLOOKUP(K10,RANKING!$A$2:$C$129,3,FALSE) -> SAO PAULO | N10: =VLOOKUP(M10,ESTADOS!$A$2:$B$28,2,FALSE) -> SP | P10: =B42 -> 6 | Q10: =VLOOKUP(P10,RANKING!$A$2:$C$129,2,FALSE) -> QUINHO | R10: =VLOOKUP(P10,RANKING!$A$2:$C$129,3,FALSE) -> SAO PAULO | S10: =VLOOKUP(R10,ESTADOS!$A$2:$B$28,2,FALSE) -> SP | U10: =C42 -> 8 | V10: =VLOOKUP(U10,RANKING!$A$2:$C$129,2,FALSE) -> ALEX BAHR | W10: =VLOOKUP(U10,RANKING!$A$2:$C$129,3,FALSE) -> SAO PAULO | X10: =VLOOKUP(W10,ESTADOS!$A$2:$B$28,2,FALSE) -> SP | Z10: =D42 -> 1 | AA10: =VLOOKUP(Z10,RANKING!$A$2:$C$129,2,FALSE) -> THIAGO LIMA | AB10: =VLOOKUP(Z10,RANKING!$A$2:$C$129,3,FALSE) -> SAO PAULO | AC10: =VLOOKUP(AB10,ESTADOS!$A$2:$B$28,2,FALSE) -> SP | AE10: =K10 -> 11 | AF10: =UPPER(L10) -> PEDRO NETO | AG10: =N10 -> SP | AI10: =P10 -> 6 | AJ10: =UPPER(Q10) -> QUINHO | AK10: =S10 -> SP | AM10: =U10 -> 8 | AN10: =UPPER(V10) -> ALEX BAHR | AO10: =X10 -> SP | AQ10: =Z10 -> 1 | AR10: =UPPER(AA10) -> THIAGO LIMA | AS10: =AC10 -> SP | AU10: =AE10 -> 11 | AV10: =IF($A10="","",CONCATENATE(AF10,"-",AG10)) -> PEDRO NETO-SP | AX10: 6 | AY10: =IF($B10="","",CONCATENATE(AJ10,"-",AK10)) -> QUINHO-SP | BA10: =AM10 -> 8 | BB10: =IF($C10="","",CONCATENATE(AN10,"-",AO10)) -> ALEX BAHR-SP | BD10: =AQ10 -> 1 | BE10: =IF($D10="","",CONCATENATE(AR10,"-",AS10)) -> THIAGO LIMA-SP
A11: 12 | B11: 5 | C11: 9 | D11: 10 | E11: 14 | F11: 1 | K11: 28 | L11: =VLOOKUP(K11,RANKING!$A$2:$C$129,2,FALSE) -> ALDECOA | M11: =VLOOKUP(K11,RANKING!$A$2:$C$129,3,FALSE) -> SAO PAULO | N11: =VLOOKUP(M11,ESTADOS!$A$2:$B$28,2,FALSE) -> SP | P11: 21 | Q11: =VLOOKUP(P11,RANKING!$A$2:$C$129,2,FALSE) -> FARINHA | R11: =VLOOKUP(P11,RANKING!$A$2:$C$129,3,FALSE) -> SAO PAULO | S11: =VLOOKUP(R11,ESTADOS!$A$2:$B$28,2,FALSE) -> SP | U11: 25 | V11: =VLOOKUP(U11,RANKING!$A$2:$C$129,2,FALSE) -> CLEO JR | W11: =VLOOKUP(U11,RANKING!$A$2:$C$129,3,FALSE) -> SAO PAULO | X11: =VLOOKUP(W11,ESTADOS!$A$2:$B$28,2,FALSE) -> SP | Z11: 26 | AA11: =VLOOKUP(Z11,RANKING!$A$2:$C$129,2,FALSE) -> NILO | AB11: =VLOOKUP(Z11,RANKING!$A$2:$C$129,3,FALSE) -> SAO PAULO | AC11: =VLOOKUP(AB11,ESTADOS!$A$2:$B$28,2,FALSE) -> SP | AE11: =K11 -> 28 | AF11: =UPPER(L11) -> ALDECOA | AG11: =N11 -> SP | AI11: =P11 -> 21 | AJ11: =UPPER(Q11) -> FARINHA | AK11: =S11 -> SP | AM11: =U11 -> 25 | AN11: =UPPER(V11) -> CLEO JR | AO11: =X11 -> SP | AQ11: =Z11 -> 26 | AR11: =UPPER(AA11) -> NILO | AS11: =AC11 -> SP | AU11: =AE11 -> 28 | AV11: =IF($A11="","",CONCATENATE(AF11,"-",AG11)) -> ALDECOA-SP | AX11: 21 | AY11: =IF($B11="","",CONCATENATE(AJ11,"-",AK11)) -> FARINHA-SP | BA11: =AM11 -> 25 | BB11: =IF($C11="","",CONCATENATE(AN11,"-",AO11)) -> CLEO JR-SP | BD11: =AQ11 -> 26 | BE11: =IF($D11="","",CONCATENATE(AR11,"-",AS11)) -> NILO-SP
A12: 14 | B12: 13 | C12: 3 | D12: 4 | E12: 10 | F12: 1 | K12: 46 | L12: =VLOOKUP(K12,RANKING!$A$2:$C$129,2,FALSE) -> AMADEU | M12: =VLOOKUP(K12,RANKING!$A$2:$C$129,3,FALSE) -> SAO PAULO | N12: =VLOOKUP(M12,ESTADOS!$A$2:$B$28,2,FALSE) -> SP | P12: 45 | Q12: =VLOOKUP(P12,RANKING!$A$2:$C$129,2,FALSE) -> TIAGO MACHADO | R12: =VLOOKUP(P12,RANKING!$A$2:$C$129,3,FALSE) -> SAO PAULO | S12: =VLOOKUP(R12,ESTADOS!$A$2:$B$28,2,FALSE) -> SP | U12: 35 | V12: =VLOOKUP(U12,RANKING!$A$2:$C$129,2,FALSE) -> QUARTIM | W12: =VLOOKUP(U12,RANKING!$A$2:$C$129,3,FALSE) -> SAO PAULO | X12: =VLOOKUP(W12,ESTADOS!$A$2:$B$28,2,FALSE) -> SP | Z12: 36 | AA12: =VLOOKUP(Z12,RANKING!$A$2:$C$129,2,FALSE) -> FRANÇA | AB12: =VLOOKUP(Z12,RANKING!$A$2:$C$129,3,FALSE) -> SAO PAULO | AC12: =VLOOKUP(AB12,ESTADOS!$A$2:$B$28,2,FALSE) -> SP | AE12: 46 | AF12: AMADEU | AG12: SP | AI12: 45 | AJ12: TIAGO MACHADO | AK12: SP | AM12: 35 | AN12: QUARTIM | AO12: SP | AQ12: 36 | AR12: FRANÇA | AS12: SP | AU12: 46 | AV12: AMADEU-SP | AX12: 45 | AY12: TIAGO MACHADO-SP | BA12: 35 | BB12: QUARTIM-SP | BD12: 36 | BE12: FRANÇA-SP
A13: 5 | B13: 13 | C13: 3 | D13: 14 | E13: 16 | F13: 2 | K13: 53 | L13: =VLOOKUP(K13,RANKING!$A$2:$C$129,2,FALSE) -> NATHAN | M13: =VLOOKUP(K13,RANKING!$A$2:$C$129,3,FALSE) -> MINAS GERAIS | N13: =VLOOKUP(M13,ESTADOS!$A$2:$B$28,2,FALSE) -> MG | P13: 61 | Q13: =VLOOKUP(P13,RANKING!$A$2:$C$129,2,FALSE) -> RAFAEL MOREIRA | R13: =VLOOKUP(P13,RANKING!$A$2:$C$129,3,FALSE) -> CEARA | S13: =VLOOKUP(R13,ESTADOS!$A$2:$B$28,2,FALSE) -> CE | U13: 51 | V13: =VLOOKUP(U13,RANKING!$A$2:$C$129,2,FALSE) -> CELINHO | W13: =VLOOKUP(U13,RANKING!$A$2:$C$129,3,FALSE) -> SAO PAULO | X13: =VLOOKUP(W13,ESTADOS!$A$2:$B$28,2,FALSE) -> SP | Z13: 62 | AA13: =VLOOKUP(Z13,RANKING!$A$2:$C$129,2,FALSE) -> ALCIDES | AB13: =VLOOKUP(Z13,RANKING!$A$2:$C$129,3,FALSE) -> DISTRITO FEDERAL | AC13: =VLOOKUP(AB13,ESTADOS!$A$2:$B$28,2,FALSE) -> DF | AE13: 53 | AF13: NATHAN | AG13: MG | AI13: 61 | AJ13: RAFAEL MOREIRA | AK13: CE | AM13: 51 | AN13: CELINHO | AO13: SP | AQ13: 62 | AR13: ALCIDES | AS13: DF | AU13: 53 | AV13: NATHAN-MG | AX13: 61 | AY13: RAFAEL MOREIRA-CE | BA13: 51 | BB13: CELINHO-SP | BD13: 62 | BE13: ALCIDES-DF
A14: 10 | B14: 12 | C14: 1 | D14: 2 | E14: 5 | F14: 7 | K14: 74 | L14: =VLOOKUP(K14,RANKING!$A$2:$C$129,2,FALSE) -> BIRA | M14: =VLOOKUP(K14,RANKING!$A$2:$C$129,3,FALSE) -> RIO DE JANEIRO | N14: =VLOOKUP(M14,ESTADOS!$A$2:$B$28,2,FALSE) -> RJ | P14: 76 | Q14: =VLOOKUP(P14,RANKING!$A$2:$C$129,2,FALSE) -> ANDERSON | R14: =VLOOKUP(P14,RANKING!$A$2:$C$129,3,FALSE) -> RIO DE JANEIRO | S14: =VLOOKUP(R14,ESTADOS!$A$2:$B$28,2,FALSE) -> RJ | U14: 65 | V14: =VLOOKUP(U14,RANKING!$A$2:$C$129,2,FALSE) -> NANDO | W14: =VLOOKUP(U14,RANKING!$A$2:$C$129,3,FALSE) -> RIO DE JANEIRO | X14: =VLOOKUP(W14,ESTADOS!$A$2:$B$28,2,FALSE) -> RJ | Z14: 66 | AA14: =VLOOKUP(Z14,RANKING!$A$2:$C$129,2,FALSE) -> ALESSANDRO | AB14: =VLOOKUP(Z14,RANKING!$A$2:$C$129,3,FALSE) -> RIO DE JANEIRO | AC14: =VLOOKUP(AB14,ESTADOS!$A$2:$B$28,2,FALSE) -> RJ | AE14: 74 | AF14: BIRA | AG14: RJ | AI14: 76 | AJ14: ANDERSON | AK14: RJ | AM14: 65 | AN14: NANDO | AO14: RJ | AQ14: 66 | AR14: ALESSANDRO | AS14: RJ | AU14: 74 | AV14: BIRA-RJ | AX14: 76 | AY14: ANDERSON-RJ | BA14: 65 | BB14: NANDO-RJ | BD14: 66 | BE14: ALESSANDRO-RJ
A15: 14 | B15: 1 | C15: 12 | D15: 5 | E15: 10 | F15: 4 | K15: 94 | L15: =VLOOKUP(K15,RANKING!$A$2:$C$129,2,FALSE) -> SCHINA | M15: =VLOOKUP(K15,RANKING!$A$2:$C$129,3,FALSE) -> SANTA CATARINA | N15: =VLOOKUP(M15,ESTADOS!$A$2:$B$28,2,FALSE) -> SC | P15: 81 | Q15: =VLOOKUP(P15,RANKING!$A$2:$C$129,2,FALSE) -> RHANIERY | R15: =VLOOKUP(P15,RANKING!$A$2:$C$129,3,FALSE) -> RIO DE JANEIRO | S15: =VLOOKUP(R15,ESTADOS!$A$2:$B$28,2,FALSE) -> RJ | U15: 92 | V15: =VLOOKUP(U15,RANKING!$A$2:$C$129,2,FALSE) -> WEBER | W15: =VLOOKUP(U15,RANKING!$A$2:$C$129,3,FALSE) -> RIO GRANDE DO SUL | X15: =VLOOKUP(W15,ESTADOS!$A$2:$B$28,2,FALSE) -> RS | Z15: 85 | AA15: =VLOOKUP(Z15,RANKING!$A$2:$C$129,2,FALSE) -> THIAGO PENNA | AB15: =VLOOKUP(Z15,RANKING!$A$2:$C$129,3,FALSE) -> RIO DE JANEIRO | AC15: =VLOOKUP(AB15,ESTADOS!$A$2:$B$28,2,FALSE) -> RJ | AE15: 94 | AF15: SCHINA | AG15: SC | AI15: 81 | AJ15: RHANIERY | AK15: RJ | AM15: 92 | AN15: WEBER | AO15: RS | AQ15: 85 | AR15: THIAGO PENNA | AS15: RJ | AU15: 94 | AV15: SCHINA-SC | AX15: 81 | AY15: RHANIERY-RJ | BA15: 92 | BB15: WEBER-RS | BD15: 85 | BE15: THIAGO PENNA-RJ
A16: 3 | B16: 4 | C16: 6 | D16: 15 | E16: 12 | F16: 11 | K16: 99 | L16: =VLOOKUP(K16,RANKING!$A$2:$C$129,2,FALSE) -> EMANUEL | M16: =VLOOKUP(K16,RANKING!$A$2:$C$129,3,FALSE) -> PERNAMBUCO | N16: =VLOOKUP(M16,ESTADOS!$A$2:$B$28,2,FALSE) -> PE | P16: 100 | Q16: =VLOOKUP(P16,RANKING!$A$2:$C$129,2,FALSE) -> MATHEUS TINE | R16: =VLOOKUP(P16,RANKING!$A$2:$C$129,3,FALSE) -> PERNAMBUCO | S16: =VLOOKUP(R16,ESTADOS!$A$2:$B$28,2,FALSE) -> PE | U16: 102 | V16: =VLOOKUP(U16,RANKING!$A$2:$C$129,2,FALSE) -> RENATO VARZEA | W16: =VLOOKUP(U16,RANKING!$A$2:$C$129,3,FALSE) -> PERNAMBUCO | X16: =VLOOKUP(W16,ESTADOS!$A$2:$B$28,2,FALSE) -> PE | Z16: 111 | AA16: =VLOOKUP(Z16,RANKING!$A$2:$C$129,2,FALSE) -> HELVIO | AB16: =VLOOKUP(Z16,RANKING!$A$2:$C$129,3,FALSE) -> PERNAMBUCO | AC16: =VLOOKUP(AB16,ESTADOS!$A$2:$B$28,2,FALSE) -> PE | AE16: =K16 -> 99 | AF16: =UPPER(L16) -> EMANUEL | AG16: =N16 -> PE | AI16: =P16 -> 100 | AJ16: =UPPER(Q16) -> MATHEUS TINE | AK16: =S16 -> PE | AM16: =U16 -> 102 | AN16: =UPPER(V16) -> RENATO VARZEA | AO16: =X16 -> PE | AQ16: =Z16 -> 111 | AR16: =UPPER(AA16) -> HELVIO | AS16: =AC16 -> PE | AU16: =AE16 -> 99 | AV16: EMANUEL-PE | AX16: =AI16 -> 100 | AY16: MATHEUS TINE-PE | BA16: =AM16 -> 102 | BB16: RENATO VARZEA-PE | BD16: =AQ16 -> 111 | BE16: HELVIO-PE
A17: 14 | B17: 11 | C17: 4 | D17: 7 | E17: 8 | F17: 2 | K17: =A49 -> 126 | L17: =VLOOKUP(K17,RANKING!$A$2:$C$129,2,FALSE) -> LUCAS PRANDO | M17: =VLOOKUP(K17,RANKING!$A$2:$C$129,3,FALSE) -> PARANA | N17: =VLOOKUP(M17,ESTADOS!$A$2:$B$28,2,FALSE) -> PR | P17: 123 | Q17: =VLOOKUP(P17,RANKING!$A$2:$C$129,2,FALSE) -> ROGERIO | R17: =VLOOKUP(P17,RANKING!$A$2:$C$129,3,FALSE) -> PARANA | S17: =VLOOKUP(R17,ESTADOS!$A$2:$B$28,2,FALSE) -> PR | U17: 116 | V17: =VLOOKUP(U17,RANKING!$A$2:$C$129,2,FALSE) -> PEDRO PRANDO | W17: =VLOOKUP(U17,RANKING!$A$2:$C$129,3,FALSE) -> PARANA | X17: =VLOOKUP(W17,ESTADOS!$A$2:$B$28,2,FALSE) -> PR | Z17: 119 | AA17: =VLOOKUP(Z17,RANKING!$A$2:$C$129,2,FALSE) -> PEDRO GERONASSO | AB17: =VLOOKUP(Z17,RANKING!$A$2:$C$129,3,FALSE) -> PARANA | AC17: =VLOOKUP(AB17,ESTADOS!$A$2:$B$28,2,FALSE) -> PR | AE17: 126 | AF17: LUCAS PRANDO | AG17: PR | AI17: 123 | AJ17: ROGERIO | AK17: PR | AM17: 116 | AN17: PEDRO PRANDO | AO17: PR | AQ17: 119 | AR17: PEDRO GERONASSO | AS17: PR | AU17: 126 | AV17: LUCAS PRANDO-PR | AX17: 123 | AY17: ROGERIO-PR | BA17: 116 | BB17: PEDRO PRANDO-PR | BD17: 119 | BE17: PEDRO GERONASSO-PR
A19: GRUPO 7 | B19: GRUPO 8 | C19: GRUPO 9 | D19: GRUPO 10 | E19: GRUPO 11 | F19: GRUPO 12 | K19: GRUPO 5 | P19: GRUPO 6 | U19: GRUPO 7 | Z19: GRUPO 8 | AE19: =K19 -> GRUPO 5 | AI19: =P19 -> GRUPO 6 | AM19: =U19 -> GRUPO 7 | AQ19: =Z19 -> GRUPO 8 | AU19: =AE19 -> GRUPO 5 | AX19: =AI19 -> GRUPO 6 | BA19: =AM19 -> GRUPO 7 | BD19: =AQ19 -> GRUPO 8
A20: 12 | B20: 7 | C20: 4 | D20: 15 | E20: 9 | F20: 10 | K20: =E42 -> 2 | L20: =VLOOKUP(K20,RANKING!$A$2:$C$129,2,FALSE) -> VICTOR VAROLI | M20: =VLOOKUP(K20,RANKING!$A$2:$C$129,3,FALSE) -> SAO PAULO | N20: =VLOOKUP(M20,ESTADOS!$A$2:$B$28,2,FALSE) -> SP | P20: =F42 -> 5 | Q20: =VLOOKUP(P20,RANKING!$A$2:$C$129,2,FALSE) -> MICHILIN | R20: =VLOOKUP(P20,RANKING!$A$2:$C$129,3,FALSE) -> SAO PAULO | S20: =VLOOKUP(R20,ESTADOS!$A$2:$B$28,2,FALSE) -> SP | U20: =A52 -> 12 | V20: =VLOOKUP(U20,RANKING!$A$2:$C$129,2,FALSE) -> ALBARELLO | W20: =VLOOKUP(U20,RANKING!$A$2:$C$129,3,FALSE) -> SAO PAULO | X20: =VLOOKUP(W20,ESTADOS!$A$2:$B$28,2,FALSE) -> SP | Z20: =B52 -> 7 | AA20: =VLOOKUP(Z20,RANKING!$A$2:$C$129,2,FALSE) -> FACCIO | AB20: =VLOOKUP(Z20,RANKING!$A$2:$C$129,3,FALSE) -> SAO PAULO | AC20: =VLOOKUP(AB20,ESTADOS!$A$2:$B$28,2,FALSE) -> SP | AE20: =K20 -> 2 | AF20: =UPPER(L20) -> VICTOR VAROLI | AG20: =N20 -> SP | AI20: =P20 -> 5 | AJ20: =UPPER(Q20) -> MICHILIN | AK20: =S20 -> SP | AM20: =U20 -> 12 | AN20: =UPPER(V20) -> ALBARELLO | AO20: =X20 -> SP | AQ20: =Z20 -> 7 | AR20: =UPPER(AA20) -> FACCIO | AS20: =AC20 -> SP | AU20: =AE20 -> 2 | AV20: =IF($E10="","",CONCATENATE(AF20,"-",AG20)) -> VICTOR VAROLI-SP | AX20: 5 | AY20: =IF($F10="","",CONCATENATE(AJ20,"-",AK20)) -> MICHILIN-SP | BA20: =AM20 -> 12 | BB20: =IF($A20="","",CONCATENATE(AN20,"-",AO20)) -> ALBARELLO-SP | BD20: =AQ20 -> 7 | BE20: =IF($B20="","",CONCATENATE(AR20,"-",AS20)) -> FACCIO-SP
A21: 6 | B21: 11 | C21: 2 | D21: 13 | E21: 8 | F21: 16 | K21: =E43 -> 30 | L21: =VLOOKUP(K21,RANKING!$A$2:$C$129,2,FALSE) -> ESPEL | M21: =VLOOKUP(K21,RANKING!$A$2:$C$129,3,FALSE) -> SAO PAULO | N21: =VLOOKUP(M21,ESTADOS!$A$2:$B$28,2,FALSE) -> SP | P21: 17 | Q21: =VLOOKUP(P21,RANKING!$A$2:$C$129,2,FALSE) -> SERGIO NENE | R21: =VLOOKUP(P21,RANKING!$A$2:$C$129,3,FALSE) -> SAO PAULO | S21: =VLOOKUP(R21,ESTADOS!$A$2:$B$28,2,FALSE) -> SP | U21: 22 | V21: =VLOOKUP(U21,RANKING!$A$2:$C$129,2,FALSE) -> PIETRO VAROLI | W21: =VLOOKUP(U21,RANKING!$A$2:$C$129,3,FALSE) -> SAO PAULO | X21: =VLOOKUP(W21,ESTADOS!$A$2:$B$28,2,FALSE) -> SP | Z21: 27 | AA21: =VLOOKUP(Z21,RANKING!$A$2:$C$129,2,FALSE) -> GUERREIRO | AB21: =VLOOKUP(Z21,RANKING!$A$2:$C$129,3,FALSE) -> SAO PAULO | AC21: =VLOOKUP(AB21,ESTADOS!$A$2:$B$28,2,FALSE) -> SP | AE21: =K21 -> 30 | AF21: =UPPER(L21) -> ESPEL | AG21: =N21 -> SP | AI21: =P21 -> 17 | AJ21: =UPPER(Q21) -> SERGIO NENE | AK21: =S21 -> SP | AM21: =U21 -> 22 | AN21: =UPPER(V21) -> PIETRO VAROLI | AO21: =X21 -> SP | AQ21: =Z21 -> 27 | AR21: =UPPER(AA21) -> GUERREIRO | AS21: =AC21 -> SP | AU21: =AE21 -> 30 | AV21: =IF($E11="","",CONCATENATE(AF21,"-",AG21)) -> ESPEL-SP | AX21: 17 | AY21: =IF($F11="","",CONCATENATE(AJ21,"-",AK21)) -> SERGIO NENE-SP | BA21: =AM21 -> 22 | BB21: =IF($A21="","",CONCATENATE(AN21,"-",AO21)) -> PIETRO VAROLI-SP | BD21: =AQ21 -> 27 | BE21: =IF($B21="","",CONCATENATE(AR21,"-",AS21)) -> GUERREIRO-SP
A22: 6 | B22: 2 | C22: 8 | D22: 9 | E22: 5 | F22: 15 | K22: =E44 -> 42 | L22: =VLOOKUP(K22,RANKING!$A$2:$C$129,2,FALSE) -> RODRIGO MORO | M22: =VLOOKUP(K22,RANKING!$A$2:$C$129,3,FALSE) -> SAO PAULO | N22: =VLOOKUP(M22,ESTADOS!$A$2:$B$28,2,FALSE) -> SP | P22: 33 | Q22: =VLOOKUP(P22,RANKING!$A$2:$C$129,2,FALSE) -> PICOLINO | R22: =VLOOKUP(P22,RANKING!$A$2:$C$129,3,FALSE) -> SAO PAULO | S22: =VLOOKUP(R22,ESTADOS!$A$2:$B$28,2,FALSE) -> SP | U22: 38 | V22: =VLOOKUP(U22,RANKING!$A$2:$C$129,2,FALSE) -> FRANCISCO JR | W22: =VLOOKUP(U22,RANKING!$A$2:$C$129,3,FALSE) -> SAO PAULO | X22: =VLOOKUP(W22,ESTADOS!$A$2:$B$28,2,FALSE) -> SP | Z22: 34 | AA22: =VLOOKUP(Z22,RANKING!$A$2:$C$129,2,FALSE) -> RINCO | AB22: =VLOOKUP(Z22,RANKING!$A$2:$C$129,3,FALSE) -> SAO PAULO | AC22: =VLOOKUP(AB22,ESTADOS!$A$2:$B$28,2,FALSE) -> SP | AE22: 42 | AF22: RODRIGO MORO | AG22: SP | AI22: 33 | AJ22: PICOLINO | AK22: SP | AM22: 38 | AN22: FRANCISCO JR | AO22: SP | AQ22: 34 | AR22: RINCO | AS22: SP | AU22: 42 | AV22: RODRIGO MORO-SP | AX22: 33 | AY22: PICOLINO-SP | BA22: 38 | BB22: FRANCISCO JR-SP | BD22: 34 | BE22: RINCO-SP
A23: 1 | B23: 6 | C23: 8 | D23: 4 | E23: 15 | F23: 11 | K23: 64 | L23: =VLOOKUP(K23,RANKING!$A$2:$C$129,2,FALSE) -> CHICONES | M23: =VLOOKUP(K23,RANKING!$A$2:$C$129,3,FALSE) -> DISTRITO FEDERAL | N23: =VLOOKUP(M23,ESTADOS!$A$2:$B$28,2,FALSE) -> DF | P23: 50 | Q23: =VLOOKUP(P23,RANKING!$A$2:$C$129,2,FALSE) -> REGIS ABBOUD | R23: =VLOOKUP(P23,RANKING!$A$2:$C$129,3,FALSE) -> SAO PAULO | S23: =VLOOKUP(R23,ESTADOS!$A$2:$B$28,2,FALSE) -> SP | U23: 49 | V23: =VLOOKUP(U23,RANKING!$A$2:$C$129,2,FALSE) -> MARCO BUTANTA | W23: =VLOOKUP(U23,RANKING!$A$2:$C$129,3,FALSE) -> SAO PAULO | X23: =VLOOKUP(W23,ESTADOS!$A$2:$B$28,2,FALSE) -> SP | Z23: 54 | AA23: =VLOOKUP(Z23,RANKING!$A$2:$C$129,2,FALSE) -> LEANDRO SCHMIDT | AB23: =VLOOKUP(Z23,RANKING!$A$2:$C$129,3,FALSE) -> MINAS GERAIS | AC23: =VLOOKUP(AB23,ESTADOS!$A$2:$B$28,2,FALSE) -> MG | AE23: 64 | AF23: CHICONES | AG23: DF | AI23: 50 | AJ23: REGIS ABBOUD | AK23: SP | AM23: 49 | AN23: MARCO BUTANTA | AO23: SP | AQ23: 54 | AR23: LEANDRO SCHMIDT | AS23: MG | AU23: 64 | AV23: CHICONES-DF | AX23: 50 | AY23: REGIS ABBOUD-SP | BA23: 49 | BB23: MARCO BUTANTA-SP | BD23: 54 | BE23: LEANDRO SCHMIDT-MG
A24: 15 | B24: 9 | C24: 13 | D24: 6 | E24: 16 | F24: 11 | K24: 69 | L24: =VLOOKUP(K24,RANKING!$A$2:$C$129,2,FALSE) -> IGOR | M24: =VLOOKUP(K24,RANKING!$A$2:$C$129,3,FALSE) -> RIO DE JANEIRO | N24: =VLOOKUP(M24,ESTADOS!$A$2:$B$28,2,FALSE) -> RJ | P24: 71 | Q24: =VLOOKUP(P24,RANKING!$A$2:$C$129,2,FALSE) -> PABINHO | R24: =VLOOKUP(P24,RANKING!$A$2:$C$129,3,FALSE) -> RIO DE JANEIRO | S24: =VLOOKUP(R24,ESTADOS!$A$2:$B$28,2,FALSE) -> RJ | U24: 79 | V24: =VLOOKUP(U24,RANKING!$A$2:$C$129,2,FALSE) -> PIRICA | W24: =VLOOKUP(U24,RANKING!$A$2:$C$129,3,FALSE) -> RIO DE JANEIRO | X24: =VLOOKUP(W24,ESTADOS!$A$2:$B$28,2,FALSE) -> RJ | Z24: 73 | AA24: =VLOOKUP(Z24,RANKING!$A$2:$C$129,2,FALSE) -> ROGERINHO | AB24: =VLOOKUP(Z24,RANKING!$A$2:$C$129,3,FALSE) -> RIO DE JANEIRO | AC24: =VLOOKUP(AB24,ESTADOS!$A$2:$B$28,2,FALSE) -> RJ | AE24: 69 | AF24: IGOR | AG24: RJ | AI24: 71 | AJ24: PABINHO | AK24: RJ | AM24: 79 | AN24: PIRICA | AO24: RJ | AQ24: 73 | AR24: ROGERINHO | AS24: RJ | AU24: 69 | AV24: IGOR-RJ | AX24: 71 | AY24: PABINHO-RJ | BA24: 79 | BB24: PIRICA-RJ | BD24: 73 | BE24: ROGERINHO-RJ
A25: 15 | B25: 13 | C25: 9 | D25: 8 | E25: 16 | F25: 11 | K25: 90 | L25: =VLOOKUP(K25,RANKING!$A$2:$C$129,2,FALSE) -> MARCO AURELIO | M25: =VLOOKUP(K25,RANKING!$A$2:$C$129,3,FALSE) -> PARAIBA | N25: =VLOOKUP(M25,ESTADOS!$A$2:$B$28,2,FALSE) -> PB | P25: 84 | Q25: =VLOOKUP(P25,RANKING!$A$2:$C$129,2,FALSE) -> FAUSTO LIMA | R25: =VLOOKUP(P25,RANKING!$A$2:$C$129,3,FALSE) -> RIO DE JANEIRO | S25: =VLOOKUP(R25,ESTADOS!$A$2:$B$28,2,FALSE) -> RJ | U25: 95 | V25: =VLOOKUP(U25,RANKING!$A$2:$C$129,2,FALSE) -> RAFAEL AQUINO | W25: =VLOOKUP(U25,RANKING!$A$2:$C$129,3,FALSE) -> PERNAMBUCO | X25: =VLOOKUP(W25,ESTADOS!$A$2:$B$28,2,FALSE) -> PE | Z25: 93 | AA25: =VLOOKUP(Z25,RANKING!$A$2:$C$129,2,FALSE) -> DENIS SNICHELOTTO | AB25: =VLOOKUP(Z25,RANKING!$A$2:$C$129,3,FALSE) -> SANTA CATARINA | AC25: =VLOOKUP(AB25,ESTADOS!$A$2:$B$28,2,FALSE) -> SC | AE25: 90 | AF25: MARCO AURELIO | AG25: PB | AI25: 84 | AJ25: FAUSTO LIMA | AK25: RJ | AM25: 95 | AN25: RAFAEL AQUINO | AO25: PE | AQ25: 93 | AR25: DENIS SNICHELOTTO | AS25: SC | AU25: 90 | AV25: MARCO AURELIO-PB | AX25: 84 | AY25: FAUSTO LIMA-RJ | BA25: 95 | BB25: RAFAEL AQUINO-PE | BD25: 93 | BE25: DENIS SNICHELOTTO-SC
A26: 14 | B26: 8 | C26: 9 | D26: 7 | E26: 1 | F26: 13 | K26: 108 | L26: =VLOOKUP(K26,RANKING!$A$2:$C$129,2,FALSE) -> ADONES | M26: =VLOOKUP(K26,RANKING!$A$2:$C$129,3,FALSE) -> PERNAMBUCO | N26: =VLOOKUP(M26,ESTADOS!$A$2:$B$28,2,FALSE) -> PE | P26: 107 | Q26: =VLOOKUP(P26,RANKING!$A$2:$C$129,2,FALSE) -> RYCHARDSON | R26: =VLOOKUP(P26,RANKING!$A$2:$C$129,3,FALSE) -> PERNAMBUCO | S26: =VLOOKUP(R26,ESTADOS!$A$2:$B$28,2,FALSE) -> PE | U26: 110 | V26: =VLOOKUP(U26,RANKING!$A$2:$C$129,2,FALSE) -> CAETANO | W26: =VLOOKUP(U26,RANKING!$A$2:$C$129,3,FALSE) -> PERNAMBUCO | X26: =VLOOKUP(W26,ESTADOS!$A$2:$B$28,2,FALSE) -> PE | Z26: 104 | AA26: =VLOOKUP(Z26,RANKING!$A$2:$C$129,2,FALSE) -> ANDERSON FEST | AB26: =VLOOKUP(Z26,RANKING!$A$2:$C$129,3,FALSE) -> PERNAMBUCO | AC26: =VLOOKUP(AB26,ESTADOS!$A$2:$B$28,2,FALSE) -> PE | AE26: =K26 -> 108 | AF26: =UPPER(L26) -> ADONES | AG26: =N26 -> PE | AI26: =P26 -> 107 | AJ26: =UPPER(Q26) -> RYCHARDSON | AK26: =S26 -> PE | AM26: =U26 -> 110 | AN26: =UPPER(V26) -> CAETANO | AO26: =X26 -> PE | AQ26: =Z26 -> 104 | AR26: =UPPER(AA26) -> ANDERSON FEST | AS26: =AC26 -> PE | AU26: =AE26 -> 108 | AV26: ADONES-PE | AX26: =AI26 -> 107 | AY26: RYCHARDSON-PE | BA26: =AM26 -> 110 | BB26: CAETANO-PE | BD26: =AQ26 -> 104 | BE26: ANDERSON FEST-PE
A27: 3 | B27: 10 | C27: 5 | D27: 16 | E27: 9 | F27: 12 | K27: 120 | L27: =VLOOKUP(K27,RANKING!$A$2:$C$129,2,FALSE) -> LUCAS JAKA | M27: =VLOOKUP(K27,RANKING!$A$2:$C$129,3,FALSE) -> PARANA | N27: =VLOOKUP(M27,ESTADOS!$A$2:$B$28,2,FALSE) -> PR | P27: 114 | Q27: =VLOOKUP(P27,RANKING!$A$2:$C$129,2,FALSE) -> LEO GONÇALVES | R27: =VLOOKUP(P27,RANKING!$A$2:$C$129,3,FALSE) -> PARANA | S27: =VLOOKUP(R27,ESTADOS!$A$2:$B$28,2,FALSE) -> PR | U27: 115 | V27: =VLOOKUP(U27,RANKING!$A$2:$C$129,2,FALSE) -> FARO | W27: =VLOOKUP(U27,RANKING!$A$2:$C$129,3,FALSE) -> PARANA | X27: =VLOOKUP(W27,ESTADOS!$A$2:$B$28,2,FALSE) -> PR | Z27: 122 | AA27: =VLOOKUP(Z27,RANKING!$A$2:$C$129,2,FALSE) -> ROGER | AB27: =VLOOKUP(Z27,RANKING!$A$2:$C$129,3,FALSE) -> PARANA | AC27: =VLOOKUP(AB27,ESTADOS!$A$2:$B$28,2,FALSE) -> PR | AE27: 120 | AF27: LUCAS JAKA | AG27: PR | AI27: 114 | AJ27: LEO GONÇALVES | AK27: PR | AM27: 115 | AN27: FARO | AO27: PR | AQ27: 122 | AR27: ROGER | AS27: PR | AU27: 120 | AV27: LUCAS JAKA-PR | AX27: 114 | AY27: LEO GONÇALVES-PR | BA27: 115 | BB27: FARO-PR | BD27: 122 | BE27: ROGER-PR
A29: GRUPO 13 | B29: GRUPO 14 | C29: GRUPO 15 | D29: GRUPO 16 | K29: GRUPO 9 | P29: GRUPO 10 | U29: GRUPO 11 | Z29: GRUPO 12 | AE29: =K29 -> GRUPO 9 | AI29: =P29 -> GRUPO 10 | AM29: =U29 -> GRUPO 11 | AQ29: =Z29 -> GRUPO 12 | AU29: =AE29 -> GRUPO 9 | AX29: =AI29 -> GRUPO 10 | BA29: =AM29 -> GRUPO 11 | BD29: =AQ29 -> GRUPO 12
A30: 13 | B30: 16 | C30: 14 | D30: 3 | K30: =C52 -> 4 | L30: =VLOOKUP(K30,RANKING!$A$2:$C$129,2,FALSE) -> JEFFERSON | M30: =VLOOKUP(K30,RANKING!$A$2:$C$129,3,FALSE) -> SAO PAULO | N30: =VLOOKUP(M30,ESTADOS!$A$2:$B$28,2,FALSE) -> SP | P30: =D52 -> 15 | Q30: =VLOOKUP(P30,RANKING!$A$2:$C$129,2,FALSE) -> GALDEANO | R30: =VLOOKUP(P30,RANKING!$A$2:$C$129,3,FALSE) -> SAO PAULO | S30: =VLOOKUP(R30,ESTADOS!$A$2:$B$28,2,FALSE) -> SP | U30: =E52 -> 9 | V30: =VLOOKUP(U30,RANKING!$A$2:$C$129,2,FALSE) -> RODRIGO RIBEIRO | W30: =VLOOKUP(U30,RANKING!$A$2:$C$129,3,FALSE) -> SAO PAULO | X30: =VLOOKUP(W30,ESTADOS!$A$2:$B$28,2,FALSE) -> SP | Z30: =F52 -> 10 | AA30: =VLOOKUP(Z30,RANKING!$A$2:$C$129,2,FALSE) -> BELINI | AB30: =VLOOKUP(Z30,RANKING!$A$2:$C$129,3,FALSE) -> SAO PAULO | AC30: =VLOOKUP(AB30,ESTADOS!$A$2:$B$28,2,FALSE) -> SP | AE30: =K30 -> 4 | AF30: =UPPER(L30) -> JEFFERSON | AG30: =N30 -> SP | AI30: =P30 -> 15 | AJ30: =UPPER(Q30) -> GALDEANO | AK30: =S30 -> SP | AM30: =U30 -> 9 | AN30: =UPPER(V30) -> RODRIGO RIBEIRO | AO30: =X30 -> SP | AQ30: =Z30 -> 10 | AR30: =UPPER(AA30) -> BELINI | AS30: =AC30 -> SP | AU30: =AE30 -> 4 | AV30: =IF($C20="","",CONCATENATE(AF30,"-",AG30)) -> JEFFERSON-SP | AX30: 15 | AY30: =IF($D20="","",CONCATENATE(AJ30,"-",AK30)) -> GALDEANO-SP | BA30: =AM30 -> 9 | BB30: =IF($E20="","",CONCATENATE(AN30,"-",AO30)) -> RODRIGO RIBEIRO-SP | BD30: =AQ30 -> 10 | BE30: =IF($F20="","",CONCATENATE(AR30,"-",AS30)) -> BELINI-SP
A31: 4 | B31: 7 | C31: 3 | D31: 15 | K31: =C53 -> 18 | L31: =VLOOKUP(K31,RANKING!$A$2:$C$129,2,FALSE) -> ALEX LUCATELLI | M31: =VLOOKUP(K31,RANKING!$A$2:$C$129,3,FALSE) -> SAO PAULO | N31: =VLOOKUP(M31,ESTADOS!$A$2:$B$28,2,FALSE) -> SP | P31: =D53 -> 29 | Q31: =VLOOKUP(P31,RANKING!$A$2:$C$129,2,FALSE) -> LEANDRIN | R31: =VLOOKUP(P31,RANKING!$A$2:$C$129,3,FALSE) -> SAO PAULO | S31: =VLOOKUP(R31,ESTADOS!$A$2:$B$28,2,FALSE) -> SP | U31: =E53 -> 24 | V31: =VLOOKUP(U31,RANKING!$A$2:$C$129,2,FALSE) -> ERISMAR | W31: =VLOOKUP(U31,RANKING!$A$2:$C$129,3,FALSE) -> SAO PAULO | X31: =VLOOKUP(W31,ESTADOS!$A$2:$B$28,2,FALSE) -> SP | Z31: =F53 -> 32 | AA31: =VLOOKUP(Z31,RANKING!$A$2:$C$129,2,FALSE) -> LOIACONO | AB31: =VLOOKUP(Z31,RANKING!$A$2:$C$129,3,FALSE) -> SAO PAULO | AC31: =VLOOKUP(AB31,ESTADOS!$A$2:$B$28,2,FALSE) -> SP | AE31: =K31 -> 18 | AF31: =UPPER(L31) -> ALEX LUCATELLI | AG31: =N31 -> SP | AI31: =P31 -> 29 | AJ31: =UPPER(Q31) -> LEANDRIN | AK31: =S31 -> SP | AM31: =U31 -> 24 | AN31: =UPPER(V31) -> ERISMAR | AO31: =X31 -> SP | AQ31: =Z31 -> 32 | AR31: =UPPER(AA31) -> LOIACONO | AS31: =AC31 -> SP | AU31: =AE31 -> 18 | AV31: =IF($C21="","",CONCATENATE(AF31,"-",AG31)) -> ALEX LUCATELLI-SP | AX31: 29 | AY31: =IF($D21="","",CONCATENATE(AJ31,"-",AK31)) -> LEANDRIN-SP | BA31: =AM31 -> 24 | BB31: =IF($E21="","",CONCATENATE(AN31,"-",AO31)) -> ERISMAR-SP | BD31: =AQ31 -> 32 | BE31: =IF($F21="","",CONCATENATE(AR31,"-",AS31)) -> LOIACONO-SP
A32: 12 | B32: 7 | C32: 16 | D32: 11 | K32: 40 | L32: =VLOOKUP(K32,RANKING!$A$2:$C$129,2,FALSE) -> TADEU | M32: =VLOOKUP(K32,RANKING!$A$2:$C$129,3,FALSE) -> SAO PAULO | N32: =VLOOKUP(M32,ESTADOS!$A$2:$B$28,2,FALSE) -> SP | P32: 41 | Q32: =VLOOKUP(P32,RANKING!$A$2:$C$129,2,FALSE) -> ZERO | R32: =VLOOKUP(P32,RANKING!$A$2:$C$129,3,FALSE) -> SAO PAULO | S32: =VLOOKUP(R32,ESTADOS!$A$2:$B$28,2,FALSE) -> SP | U32: 37 | V32: =VLOOKUP(U32,RANKING!$A$2:$C$129,2,FALSE) -> IVAN LEITE | W32: =VLOOKUP(U32,RANKING!$A$2:$C$129,3,FALSE) -> SAO PAULO | X32: =VLOOKUP(W32,ESTADOS!$A$2:$B$28,2,FALSE) -> SP | Z32: 47 | AA32: =VLOOKUP(Z32,RANKING!$A$2:$C$129,2,FALSE) -> DIOGO FARIAS | AB32: =VLOOKUP(Z32,RANKING!$A$2:$C$129,3,FALSE) -> SAO PAULO | AC32: =VLOOKUP(AB32,ESTADOS!$A$2:$B$28,2,FALSE) -> SP | AE32: 40 | AF32: TADEU | AG32: SP | AI32: 41 | AJ32: ZERO | AK32: SP | AM32: 37 | AN32: IVAN LEITE | AO32: SP | AQ32: 47 | AR32: DIOGO FARIAS | AS32: SP | AU32: 40 | AV32: TADEU-SP | AX32: 41 | AY32: ZERO-SP | BA32: 37 | BB32: IVAN LEITE-SP | BD32: 47 | BE32: DIOGO FARIAS -SP
A33: 12 | B33: 10 | C33: 7 | D33: 9 | K33: 56 | L33: =VLOOKUP(K33,RANKING!$A$2:$C$129,2,FALSE) -> BRENO CASTILHO | M33: =VLOOKUP(K33,RANKING!$A$2:$C$129,3,FALSE) -> MINAS GERAIS | N33: =VLOOKUP(M33,ESTADOS!$A$2:$B$28,2,FALSE) -> MG | P33: 52 | Q33: =VLOOKUP(P33,RANKING!$A$2:$C$129,2,FALSE) -> MURATORE | R33: =VLOOKUP(P33,RANKING!$A$2:$C$129,3,FALSE) -> SAO PAULO | S33: =VLOOKUP(R33,ESTADOS!$A$2:$B$28,2,FALSE) -> SP | U33: 63 | V33: =VLOOKUP(U33,RANKING!$A$2:$C$129,2,FALSE) -> DIGAO | W33: =VLOOKUP(U33,RANKING!$A$2:$C$129,3,FALSE) -> DISTRITO FEDERAL | X33: =VLOOKUP(W33,ESTADOS!$A$2:$B$28,2,FALSE) -> DF | Z33: 59 | AA33: =VLOOKUP(Z33,RANKING!$A$2:$C$129,2,FALSE) -> MARCOS ALVES | AB33: =VLOOKUP(Z33,RANKING!$A$2:$C$129,3,FALSE) -> CEARA | AC33: =VLOOKUP(AB33,ESTADOS!$A$2:$B$28,2,FALSE) -> CE | AE33: 56 | AF33: BRENO CASTILHO | AG33: MG | AI33: 52 | AJ33: MURATORE | AK33: SP | AM33: 63 | AN33: DIGAO | AO33: DF | AQ33: 59 | AR33: MARCOS ALVES | AS33: CE | AU33: 56 | AV33: BRENO CASTILHO-MG | AX33: 52 | AY33: MURATORE-SP | BA33: 63 | BB33: DIGAO-DF | BD33: 59 | BE33: MARCOS ALVES-CE
A34: 4 | B34: 8 | C34: 3 | D34: 14 | K34: 77 | L34: =VLOOKUP(K34,RANKING!$A$2:$C$129,2,FALSE) -> MOACIR HENZE | M34: =VLOOKUP(K34,RANKING!$A$2:$C$129,3,FALSE) -> RIO DE JANEIRO | N34: =VLOOKUP(M34,ESTADOS!$A$2:$B$28,2,FALSE) -> RJ | P34: 70 | Q34: =VLOOKUP(P34,RANKING!$A$2:$C$129,2,FALSE) -> MARCUS VINICIUS | R34: =VLOOKUP(P34,RANKING!$A$2:$C$129,3,FALSE) -> RIO DE JANEIRO | S34: =VLOOKUP(R34,ESTADOS!$A$2:$B$28,2,FALSE) -> RJ | U34: 80 | V34: =VLOOKUP(U34,RANKING!$A$2:$C$129,2,FALSE) -> LUCAS CAVALCANTE | W34: =VLOOKUP(U34,RANKING!$A$2:$C$129,3,FALSE) -> RIO DE JANEIRO | X34: =VLOOKUP(W34,ESTADOS!$A$2:$B$28,2,FALSE) -> RJ | Z34: 75 | AA34: =VLOOKUP(Z34,RANKING!$A$2:$C$129,2,FALSE) -> DIOGO | AB34: =VLOOKUP(Z34,RANKING!$A$2:$C$129,3,FALSE) -> RIO DE JANEIRO | AC34: =VLOOKUP(AB34,ESTADOS!$A$2:$B$28,2,FALSE) -> RJ | AE34: 77 | AF34: MOACIR HENZE | AG34: RJ | AI34: 70 | AJ34: MARCUS VINICIUS | AK34: RJ | AM34: 80 | AN34: LUCAS CAVALCANTE | AO34: RJ | AQ34: 75 | AR34: DIOGO | AS34: RJ | AU34: 77 | AV34: MOACIR HENZE-RJ | AX34: 70 | AY34: MARCUS VINICIUS-RJ | BA34: 80 | BB34: LUCAS CAVALCANTE-RJ | BD34: 75 | BE34: DIOGO-RJ
A35: 3 | B35: 2 | C35: 7 | D35: 6 | K35: 89 | L35: =VLOOKUP(K35,RANKING!$A$2:$C$129,2,FALSE) -> ALAN SILVA | M35: =VLOOKUP(K35,RANKING!$A$2:$C$129,3,FALSE) -> GOIAS | N35: =VLOOKUP(M35,ESTADOS!$A$2:$B$28,2,FALSE) -> GO | P35: 88 | Q35: =VLOOKUP(P35,RANKING!$A$2:$C$129,2,FALSE) -> RENATO BORGES | R35: =VLOOKUP(P35,RANKING!$A$2:$C$129,3,FALSE) -> GOIAS | S35: =VLOOKUP(R35,ESTADOS!$A$2:$B$28,2,FALSE) -> GO | U35: 96 | V35: =VLOOKUP(U35,RANKING!$A$2:$C$129,2,FALSE) -> DIEGO FERREIRA | W35: =VLOOKUP(U35,RANKING!$A$2:$C$129,3,FALSE) -> PERNAMBUCO | X35: =VLOOKUP(W35,ESTADOS!$A$2:$B$28,2,FALSE) -> PE | Z35: 91 | AA35: =VLOOKUP(Z35,RANKING!$A$2:$C$129,2,FALSE) -> KEVIN | AB35: =VLOOKUP(Z35,RANKING!$A$2:$C$129,3,FALSE) -> RIO GRANDE DO SUL | AC35: =VLOOKUP(AB35,ESTADOS!$A$2:$B$28,2,FALSE) -> RS | AE35: 89 | AF35: ALAN SILVA | AG35: GO | AI35: 88 | AJ35: RENATO BORGES | AK35: GO | AM35: 96 | AN35: DIEGO FERREIRA | AO35: PE | AQ35: 91 | AR35: KEVIN | AS35: RS | AU35: 89 | AV35: ALAN SILVA-GO | AX35: 88 | AY35: RENATO BORGES-GO | BA35: 96 | BB35: DIEGO FERREIRA-PE | BD35: 91 | BE35: KEVIN-RS
A36: 5 | B36: 16 | C36: 2 | D36: 10 | K36: 105 | L36: =VLOOKUP(K36,RANKING!$A$2:$C$129,2,FALSE) -> CLAUDIANOR | M36: =VLOOKUP(K36,RANKING!$A$2:$C$129,3,FALSE) -> PERNAMBUCO | N36: =VLOOKUP(M36,ESTADOS!$A$2:$B$28,2,FALSE) -> PE | P36: 103 | Q36: =VLOOKUP(P36,RANKING!$A$2:$C$129,2,FALSE) -> MARCELO UCHOA | R36: =VLOOKUP(P36,RANKING!$A$2:$C$129,3,FALSE) -> PERNAMBUCO | S36: =VLOOKUP(R36,ESTADOS!$A$2:$B$28,2,FALSE) -> PE | U36: 97 | V36: =VLOOKUP(U36,RANKING!$A$2:$C$129,2,FALSE) -> MATHEUS CARVALHO | W36: =VLOOKUP(U36,RANKING!$A$2:$C$129,3,FALSE) -> PERNAMBUCO | X36: =VLOOKUP(W36,ESTADOS!$A$2:$B$28,2,FALSE) -> PE | Z36: 109 | AA36: =VLOOKUP(Z36,RANKING!$A$2:$C$129,2,FALSE) -> PAPA | AB36: =VLOOKUP(Z36,RANKING!$A$2:$C$129,3,FALSE) -> PERNAMBUCO | AC36: =VLOOKUP(AB36,ESTADOS!$A$2:$B$28,2,FALSE) -> PE | AE36: 105 | AF36: CLAUDIANOR | AG36: PE | AI36: 103 | AJ36: MARCELO UCHOA | AK36: PE | AM36: 97 | AN36: MATHEUS CARVALHO | AO36: PE | AQ36: 109 | AR36: PAPA | AS36: PE | AU36: 105 | AV36: CLAUDIANOR-PE | AX36: 103 | AY36: MARCELO UCHOA-PE | BA36: 97 | BB36: MATHEUS CARVALHO-PE | BD36: 109 | BE36: PAPA-PE
A37: 15 | B37: 6 | C37: 1 | D37: 13 | K37: 117 | L37: =VLOOKUP(K37,RANKING!$A$2:$C$129,2,FALSE) -> GONZO | M37: =VLOOKUP(K37,RANKING!$A$2:$C$129,3,FALSE) -> PARANA | N37: =VLOOKUP(M37,ESTADOS!$A$2:$B$28,2,FALSE) -> PR | P37: 128 | Q37: =VLOOKUP(P37,RANKING!$A$2:$C$129,2,FALSE) -> RENAN PIMENTA | R37: =VLOOKUP(P37,RANKING!$A$2:$C$129,3,FALSE) -> PARANA | S37: =VLOOKUP(R37,ESTADOS!$A$2:$B$28,2,FALSE) -> PR | U37: 121 | V37: =VLOOKUP(U37,RANKING!$A$2:$C$129,2,FALSE) -> MANTENA | W37: =VLOOKUP(U37,RANKING!$A$2:$C$129,3,FALSE) -> PARANA | X37: =VLOOKUP(W37,ESTADOS!$A$2:$B$28,2,FALSE) -> PR | Z37: 124 | AA37: =VLOOKUP(Z37,RANKING!$A$2:$C$129,2,FALSE) -> IBSEN | AB37: =VLOOKUP(Z37,RANKING!$A$2:$C$129,3,FALSE) -> PARANA | AC37: =VLOOKUP(AB37,ESTADOS!$A$2:$B$28,2,FALSE) -> PR | AE37: 117 | AF37: GONZO | AG37: PR | AI37: 128 | AJ37: RENAN PIMENTA | AK37: PR | AM37: 121 | AN37: MANTENA | AO37: PR | AQ37: 124 | AR37: IBSEN | AS37: PR | AU37: 117 | AV37: GONZO-PR | AX37: 128 | AY37: RENAN PIMENTA-PR | BA37: 121 | BB37: MANTENA-PR | BD37: 124 | BE37: IBSEN-PR
K39: GRUPO 13 | P39: GRUPO 14 | U39: GRUPO 15 | Z39: GRUPO 16 | AE39: =K39 -> GRUPO 13 | AI39: =P39 -> GRUPO 14 | AM39: =U39 -> GRUPO 15 | AQ39: =Z39 -> GRUPO 16 | AU39: =AE39 -> GRUPO 13 | AX39: =AI39 -> GRUPO 14 | BA39: =AM39 -> GRUPO 15 | BD39: =AQ39 -> GRUPO 16
K40: =A62 -> 13 | L40: =VLOOKUP(K40,RANKING!$A$2:$C$129,2,FALSE) -> DUDA | M40: =VLOOKUP(K40,RANKING!$A$2:$C$129,3,FALSE) -> SAO PAULO | N40: =VLOOKUP(M40,ESTADOS!$A$2:$B$28,2,FALSE) -> SP | P40: =B62 -> 16 | Q40: =VLOOKUP(P40,RANKING!$A$2:$C$129,2,FALSE) -> DINEY | R40: =VLOOKUP(P40,RANKING!$A$2:$C$129,3,FALSE) -> SAO PAULO | S40: =VLOOKUP(R40,ESTADOS!$A$2:$B$28,2,FALSE) -> SP | U40: =C62 -> 14 | V40: =VLOOKUP(U40,RANKING!$A$2:$C$129,2,FALSE) -> BRUNO BLOIS | W40: =VLOOKUP(U40,RANKING!$A$2:$C$129,3,FALSE) -> SAO PAULO | X40: =VLOOKUP(W40,ESTADOS!$A$2:$B$28,2,FALSE) -> SP | Z40: =D62 -> 3 | AA40: =VLOOKUP(Z40,RANKING!$A$2:$C$129,2,FALSE) -> ARTHURZINHO | AB40: =VLOOKUP(Z40,RANKING!$A$2:$C$129,3,FALSE) -> SAO PAULO | AC40: =VLOOKUP(AB40,ESTADOS!$A$2:$B$28,2,FALSE) -> SP | AE40: =K40 -> 13 | AF40: =UPPER(L40) -> DUDA | AG40: =N40 -> SP | AI40: =P40 -> 16 | AJ40: =UPPER(Q40) -> DINEY | AK40: =S40 -> SP | AM40: =U40 -> 14 | AN40: =UPPER(V40) -> BRUNO BLOIS | AO40: =X40 -> SP | AQ40: =Z40 -> 3 | AR40: =UPPER(AA40) -> ARTHURZINHO | AS40: =AC40 -> SP | AU40: =AE40 -> 13 | AV40: =IF($A30="","",CONCATENATE(AF40,"-",AG40)) -> DUDA-SP | AX40: =AI40 -> 16 | AY40: =IF($B30="","",CONCATENATE(AJ40,"-",AK40)) -> DINEY-SP | BA40: =AM40 -> 14 | BB40: =IF($C30="","",CONCATENATE(AN40,"-",AO40)) -> BRUNO BLOIS-SP | BD40: =AQ40 -> 3 | BE40: =IF($D30="","",CONCATENATE(AR40,"-",AS40)) -> ARTHURZINHO-SP
A41: GRUPO 1 | B41: GRUPO 2 | C41: GRUPO 3 | D41: GRUPO 4 | E41: GRUPO 5 | F41: GRUPO 6 | K41: =A63 -> 20 | L41: =VLOOKUP(K41,RANKING!$A$2:$C$129,2,FALSE) -> ANDRE RAFAEL | M41: =VLOOKUP(K41,RANKING!$A$2:$C$129,3,FALSE) -> SAO PAULO | N41: =VLOOKUP(M41,ESTADOS!$A$2:$B$28,2,FALSE) -> SP | P41: =B63 -> 23 | Q41: =VLOOKUP(P41,RANKING!$A$2:$C$129,2,FALSE) -> RAFAEL SANTOS | R41: =VLOOKUP(P41,RANKING!$A$2:$C$129,3,FALSE) -> SAO PAULO | S41: =VLOOKUP(R41,ESTADOS!$A$2:$B$28,2,FALSE) -> SP | U41: =C63 -> 19 | V41: =VLOOKUP(U41,RANKING!$A$2:$C$129,2,FALSE) -> DILE | W41: =VLOOKUP(U41,RANKING!$A$2:$C$129,3,FALSE) -> SAO PAULO | X41: =VLOOKUP(W41,ESTADOS!$A$2:$B$28,2,FALSE) -> SP | Z41: =D63 -> 31 | AA41: =VLOOKUP(Z41,RANKING!$A$2:$C$129,2,FALSE) -> BV | AB41: =VLOOKUP(Z41,RANKING!$A$2:$C$129,3,FALSE) -> SAO PAULO | AC41: =VLOOKUP(AB41,ESTADOS!$A$2:$B$28,2,FALSE) -> SP | AE41: =K41 -> 20 | AF41: =UPPER(L41) -> ANDRE RAFAEL | AG41: =N41 -> SP | AI41: =P41 -> 23 | AJ41: =UPPER(Q41) -> RAFAEL SANTOS | AK41: =S41 -> SP | AM41: =U41 -> 19 | AN41: =UPPER(V41) -> DILE | AO41: =X41 -> SP | AQ41: =Z41 -> 31 | AR41: =UPPER(AA41) -> BV | AS41: =AC41 -> SP | AU41: =AE41 -> 20 | AV41: =IF($A31="","",CONCATENATE(AF41,"-",AG41)) -> ANDRE RAFAEL-SP | AX41: =AI41 -> 23 | AY41: =IF($B31="","",CONCATENATE(AJ41,"-",AK41)) -> RAFAEL SANTOS-SP | BA41: =AM41 -> 19 | BB41: =IF($C31="","",CONCATENATE(AN41,"-",AO41)) -> DILE-SP | BD41: =AQ41 -> 31 | BE41: =IF($D31="","",CONCATENATE(AR41,"-",AS41)) -> BV-SP
A42: =A10 -> 11 | B42: 6 | C42: 8 | D42: 1 | E42: 2 | F42: 5 | K42: 44 | L42: =VLOOKUP(K42,RANKING!$A$2:$C$129,2,FALSE) -> PEDREIRA | M42: =VLOOKUP(K42,RANKING!$A$2:$C$129,3,FALSE) -> SAO PAULO | N42: =VLOOKUP(M42,ESTADOS!$A$2:$B$28,2,FALSE) -> SP | P42: 39 | Q42: =VLOOKUP(P42,RANKING!$A$2:$C$129,2,FALSE) -> CASSIO | R42: =VLOOKUP(P42,RANKING!$A$2:$C$129,3,FALSE) -> SAO PAULO | S42: =VLOOKUP(R42,ESTADOS!$A$2:$B$28,2,FALSE) -> SP | U42: 48 | V42: =VLOOKUP(U42,RANKING!$A$2:$C$129,2,FALSE) -> RICARDO BONUCCI | W42: =VLOOKUP(U42,RANKING!$A$2:$C$129,3,FALSE) -> SAO PAULO | X42: =VLOOKUP(W42,ESTADOS!$A$2:$B$28,2,FALSE) -> SP | Z42: 43 | AA42: =VLOOKUP(Z42,RANKING!$A$2:$C$129,2,FALSE) -> OG GIRAO | AB42: =VLOOKUP(Z42,RANKING!$A$2:$C$129,3,FALSE) -> SAO PAULO | AC42: =VLOOKUP(AB42,ESTADOS!$A$2:$B$28,2,FALSE) -> SP | AE42: 44 | AF42: PEDREIRA | AG42: SP | AI42: 39 | AJ42: CASSIO | AK42: SP | AM42: 48 | AN42: RICARDO BONUCCI | AO42: SP | AQ42: 43 | AR42: OG GIRAO | AS42: SP | AU42: 44 | AV42: PEDREIRA-SP | AX42: 39 | AY42: CASSIO-SP | BA42: 48 | BB42: RICARDO BONUCCI-SP | BD42: 43 | BE42: OG GIRAO-SP
A43: =A11+16 -> 28 | B43: 21 | C43: 25 | D43: 26 | E43: 30 | F43: 17 | K43: 60 | L43: =VLOOKUP(K43,RANKING!$A$2:$C$129,2,FALSE) -> RODRIGO MARTINS | M43: =VLOOKUP(K43,RANKING!$A$2:$C$129,3,FALSE) -> CEARA | N43: =VLOOKUP(M43,ESTADOS!$A$2:$B$28,2,FALSE) -> CE | P43: 58 | Q43: =VLOOKUP(P43,RANKING!$A$2:$C$129,2,FALSE) -> SAMIR | R43: =VLOOKUP(P43,RANKING!$A$2:$C$129,3,FALSE) -> MINAS GERAIS | S43: =VLOOKUP(R43,ESTADOS!$A$2:$B$28,2,FALSE) -> MG | U43: 55 | V43: =VLOOKUP(U43,RANKING!$A$2:$C$129,2,FALSE) -> VANDER FELIPE | W43: =VLOOKUP(U43,RANKING!$A$2:$C$129,3,FALSE) -> MINAS GERAIS | X43: =VLOOKUP(W43,ESTADOS!$A$2:$B$28,2,FALSE) -> MG | Z43: 57 | AA43: =VLOOKUP(Z43,RANKING!$A$2:$C$129,2,FALSE) -> BETO | AB43: =VLOOKUP(Z43,RANKING!$A$2:$C$129,3,FALSE) -> MINAS GERAIS | AC43: =VLOOKUP(AB43,ESTADOS!$A$2:$B$28,2,FALSE) -> MG | AE43: 60 | AF43: RODRIGO MARTINS | AG43: CE | AI43: 58 | AJ43: SAMIR | AK43: MG | AM43: 55 | AN43: VANDER FELIPE | AO43: MG | AQ43: 57 | AR43: BETO | AS43: MG | AU43: 60 | AV43: RODRIGO MARTINS-CE | AX43: 58 | AY43: SAMIR-MG | BA43: 55 | BB43: VANDER FELIPE-MG | BD43: 57 | BE43: BETO-MG
A44: =A12+32 -> 46 | B44: 45 | C44: 35 | D44: 36 | E44: 42 | F44: 33 | K44: 68 | L44: =VLOOKUP(K44,RANKING!$A$2:$C$129,2,FALSE) -> VINICIUS MENDES | M44: =VLOOKUP(K44,RANKING!$A$2:$C$129,3,FALSE) -> RIO DE JANEIRO | N44: =VLOOKUP(M44,ESTADOS!$A$2:$B$28,2,FALSE) -> RJ | P44: 72 | Q44: =VLOOKUP(P44,RANKING!$A$2:$C$129,2,FALSE) -> RODOLFO | R44: =VLOOKUP(P44,RANKING!$A$2:$C$129,3,FALSE) -> RIO DE JANEIRO | S44: =VLOOKUP(R44,ESTADOS!$A$2:$B$28,2,FALSE) -> RJ | U44: 67 | V44: =VLOOKUP(U44,RANKING!$A$2:$C$129,2,FALSE) -> CHRISTOFER | W44: =VLOOKUP(U44,RANKING!$A$2:$C$129,3,FALSE) -> RIO DE JANEIRO | X44: =VLOOKUP(W44,ESTADOS!$A$2:$B$28,2,FALSE) -> RJ | Z44: 78 | AA44: =VLOOKUP(Z44,RANKING!$A$2:$C$129,2,FALSE) -> FLAVINHO | AB44: =VLOOKUP(Z44,RANKING!$A$2:$C$129,3,FALSE) -> RIO DE JANEIRO | AC44: =VLOOKUP(AB44,ESTADOS!$A$2:$B$28,2,FALSE) -> RJ | AE44: 68 | AF44: VINICIUS MENDES | AG44: RJ | AI44: 72 | AJ44: RODOLFO | AK44: RJ | AM44: 67 | AN44: CHRISTOFER | AO44: RJ | AQ44: 78 | AR44: FLAVINHO | AS44: RJ | AU44: 68 | AV44: VINICIUS MENDES-RJ | AX44: 72 | AY44: RODOLFO-RJ | BA44: 67 | BB44: CHRISTOFER-RJ | BD44: 78 | BE44: FLAVINHO-RJ
A45: =A13+48 -> 53 | B45: 61 | C45: 51 | D45: 62 | E45: 64 | F45: 50 | K45: 83 | L45: =VLOOKUP(K45,RANKING!$A$2:$C$129,2,FALSE) -> FAUSTINHO | M45: =VLOOKUP(K45,RANKING!$A$2:$C$129,3,FALSE) -> RIO DE JANEIRO | N45: =VLOOKUP(M45,ESTADOS!$A$2:$B$28,2,FALSE) -> RJ | P45: 82 | Q45: =VLOOKUP(P45,RANKING!$A$2:$C$129,2,FALSE) -> AMON-RA | R45: =VLOOKUP(P45,RANKING!$A$2:$C$129,3,FALSE) -> RIO DE JANEIRO | S45: =VLOOKUP(R45,ESTADOS!$A$2:$B$28,2,FALSE) -> RJ | U45: 87 | V45: =VLOOKUP(U45,RANKING!$A$2:$C$129,2,FALSE) -> THIAGO ASA | W45: =VLOOKUP(U45,RANKING!$A$2:$C$129,3,FALSE) -> ALAGOAS | X45: =VLOOKUP(W45,ESTADOS!$A$2:$B$28,2,FALSE) -> AL | Z45: 86 | AA45: =VLOOKUP(Z45,RANKING!$A$2:$C$129,2,FALSE) -> LUCAS BOA MORTE | AB45: =VLOOKUP(Z45,RANKING!$A$2:$C$129,3,FALSE) -> RIO DE JANEIRO | AC45: =VLOOKUP(AB45,ESTADOS!$A$2:$B$28,2,FALSE) -> RJ | AE45: 83 | AF45: FAUSTINHO | AG45: RJ | AI45: 82 | AJ45: AMON-RA | AK45: RJ | AM45: 87 | AN45: THIAGO ASA | AO45: AL | AQ45: 86 | AR45: LUCAS BOA MORTE | AS45: RJ | AU45: 83 | AV45: FAUSTINHO-RJ | AX45: 82 | AY45: AMON-RA-RJ | BA45: 87 | BB45: THIAGO ASA-AL | BD45: 86 | BE45: LUCAS BOA MORTE-RJ
A46: =A14+64 -> 74 | B46: 76 | C46: 65 | D46: 66 | E46: 69 | F46: 71 | K46: 101 | L46: =VLOOKUP(K46,RANKING!$A$2:$C$129,2,FALSE) -> DHOLL | M46: =VLOOKUP(K46,RANKING!$A$2:$C$129,3,FALSE) -> PERNAMBUCO | N46: =VLOOKUP(M46,ESTADOS!$A$2:$B$28,2,FALSE) -> PE | P46: 112 | Q46: =VLOOKUP(P46,RANKING!$A$2:$C$129,2,FALSE) -> BEL | R46: =VLOOKUP(P46,RANKING!$A$2:$C$129,3,FALSE) -> PERNAMBUCO | S46: =VLOOKUP(R46,ESTADOS!$A$2:$B$28,2,FALSE) -> PE | U46: 98 | V46: =VLOOKUP(U46,RANKING!$A$2:$C$129,2,FALSE) -> WALLACE MARINHO | W46: =VLOOKUP(U46,RANKING!$A$2:$C$129,3,FALSE) -> PERNAMBUCO | X46: =VLOOKUP(W46,ESTADOS!$A$2:$B$28,2,FALSE) -> PE | Z46: 106 | AA46: =VLOOKUP(Z46,RANKING!$A$2:$C$129,2,FALSE) -> ERMESON | AB46: =VLOOKUP(Z46,RANKING!$A$2:$C$129,3,FALSE) -> PERNAMBUCO | AC46: =VLOOKUP(AB46,ESTADOS!$A$2:$B$28,2,FALSE) -> PE | AE46: 101 | AF46: DHOLL | AG46: PE | AI46: 112 | AJ46: BEL | AK46: PE | AM46: 98 | AN46: WALLACE MARINHO | AO46: PE | AQ46: 106 | AR46: ERMESON | AS46: PE | AU46: 101 | AV46: DHOLL-PE | AX46: 112 | AY46: BEL-PE | BA46: 98 | BB46: WALLACE MARINHO-PE | BD46: 106 | BE46: ERMESON-PE
A47: =A15+80 -> 94 | B47: 81 | C47: 92 | D47: 85 | E47: 90 | F47: 84 | K47: 127 | L47: =VLOOKUP(K47,RANKING!$A$2:$C$129,2,FALSE) -> IVAN SANTOS | M47: =VLOOKUP(K47,RANKING!$A$2:$C$129,3,FALSE) -> PARANA | N47: =VLOOKUP(M47,ESTADOS!$A$2:$B$28,2,FALSE) -> PR | P47: 118 | Q47: =VLOOKUP(P47,RANKING!$A$2:$C$129,2,FALSE) -> FERNANDO ET | R47: =VLOOKUP(P47,RANKING!$A$2:$C$129,3,FALSE) -> PARANA | S47: =VLOOKUP(R47,ESTADOS!$A$2:$B$28,2,FALSE) -> PR | U47: 113 | V47: =VLOOKUP(U47,RANKING!$A$2:$C$129,2,FALSE) -> ROBERTINHO | W47: =VLOOKUP(U47,RANKING!$A$2:$C$129,3,FALSE) -> PARANA | X47: =VLOOKUP(W47,ESTADOS!$A$2:$B$28,2,FALSE) -> PR | Z47: 125 | AA47: =VLOOKUP(Z47,RANKING!$A$2:$C$129,2,FALSE) -> BIRIGUI | AB47: =VLOOKUP(Z47,RANKING!$A$2:$C$129,3,FALSE) -> PARANA | AC47: =VLOOKUP(AB47,ESTADOS!$A$2:$B$28,2,FALSE) -> PR | AE47: 127 | AF47: IVAN SANTOS | AG47: PR | AI47: 118 | AJ47: FERNANDO ET | AK47: PR | AM47: 113 | AN47: ROBERTINHO | AO47: PR | AQ47: 125 | AR47: BIRIGUI | AS47: PR | AU47: 127 | AV47: IVAN SANTOS-PR | AX47: 118 | AY47: FERNANDO ET-PR | BA47: 113 | BB47: ROBERTINHO-PR | BD47: 125 | BE47: BIRIGUI-PR
A48: =A16+96 -> 99 | B48: 100 | C48: 102 | D48: 111 | E48: 108 | F48: 107
A49: =A17+112 -> 126 | B49: 123 | C49: 116 | D49: 119 | E49: 120 | F49: 114
A51: GRUPO 7 | B51: GRUPO 8 | C51: GRUPO 9 | D51: GRUPO 10 | E51: GRUPO 11 | F51: GRUPO 12
A52: =A20 -> 12 | B52: 7 | C52: 4 | D52: 15 | E52: 9 | F52: 10
A53: =A21+16 -> 22 | B53: 27 | C53: 18 | D53: 29 | E53: 24 | F53: 32
A54: =A22+32 -> 38 | B54: 34 | C54: 40 | D54: 41 | E54: 37 | F54: 47
A55: =A23+48 -> 49 | B55: 54 | C55: 56 | D55: 52 | E55: 63 | F55: 59
A56: =A24+64 -> 79 | B56: 73 | C56: 77 | D56: 70 | E56: 80 | F56: 75
A57: =A25+80 -> 95 | B57: 93 | C57: 89 | D57: 88 | E57: 96 | F57: 91
A58: =A26+96 -> 110 | B58: 104 | C58: 105 | D58: 103 | E58: 97 | F58: 109
A59: =A27+112 -> 115 | B59: 122 | C59: 117 | D59: 128 | E59: 121 | F59: 124
A61: GRUPO 13 | B61: GRUPO 14 | C61: GRUPO 15 | D61: GRUPO 16
A62: =A30 -> 13 | B62: =B30 -> 16 | C62: =C30 -> 14 | D62: =D30 -> 3
A63: =A31+16 -> 20 | B63: =B31+16 -> 23 | C63: =C31+16 -> 19 | D63: =D31+16 -> 31
A64: =A32+32 -> 44 | B64: =B32+32 -> 39 | C64: =C32+32 -> 48 | D64: =D32+32 -> 43
A65: =A33+48 -> 60 | B65: =B33+48 -> 58 | C65: =C33+48 -> 55 | D65: =D33+48 -> 57
A66: =A34+64 -> 68 | B66: =B34+64 -> 72 | C66: =C34+64 -> 67 | D66: =D34+64 -> 78
A67: =A35+80 -> 83 | B67: =B35+80 -> 82 | C67: =C35+80 -> 87 | D67: =D35+80 -> 86
A68: =A36+96 -> 101 | B68: =B36+96 -> 112 | C68: =C36+96 -> 98 | D68: =D36+96 -> 106
A69: =A37+112 -> 127 | B69: =B37+112 -> 118 | C69: =C37+112 -> 113 | D69: =D37+112 -> 125

Sheet ESTADOS
A1: ESTADO | B1: SIGLA
A2: ACRE | B2: AC
A3: ALAGOAS | B3: AL
A4: AMAPA | B4: AP
A5: AMAZONAS | B5: AM
A6: BAHIA | B6: BA
A7: CEARA | B7: CE
A8: DISTRITO FEDERAL | B8: DF
A9: ESPIRITO SANTO | B9: ES
A10: GOIAS | B10: GO
A11: MARANHAO | B11: MA
A12: MATO GROSSO | B12: MT
A13: MATO GROSSO DO SUL | B13: MS
A14: MINAS GERAIS | B14: MG
A15: PARA | B15: PA
A16: PARAIBA | B16: PB
A17: PARANA | B17: PR
A18: PERNAMBUCO | B18: PE
A19: PIAUI | B19: PI
A20: RIO DE JANEIRO | B20: RJ
A21: RIO GRANDE DO NORTE | B21: RN
A22: RIO GRANDE DO SUL | B22: RS
A23: RONDONIA | B23: RO
A24: RORAIMA | B24: RR
A25: SANTA CATARINA | B25: SC
A26: SAO PAULO | B26: SP
A27: SERGIPE | B27: SE
A28: TOCANTINS | B28: TO

Sheet G1 (2) (hidden)
C6: São Paulo/SP
C8: XXXII Brasileiro Individual | H8: Categoria: | I8: Adulto | N8: 11 a 14/junho de 2020
C9: Grupo 1 | F9: Grupo 2 | I9: Grupo 3 | L9: Grupo 4 | P9: >>> Atenção <<<
C10: 1 | D10: J1 | F10: 1 | G10: J9 | I10: 1 | J10: J17 | L10: 1 | M10: J25 | P10: Para completar o cálculo da 1a Fase proceda da seguinte forma:
C11: 2 | D11: J2 | F11: 2 | G11: J10 | I11: 2 | J11: J18 | L11: 2 | M11: J26 | P11: 1) Coloque os Botonistas do mesmo Estado/Clube dentro de cada bloco.
C12: 3 | D12: J3 | F12: 3 | G12: J11 | I12: 3 | J12: J19 | L12: 3 | M12: J27 | P12: • 2 botonistas: posições 1 e 2 ou 3 e 7 ou 4 e 8 ou 5 e 6
C13: 4 | D13: J4 | F13: 4 | G13: J12 | I13: 4 | J13: J20 | L13: 4 | M13: J28 | P13: • 3 botonistas: posições 3, 4 e 7
C14: 5 | D14: J5 | F14: 5 | G14: J13 | I14: 5 | J14: J21 | L14: 5 | M14: J29 | P14: • 4 botonistas: posições 1, 2, 5 e 6 ou 3, 4, 7 e 8
C15: 6 | D15: J6 | F15: 6 | G15: J14 | I15: 6 | J15: J22 | L15: 6 | M15: J30 | P15: OBS: Em caso de WO, inserir a letra "S" no campo ao lado no nome.
C16: 7 | D16: J7 | F16: 7 | G16: J15 | I16: 7 | J16: J23 | L16: 7 | M16: J31
C17: 8 | D17: J8 | F17: 8 | G17: J16 | I17: 8 | J17: J24 | L17: 8 | M17: J32
C19: Grupo 5 | F19: Grupo 6 | I19: Grupo 7 | L19: Grupo 8
C20: 1 | D20: J33 | F20: 1 | G20: J41 | I20: 1 | J20: J49 | L20: 1 | M20: J57
C21: 2 | D21: J34 | F21: 2 | G21: J42 | I21: 2 | J21: J50 | L21: 2 | M21: J58
C22: 3 | D22: J35 | F22: 3 | G22: J43 | I22: 3 | J22: J51 | L22: 3 | M22: J59
C23: 4 | D23: J36 | F23: 4 | G23: J44 | I23: 4 | J23: J52 | L23: 4 | M23: J60
C24: 5 | D24: J37 | F24: 5 | G24: J45 | I24: 5 | J24: J53 | L24: 5 | M24: J61
C25: 6 | D25: J38 | F25: 6 | G25: J46 | I25: 6 | J25: J54 | L25: 6 | M25: J62
C26: 7 | D26: J39 | F26: 7 | G26: J47 | I26: 7 | J26: J55 | L26: 7 | M26: J63
C27: 8 | D27: J40 | F27: 8 | G27: J48 | I27: 8 | J27: J56 | L27: 8 | M27: J64
C29: Grupo 9 | F29: Grupo 10 | I29: Grupo 11 | L29: Grupo 12
C30: 1 | D30: J65 | F30: 1 | G30: J73 | I30: 1 | J30: J81 | L30: 1 | M30: J89
C31: 2 | D31: J66 | F31: 2 | G31: J74 | I31: 2 | J31: J82 | L31: 2 | M31: J90
C32: 3 | D32: J67 | F32: 3 | G32: J75 | I32: 3 | J32: J83 | L32: 3 | M32: J91
C33: 4 | D33: J68 | F33: 4 | G33: J76 | I33: 4 | J33: J84 | L33: 4 | M33: J92
C34: 5 | D34: J69 | F34: 5 | G34: J77 | I34: 5 | J34: J85 | L34: 5 | M34: J93
C35: 6 | D35: J70 | F35: 6 | G35: J78 | I35: 6 | J35: J86 | L35: 6 | M35: J94
C36: 7 | D36: J71 | F36: 7 | G36: J79 | I36: 7 | J36: J87 | L36: 7 | M36: J95
C37: 8 | D37: J72 | F37: 8 | G37: J80 | I37: 8 | J37: J88 | L37: 8 | M37: J96
C39: Grupo 13 | F39: Grupo 14 | I39: Grupo 15 | L39: Grupo 16
C40: 1 | D40: J97 | F40: 1 | G40: J105 | I40: 1 | J40: J113 | L40: 1 | M40: J121
C41: 2 | D41: J98 | F41: 2 | G41: J106 | I41: 2 | J41: J114 | L41: 2 | M41: J122
C42: 3 | D42: J99 | F42: 3 | G42: J107 | I42: 3 | J42: J115 | L42: 3 | M42: J123
C43: 4 | D43: J100 | F43: 4 | G43: J108 | I43: 4 | J43: J116 | L43: 4 | M43: J124
C44: 5 | D44: J101 | F44: 5 | G44: J109 | I44: 5 | J44: J117 | L44: 5 | M44: J125
C45: 6 | D45: J102 | F45: 6 | G45: J110 | I45: 6 | J45: J118 | L45: 6 | M45: J126
C46: 7 | D46: J103 | F46: 7 | G46: J111 | I46: 7 | J46: J119 | L46: 7 | M46: J127
C47: 8 | D47: J104 | F47: 8 | G47: J112 | I47: 8 | J47: J120 | L47: 8 | M47: J128

Sheet G1
C6: =INFO!$C$1 -> 32º Campeonato Brasileiro Individual
C8: =INFO!$C$2 -> SÃO PAULO/SP | H8: Categoria: | I8: =INFO!$C$4 -> Adulto | N8: =INFO!$C$3 -> 16 a 19/junho de 2022 | P8: Esta coluna foi ocultada pela direção técnica, pois na 1ª fase não é necessário
C9: Grupo 1 | F9: Grupo 2 | I9: Grupo 3 | L9: Grupo 4 | P9: >>> Atenção <<<
C10: 1 | D10: =SORTEIO!$AV10 -> PEDRO NETO-SP | F10: 1 | G10: =SORTEIO!$AY10 -> QUINHO-SP | I10: 1 | J10: =SORTEIO!$BB10 -> ALEX BAHR-SP | L10: 1 | M10: =SORTEIO!$BE10 -> THIAGO LIMA-SP | P10: Para completar o cálculo da 1a Fase proceda da seguinte forma:
C11: 2 | D11: =SORTEIO!$AV11 -> ALDECOA-SP | F11: 2 | G11: =SORTEIO!$AY11 -> FARINHA-SP | I11: 2 | J11: =SORTEIO!$BB11 -> CLEO JR-SP | L11: 2 | M11: =SORTEIO!$BE11 -> NILO-SP | P11: 1) Coloque os Botonistas do mesmo Estado/Clube dentro de cada bloco.
C12: 3 | D12: =SORTEIO!$AV13 -> NATHAN-MG | F12: 3 | G12: =SORTEIO!$AY13 -> RAFAEL MOREIRA-CE | I12: 3 | J12: =SORTEIO!$BB12 -> QUARTIM-SP | L12: 3 | M12: =SORTEIO!$BE13 -> ALCIDES-DF | P12: • 2 botonistas: posições 1 e 4 ou 2 e 3 ou 5 e 8 ou 6 e 7
C13: 4 | D13: =SORTEIO!$AV12 -> AMADEU-SP | F13: 4 | G13: =SORTEIO!$AY12 -> TIAGO MACHADO-SP | I13: 4 | J13: =SORTEIO!$BB13 -> CELINHO-SP | L13: 4 | M13: =SORTEIO!$BE12 -> FRANÇA-SP | P13: • 3 botonistas: posições 1, 2 e 4 ou 5, 6 e 8
C14: 5 | D14: =SORTEIO!$AV14 -> BIRA-RJ | F14: 5 | G14: =SORTEIO!$AY14 -> ANDERSON-RJ | I14: 5 | J14: =SORTEIO!$BB14 -> NANDO-RJ | L14: 5 | M14: =SORTEIO!$BE14 -> ALESSANDRO-RJ | P14: • 4 botonistas: posições 1 a 4 ou 5 a 8
C15: 6 | D15: =SORTEIO!$AV15 -> SCHINA-SC | F15: 6 | G15: =SORTEIO!$AY16 -> MATHEUS TINE-PE | I15: 6 | J15: =SORTEIO!$BB15 -> WEBER-RS | L15: 6 | M15: =SORTEIO!$BE16 -> HELVIO-PE | P15: OBS: Em caso de WO, inserir a letra "S" no campo ao lado no nome.
C16: 7 | D16: =SORTEIO!$AV16 -> EMANUEL-PE | F16: 7 | G16: =SORTEIO!$AY17 -> ROGERIO-PR | I16: 7 | J16: =SORTEIO!$BB16 -> RENATO VARZEA-PE | L16: 7 | M16: =SORTEIO!$BE17 -> PEDRO GERONASSO-PR
C17: 8 | D17: =SORTEIO!$AV17 -> LUCAS PRANDO-PR | F17: 8 | G17: =SORTEIO!$AY15 -> RHANIERY-RJ | I17: 8 | J17: =SORTEIO!$BB17 -> PEDRO PRANDO-PR | L17: 8 | M17: =SORTEIO!$BE15 -> THIAGO PENNA-RJ
C19: Grupo 5 | F19: Grupo 6 | I19: Grupo 7 | L19: Grupo 8
C20: 1 | D20: =SORTEIO!$AV20 -> VICTOR VAROLI-SP | F20: 1 | G20: =SORTEIO!$AY20 -> MICHILIN-SP | I20: 1 | J20: =SORTEIO!$BB20 -> ALBARELLO-SP | L20: 1 | M20: =SORTEIO!$BE20 -> FACCIO-SP
C21: 2 | D21: =SORTEIO!$AV21 -> ESPEL-SP | F21: 2 | G21: =SORTEIO!$AY21 -> SERGIO NENE-SP | I21: 2 | J21: =SORTEIO!$BB21 -> PIETRO VAROLI-SP | L21: 2 | M21: =SORTEIO!$BE21 -> GUERREIRO-SP
C22: 3 | D22: =SORTEIO!$AV23 -> CHICONES-DF | F22: 3 | G22: =SORTEIO!$AY22 -> PICOLINO-SP | I22: 3 | J22: =SORTEIO!$BB22 -> FRANCISCO JR-SP | L22: 3 | M22: =SORTEIO!$BE23 -> LEANDRO SCHMIDT-MG
C23: 4 | D23: =SORTEIO!$AV22 -> RODRIGO MORO-SP | F23: 4 | G23: =SORTEIO!$AY23 -> REGIS ABBOUD-SP | I23: 4 | J23: =SORTEIO!$BB23 -> MARCO BUTANTA-SP | L23: 4 | M23: =SORTEIO!$BE22 -> RINCO-SP
C24: 5 | D24: =SORTEIO!$AV24 -> IGOR-RJ | F24: 5 | G24: =SORTEIO!$AY24 -> PABINHO-RJ | I24: 5 | J24: =SORTEIO!$BB25 -> RAFAEL AQUINO-PE | L24: 5 | M24: =SORTEIO!$BE24 -> ROGERINHO-RJ
C25: 6 | D25: =SORTEIO!$AV25 -> MARCO AURELIO-PB | F25: 6 | G25: =SORTEIO!$AY26 -> RYCHARDSON-PE | I25: 6 | J25: =SORTEIO!$BB24 -> PIRICA-RJ | L25: 6 | M25: =SORTEIO!$BE25 -> DENIS SNICHELOTTO-SC
C26: 7 | D26: =SORTEIO!$AV26 -> ADONES-PE | F26: 7 | G26: =SORTEIO!$AY27 -> LEO GONÇALVES-PR | I26: 7 | J26: =SORTEIO!$BB27 -> FARO-PR | L26: 7 | M26: =SORTEIO!$BE26 -> ANDERSON FEST-PE
C27: 8 | D27: =SORTEIO!$AV27 -> LUCAS JAKA-PR | F27: 8 | G27: =SORTEIO!$AY25 -> FAUSTO LIMA-RJ | I27: 8 | J27: =SORTEIO!$BB26 -> CAETANO-PE | L27: 8 | M27: =SORTEIO!$BE27 -> ROGER-PR
C29: Grupo 9 | F29: Grupo 10 | I29: Grupo 11 | L29: Grupo 12
C30: 1 | D30: =SORTEIO!$AV30 -> JEFFERSON-SP | F30: 1 | G30: =SORTEIO!$AY30 -> GALDEANO-SP | I30: 1 | J30: =SORTEIO!$BB30 -> RODRIGO RIBEIRO-SP | L30: 1 | M30: =SORTEIO!$BE30 -> BELINI-SP
C31: 2 | D31: =SORTEIO!$AV31 -> ALEX LUCATELLI-SP | F31: 2 | G31: =SORTEIO!$AY31 -> LEANDRIN-SP | I31: 2 | J31: =SORTEIO!$BB31 -> ERISMAR-SP | L31: 2 | M31: =SORTEIO!$BE31 -> LOIACONO-SP
C32: 3 | D32: =SORTEIO!$AV33 -> BRENO CASTILHO-MG | F32: 3 | G32: =SORTEIO!$AY32 -> ZERO-SP | I32: 3 | J32: =SORTEIO!$BB33 -> DIGAO-DF | L32: 3 | M32: =SORTEIO!$BE33 -> MARCOS ALVES-CE
C33: 4 | D33: =SORTEIO!$AV32 -> TADEU-SP | F33: 4 | G33: =SORTEIO!$AY33 -> MURATORE-SP | I33: 4 | J33: =SORTEIO!$BB32 -> IVAN LEITE-SP | L33: 4 | M33: =SORTEIO!$BE32 -> DIOGO FARIAS -SP
C34: 5 | D34: =SORTEIO!$AV34 -> MOACIR HENZE-RJ | F34: 5 | G34: =SORTEIO!$AY34 -> MARCUS VINICIUS-RJ | I34: 5 | J34: =SORTEIO!$BB35 -> DIEGO FERREIRA-PE | L34: 5 | M34: =SORTEIO!$BE34 -> DIOGO-RJ
C35: 6 | D35: =SORTEIO!$AV35 -> ALAN SILVA-GO | F35: 6 | G35: =SORTEIO!$AY35 -> RENATO BORGES-GO | I35: 6 | J35: =SORTEIO!$BB34 -> LUCAS CAVALCANTE-RJ | L35: 6 | M35: =SORTEIO!$BE35 -> KEVIN-RS
C36: 7 | D36: =SORTEIO!$AV36 -> CLAUDIANOR-PE | F36: 7 | G36: =SORTEIO!$AY36 -> MARCELO UCHOA-PE | I36: 7 | J36: =SORTEIO!$BB37 -> MANTENA-PR | L36: 7 | M36: =SORTEIO!$BE36 -> PAPA-PE
C37: 8 | D37: =SORTEIO!$AV37 -> GONZO-PR | F37: 8 | G37: =SORTEIO!$AY37 -> RENAN PIMENTA-PR | I37: 8 | J37: =SORTEIO!$BB36 -> MATHEUS CARVALHO-PE | L37: 8 | M37: =SORTEIO!$BE37 -> IBSEN-PR
C39: Grupo 13 | F39: Grupo 14 | I39: Grupo 15 | L39: Grupo 16
C40: 1 | D40: =SORTEIO!$AV40 -> DUDA-SP | F40: 1 | G40: =SORTEIO!$AY40 -> DINEY-SP | I40: 1 | J40: =SORTEIO!$BB40 -> BRUNO BLOIS-SP | L40: 1 | M40: =SORTEIO!$BE40 -> ARTHURZINHO-SP
C41: 2 | D41: =SORTEIO!$AV41 -> ANDRE RAFAEL-SP | F41: 2 | G41: =SORTEIO!$AY41 -> RAFAEL SANTOS-SP | I41: 2 | J41: =SORTEIO!$BB41 -> DILE-SP | L41: 2 | M41: =SORTEIO!$BE41 -> BV-SP
C42: 3 | D42: =SORTEIO!$AV43 -> RODRIGO MARTINS-CE | F42: 3 | G42: =SORTEIO!$AY43 -> SAMIR-MG | I42: 3 | J42: =SORTEIO!$BB43 -> VANDER FELIPE-MG | L42: 3 | M42: =SORTEIO!$BE43 -> BETO-MG
C43: 4 | D43: PC-SP | F43: 4 | G43: LIMAO-SP | I43: 4 | J43: =SORTEIO!$BB42 -> RICARDO BONUCCI-SP | L43: 4 | M43: =SORTEIO!$BE42 -> OG GIRAO-SP
C44: 5 | D44: =SORTEIO!$AV44 -> VINICIUS MENDES-RJ | F44: 5 | G44: =SORTEIO!$AY44 -> RODOLFO-RJ | I44: 5 | J44: =SORTEIO!$BB44 -> CHRISTOFER-RJ | L44: 5 | M44: =SORTEIO!$BE44 -> FLAVINHO-RJ
C45: 6 | D45: =SORTEIO!$AV46 -> DHOLL-PE | F45: 6 | G45: =SORTEIO!$AY46 -> BEL-PE | I45: 6 | J45: =SORTEIO!$BB45 -> THIAGO ASA-AL | L45: 6 | M45: =SORTEIO!$BE46 -> ERMESON-PE
C46: 7 | D46: =SORTEIO!$AV47 -> IVAN SANTOS-PR | F46: 7 | G46: =SORTEIO!$AY47 -> FERNANDO ET-PR | I46: 7 | J46: =SORTEIO!$BB46 -> WALLACE MARINHO-PE | L46: 7 | M46: =SORTEIO!$BE47 -> BIRIGUI-PR
C47: 8 | D47: =SORTEIO!$AV45 -> FAUSTINHO-RJ | F47: 8 | G47: =SORTEIO!$AY45 -> AMON-RA-RJ | I47: 8 | J47: =SORTEIO!$BB47 -> ROBERTINHO-PR | L47: 8 | M47: =SORTEIO!$BE45 -> LUCAS BOA MORTE-RJ

Sheet F1
S1: =#REF!+#REF!+#REF!+#REF! -> 
C2: =INFO!$C$1 -> 32º Campeonato Brasileiro Individual
C4: =CONCATENATE('G1'!$I$8, " - 1a Divisão") -> Adulto - 1a Divisão | Q4: =CONCATENATE("1ª Fase - ", 'G1'!$C$9) -> 1ª Fase - Grupo 1 | U4: =F7 -> PEDRO NETO-SP | AA4: =IF(RIGHT(U4,4)="(WO)",0,1) -> 1 | AC4: =F8 -> ALDECOA-SP | AI4: =IF(RIGHT(AC4,4)="(WO)",0,1) -> 1 | AK4: =M8 -> NATHAN-MG | AQ4: =IF(RIGHT(AK4,4)="(WO)",0,1) -> 1 | AS4: =M7 -> AMADEU-SP | AY4: =IF(RIGHT(AS4,4)="(WO)",0,1) -> 1 | BA4: =F9 -> BIRA-RJ | BG4: =IF(RIGHT(BA4,4)="(WO)",0,1) -> 1 | BI4: =F10 -> SCHINA-SC | BO4: =IF(RIGHT(BI4,4)="(WO)",0,1) -> 1 | BQ4: =M10 -> EMANUEL-PE | BW4: =IF(RIGHT(BQ4,4)="(WO)",0,1) -> 1 | BY4: =M9 -> LUCAS PRANDO-PR | CE4: =IF(RIGHT(BY4,4)="(WO)",0,1) -> 1
B5: Grp | C5: Rod. | D5: Data/Hora | E5: Mesa | F5: Jogos | S5: Ok | U5: J | V5: V | W5: E | X5: D | Y5: GP | Z5: GC | AA5: PG | AC5: J | AD5: V | AE5: E | AF5: D | AG5: GP | AH5: GC | AI5: PG | AK5: J | AL5: V | AM5: E | AN5: D | AO5: GP | AP5: GC | AQ5: PG | AS5: J | AT5: V | AU5: E | AV5: D | AW5: GP | AX5: GC | AY5: PG | BA5: J | BB5: V | BC5: E | BD5: D | BE5: GP | BF5: GC | BG5: PG | BI5: J | BJ5: V | BK5: E | BL5: D | BM5: GP | BN5: GC | BO5: PG | BQ5: J | BR5: V | BS5: E | BT5: D | BU5: GP | BV5: GC | BW5: PG | BY5: J | BZ5: V | CA5: E | CB5: D | CC5: GP | CD5: GC | CE5: PG | CH5: Rodada
B7: 1 | C7: 1 | D7: 2022-06-16 | E7: 1 | F7: ='G1'!$D$10 & IF('G1'!$E$10="S"," (WO)","") -> PEDRO NETO-SP | K7: 3 | L7: 3 | M7: ='G1'!$D$13 & IF('G1'!$E$13="S"," (WO)","") -> AMADEU-SP | S7: =COUNTBLANK(K7:L7) -> 0 | U7: =IF(S7=0,1,0) -> 1 | V7: =IF(AND(S7=0,K7>L7),1,0)*AA4 -> 0 | W7: =IF(AND(S7=0,K7=L7),1,0)*AA4 -> 1 | X7: =U7-V7-W7 -> 0 | Y7: =K7 -> 3 | Z7: =L7 -> 3 | AA7: =((V7*3)+W7)*AA4 -> 1 | AS7: =IF(S7=0,1,0) -> 1 | AT7: =IF(AND(S7=0,L7>K7),1,0)*AY4 -> 0 | AU7: =IF(AND(S7=0,K7=L7),1,0)*AY4 -> 1 | AV7: =AS7-AT7-AU7 -> 0 | AW7: =L7 -> 3 | AX7: =K7 -> 3 | AY7: =((AT7*3)+AU7)*AY4 -> 1 | CH7: 1ª
B8: 1 | E8: =E7+1 -> 2 | F8: ='G1'!$D$11 & IF('G1'!$E$11="S"," (WO)","") -> ALDECOA-SP | K8: 2 | L8: 2 | M8: ='G1'!$D$12 & IF('G1'!$E$12="S"," (WO)","") -> NATHAN-MG | S8: =COUNTBLANK(K8:L8) -> 0 | AC8: =IF(S8=0,1,0) -> 1 | AD8: =IF(AND(S8=0,K8>L8),1,0)*AI4 -> 0 | AE8: =IF(AND(S8=0,K8=L8),1,0)*AI4 -> 1 | AF8: =AC8-AD8-AE8 -> 0 | AG8: =K8 -> 2 | AH8: =L8 -> 2 | AI8: =((AD8*3)+AE8)*AI4 -> 1 | AK8: =IF(S8=0,1,0) -> 1 | AL8: =IF(AND(S8=0,L8>K8),1,0)*AQ4 -> 0 | AM8: =IF(AND(S8=0,K8=L8),1,0)*AQ4 -> 1 | AN8: =AK8-AL8-AM8 -> 0 | AO8: =L8 -> 2 | AP8: =K8 -> 2 | AQ8: =((AL8*3)+AM8)*AQ4 -> 1
B9: 1 | D9: 14:00:00 | E9: =E8+1 -> 3 | F9: ='G1'!$D$14 & IF('G1'!$E$14="S"," (WO)","") -> BIRA-RJ | K9: 5 | L9: 2 | M9: ='G1'!$D$17 & IF('G1'!$E$17="S"," (WO)","") -> LUCAS PRANDO-PR | S9: =COUNTBLANK(K9:L9) -> 0 | BA9: =IF(S9=0,1,0) -> 1 | BB9: =IF(AND(S9=0,K9>L9),1,0)*BG4 -> 1 | BC9: =IF(AND(S9=0,K9=L9),1,0)*BG4 -> 0 | BD9: =BA9-BB9-BC9 -> 0 | BE9: =K9 -> 5 | BF9: =L9 -> 2 | BG9: =((BB9*3)+BC9)*BG4 -> 3 | BY9: =IF(S9=0,1,0) -> 1 | BZ9: =IF(AND(S9=0,L9>K9),1,0)*CE4 -> 0 | CA9: =IF(AND(S9=0,K9=L9),1,0)*CE4 -> 0 | CB9: =BY9-BZ9-CA9 -> 1 | CC9: =L9 -> 2 | CD9: =K9 -> 5 | CE9: =((BZ9*3)+CA9)*CE4 -> 0
B10: 1 | E10: =E9+1 -> 4 | F10: ='G1'!$D$15 & IF('G1'!$E$15="S"," (WO)","") -> SCHINA-SC | K10: 5 | L10: 5 | M10: ='G1'!$D$16 & IF('G1'!$E$16="S"," (WO)","") -> EMANUEL-PE | S10: =COUNTBLANK(K10:L10) -> 0 | BI10: =IF(S10=0,1,0) -> 1 | BJ10: =IF(AND(S10=0,K10>L10),1,0)*BO4 -> 0 | BK10: =IF(AND(S10=0,K10=L10),1,0)*BO4 -> 1 | BL10: =BI10-BJ10-BK10 -> 0 | BM10: =K10 -> 5 | BN10: =L10 -> 5 | BO10: =((BJ10*3)+BK10)*BO4 -> 1 | BQ10: =IF(S10=0,1,0) -> 1 | BR10: =IF(AND(S10=0,L10>K10),1,0)*BW4 -> 0 | BS10: =IF(AND(S10=0,K10=L10),1,0)*BW4 -> 1 | BT10: =BQ10-BR10-BS10 -> 0 | BU10: =L10 -> 5 | BV10: =K10 -> 5 | BW10: =((BR10*3)+BS10)*BW4 -> 1
B11: 1
B12: 1 | C12: 2 | D12: =$D$7 -> 2022-06-16 | E12: 5 | F12: =F7 -> PEDRO NETO-SP | K12: 8 | L12: 3 | M12: =M8 -> NATHAN-MG | S12: =COUNTBLANK(K12:L12) -> 0 | U12: =IF(S12=0,1,0) -> 1 | V12: =IF(AND(S12=0,K12>L12),1,0)*AA4 -> 1 | W12: =IF(AND(S12=0,K12=L12),1,0)*AA4 -> 0 | X12: =U12-V12-W12 -> 0 | Y12: =K12 -> 8 | Z12: =L12 -> 3 | AA12: =((V12*3)+W12)*AA4 -> 3 | AK12: =IF(S12=0,1,0) -> 1 | AL12: =IF(AND(S12=0,L12>K12),1,0)*AQ4 -> 0 | AM12: =IF(AND(S12=0,K12=L12),1,0)*AQ4 -> 0 | AN12: =AK12-AL12-AM12 -> 1 | AO12: =L12 -> 3 | AP12: =K12 -> 8 | AQ12: =((AL12*3)+AM12)*AQ4 -> 0 | CH12: 2ª
B13: 1 | E13: =E12+1 -> 6 | F13: =F8 -> ALDECOA-SP | K13: 4 | L13: 1 | M13: =M7 -> AMADEU-SP | S13: =COUNTBLANK(K13:L13) -> 0 | AC13: =IF(S13=0,1,0) -> 1 | AD13: =IF(AND(S13=0,K13>L13),1,0)*AI4 -> 1 | AE13: =IF(AND(S13=0,K13=L13),1,0)*AI4 -> 0 | AF13: =AC13-AD13-AE13 -> 0 | AG13: =K13 -> 4 | AH13: =L13 -> 1 | AI13: =((AD13*3)+AE13)*AI4 -> 3 | AS13: =IF(S13=0,1,0) -> 1 | AT13: =IF(AND(S13=0,L13>K13),1,0)*AY4 -> 0 | AU13: =IF(AND(S13=0,K13=L13),1,0)*AY4 -> 0 | AV13: =AS13-AT13-AU13 -> 1 | AW13: =L13 -> 1 | AX13: =K13 -> 4 | AY13: =((AT13*3)+AU13)*AY4 -> 0
B14: 1 | D14: 14:30:00 | E14: =E13+1 -> 7 | F14: =F9 -> BIRA-RJ | K14: 7 | L14: 3 | M14: =M10 -> EMANUEL-PE | S14: =COUNTBLANK(K14:L14) -> 0 | BA14: =IF(S14=0,1,0) -> 1 | BB14: =IF(AND(S14=0,K14>L14),1,0)*BG4 -> 1 | BC14: =IF(AND(S14=0,K14=L14),1,0)*BG4 -> 0 | BD14: =BA14-BB14-BC14 -> 0 | BE14: =K14 -> 7 | BF14: =L14 -> 3 | BG14: =((BB14*3)+BC14)*BG4 -> 3 | BQ14: =IF(S14=0,1,0) -> 1 | BR14: =IF(AND(S14=0,L14>K14),1,0)*BW4 -> 0 | BS14: =IF(AND(S14=0,K14=L14),1,0)*BW4 -> 0 | BT14: =BQ14-BR14-BS14 -> 1 | BU14: =L14 -> 3 | BV14: =K14 -> 7 | BW14: =((BR14*3)+BS14)*BW4 -> 0
B15: 1 | E15: =E14+1 -> 8 | F15: =F10 -> SCHINA-SC | K15: 3 | L15: 4 | M15: =M9 -> LUCAS PRANDO-PR | S15: =COUNTBLANK(K15:L15) -> 0 | BI15: =IF(S15=0,1,0) -> 1 | BJ15: =IF(AND(S15=0,K15>L15),1,0)*BO4 -> 0 | BK15: =IF(AND(S15=0,K15=L15),1,0)*BO4 -> 0 | BL15: =BI15-BJ15-BK15 -> 1 | BM15: =K15 -> 3 | BN15: =L15 -> 4 | BO15: =((BJ15*3)+BK15)*BO4 -> 0 | BY15: =IF(S15=0,1,0) -> 1 | BZ15: =IF(AND(S15=0,L15>K15),1,0)*CE4 -> 1 | CA15: =IF(AND(S15=0,K15=L15),1,0)*CE4 -> 0 | CB15: =BY15-BZ15-CA15 -> 0 | CC15: =L15 -> 4 | CD15: =K15 -> 3 | CE15: =((BZ15*3)+CA15)*CE4 -> 3
B17: 1 | C17: 3 | D17: =$D$7 -> 2022-06-16 | E17: 9 | F17: =F12 -> PEDRO NETO-SP | K17: 4 | L17: 5 | M17: =F13 -> ALDECOA-SP | S17: =COUNTBLANK(K17:L17) -> 0 | U17: =IF(S17=0,1,0) -> 1 | V17: =IF(AND(S17=0,K17>L17),1,0)*AA4 -> 0 | W17: =IF(AND(S17=0,K17=L17),1,0)*AA4 -> 0 | X17: =U17-V17-W17 -> 1 | Y17: =K17 -> 4 | Z17: =L17 -> 5 | AA17: =((V17*3)+W17)*AA4 -> 0 | AC17: =IF(S17=0,1,0) -> 1 | AD17: =IF(AND(S17=0,L17>K17),1,0)*AI4 -> 1 | AE17: =IF(AND(S17=0,K17=L17),1,0)*AI4 -> 0 | AF17: =AC17-AD17-AE17 -> 0 | AG17: =L17 -> 5 | AH17: =K17 -> 4 | AI17: =((AD17*3)+AE17)*AI4 -> 3 | CH17: 3ª
B18: 1 | E18: =E17+1 -> 10 | F18: =M12 -> NATHAN-MG | K18: 4 | L18: 3 | M18: =M13 -> AMADEU-SP | S18: =COUNTBLANK(K18:L18) -> 0 | AK18: =IF(S18=0,1,0) -> 1 | AL18: =IF(AND(S18=0,K18>L18),1,0)*AQ4 -> 1 | AM18: =IF(AND(S18=0,K18=L18),1,0)*AQ4 -> 0 | AN18: =AK18-AL18-AM18 -> 0 | AO18: =K18 -> 4 | AP18: =L18 -> 3 | AQ18: =((AL18*3)+AM18)*AQ4 -> 3 | AS18: =IF(S18=0,1,0) -> 1 | AT18: =IF(AND(S18=0,L18>K18),1,0)*AY4 -> 0 | AU18: =IF(AND(S18=0,K18=L18),1,0)*AY4 -> 0 | AV18: =AS18-AT18-AU18 -> 1 | AW18: =L18 -> 3 | AX18: =K18 -> 4 | AY18: =((AT18*3)+AU18)*AY4 -> 0
B19: 1 | D19: 15:00:00 | E19: =E18+1 -> 11 | F19: =F14 -> BIRA-RJ | K19: 3 | L19: 2 | M19: =F15 -> SCHINA-SC | S19: =COUNTBLANK(K19:L19) -> 0 | BA19: =IF(S19=0,1,0) -> 1 | BB19: =IF(AND(S19=0,K19>L19),1,0)*BG4 -> 1 | BC19: =IF(AND(S19=0,K19=L19),1,0)*BG4 -> 0 | BD19: =BA19-BB19-BC19 -> 0 | BE19: =K19 -> 3 | BF19: =L19 -> 2 | BG19: =((BB19*3)+BC19)*BG4 -> 3 | BI19: =IF(S19=0,1,0) -> 1 | BJ19: =IF(AND(S19=0,L19>K19),1,0)*BO4 -> 0 | BK19: =IF(AND(S19=0,K19=L19),1,0)*BO4 -> 0 | BL19: =BI19-BJ19-BK19 -> 1 | BM19: =L19 -> 2 | BN19: =K19 -> 3 | BO19: =((BJ19*3)+BK19)*BO4 -> 0
B20: 1 | E20: =E19+1 -> 12 | F20: =M14 -> EMANUEL-PE | K20: 2 | L20: 3 | M20: =M15 -> LUCAS PRANDO-PR | S20: =COUNTBLANK(K20:L20) -> 0 | BQ20: =IF(S20=0,1,0) -> 1 | BR20: =IF(AND(S20=0,K20>L20),1,0)*BW4 -> 0 | BS20: =IF(AND(S20=0,K20=L20),1,0)*BW4 -> 0 | BT20: =BQ20-BR20-BS20 -> 1 | BU20: =K20 -> 2 | BV20: =L20 -> 3 | BW20: =((BR20*3)+BS20)*BW4 -> 0 | BY20: =IF(S20=0,1,0) -> 1 | BZ20: =IF(AND(S20=0,L20>K20),1,0)*CE4 -> 1 | CA20: =IF(AND(S20=0,K20=L20),1,0)*CE4 -> 0 | CB20: =BY20-BZ20-CA20 -> 0 | CC20: =L20 -> 3 | CD20: =K20 -> 2 | CE20: =((BZ20*3)+CA20)*CE4 -> 3
B22: 1 | C22: 4 | D22: =$D$7 -> 2022-06-16 | E22: 13 | F22: =F19 -> BIRA-RJ | K22: 4 | L22: 5 | M22: =M17 -> ALDECOA-SP | S22: =COUNTBLANK(K22:L22) -> 0 | AC22: =IF(S22=0,1,0) -> 1 | AD22: =IF(AND(S22=0,L22>K22),1,0)*AI4 -> 1 | AE22: =IF(AND(S22=0,K22=L22),1,0)*AI4 -> 0 | AF22: =AC22-AD22-AE22 -> 0 | AG22: =L22 -> 5 | AH22: =K22 -> 4 | AI22: =((AD22*3)+AE22)*AI4 -> 3 | BA22: =IF(S22=0,1,0) -> 1 | BB22: =IF(AND(S22=0,K22>L22),1,0)*BG4 -> 0 | BC22: =IF(AND(S22=0,K22=L22),1,0)*BG4 -> 0 | BD22: =BA22-BB22-BC22 -> 1 | BE22: =K22 -> 4 | BF22: =L22 -> 5 | BG22: =((BB22*3)+BC22)*BG4 -> 0 | CH22: 4ª
B23: 1 | E23: =E22+1 -> 14 | F23: =M19 -> SCHINA-SC | K23: 4 | L23: 4 | M23: =F18 -> NATHAN-MG | S23: =COUNTBLANK(K23:L23) -> 0 | AK23: =IF(S23=0,1,0) -> 1 | AL23: =IF(AND(S23=0,L23>K23),1,0)*AQ4 -> 0 | AM23: =IF(AND(S23=0,K23=L23),1,0)*AQ4 -> 1 | AN23: =AK23-AL23-AM23 -> 0 | AO23: =L23 -> 4 | AP23: =K23 -> 4 | AQ23: =((AL23*3)+AM23)*AQ4 -> 1 | BI23: =IF(S23=0,1,0) -> 1 | BJ23: =IF(AND(S23=0,K23>L23),1,0)*BO4 -> 0 | BK23: =IF(AND(S23=0,K23=L23),1,0)*BO4 -> 1 | BL23: =BI23-BJ23-BK23 -> 0 | BM23: =K23 -> 4 | BN23: =L23 -> 4 | BO23: =((BJ23*3)+BK23)*BO4 -> 1
B24: 1 | D24: 15:30:00 | E24: =E23+1 -> 15 | F24: =F20 -> EMANUEL-PE | K24: 3 | L24: 0 | M24: =M18 -> AMADEU-SP | S24: =COUNTBLANK(K24:L24) -> 0 | AS24: =IF(S24=0,1,0) -> 1 | AT24: =IF(AND(S24=0,L24>K24),1,0)*AY4 -> 0 | AU24: =IF(AND(S24=0,K24=L24),1,0)*AY4 -> 0 | AV24: =AS24-AT24-AU24 -> 1 | AW24: =L24 -> 0 | AX24: =K24 -> 3 | AY24: =((AT24*3)+AU24)*AY4 -> 0 | BQ24: =IF(S24=0,1,0) -> 1 | BR24: =IF(AND(S24=0,K24>L24),1,0)*BW4 -> 1 | BS24: =IF(AND(S24=0,K24=L24),1,0)*BW4 -> 0 | BT24: =BQ24-BR24-BS24 -> 0 | BU24: =K24 -> 3 | BV24: =L24 -> 0 | BW24: =((BR24*3)+BS24)*BW4 -> 3
B25: 1 | E25: =E24+1 -> 16 | F25: =M20 -> LUCAS PRANDO-PR | K25: 3 | L25: 5 | M25: =F17 -> PEDRO NETO-SP | S25: =COUNTBLANK(K25:L25) -> 0 | U25: =IF(S25=0,1,0) -> 1 | V25: =IF(AND(S25=0,L25>K25),1,0)*AA4 -> 1 | W25: =IF(AND(S25=0,K25=L25),1,0)*AA4 -> 0 | X25: =U25-V25-W25 -> 0 | Y25: =L25 -> 5 | Z25: =K25 -> 3 | AA25: =((V25*3)+W25)*AA4 -> 3 | BY25: =IF(S25=0,1,0) -> 1 | BZ25: =IF(AND(S25=0,K25>L25),1,0)*CE4 -> 0 | CA25: =IF(AND(S25=0,K25=L25),1,0)*CE4 -> 0 | CB25: =BY25-BZ25-CA25 -> 1 | CC25: =K25 -> 3 | CD25: =L25 -> 5 | CE25: =((BZ25*3)+CA25)*CE4 -> 0
B27: 1 | C27: 5 | D27: =$D$7 -> 2022-06-16 | E27: 17 | F27: =F22 -> BIRA-RJ | K27: 6 | L27: 2 | M27: =M23 -> NATHAN-MG | S27: =COUNTBLANK(K27:L27) -> 0 | AK27: =IF(S27=0,1,0) -> 1 | AL27: =IF(AND(S27=0,L27>K27),1,0)*AQ4 -> 0 | AM27: =IF(AND(S27=0,K27=L27),1,0)*AQ4 -> 0 | AN27: =AK27-AL27-AM27 -> 1 | AO27: =L27 -> 2 | AP27: =K27 -> 6 | AQ27: =((AL27*3)+AM27)*AQ4 -> 0 | BA27: =IF(S27=0,1,0) -> 1 | BB27: =IF(AND(S27=0,K27>L27),1,0)*BG4 -> 1 | BC27: =IF(AND(S27=0,K27=L27),1,0)*BG4 -> 0 | BD27: =BA27-BB27-BC27 -> 0 | BE27: =K27 -> 6 | BF27: =L27 -> 2 | BG27: =((BB27*3)+BC27)*BG4 -> 3 | CH27: 5ª
B28: 1 | E28: =E27+1 -> 18 | F28: =F23 -> SCHINA-SC | K28: 10 | L28: 4 | M28: =M24 -> AMADEU-SP | S28: =COUNTBLANK(K28:L28) -> 0 | AS28: =IF(S28=0,1,0) -> 1 | AT28: =IF(AND(S28=0,L28>K28),1,0)*AY4 -> 0 | AU28: =IF(AND(S28=0,K28=L28),1,0)*AY4 -> 0 | AV28: =AS28-AT28-AU28 -> 1 | AW28: =L28 -> 4 | AX28: =K28 -> 10 | AY28: =((AT28*3)+AU28)*AY4 -> 0 | BI28: =IF(S28=0,1,0) -> 1 | BJ28: =IF(AND(S28=0,K28>L28),1,0)*BO4 -> 1 | BK28: =IF(AND(S28=0,K28=L28),1,0)*BO4 -> 0 | BL28: =BI28-BJ28-BK28 -> 0 | BM28: =K28 -> 10 | BN28: =L28 -> 4 | BO28: =((BJ28*3)+BK28)*BO4 -> 3
B29: 1 | D29: 16:00:00 | E29: =E28+1 -> 19 | F29: =F24 -> EMANUEL-PE | K29: 7 | L29: 5 | M29: =M25 -> PEDRO NETO-SP | S29: =COUNTBLANK(K29:L29) -> 0 | U29: =IF(S29=0,1,0) -> 1 | V29: =IF(AND(S29=0,L29>K29),1,0)*AA4 -> 0 | W29: =IF(AND(S29=0,K29=L29),1,0)*AA4 -> 0 | X29: =U29-V29-W29 -> 1 | Y29: =L29 -> 5 | Z29: =K29 -> 7 | AA29: =((V29*3)+W29)*AA4 -> 0 | BQ29: =IF(S29=0,1,0) -> 1 | BR29: =IF(AND(S29=0,K29>L29),1,0)*BW4 -> 1 | BS29: =IF(AND(S29=0,K29=L29),1,0)*BW4 -> 0 | BT29: =BQ29-BR29-BS29 -> 0 | BU29: =K29 -> 7 | BV29: =L29 -> 5 | BW29: =((BR29*3)+BS29)*BW4 -> 3
B30: 1 | E30: =E29+1 -> 20 | F30: =F25 -> LUCAS PRANDO-PR | K30: 2 | L30: 5 | M30: =M22 -> ALDECOA-SP | S30: =COUNTBLANK(K30:L30) -> 0 | AC30: =IF(S30=0,1,0) -> 1 | AD30: =IF(AND(S30=0,L30>K30),1,0)*AI4 -> 1 | AE30: =IF(AND(S30=0,K30=L30),1,0)*AI4 -> 0 | AF30: =AC30-AD30-AE30 -> 0 | AG30: =L30 -> 5 | AH30: =K30 -> 2 | AI30: =((AD30*3)+AE30)*AI4 -> 3 | BY30: =IF(S30=0,1,0) -> 1 | BZ30: =IF(AND(S30=0,K30>L30),1,0)*CE4 -> 0 | CA30: =IF(AND(S30=0,K30=L30),1,0)*CE4 -> 0 | CB30: =BY30-BZ30-CA30 -> 1 | CC30: =K30 -> 2 | CD30: =L30 -> 5 | CE30: =((BZ30*3)+CA30)*CE4 -> 0
B32: 1 | C32: 6 | D32: =$D$7 -> 2022-06-16 | E32: 21 | F32: =F28 -> SCHINA-SC | K32: 6 | L32: 2 | M32: =M30 -> ALDECOA-SP | S32: =COUNTBLANK(K32:L32) -> 0 | AC32: =IF(S32=0,1,0) -> 1 | AD32: =IF(AND(S32=0,L32>K32),1,0)*AI4 -> 0 | AE32: =IF(AND(S32=0,K32=L32),1,0)*AI4 -> 0 | AF32: =AC32-AD32-AE32 -> 1 | AG32: =L32 -> 2 | AH32: =K32 -> 6 | AI32: =((AD32*3)+AE32)*AI4 -> 0 | BI32: =IF(S32=0,1,0) -> 1 | BJ32: =IF(AND(S32=0,K32>L32),1,0)*BO4 -> 1 | BK32: =IF(AND(S32=0,K32=L32),1,0)*BO4 -> 0 | BL32: =BI32-BJ32-BK32 -> 0 | BM32: =K32 -> 6 | BN32: =L32 -> 2 | BO32: =((BJ32*3)+BK32)*BO4 -> 3 | CH32: 6ª
B33: 1 | E33: =E32+1 -> 22 | F33: =F27 -> BIRA-RJ | K33: 6 | L33: 7 | M33: =M29 -> PEDRO NETO-SP | S33: =COUNTBLANK(K33:L33) -> 0 | U33: =IF(S33=0,1,0) -> 1 | V33: =IF(AND(S33=0,L33>K33),1,0)*AA4 -> 1 | W33: =IF(AND(S33=0,K33=L33),1,0)*AA4 -> 0 | X33: =U33-V33-W33 -> 0 | Y33: =L33 -> 7 | Z33: =K33 -> 6 | AA33: =((V33*3)+W33)*AA4 -> 3 | BA33: =IF(S33=0,1,0) -> 1 | BB33: =IF(AND(S33=0,K33>L33),1,0)*BG4 -> 0 | BC33: =IF(AND(S33=0,K33=L33),1,0)*BG4 -> 0 | BD33: =BA33-BB33-BC33 -> 1 | BE33: =K33 -> 6 | BF33: =L33 -> 7 | BG33: =((BB33*3)+BC33)*BG4 -> 0
B34: 1 | D34: 16:30:00 | E34: =E33+1 -> 23 | F34: =F30 -> LUCAS PRANDO-PR | K34: 5 | L34: 2 | M34: =M28 -> AMADEU-SP | S34: =COUNTBLANK(K34:L34) -> 0 | AS34: =IF(S34=0,1,0) -> 1 | AT34: =IF(AND(S34=0,L34>K34),1,0)*AY4 -> 0 | AU34: =IF(AND(S34=0,K34=L34),1,0)*AY4 -> 0 | AV34: =AS34-AT34-AU34 -> 1 | AW34: =L34 -> 2 | AX34: =K34 -> 5 | AY34: =((AT34*3)+AU34)*AY4 -> 0 | BY34: =IF(S34=0,1,0) -> 1 | BZ34: =IF(AND(S34=0,K34>L34),1,0)*CE4 -> 1 | CA34: =IF(AND(S34=0,K34=L34),1,0)*CE4 -> 0 | CB34: =BY34-BZ34-CA34 -> 0 | CC34: =K34 -> 5 | CD34: =L34 -> 2 | CE34: =((BZ34*3)+CA34)*CE4 -> 3
B35: 1 | E35: =E34+1 -> 24 | F35: =F29 -> EMANUEL-PE | K35: 8 | L35: 0 | M35: =M27 -> NATHAN-MG | S35: =COUNTBLANK(K35:L35) -> 0 | AK35: =IF(S35=0,1,0) -> 1 | AL35: =IF(AND(S35=0,L35>K35),1,0)*AQ4 -> 0 | AM35: =IF(AND(S35=0,K35=L35),1,0)*AQ4 -> 0 | AN35: =AK35-AL35-AM35 -> 1 | AO35: =L35 -> 0 | AP35: =K35 -> 8 | AQ35: =((AL35*3)+AM35)*AQ4 -> 0 | BQ35: =IF(S35=0,1,0) -> 1 | BR35: =IF(AND(S35=0,K35>L35),1,0)*BW4 -> 1 | BS35: =IF(AND(S35=0,K35=L35),1,0)*BW4 -> 0 | BT35: =BQ35-BR35-BS35 -> 0 | BU35: =K35 -> 8 | BV35: =L35 -> 0 | BW35: =((BR35*3)+BS35)*BW4 -> 3
B37: 1 | C37: 7 | D37: =$D$7 -> 2022-06-16 | E37: 25 | F37: =F34 -> LUCAS PRANDO-PR | K37: 8 | L37: 0 | M37: =M35 -> NATHAN-MG | S37: =COUNTBLANK(K37:L37) -> 0 | AK37: =IF(S37=0,1,0) -> 1 | AL37: =IF(AND(S37=0,L37>K37),1,0)*AQ4 -> 0 | AM37: =IF(AND(S37=0,K37=L37),1,0)*AQ4 -> 0 | AN37: =AK37-AL37-AM37 -> 1 | AO37: =L37 -> 0 | AP37: =K37 -> 8 | AQ37: =((AL37*3)+AM37)*AQ4 -> 0 | BY37: =IF(S37=0,1,0) -> 1 | BZ37: =IF(AND(S37=0,K37>L37),1,0)*CE4 -> 1 | CA37: =IF(AND(S37=0,K37=L37),1,0)*CE4 -> 0 | CB37: =BY37-BZ37-CA37 -> 0 | CC37: =K37 -> 8 | CD37: =L37 -> 0 | CE37: =((BZ37*3)+CA37)*CE4 -> 3 | CH37: 7ª
B38: 1 | E38: =E37+1 -> 26 | F38: =F32 -> SCHINA-SC | K38: 6 | L38: 9 | M38: =M33 -> PEDRO NETO-SP | S38: =COUNTBLANK(K38:L38) -> 0 | U38: =IF(S38=0,1,0) -> 1 | V38: =IF(AND(S38=0,L38>K38),1,0)*AA4 -> 1 | W38: =IF(AND(S38=0,K38=L38),1,0)*AA4 -> 0 | X38: =U38-V38-W38 -> 0 | Y38: =L38 -> 9 | Z38: =K38 -> 6 | AA38: =((V38*3)+W38)*AA4 -> 3 | BI38: =IF(S38=0,1,0) -> 1 | BJ38: =IF(AND(S38=0,K38>L38),1,0)*BO4 -> 0 | BK38: =IF(AND(S38=0,K38=L38),1,0)*BO4 -> 0 | BL38: =BI38-BJ38-BK38 -> 1 | BM38: =K38 -> 6 | BN38: =L38 -> 9 | BO38: =((BJ38*3)+BK38)*BO4 -> 0
B39: 1 | D39: 17:00:00 | E39: =E38+1 -> 27 | F39: =F35 -> EMANUEL-PE | K39: 2 | L39: 3 | M39: =M32 -> ALDECOA-SP | S39: =COUNTBLANK(K39:L39) -> 0 | AC39: =IF(S39=0,1,0) -> 1 | AD39: =IF(AND(S39=0,L39>K39),1,0)*AI4 -> 1 | AE39: =IF(AND(S39=0,K39=L39),1,0)*AI4 -> 0 | AF39: =AC39-AD39-AE39 -> 0 | AG39: =L39 -> 3 | AH39: =K39 -> 2 | AI39: =((AD39*3)+AE39)*AI4 -> 3 | BQ39: =IF(S39=0,1,0) -> 1 | BR39: =IF(AND(S39=0,K39>L39),1,0)*BW4 -> 0 | BS39: =IF(AND(S39=0,K39=L39),1,0)*BW4 -> 0 | BT39: =BQ39-BR39-BS39 -> 1 | BU39: =K39 -> 2 | BV39: =L39 -> 3 | BW39: =((BR39*3)+BS39)*BW4 -> 0
B40: 1 | E40: =E39+1 -> 28 | F40: =F33 -> BIRA-RJ | K40: 4 | L40: 4 | M40: =M34 -> AMADEU-SP | S40: =COUNTBLANK(K40:L40) -> 0 | AS40: =IF(S40=0,1,0) -> 1 | AT40: =IF(AND(S40=0,L40>K40),1,0)*AY4 -> 0 | AU40: =IF(AND(S40=0,K40=L40),1,0)*AY4 -> 1 | AV40: =AS40-AT40-AU40 -> 0 | AW40: =L40 -> 4 | AX40: =K40 -> 4 | AY40: =((AT40*3)+AU40)*AY4 -> 1 | BA40: =IF(S40=0,1,0) -> 1 | BB40: =IF(AND(S40=0,K40>L40),1,0)*BG4 -> 0 | BC40: =IF(AND(S40=0,K40=L40),1,0)*BG4 -> 1 | BD40: =BA40-BB40-BC40 -> 0 | BE40: =K40 -> 4 | BF40: =L40 -> 4 | BG40: =((BB40*3)+BC40)*BG4 -> 1
S41: =SUM(S7:S40) -> 0 | U41: =SUM(U7:U40) -> 7 | V41: 4 | W41: 1 | X41: 2 | Y41: 41 | Z41: 33 | AA41: 13 | AC41: =SUM(AC7:AC40) -> 7 | AD41: 5 | AE41: 1 | AF41: 1 | AG41: 26 | AH41: 21 | AI41: 16 | AK41: =SUM(AK7:AK40) -> 7 | AL41: 1 | AM41: 2 | AN41: 4 | AO41: 15 | AP41: 39 | AQ41: 5 | AS41: =SUM(AS7:AS40) -> 7 | AT41: 0 | AU41: 2 | AV41: 5 | AW41: 17 | AX41: 33 | AY41: 2 | BA41: =SUM(BA7:BA40) -> 7 | BB41: 4 | BC41: 1 | BD41: 2 | BE41: 35 | BF41: 25 | BG41: 13 | BI41: =SUM(BI7:BI40) -> 7 | BJ41: 2 | BK41: 2 | BL41: 3 | BM41: 36 | BN41: 31 | BO41: 8 | BQ41: =SUM(BQ7:BQ40) -> 7 | BR41: 3 | BS41: 1 | BT41: 3 | BU41: 30 | BV41: 23 | BW41: 10 | BY41: =SUM(BY7:BY40) -> 7 | BZ41: 4 | CA41: 0 | CB41: 3 | CC41: 27 | CD41: 22 | CE41: 12
C43: Class | D43: Botonistas | I43: PG | J43: J | K43: V | L43: E | M43: D | N43: GP | O43: GC | P43: SG | Q43: Sorteio | S43: Cl | U43: Botonista | AC43: J | AD43: V | AE43: E | AF43: D | AG43: GP | AH43: GC | AI43: PG | AJ43: Chave Sort | AR43: Cl | AT43: Botonista | BA43: J | BB43: V | BC43: E | BD43: D | BE43: GP | BF43: GC | BG43: PG | BH43: Chave Sort
B44: =IF($S$41=0,"è","") -> è | C44: =AR44 -> 1 | D44: =AT44 -> ALDECOA-SP | I44: =BG44 -> 16 | J44: =BA44 -> 7 | K44: 5 | L44: 1 | M44: 1 | N44: 26 | O44: 21 | P44: =N44-O44 -> 5 | Q44: =IF(INT(BH44)=INT(BH45),ASC(CHAR(252)),"") ->  | S44: =RANK(AJ44,AJ44:AJ51,0) -> 3 | U44: =F7 -> PEDRO NETO-SP | AC44: =U41 -> 7 | AD44: 4 | AE44: 1 | AF44: 2 | AG44: 41 | AH44: 33 | AI44: 13 | AJ44: =(AI44*1000000000)+(AD44*1000000)+((AG44-AH44)*1000)+AG44+AR44/100 -> 1.300400804e+10 | AR44: 1 | AT44: =VLOOKUP(AR44,S44:AJ51,3,FALSE) -> ALDECOA-SP | BA44: =VLOOKUP(AR44,S44:AJ51,11,FALSE) -> 7 | BB44: =VLOOKUP(AR44,S44:AJ51,12,FALSE) -> 5 | BC44: =VLOOKUP(AR44,S44:AJ51,13,FALSE) -> 1 | BD44: =VLOOKUP(AR44,S44:AJ51,14,FALSE) -> 1 | BE44: =VLOOKUP(AR44,S44:AJ51,15,FALSE) -> 26 | BF44: =VLOOKUP(AR44,S44:AJ51,16,FALSE) -> 21 | BG44: =VLOOKUP(AR44,S44:AJ51,17,FALSE) -> 16 | BH44: =VLOOKUP(AR44,S44:AJ51,18,FALSE) -> 1.600500503e+10 | BI44: =VLOOKUP($AR44,$S$37:$AI$42,17,FALSE) -> 
B45: =IF($S$41=0,"è","") -> è | C45: 2 | D45: =AT45 -> BIRA-RJ | I45: =BG45 -> 13 | J45: 7 | K45: 4 | L45: 1 | M45: 2 | N45: 35 | O45: 25 | P45: 10 | Q45: =IF(OR(INT(BH45)=INT(BH44),INT(BH46)=INT(BH45)),ASC(CHAR(252)),"") ->  | S45: =RANK(AJ45,AJ44:AJ51,0) -> 1 | U45: =F8 -> ALDECOA-SP | AC45: =AC41 -> 7 | AD45: 5 | AE45: 1 | AF45: 1 | AG45: 26 | AH45: 21 | AI45: 16 | AJ45: 1.600500503e+10 | AR45: 2 | AT45: =VLOOKUP(AR45,S44:AJ51,3,FALSE) -> BIRA-RJ | BA45: =VLOOKUP(AR45,S44:AJ51,11,FALSE) -> 7 | BB45: =VLOOKUP(AR45,S44:AJ51,12,FALSE) -> 4 | BC45: =VLOOKUP(AR45,S44:AJ51,13,FALSE) -> 1 | BD45: =VLOOKUP(AR45,S44:AJ51,14,FALSE) -> 2 | BE45: =VLOOKUP(AR45,S44:AJ51,15,FALSE) -> 35 | BF45: =VLOOKUP(AR45,S44:AJ51,16,FALSE) -> 25 | BG45: =VLOOKUP(AR45,S44:AJ51,17,FALSE) -> 13 | BH45: =VLOOKUP(AR45,S44:AJ51,18,FALSE) -> 1.300401004e+10
B46: =IF($S$41=0,"è","") -> è | C46: 3 | D46: PEDRO NETO-SP | I46: 13 | J46: 7 | K46: 4 | L46: 1 | M46: 2 | N46: 41 | O46: 33 | P46: 8 | S46: =RANK(AJ46,AJ44:AJ51,0) -> 7 | U46: =M8 -> NATHAN-MG | AC46: =AK41 -> 7 | AD46: 1 | AE46: 2 | AF46: 4 | AG46: 15 | AH46: 39 | AI46: 5 | AJ46: 5000976015 | AR46: 3 | AT46: =VLOOKUP(AR46,S44:AJ51,3,FALSE) -> PEDRO NETO-SP | BA46: =VLOOKUP(AR46,S44:AJ51,11,FALSE) -> 7 | BB46: =VLOOKUP(AR46,S44:AJ51,12,FALSE) -> 4 | BC46: =VLOOKUP(AR46,S44:AJ51,13,FALSE) -> 1 | BD46: =VLOOKUP(AR46,S44:AJ51,14,FALSE) -> 2 | BE46: =VLOOKUP(AR46,S44:AJ51,15,FALSE) -> 41 | BF46: =VLOOKUP(AR46,S44:AJ51,16,FALSE) -> 33 | BG46: =VLOOKUP(AR46,S44:AJ51,17,FALSE) -> 13 | BH46: =VLOOKUP(AR46,S44:AJ51,18,FALSE) -> 1.300400804e+10
B47: =IF($S$41=0,"è","") -> è | C47: 4 | D47: LUCAS PRANDO-PR | I47: 12 | J47: 7 | K47: 4 | L47: 0 | M47: 3 | N47: 27 | O47: 22 | P47: 5 | S47: =RANK(AJ47,AJ44:AJ51,0) -> 8 | U47: =M7 -> AMADEU-SP | AC47: =AS41 -> 7 | AD47: 0 | AE47: 2 | AF47: 5 | AG47: 17 | AH47: 33 | AI47: 2 | AJ47: 1999984017 | AR47: 4 | AT47: =VLOOKUP(AR47,S44:AJ51,3,FALSE) -> LUCAS PRANDO-PR | BA47: =VLOOKUP(AR47,S44:AJ51,11,FALSE) -> 7 | BB47: =VLOOKUP(AR47,S44:AJ51,12,FALSE) -> 4 | BC47: =VLOOKUP(AR47,S44:AJ51,13,FALSE) -> 0 | BD47: =VLOOKUP(AR47,S44:AJ51,14,FALSE) -> 3 | BE47: =VLOOKUP(AR47,S44:AJ51,15,FALSE) -> 27 | BF47: =VLOOKUP(AR47,S44:AJ51,16,FALSE) -> 22 | BG47: =VLOOKUP(AR47,S44:AJ51,17,FALSE) -> 12 | BH47: =VLOOKUP(AR47,S44:AJ51,18,FALSE) -> 1.200400503e+10
B48: =IF($S$41=0,"ð","") -> ð | C48: 5 | D48: EMANUEL-PE | I48: 10 | J48: 7 | K48: 3 | L48: 1 | M48: 3 | N48: 30 | O48: 23 | P48: 7 | S48: =RANK(AJ48,AJ44:AJ51,0) -> 2 | U48: =F9 -> BIRA-RJ | AC48: =BA41 -> 7 | AD48: 4 | AE48: 1 | AF48: 2 | AG48: 35 | AH48: 25 | AI48: 13 | AJ48: 1.300401004e+10 | AR48: 5 | AT48: =VLOOKUP(AR48,S44:AJ51,3,FALSE) -> EMANUEL-PE | BA48: =VLOOKUP(AR48,S44:AJ51,11,FALSE) -> 7 | BB48: =VLOOKUP(AR48,S44:AJ51,12,FALSE) -> 3 | BC48: =VLOOKUP(AR48,S44:AJ51,13,FALSE) -> 1 | BD48: =VLOOKUP(AR48,S44:AJ51,14,FALSE) -> 3 | BE48: =VLOOKUP(AR48,S44:AJ51,15,FALSE) -> 30 | BF48: =VLOOKUP(AR48,S44:AJ51,16,FALSE) -> 23 | BG48: =VLOOKUP(AR48,S44:AJ51,17,FALSE) -> 10 | BH48: =VLOOKUP(AR48,S44:AJ51,18,FALSE) -> 1.000300703e+10
B49: =IF($S$41=0,"ð","") -> ð | C49: 6 | D49: SCHINA-SC | I49: 8 | J49: 7 | K49: 2 | L49: 2 | M49: 3 | N49: 36 | O49: 31 | P49: 5 | S49: =RANK(AJ49,AJ44:AJ51,0) -> 6 | U49: =F10 -> SCHINA-SC | AC49: =BI41 -> 7 | AD49: 2 | AE49: 2 | AF49: 3 | AG49: 36 | AH49: 31 | AI49: 8 | AJ49: 8002005036 | AR49: 6 | AT49: =VLOOKUP(AR49,S44:AJ51,3,FALSE) -> SCHINA-SC | BA49: =VLOOKUP(AR49,S44:AJ51,11,FALSE) -> 7 | BB49: =VLOOKUP(AR49,S44:AJ51,12,FALSE) -> 2 | BC49: =VLOOKUP(AR49,S44:AJ51,13,FALSE) -> 2 | BD49: =VLOOKUP(AR49,S44:AJ51,14,FALSE) -> 3 | BE49: =VLOOKUP(AR49,S44:AJ51,15,FALSE) -> 36 | BF49: =VLOOKUP(AR49,S44:AJ51,16,FALSE) -> 31 | BG49: =VLOOKUP(AR49,S44:AJ51,17,FALSE) -> 8 | BH49: =VLOOKUP(AR49,S44:AJ51,18,FALSE) -> 8002005036
B50: =IF($S$41=0,"ð","") -> ð | C50: =AR50 -> 7 | D50: NATHAN-MG | I50: 5 | J50: 7 | K50: 1 | L50: 2 | M50: 4 | N50: 15 | O50: 39 | P50: -24 | S50: =RANK(AJ50,AJ44:AJ51,0) -> 5 | U50: =M10 -> EMANUEL-PE | AC50: =BQ41 -> 7 | AD50: 3 | AE50: 1 | AF50: 3 | AG50: 30 | AH50: 23 | AI50: 10 | AJ50: 1.000300703e+10 | AR50: 7 | AT50: =VLOOKUP(AR50,S44:AJ51,3,FALSE) -> NATHAN-MG | BA50: =VLOOKUP(AR50,S44:AJ51,11,FALSE) -> 7 | BB50: =VLOOKUP(AR50,S44:AJ51,12,FALSE) -> 1 | BC50: =VLOOKUP(AR50,S44:AJ51,13,FALSE) -> 2 | BD50: =VLOOKUP(AR50,S44:AJ51,14,FALSE) -> 4 | BE50: =VLOOKUP(AR50,S44:AJ51,15,FALSE) -> 15 | BF50: =VLOOKUP(AR50,S44:AJ51,16,FALSE) -> 39 | BG50: =VLOOKUP(AR50,S44:AJ51,17,FALSE) -> 5 | BH50: =VLOOKUP(AR50,S44:AJ51,18,FALSE) -> 5000976015
B51: =IF($S$41=0,"ð","") -> ð | C51: =AR51 -> 8 | D51: =AT51 -> AMADEU-SP | I51: 2 | J51: =BA51 -> 7 | K51: =BB51 -> 0 | L51: 2 | M51: 5 | N51: 17 | O51: 33 | P51: -16 | S51: =RANK(AJ51,AJ44:AJ51,0) -> 4 | U51: =M9 -> LUCAS PRANDO-PR | AC51: =BY41 -> 7 | AD51: 4 | AE51: 0 | AF51: 3 | AG51: 27 | AH51: 22 | AI51: 12 | AJ51: 1.200400503e+10 | AR51: 8 | AT51: =VLOOKUP(AR51,S44:AJ51,3,FALSE) -> AMADEU-SP | BA51: =VLOOKUP(AR51,S44:AJ51,11,FALSE) -> 7 | BB51: =VLOOKUP(AR51,S44:AJ51,12,FALSE) -> 0 | BC51: =VLOOKUP(AR51,S44:AJ51,13,FALSE) -> 2 | BD51: =VLOOKUP(AR51,S44:AJ51,14,FALSE) -> 5 | BE51: =VLOOKUP(AR51,S44:AJ51,15,FALSE) -> 17 | BF51: =VLOOKUP(AR51,S44:AJ51,16,FALSE) -> 33 | BG51: =VLOOKUP(AR51,S44:AJ51,17,FALSE) -> 2 | BH51: =VLOOKUP(AR51,S44:AJ51,18,FALSE) -> 1999984017
C53: è | D53: 1a Divisão | N53: ð | O53: 4a Divisão
C56: =$C$4 -> Adulto - 1a Divisão | Q56: =CONCATENATE("1ª Fase - ", 'G1'!$F$9) -> 1ª Fase - Grupo 2 | U56: =F59 -> QUINHO-SP | AA56: =IF(RIGHT(U56,4)="(WO)",0,1) -> 1 | AC56: =F60 -> FARINHA-SP | AI56: =IF(RIGHT(AC56,4)="(WO)",0,1) -> 1 | AK56: =M60 -> RAFAEL MOREIRA-CE | AQ56: =IF(RIGHT(AK56,4)="(WO)",0,1) -> 1 | AS56: =M59 -> TIAGO MACHADO-SP | AY56: =IF(RIGHT(AS56,4)="(WO)",0,1) -> 1 | BA56: =F61 -> ANDERSON-RJ | BG56: =IF(RIGHT(BA56,4)="(WO)",0,1) -> 1 | BI56: =F62 -> MATHEUS TINE-PE | BO56: =IF(RIGHT(BI56,4)="(WO)",0,1) -> 1 | BQ56: =M62 -> ROGERIO-PR | BW56: =IF(RIGHT(BQ56,4)="(WO)",0,1) -> 1 | BY56: =M61 -> RHANIERY-RJ | CE56: =IF(RIGHT(BY56,4)="(WO)",0,1) -> 1
B57: Grp | C57: Rod. | D57: Data/Hora | E57: Mesa | F57: Jogos | S57: Ok | U57: J | V57: V | W57: E | X57: D | Y57: GP | Z57: GC | AA57: PG | AC57: J | AD57: V | AE57: E | AF57: D | AG57: GP | AH57: GC | AI57: PG | AK57: J | AL57: V | AM57: E | AN57: D | AO57: GP | AP57: GC | AQ57: PG | AS57: J | AT57: V | AU57: E | AV57: D | AW57: GP | AX57: GC | AY57: PG | BA57: J | BB57: V | BC57: E | BD57: D | BE57: GP | BF57: GC | BG57: PG | BI57: J | BJ57: V | BK57: E | BL57: D | BM57: GP | BN57: GC | BO57: PG | BQ57: J | BR57: V | BS57: E | BT57: D | BU57: GP | BV57: GC | BW57: PG | BY57: J | BZ57: V | CA57: E | CB57: D | CC57: GP | CD57: GC | CE57: PG | CH57: Rodada
B59: 1 | C59: 1 | D59: 2022-06-16 | E59: 5 | F59: ='G1'!$G$10 & IF('G1'!$H$10="S"," (WO)","") -> QUINHO-SP | K59: 5 | L59: 2 | M59: ='G1'!$G$13 & IF('G1'!$H$13="S"," (WO)","") -> TIAGO MACHADO-SP | S59: =COUNTBLANK(K59:L59) -> 0 | U59: =IF(S59=0,1,0) -> 1 | V59: =IF(AND(S59=0,K59>L59),1,0)*AA56 -> 1 | W59: =IF(AND(S59=0,K59=L59),1,0)*AA56 -> 0 | X59: =U59-V59-W59 -> 0 | Y59: =K59 -> 5 | Z59: =L59 -> 2 | AA59: =((V59*3)+W59)*AA56 -> 3 | AS59: =IF(S59=0,1,0) -> 1 | AT59: =IF(AND(S59=0,L59>K59),1,0)*AY56 -> 0 | AU59: =IF(AND(S59=0,K59=L59),1,0)*AY56 -> 0 | AV59: =AS59-AT59-AU59 -> 1 | AW59: =L59 -> 2 | AX59: =K59 -> 5 | AY59: =((AT59*3)+AU59)*AY56 -> 0 | CH59: 1ª
B60: 1 | E60: =E59+1 -> 6 | F60: ='G1'!$G$11 & IF('G1'!$H$11="S"," (WO)","") -> FARINHA-SP | K60: 5 | L60: 3 | M60: ='G1'!$G$12 & IF('G1'!$H$12="S"," (WO)","") -> RAFAEL MOREIRA-CE | S60: =COUNTBLANK(K60:L60) -> 0 | AC60: =IF(S60=0,1,0) -> 1 | AD60: =IF(AND(S60=0,K60>L60),1,0)*AI56 -> 1 | AE60: =IF(AND(S60=0,K60=L60),1,0)*AI56 -> 0 | AF60: =AC60-AD60-AE60 -> 0 | AG60: =K60 -> 5 | AH60: =L60 -> 3 | AI60: =((AD60*3)+AE60)*AI56 -> 3 | AK60: =IF(S60=0,1,0) -> 1 | AL60: =IF(AND(S60=0,L60>K60),1,0)*AQ56 -> 0 | AM60: =IF(AND(S60=0,K60=L60),1,0)*AQ56 -> 0 | AN60: =AK60-AL60-AM60 -> 1 | AO60: =L60 -> 3 | AP60: =K60 -> 5 | AQ60: =((AL60*3)+AM60)*AQ56 -> 0
B61: 1 | D61: 14:00:00 | E61: =E60+1 -> 7 | F61: ='G1'!$G$14 & IF('G1'!$H$14="S"," (WO)","") -> ANDERSON-RJ | K61: 2 | L61: 3 | M61: ='G1'!$G$17 & IF('G1'!$H$17="S"," (WO)","") -> RHANIERY-RJ | S61: =COUNTBLANK(K61:L61) -> 0 | BA61: =IF(S61=0,1,0) -> 1 | BB61: =IF(AND(S61=0,K61>L61),1,0)*BG56 -> 0 | BC61: =IF(AND(S61=0,K61=L61),1,0)*BG56 -> 0 | BD61: =BA61-BB61-BC61 -> 1 | BE61: =K61 -> 2 | BF61: =L61 -> 3 | BG61: =((BB61*3)+BC61)*BG56 -> 0 | BY61: =IF(S61=0,1,0) -> 1 | BZ61: =IF(AND(S61=0,L61>K61),1,0)*CE56 -> 1 | CA61: =IF(AND(S61=0,K61=L61),1,0)*CE56 -> 0 | CB61: =BY61-BZ61-CA61 -> 0 | CC61: =L61 -> 3 | CD61: =K61 -> 2 | CE61: =((BZ61*3)+CA61)*CE56 -> 3
B62: 1 | E62: =E61+1 -> 8 | F62: ='G1'!$G$15 & IF('G1'!$H$15="S"," (WO)","") -> MATHEUS TINE-PE | K62: 5 | L62: 2 | M62: ='G1'!$G$16 & IF('G1'!$H$16="S"," (WO)","") -> ROGERIO-PR | S62: =COUNTBLANK(K62:L62) -> 0 | BI62: =IF(S62=0,1,0) -> 1 | BJ62: =IF(AND(S62=0,K62>L62),1,0)*BO56 -> 1 | BK62: =IF(AND(S62=0,K62=L62),1,0)*BO56 -> 0 | BL62: =BI62-BJ62-BK62 -> 0 | BM62: =K62 -> 5 | BN62: =L62 -> 2 | BO62: =((BJ62*3)+BK62)*BO56 -> 3 | BQ62: =IF(S62=0,1,0) -> 1 | BR62: =IF(AND(S62=0,L62>K62),1,0)*BW56 -> 0 | BS62: =IF(AND(S62=0,K62=L62),1,0)*BW56 -> 0 | BT62: =BQ62-BR62-BS62 -> 1 | BU62: =L62 -> 2 | BV62: =K62 -> 5 | BW62: =((BR62*3)+BS62)*BW56 -> 0
B63: 1
B64: 1 | C64: 2 | D64: =$D$7 -> 2022-06-16 | E64: 9 | F64: =F59 -> QUINHO-SP | K64: 6 | L64: 1 | M64: =M60 -> RAFAEL MOREIRA-CE | S64: =COUNTBLANK(K64:L64) -> 0 | U64: =IF(S64=0,1,0) -> 1 | V64: =IF(AND(S64=0,K64>L64),1,0)*AA56 -> 1 | W64: =IF(AND(S64=0,K64=L64),1,0)*AA56 -> 0 | X64: =U64-V64-W64 -> 0 | Y64: =K64 -> 6 | Z64: =L64 -> 1 | AA64: =((V64*3)+W64)*AA56 -> 3 | AK64: =IF(S64=0,1,0) -> 1 | AL64: =IF(AND(S64=0,L64>K64),1,0)*AQ56 -> 0 | AM64: =IF(AND(S64=0,K64=L64),1,0)*AQ56 -> 0 | AN64: =AK64-AL64-AM64 -> 1 | AO64: =L64 -> 1 | AP64: =K64 -> 6 | AQ64: =((AL64*3)+AM64)*AQ56 -> 0 | CH64: 2ª
B65: 1 | E65: =E64+1 -> 10 | F65: =F60 -> FARINHA-SP | K65: 2 | L65: 5 | M65: =M59 -> TIAGO MACHADO-SP | S65: =COUNTBLANK(K65:L65) -> 0 | AC65: =IF(S65=0,1,0) -> 1 | AD65: =IF(AND(S65=0,K65>L65),1,0)*AI56 -> 0 | AE65: =IF(AND(S65=0,K65=L65),1,0)*AI56 -> 0 | AF65: =AC65-AD65-AE65 -> 1 | AG65: =K65 -> 2 | AH65: =L65 -> 5 | AI65: =((AD65*3)+AE65)*AI56 -> 0 | AS65: =IF(S65=0,1,0) -> 1 | AT65: =IF(AND(S65=0,L65>K65),1,0)*AY56 -> 1 | AU65: =IF(AND(S65=0,K65=L65),1,0)*AY56 -> 0 | AV65: =AS65-AT65-AU65 -> 0 | AW65: =L65 -> 5 | AX65: =K65 -> 2 | AY65: =((AT65*3)+AU65)*AY56 -> 3
B66: 1 | D66: 14:30:00 | E66: =E65+1 -> 11 | F66: =F61 -> ANDERSON-RJ | K66: 4 | L66: 4 | M66: =M62 -> ROGERIO-PR | S66: =COUNTBLANK(K66:L66) -> 0 | BA66: =IF(S66=0,1,0) -> 1 | BB66: =IF(AND(S66=0,K66>L66),1,0)*BG56 -> 0 | BC66: =IF(AND(S66=0,K66=L66),1,0)*BG56 -> 1 | BD66: =BA66-BB66-BC66 -> 0 | BE66: =K66 -> 4 | BF66: =L66 -> 4 | BG66: =((BB66*3)+BC66)*BG56 -> 1 | BQ66: =IF(S66=0,1,0) -> 1 | BR66: =IF(AND(S66=0,L66>K66),1,0)*BW56 -> 0 | BS66: =IF(AND(S66=0,K66=L66),1,0)*BW56 -> 1 | BT66: =BQ66-BR66-BS66 -> 0 | BU66: =L66 -> 4 | BV66: =K66 -> 4 | BW66: =((BR66*3)+BS66)*BW56 -> 1
B67: 1 | E67: =E66+1 -> 12 | F67: =F62 -> MATHEUS TINE-PE | K67: 3 | L67: 3 | M67: =M61 -> RHANIERY-RJ | S67: =COUNTBLANK(K67:L67) -> 0 | BI67: =IF(S67=0,1,0) -> 1 | BJ67: =IF(AND(S67=0,K67>L67),1,0)*BO56 -> 0 | BK67: =IF(AND(S67=0,K67=L67),1,0)*BO56 -> 1 | BL67: =BI67-BJ67-BK67 -> 0 | BM67: =K67 -> 3 | BN67: =L67 -> 3 | BO67: =((BJ67*3)+BK67)*BO56 -> 1 | BY67: =IF(S67=0,1,0) -> 1 | BZ67: =IF(AND(S67=0,L67>K67),1,0)*CE56 -> 0 | CA67: =IF(AND(S67=0,K67=L67),1,0)*CE56 -> 1 | CB67: =BY67-BZ67-CA67 -> 0 | CC67: =L67 -> 3 | CD67: =K67 -> 3 | CE67: =((BZ67*3)+CA67)*CE56 -> 1
B69: 1 | C69: 3 | D69: =$D$7 -> 2022-06-16 | E69: 13 | F69: =F64 -> QUINHO-SP | K69: 8 | L69: 5 | M69: =F65 -> FARINHA-SP | S69: =COUNTBLANK(K69:L69) -> 0 | U69: =IF(S69=0,1,0) -> 1 | V69: =IF(AND(S69=0,K69>L69),1,0)*AA56 -> 1 | W69: =IF(AND(S69=0,K69=L69),1,0)*AA56 -> 0 | X69: =U69-V69-W69 -> 0 | Y69: =K69 -> 8 | Z69: =L69 -> 5 | AA69: =((V69*3)+W69)*AA56 -> 3 | AC69: =IF(S69=0,1,0) -> 1 | AD69: =IF(AND(S69=0,L69>K69),1,0)*AI56 -> 0 | AE69: =IF(AND(S69=0,K69=L69),1,0)*AI56 -> 0 | AF69: =AC69-AD69-AE69 -> 1 | AG69: =L69 -> 5 | AH69: =K69 -> 8 | AI69: =((AD69*3)+AE69)*AI56 -> 0 | CH69: 3ª
B70: 1 | E70: =E69+1 -> 14 | F70: =M64 -> RAFAEL MOREIRA-CE | K70: 6 | L70: 4 | M70: =M65 -> TIAGO MACHADO-SP | S70: =COUNTBLANK(K70:L70) -> 0 | AK70: =IF(S70=0,1,0) -> 1 | AL70: =IF(AND(S70=0,K70>L70),1,0)*AQ56 -> 1 | AM70: =IF(AND(S70=0,K70=L70),1,0)*AQ56 -> 0 | AN70: =AK70-AL70-AM70 -> 0 | AO70: =K70 -> 6 | AP70: =L70 -> 4 | AQ70: =((AL70*3)+AM70)*AQ56 -> 3 | AS70: =IF(S70=0,1,0) -> 1 | AT70: =IF(AND(S70=0,L70>K70),1,0)*AY56 -> 0 | AU70: =IF(AND(S70=0,K70=L70),1,0)*AY56 -> 0 | AV70: =AS70-AT70-AU70 -> 1 | AW70: =L70 -> 4 | AX70: =K70 -> 6 | AY70: =((AT70*3)+AU70)*AY56 -> 0
B71: 1 | D71: 15:00:00 | E71: =E70+1 -> 15 | F71: =F66 -> ANDERSON-RJ | K71: 3 | L71: 5 | M71: =F67 -> MATHEUS TINE-PE | S71: =COUNTBLANK(K71:L71) -> 0 | BA71: =IF(S71=0,1,0) -> 1 | BB71: =IF(AND(S71=0,K71>L71),1,0)*BG56 -> 0 | BC71: =IF(AND(S71=0,K71=L71),1,0)*BG56 -> 0 | BD71: =BA71-BB71-BC71 -> 1 | BE71: =K71 -> 3 | BF71: =L71 -> 5 | BG71: =((BB71*3)+BC71)*BG56 -> 0 | BI71: =IF(S71=0,1,0) -> 1 | BJ71: =IF(AND(S71=0,L71>K71),1,0)*BO56 -> 1 | BK71: =IF(AND(S71=0,K71=L71),1,0)*BO56 -> 0 | BL71: =BI71-BJ71-BK71 -> 0 | BM71: =L71 -> 5 | BN71: =K71 -> 3 | BO71: =((BJ71*3)+BK71)*BO56 -> 3
B72: 1 | E72: =E71+1 -> 16 | F72: =M66 -> ROGERIO-PR | K72: 3 | L72: 4 | M72: =M67 -> RHANIERY-RJ | S72: =COUNTBLANK(K72:L72) -> 0 | BQ72: =IF(S72=0,1,0) -> 1 | BR72: =IF(AND(S72=0,K72>L72),1,0)*BW56 -> 0 | BS72: =IF(AND(S72=0,K72=L72),1,0)*BW56 -> 0 | BT72: =BQ72-BR72-BS72 -> 1 | BU72: =K72 -> 3 | BV72: =L72 -> 4 | BW72: =((BR72*3)+BS72)*BW56 -> 0 | BY72: =IF(S72=0,1,0) -> 1 | BZ72: =IF(AND(S72=0,L72>K72),1,0)*CE56 -> 1 | CA72: =IF(AND(S72=0,K72=L72),1,0)*CE56 -> 0 | CB72: =BY72-BZ72-CA72 -> 0 | CC72: =L72 -> 4 | CD72: =K72 -> 3 | CE72: =((BZ72*3)+CA72)*CE56 -> 3
B74: 1 | C74: 4 | D74: =$D$7 -> 2022-06-16 | E74: 17 | F74: =F71 -> ANDERSON-RJ | K74: 0 | L74: 4 | M74: =M69 -> FARINHA-SP | S74: =COUNTBLANK(K74:L74) -> 0 | AC74: =IF(S74=0,1,0) -> 1 | AD74: =IF(AND(S74=0,L74>K74),1,0)*AI56 -> 1 | AE74: =IF(AND(S74=0,K74=L74),1,0)*AI56 -> 0 | AF74: =AC74-AD74-AE74 -> 0 | AG74: =L74 -> 4 | AH74: =K74 -> 0 | AI74: =((AD74*3)+AE74)*AI56 -> 3 | BA74: =IF(S74=0,1,0) -> 1 | BB74: =IF(AND(S74=0,K74>L74),1,0)*BG56 -> 0 | BC74: =IF(AND(S74=0,K74=L74),1,0)*BG56 -> 0 | BD74: =BA74-BB74-BC74 -> 1 | BE74: =K74 -> 0 | BF74: =L74 -> 4 | BG74: =((BB74*3)+BC74)*BG56 -> 0 | CH74: 4ª
B75: 1 | E75: =E74+1 -> 18 | F75: =M71 -> MATHEUS TINE-PE | K75: 4 | L75: 5 | M75: =F70 -> RAFAEL MOREIRA-CE | S75: =COUNTBLANK(K75:L75) -> 0 | AK75: =IF(S75=0,1,0) -> 1 | AL75: =IF(AND(S75=0,L75>K75),1,0)*AQ56 -> 1 | AM75: =IF(AND(S75=0,K75=L75),1,0)*AQ56 -> 0 | AN75: =AK75-AL75-AM75 -> 0 | AO75: =L75 -> 5 | AP75: =K75 -> 4 | AQ75: =((AL75*3)+AM75)*AQ56 -> 3 | BI75: =IF(S75=0,1,0) -> 1 | BJ75: =IF(AND(S75=0,K75>L75),1,0)*BO56 -> 0 | BK75: =IF(AND(S75=0,K75=L75),1,0)*BO56 -> 0 | BL75: =BI75-BJ75-BK75 -> 1 | BM75: =K75 -> 4 | BN75: =L75 -> 5 | BO75: =((BJ75*3)+BK75)*BO56 -> 0
B76: 1 | D76: 15:30:00 | E76: =E75+1 -> 19 | F76: =F72 -> ROGERIO-PR | K76: 3 | L76: 5 | M76: =M70 -> TIAGO MACHADO-SP | S76: =COUNTBLANK(K76:L76) -> 0 | AS76: =IF(S76=0,1,0) -> 1 | AT76: =IF(AND(S76=0,L76>K76),1,0)*AY56 -> 1 | AU76: =IF(AND(S76=0,K76=L76),1,0)*AY56 -> 0 | AV76: =AS76-AT76-AU76 -> 0 | AW76: =L76 -> 5 | AX76: =K76 -> 3 | AY76: =((AT76*3)+AU76)*AY56 -> 3 | BQ76: =IF(S76=0,1,0) -> 1 | BR76: =IF(AND(S76=0,K76>L76),1,0)*BW56 -> 0 | BS76: =IF(AND(S76=0,K76=L76),1,0)*BW56 -> 0 | BT76: =BQ76-BR76-BS76 -> 1 | BU76: =K76 -> 3 | BV76: =L76 -> 5 | BW76: =((BR76*3)+BS76)*BW56 -> 0
B77: 1 | E77: =E76+1 -> 20 | F77: =M72 -> RHANIERY-RJ | K77: 6 | L77: 6 | M77: =F69 -> QUINHO-SP | S77: =COUNTBLANK(K77:L77) -> 0 | U77: =IF(S77=0,1,0) -> 1 | V77: =IF(AND(S77=0,L77>K77),1,0)*AA56 -> 0 | W77: =IF(AND(S77=0,K77=L77),1,0)*AA56 -> 1 | X77: =U77-V77-W77 -> 0 | Y77: =L77 -> 6 | Z77: =K77 -> 6 | AA77: =((V77*3)+W77)*AA56 -> 1 | BY77: =IF(S77=0,1,0) -> 1 | BZ77: =IF(AND(S77=0,K77>L77),1,0)*CE56 -> 0 | CA77: =IF(AND(S77=0,K77=L77),1,0)*CE56 -> 1 | CB77: =BY77-BZ77-CA77 -> 0 | CC77: =K77 -> 6 | CD77: =L77 -> 6 | CE77: =((BZ77*3)+CA77)*CE56 -> 1
B79: 1 | C79: 5 | D79: =$D$7 -> 2022-06-16 | E79: 21 | F79: =F74 -> ANDERSON-RJ | K79: 4 | L79: 4 | M79: =M75 -> RAFAEL MOREIRA-CE | S79: =COUNTBLANK(K79:L79) -> 0 | AK79: =IF(S79=0,1,0) -> 1 | AL79: =IF(AND(S79=0,L79>K79),1,0)*AQ56 -> 0 | AM79: =IF(AND(S79=0,K79=L79),1,0)*AQ56 -> 1 | AN79: =AK79-AL79-AM79 -> 0 | AO79: =L79 -> 4 | AP79: =K79 -> 4 | AQ79: =((AL79*3)+AM79)*AQ56 -> 1 | BA79: =IF(S79=0,1,0) -> 1 | BB79: =IF(AND(S79=0,K79>L79),1,0)*BG56 -> 0 | BC79: =IF(AND(S79=0,K79=L79),1,0)*BG56 -> 1 | BD79: =BA79-BB79-BC79 -> 0 | BE79: =K79 -> 4 | BF79: =L79 -> 4 | BG79: =((BB79*3)+BC79)*BG56 -> 1 | CH79: 5ª
B80: 1 | E80: =E79+1 -> 22 | F80: =F75 -> MATHEUS TINE-PE | K80: 5 | L80: 7 | M80: =M76 -> TIAGO MACHADO-SP | S80: =COUNTBLANK(K80:L80) -> 0 | AS80: =IF(S80=0,1,0) -> 1 | AT80: =IF(AND(S80=0,L80>K80),1,0)*AY56 -> 1 | AU80: =IF(AND(S80=0,K80=L80),1,0)*AY56 -> 0 | AV80: =AS80-AT80-AU80 -> 0 | AW80: =L80 -> 7 | AX80: =K80 -> 5 | AY80: =((AT80*3)+AU80)*AY56 -> 3 | BI80: =IF(S80=0,1,0) -> 1 | BJ80: =IF(AND(S80=0,K80>L80),1,0)*BO56 -> 0 | BK80: =IF(AND(S80=0,K80=L80),1,0)*BO56 -> 0 | BL80: =BI80-BJ80-BK80 -> 1 | BM80: =K80 -> 5 | BN80: =L80 -> 7 | BO80: =((BJ80*3)+BK80)*BO56 -> 0
B81: 1 | D81: 16:00:00 | E81: =E80+1 -> 23 | F81: =F76 -> ROGERIO-PR | K81: 4 | L81: 7 | M81: =M77 -> QUINHO-SP | S81: =COUNTBLANK(K81:L81) -> 0 | U81: =IF(S81=0,1,0) -> 1 | V81: =IF(AND(S81=0,L81>K81),1,0)*AA56 -> 1 | W81: =IF(AND(S81=0,K81=L81),1,0)*AA56 -> 0 | X81: =U81-V81-W81 -> 0 | Y81: =L81 -> 7 | Z81: =K81 -> 4 | AA81: =((V81*3)+W81)*AA56 -> 3 | BQ81: =IF(S81=0,1,0) -> 1 | BR81: =IF(AND(S81=0,K81>L81),1,0)*BW56 -> 0 | BS81: =IF(AND(S81=0,K81=L81),1,0)*BW56 -> 0 | BT81: =BQ81-BR81-BS81 -> 1 | BU81: =K81 -> 4 | BV81: =L81 -> 7 | BW81: =((BR81*3)+BS81)*BW56 -> 0
B82: 1 | E82: =E81+1 -> 24 | F82: =F77 -> RHANIERY-RJ | K82: 5 | L82: 4 | M82: =M74 -> FARINHA-SP | S82: =COUNTBLANK(K82:L82) -> 0 | AC82: =IF(S82=0,1,0) -> 1 | AD82: =IF(AND(S82=0,L82>K82),1,0)*AI56 -> 0 | AE82: =IF(AND(S82=0,K82=L82),1,0)*AI56 -> 0 | AF82: =AC82-AD82-AE82 -> 1 | AG82: =L82 -> 4 | AH82: =K82 -> 5 | AI82: =((AD82*3)+AE82)*AI56 -> 0 | BY82: =IF(S82=0,1,0) -> 1 | BZ82: =IF(AND(S82=0,K82>L82),1,0)*CE56 -> 1 | CA82: =IF(AND(S82=0,K82=L82),1,0)*CE56 -> 0 | CB82: =BY82-BZ82-CA82 -> 0 | CC82: =K82 -> 5 | CD82: =L82 -> 4 | CE82: =((BZ82*3)+CA82)*CE56 -> 3
B84: 1 | C84: 6 | D84: =$D$7 -> 2022-06-16 | E84: 25 | F84: =F80 -> MATHEUS TINE-PE | K84: 7 | L84: 2 | M84: =M82 -> FARINHA-SP | S84: =COUNTBLANK(K84:L84) -> 0 | AC84: =IF(S84=0,1,0) -> 1 | AD84: =IF(AND(S84=0,L84>K84),1,0)*AI56 -> 0 | AE84: =IF(AND(S84=0,K84=L84),1,0)*AI56 -> 0 | AF84: =AC84-AD84-AE84 -> 1 | AG84: =L84 -> 2 | AH84: =K84 -> 7 | AI84: =((AD84*3)+AE84)*AI56 -> 0 | BI84: =IF(S84=0,1,0) -> 1 | BJ84: =IF(AND(S84=0,K84>L84),1,0)*BO56 -> 1 | BK84: =IF(AND(S84=0,K84=L84),1,0)*BO56 -> 0 | BL84: =BI84-BJ84-BK84 -> 0 | BM84: =K84 -> 7 | BN84: =L84 -> 2 | BO84: =((BJ84*3)+BK84)*BO56 -> 3 | CH84: 6ª
B85: 1 | E85: =E84+1 -> 26 | F85: =F79 -> ANDERSON-RJ | K85: 3 | L85: 5 | M85: =M81 -> QUINHO-SP | S85: =COUNTBLANK(K85:L85) -> 0 | U85: =IF(S85=0,1,0) -> 1 | V85: =IF(AND(S85=0,L85>K85),1,0)*AA56 -> 1 | W85: =IF(AND(S85=0,K85=L85),1,0)*AA56 -> 0 | X85: =U85-V85-W85 -> 0 | Y85: =L85 -> 5 | Z85: =K85 -> 3 | AA85: =((V85*3)+W85)*AA56 -> 3 | BA85: =IF(S85=0,1,0) -> 1 | BB85: =IF(AND(S85=0,K85>L85),1,0)*BG56 -> 0 | BC85: =IF(AND(S85=0,K85=L85),1,0)*BG56 -> 0 | BD85: =BA85-BB85-BC85 -> 1 | BE85: =K85 -> 3 | BF85: =L85 -> 5 | BG85: =((BB85*3)+BC85)*BG56 -> 0
B86: 1 | D86: 16:30:00 | E86: =E85+1 -> 27 | F86: =F82 -> RHANIERY-RJ | K86: 5 | L86: 5 | M86: =M80 -> TIAGO MACHADO-SP | S86: =COUNTBLANK(K86:L86) -> 0 | AS86: =IF(S86=0,1,0) -> 1 | AT86: =IF(AND(S86=0,L86>K86),1,0)*AY56 -> 0 | AU86: =IF(AND(S86=0,K86=L86),1,0)*AY56 -> 1 | AV86: =AS86-AT86-AU86 -> 0 | AW86: =L86 -> 5 | AX86: =K86 -> 5 | AY86: =((AT86*3)+AU86)*AY56 -> 1 | BY86: =IF(S86=0,1,0) -> 1 | BZ86: =IF(AND(S86=0,K86>L86),1,0)*CE56 -> 0 | CA86: =IF(AND(S86=0,K86=L86),1,0)*CE56 -> 1 | CB86: =BY86-BZ86-CA86 -> 0 | CC86: =K86 -> 5 | CD86: =L86 -> 5 | CE86: =((BZ86*3)+CA86)*CE56 -> 1
B87: 1 | E87: =E86+1 -> 28 | F87: =F81 -> ROGERIO-PR | K87: 4 | L87: 4 | M87: =M79 -> RAFAEL MOREIRA-CE | S87: =COUNTBLANK(K87:L87) -> 0 | AK87: =IF(S87=0,1,0) -> 1 | AL87: =IF(AND(S87=0,L87>K87),1,0)*AQ56 -> 0 | AM87: =IF(AND(S87=0,K87=L87),1,0)*AQ56 -> 1 | AN87: =AK87-AL87-AM87 -> 0 | AO87: =L87 -> 4 | AP87: =K87 -> 4 | AQ87: =((AL87*3)+AM87)*AQ56 -> 1 | BQ87: =IF(S87=0,1,0) -> 1 | BR87: =IF(AND(S87=0,K87>L87),1,0)*BW56 -> 0 | BS87: =IF(AND(S87=0,K87=L87),1,0)*BW56 -> 1 | BT87: =BQ87-BR87-BS87 -> 0 | BU87: =K87 -> 4 | BV87: =L87 -> 4 | BW87: =((BR87*3)+BS87)*BW56 -> 1
B89: 1 | C89: 7 | D89: =$D$7 -> 2022-06-16 | E89: 29 | F89: =F86 -> RHANIERY-RJ | K89: 7 | L89: 6 | M89: =M87 -> RAFAEL MOREIRA-CE | S89: =COUNTBLANK(K89:L89) -> 0 | AK89: =IF(S89=0,1,0) -> 1 | AL89: =IF(AND(S89=0,L89>K89),1,0)*AQ56 -> 0 | AM89: =IF(AND(S89=0,K89=L89),1,0)*AQ56 -> 0 | AN89: =AK89-AL89-AM89 -> 1 | AO89: =L89 -> 6 | AP89: =K89 -> 7 | AQ89: =((AL89*3)+AM89)*AQ56 -> 0 | BY89: =IF(S89=0,1,0) -> 1 | BZ89: =IF(AND(S89=0,K89>L89),1,0)*CE56 -> 1 | CA89: =IF(AND(S89=0,K89=L89),1,0)*CE56 -> 0 | CB89: =BY89-BZ89-CA89 -> 0 | CC89: =K89 -> 7 | CD89: =L89 -> 6 | CE89: =((BZ89*3)+CA89)*CE56 -> 3 | CH89: 7ª
B90: 1 | E90: =E89+1 -> 30 | F90: =F84 -> MATHEUS TINE-PE | K90: 5 | L90: 11 | M90: =M85 -> QUINHO-SP | S90: =COUNTBLANK(K90:L90) -> 0 | U90: =IF(S90=0,1,0) -> 1 | V90: =IF(AND(S90=0,L90>K90),1,0)*AA56 -> 1 | W90: =IF(AND(S90=0,K90=L90),1,0)*AA56 -> 0 | X90: =U90-V90-W90 -> 0 | Y90: =L90 -> 11 | Z90: =K90 -> 5 | AA90: =((V90*3)+W90)*AA56 -> 3 | BI90: =IF(S90=0,1,0) -> 1 | BJ90: =IF(AND(S90=0,K90>L90),1,0)*BO56 -> 0 | BK90: =IF(AND(S90=0,K90=L90),1,0)*BO56 -> 0 | BL90: =BI90-BJ90-BK90 -> 1 | BM90: =K90 -> 5 | BN90: =L90 -> 11 | BO90: =((BJ90*3)+BK90)*BO56 -> 0
B91: 1 | D91: 17:00:00 | E91: =E90+1 -> 31 | F91: =F87 -> ROGERIO-PR | K91: 4 | L91: 6 | M91: =M84 -> FARINHA-SP | S91: =COUNTBLANK(K91:L91) -> 0 | AC91: =IF(S91=0,1,0) -> 1 | AD91: =IF(AND(S91=0,L91>K91),1,0)*AI56 -> 1 | AE91: =IF(AND(S91=0,K91=L91),1,0)*AI56 -> 0 | AF91: =AC91-AD91-AE91 -> 0 | AG91: =L91 -> 6 | AH91: =K91 -> 4 | AI91: =((AD91*3)+AE91)*AI56 -> 3 | BQ91: =IF(S91=0,1,0) -> 1 | BR91: =IF(AND(S91=0,K91>L91),1,0)*BW56 -> 0 | BS91: =IF(AND(S91=0,K91=L91),1,0)*BW56 -> 0 | BT91: =BQ91-BR91-BS91 -> 1 | BU91: =K91 -> 4 | BV91: =L91 -> 6 | BW91: =((BR91*3)+BS91)*BW56 -> 0
B92: 1 | E92: =E91+1 -> 32 | F92: =F85 -> ANDERSON-RJ | K92: 4 | L92: 4 | M92: =M86 -> TIAGO MACHADO-SP | S92: =COUNTBLANK(K92:L92) -> 0 | AS92: =IF(S92=0,1,0) -> 1 | AT92: =IF(AND(S92=0,L92>K92),1,0)*AY56 -> 0 | AU92: =IF(AND(S92=0,K92=L92),1,0)*AY56 -> 1 | AV92: =AS92-AT92-AU92 -> 0 | AW92: =L92 -> 4 | AX92: =K92 -> 4 | AY92: =((AT92*3)+AU92)*AY56 -> 1 | BA92: =IF(S92=0,1,0) -> 1 | BB92: =IF(AND(S92=0,K92>L92),1,0)*BG56 -> 0 | BC92: =IF(AND(S92=0,K92=L92),1,0)*BG56 -> 1 | BD92: =BA92-BB92-BC92 -> 0 | BE92: =K92 -> 4 | BF92: =L92 -> 4 | BG92: =((BB92*3)+BC92)*BG56 -> 1
S93: =SUM(S59:S92) -> 0 | U93: =SUM(U59:U92) -> 7 | V93: 6 | W93: 1 | X93: 0 | Y93: 48 | Z93: 26 | AA93: 19 | AC93: =SUM(AC59:AC92) -> 7 | AD93: 3 | AE93: 0 | AF93: 4 | AG93: 28 | AH93: 32 | AI93: 9 | AK93: =SUM(AK59:AK92) -> 7 | AL93: 2 | AM93: 2 | AN93: 3 | AO93: 29 | AP93: 34 | AQ93: 8 | AS93: =SUM(AS59:AS92) -> 7 | AT93: 3 | AU93: 2 | AV93: 2 | AW93: 32 | AX93: 30 | AY93: 11 | BA93: =SUM(BA59:BA92) -> 7 | BB93: 0 | BC93: 3 | BD93: 4 | BE93: 20 | BF93: 29 | BG93: 3 | BI93: =SUM(BI59:BI92) -> 7 | BJ93: 3 | BK93: 1 | BL93: 3 | BM93: 34 | BN93: 33 | BO93: 10 | BQ93: =SUM(BQ59:BQ92) -> 7 | BR93: 0 | BS93: 2 | BT93: 5 | BU93: 24 | BV93: 35 | BW93: 2 | BY93: =SUM(BY59:BY92) -> 7 | BZ93: 4 | CA93: 3 | CB93: 0 | CC93: 33 | CD93: 29 | CE93: 15
C95: Class | D95: Botonistas | I95: PG | J95: J | K95: V | L95: E | M95: D | N95: GP | O95: GC | P95: SG | Q95: Sorteio | S95: Cl | U95: Botonista | AC95: J | AD95: V | AE95: E | AF95: D | AG95: GP | AH95: GC | AI95: PG | AJ95: Chave Sort | AR95: Cl | AT95: Botonista | BA95: J | BB95: V | BC95: E | BD95: D | BE95: GP | BF95: GC | BG95: PG | BH95: Chave Sort
B96: =IF($S$93=0,"è","") -> è | C96: =AR96 -> 1 | D96: =AT96 -> QUINHO-SP | I96: =BG96 -> 19 | J96: =BA96 -> 7 | K96: 6 | L96: 1 | M96: 0 | N96: 48 | O96: 26 | P96: =N96-O96 -> 22 | Q96: =IF(INT(BH96)=INT(BH97),ASC(CHAR(252)),"") ->  | S96: =RANK(AJ96,AJ96:AJ103,0) -> 1 | U96: =F59 -> QUINHO-SP | AC96: =U93 -> 7 | AD96: 6 | AE96: 1 | AF96: 0 | AG96: 48 | AH96: 26 | AI96: 19 | AJ96: =(AI96*1000000000)+(AD96*1000000)+((AG96-AH96)*1000)+AG96+AR96/100 -> 1.900602205e+10 | AR96: 1 | AT96: =VLOOKUP(AR96,S96:AJ103,3,FALSE) -> QUINHO-SP | BA96: =VLOOKUP(AR96,S96:AJ103,11,FALSE) -> 7 | BB96: =VLOOKUP(AR96,S96:AJ103,12,FALSE) -> 6 | BC96: =VLOOKUP(AR96,S96:AJ103,13,FALSE) -> 1 | BD96: =VLOOKUP(AR96,S96:AJ103,14,FALSE) -> 0 | BE96: =VLOOKUP(AR96,S96:AJ103,15,FALSE) -> 48 | BF96: =VLOOKUP(AR96,S96:AJ103,16,FALSE) -> 26 | BG96: =VLOOKUP(AR96,S96:AJ103,17,FALSE) -> 19 | BH96: =VLOOKUP(AR96,S96:AJ103,18,FALSE) -> 1.900602205e+10 | BI96: =VLOOKUP($AR96,$S$37:$AI$42,17,FALSE) -> 
B97: =IF($S$93=0,"è","") -> è | C97: 2 | D97: =AT97 -> RHANIERY-RJ | I97: 15 | J97: 7 | K97: 4 | L97: 3 | M97: 0 | N97: 33 | O97: 29 | P97: 4 | Q97: =IF(OR(INT(BH97)=INT(BH96),INT(BH98)=INT(BH97)),ASC(CHAR(252)),"") ->  | S97: =RANK(AJ97,AJ96:AJ103,0) -> 5 | U97: =F60 -> FARINHA-SP | AC97: =AC93 -> 7 | AD97: 3 | AE97: 0 | AF97: 4 | AG97: 28 | AH97: 32 | AI97: 9 | AJ97: 9002996028 | AR97: 2 | AT97: =VLOOKUP(AR97,S96:AJ103,3,FALSE) -> RHANIERY-RJ | BA97: =VLOOKUP(AR97,S96:AJ103,11,FALSE) -> 7 | BB97: =VLOOKUP(AR97,S96:AJ103,12,FALSE) -> 4 | BC97: =VLOOKUP(AR97,S96:AJ103,13,FALSE) -> 3 | BD97: =VLOOKUP(AR97,S96:AJ103,14,FALSE) -> 0 | BE97: =VLOOKUP(AR97,S96:AJ103,15,FALSE) -> 33 | BF97: =VLOOKUP(AR97,S96:AJ103,16,FALSE) -> 29 | BG97: =VLOOKUP(AR97,S96:AJ103,17,FALSE) -> 15 | BH97: =VLOOKUP(AR97,S96:AJ103,18,FALSE) -> 1.500400403e+10
B98: =IF($S$93=0,"è","") -> è | C98: 3 | D98: TIAGO MACHADO-SP | I98: 11 | J98: 7 | K98: 3 | L98: 2 | M98: 2 | N98: 32 | O98: 30 | P98: 2 | S98: =RANK(AJ98,AJ96:AJ103,0) -> 6 | U98: =M60 -> RAFAEL MOREIRA-CE | AC98: =AK93 -> 7 | AD98: =AL93 -> 2 | AE98: =AM93 -> 2 | AF98: =AN93 -> 3 | AG98: =AO93 -> 29 | AH98: =AP93 -> 34 | AI98: =AQ93 -> 8 | AJ98: 8001995029 | AR98: 3 | AT98: =VLOOKUP(AR98,S96:AJ103,3,FALSE) -> TIAGO MACHADO-SP | BA98: =VLOOKUP(AR98,S96:AJ103,11,FALSE) -> 7 | BB98: =VLOOKUP(AR98,S96:AJ103,12,FALSE) -> 3 | BC98: =VLOOKUP(AR98,S96:AJ103,13,FALSE) -> 2 | BD98: =VLOOKUP(AR98,S96:AJ103,14,FALSE) -> 2 | BE98: =VLOOKUP(AR98,S96:AJ103,15,FALSE) -> 32 | BF98: =VLOOKUP(AR98,S96:AJ103,16,FALSE) -> 30 | BG98: =VLOOKUP(AR98,S96:AJ103,17,FALSE) -> 11 | BH98: =VLOOKUP(AR98,S96:AJ103,18,FALSE) -> 1.100300203e+10
B99: =IF($S$93=0,"è","") -> è | C99: 4 | D99: MATHEUS TINE-PE | I99: 10 | J99: 7 | K99: 3 | L99: 1 | M99: 3 | N99: 34 | O99: 33 | P99: 1 | S99: =RANK(AJ99,AJ96:AJ103,0) -> 3 | U99: =M59 -> TIAGO MACHADO-SP | AC99: =AS93 -> 7 | AD99: =AT93 -> 3 | AE99: =AU93 -> 2 | AF99: =AV93 -> 2 | AG99: =AW93 -> 32 | AH99: =AX93 -> 30 | AI99: =AY93 -> 11 | AJ99: 1.100300203e+10 | AR99: 4 | AT99: =VLOOKUP(AR99,S96:AJ103,3,FALSE) -> MATHEUS TINE-PE | BA99: =VLOOKUP(AR99,S96:AJ103,11,FALSE) -> 7 | BB99: =VLOOKUP(AR99,S96:AJ103,12,FALSE) -> 3 | BC99: =VLOOKUP(AR99,S96:AJ103,13,FALSE) -> 1 | BD99: =VLOOKUP(AR99,S96:AJ103,14,FALSE) -> 3 | BE99: =VLOOKUP(AR99,S96:AJ103,15,FALSE) -> 34 | BF99: =VLOOKUP(AR99,S96:AJ103,16,FALSE) -> 33 | BG99: =VLOOKUP(AR99,S96:AJ103,17,FALSE) -> 10 | BH99: =VLOOKUP(AR99,S96:AJ103,18,FALSE) -> 1.000300103e+10
B100: =IF($S$93=0,"ð","") -> ð | C100: 5 | D100: FARINHA-SP | I100: 9 | J100: 7 | K100: 3 | L100: 0 | M100: 4 | N100: 28 | O100: 32 | P100: -4 | S100: =RANK(AJ100,AJ96:AJ103,0) -> 7 | U100: =F61 -> ANDERSON-RJ | AC100: =BA93 -> 7 | AD100: =BB93 -> 0 | AE100: =BC93 -> 3 | AF100: =BD93 -> 4 | AG100: =BE93 -> 20 | AH100: =BF93 -> 29 | AI100: =BG93 -> 3 | AJ100: 2999991020 | AR100: 5 | AT100: =VLOOKUP(AR100,S96:AJ103,3,FALSE) -> FARINHA-SP | BA100: =VLOOKUP(AR100,S96:AJ103,11,FALSE) -> 7 | BB100: =VLOOKUP(AR100,S96:AJ103,12,FALSE) -> 3 | BC100: =VLOOKUP(AR100,S96:AJ103,13,FALSE) -> 0 | BD100: =VLOOKUP(AR100,S96:AJ103,14,FALSE) -> 4 | BE100: =VLOOKUP(AR100,S96:AJ103,15,FALSE) -> 28 | BF100: =VLOOKUP(AR100,S96:AJ103,16,FALSE) -> 32 | BG100: =VLOOKUP(AR100,S96:AJ103,17,FALSE) -> 9 | BH100: =VLOOKUP(AR100,S96:AJ103,18,FALSE) -> 9002996028
B101: =IF($S$93=0,"ð","") -> ð | C101: 6 | D101: RAFAEL MOREIRA-CE | I101: 8 | J101: 7 | K101: 2 | L101: 2 | M101: 3 | N101: 29 | O101: 34 | P101: -5 | S101: =RANK(AJ101,AJ96:AJ103,0) -> 4 | U101: =F62 -> MATHEUS TINE-PE | AC101: =BI93 -> 7 | AD101: =BJ93 -> 3 | AE101: =BK93 -> 1 | AF101: =BL93 -> 3 | AG101: =BM93 -> 34 | AH101: =BN93 -> 33 | AI101: =BO93 -> 10 | AJ101: 1.000300103e+10 | AR101: 6 | AT101: =VLOOKUP(AR101,S96:AJ103,3,FALSE) -> RAFAEL MOREIRA-CE | BA101: =VLOOKUP(AR101,S96:AJ103,11,FALSE) -> 7 | BB101: =VLOOKUP(AR101,S96:AJ103,12,FALSE) -> 2 | BC101: =VLOOKUP(AR101,S96:AJ103,13,FALSE) -> 2 | BD101: =VLOOKUP(AR101,S96:AJ103,14,FALSE) -> 3 | BE101: =VLOOKUP(AR101,S96:AJ103,15,FALSE) -> 29 | BF101: =VLOOKUP(AR101,S96:AJ103,16,FALSE) -> 34 | BG101: =VLOOKUP(AR101,S96:AJ103,17,FALSE) -> 8 | BH101: =VLOOKUP(AR101,S96:AJ103,18,FALSE) -> 8001995029
B102: =IF($S$93=0,"ð","") -> ð | C102: =AR102 -> 7 | D102: ANDERSON-RJ | I102: 3 | J102: 7 | K102: 0 | L102: 3 | M102: 4 | N102: 20 | O102: 29 | P102: -9 | S102: =RANK(AJ102,AJ96:AJ103,0) -> 8 | U102: =M62 -> ROGERIO-PR | AC102: =BQ93 -> 7 | AD102: =BR93 -> 0 | AE102: =BS93 -> 2 | AF102: =BT93 -> 5 | AG102: =BU93 -> 24 | AH102: =BV93 -> 35 | AI102: =BW93 -> 2 | AJ102: 1999989024 | AR102: 7 | AT102: =VLOOKUP(AR102,S96:AJ103,3,FALSE) -> ANDERSON-RJ | BA102: =VLOOKUP(AR102,S96:AJ103,11,FALSE) -> 7 | BB102: =VLOOKUP(AR102,S96:AJ103,12,FALSE) -> 0 | BC102: =VLOOKUP(AR102,S96:AJ103,13,FALSE) -> 3 | BD102: =VLOOKUP(AR102,S96:AJ103,14,FALSE) -> 4 | BE102: =VLOOKUP(AR102,S96:AJ103,15,FALSE) -> 20 | BF102: =VLOOKUP(AR102,S96:AJ103,16,FALSE) -> 29 | BG102: =VLOOKUP(AR102,S96:AJ103,17,FALSE) -> 3 | BH102: =VLOOKUP(AR102,S96:AJ103,18,FALSE) -> 2999991020
B103: =IF($S$93=0,"ð","") -> ð | C103: =AR103 -> 8 | D103: ROGERIO-PR | I103: 2 | J103: 7 | K103: 0 | L103: 2 | M103: 5 | N103: 24 | O103: 35 | P103: -11 | S103: =RANK(AJ103,AJ96:AJ103,0) -> 2 | U103: =M61 -> RHANIERY-RJ | AC103: =BY93 -> 7 | AD103: =BZ93 -> 4 | AE103: =CA93 -> 3 | AF103: =CB93 -> 0 | AG103: =CC93 -> 33 | AH103: =CD93 -> 29 | AI103: =CE93 -> 15 | AJ103: 1.500400403e+10 | AR103: 8 | AT103: =VLOOKUP(AR103,S96:AJ103,3,FALSE) -> ROGERIO-PR | BA103: =VLOOKUP(AR103,S96:AJ103,11,FALSE) -> 7 | BB103: =VLOOKUP(AR103,S96:AJ103,12,FALSE) -> 0 | BC103: =VLOOKUP(AR103,S96:AJ103,13,FALSE) -> 2 | BD103: =VLOOKUP(AR103,S96:AJ103,14,FALSE) -> 5 | BE103: =VLOOKUP(AR103,S96:AJ103,15,FALSE) -> 24 | BF103: =VLOOKUP(AR103,S96:AJ103,16,FALSE) -> 35 | BG103: =VLOOKUP(AR103,S96:AJ103,17,FALSE) -> 2 | BH103: =VLOOKUP(AR103,S96:AJ103,18,FALSE) -> 1999989024
C105: è | D105: 1a Divisão | N105: ð | O105: 4a Divisão
C108: =$C$4 -> Adulto - 1a Divisão | Q108: =CONCATENATE("1ª Fase - ", 'G1'!$I$9) -> 1ª Fase - Grupo 3 | U108: =F111 -> ALEX BAHR-SP | AA108: =IF(RIGHT(U108,4)="(WO)",0,1) -> 1 | AC108: =F112 -> CLEO JR-SP | AI108: =IF(RIGHT(AC108,4)="(WO)",0,1) -> 1 | AK108: =M112 -> QUARTIM-SP | AQ108: =IF(RIGHT(AK108,4)="(WO)",0,1) -> 1 | AS108: =M111 -> CELINHO-SP | AY108: =IF(RIGHT(AS108,4)="(WO)",0,1) -> 1 | BA108: =F113 -> NANDO-RJ | BG108: =IF(RIGHT(BA108,4)="(WO)",0,1) -> 1 | BI108: =F114 -> WEBER-RS | BO108: =IF(RIGHT(BI108,4)="(WO)",0,1) -> 1 | BQ108: =M114 -> RENATO VARZEA-PE | BW108: =IF(RIGHT(BQ108,4)="(WO)",0,1) -> 1 | BY108: =M113 -> PEDRO PRANDO-PR | CE108: =IF(RIGHT(BY108,4)="(WO)",0,1) -> 1
B109: Grp | C109: Rod. | D109: Data/Hora | E109: Mesa | F109: Jogos | S109: Ok | U109: J | V109: V | W109: E | X109: D | Y109: GP | Z109: GC | AA109: PG | AC109: J | AD109: V | AE109: E | AF109: D | AG109: GP | AH109: GC | AI109: PG | AK109: J | AL109: V | AM109: E | AN109: D | AO109: GP | AP109: GC | AQ109: PG | AS109: J | AT109: V | AU109: E | AV109: D | AW109: GP | AX109: GC | AY109: PG | BA109: J | BB109: V | BC109: E | BD109: D | BE109: GP | BF109: GC | BG109: PG | BI109: J | BJ109: V | BK109: E | BL109: D | BM109: GP | BN109: GC | BO109: PG | BQ109: J | BR109: V | BS109: E | BT109: D | BU109: GP | BV109: GC | BW109: PG | BY109: J | BZ109: V | CA109: E | CB109: D | CC109: GP | CD109: GC | CE109: PG | CH109: Rodada
B111: 1 | C111: 1 | D111: 2022-06-16 | E111: 9 | F111: ='G1'!$J$10 & IF('G1'!$K$10="S"," (WO)","") -> ALEX BAHR-SP | K111: 2 | L111: 6 | M111: ='G1'!$J$13 & IF('G1'!$K$13="S"," (WO)","") -> CELINHO-SP | S111: =COUNTBLANK(K111:L111) -> 0 | U111: =IF(S111=0,1,0) -> 1 | V111: =IF(AND(S111=0,K111>L111),1,0)*AA108 -> 0 | W111: =IF(AND(S111=0,K111=L111),1,0)*AA108 -> 0 | X111: =U111-V111-W111 -> 1 | Y111: =K111 -> 2 | Z111: =L111 -> 6 | AA111: =((V111*3)+W111)*AA108 -> 0 | AS111: =IF(S111=0,1,0) -> 1 | AT111: =IF(AND(S111=0,L111>K111),1,0)*AY108 -> 1 | AU111: =IF(AND(S111=0,K111=L111),1,0)*AY108 -> 0 | AV111: =AS111-AT111-AU111 -> 0 | AW111: =L111 -> 6 | AX111: =K111 -> 2 | AY111: =((AT111*3)+AU111)*AY108 -> 3 | CH111: 1ª
B112: 1 | E112: =E111+1 -> 10 | F112: ='G1'!$J$11 & IF('G1'!$K$11="S"," (WO)","") -> CLEO JR-SP | K112: 5 | L112: 7 | M112: ='G1'!$J$12 & IF('G1'!$K$12="S"," (WO)","") -> QUARTIM-SP | S112: =COUNTBLANK(K112:L112) -> 0 | AC112: =IF(S112=0,1,0) -> 1 | AD112: =IF(AND(S112=0,K112>L112),1,0)*AI108 -> 0 | AE112: =IF(AND(S112=0,K112=L112),1,0)*AI108 -> 0 | AF112: =AC112-AD112-AE112 -> 1 | AG112: =K112 -> 5 | AH112: =L112 -> 7 | AI112: =((AD112*3)+AE112)*AI108 -> 0 | AK112: =IF(S112=0,1,0) -> 1 | AL112: =IF(AND(S112=0,L112>K112),1,0)*AQ108 -> 1 | AM112: =IF(AND(S112=0,K112=L112),1,0)*AQ108 -> 0 | AN112: =AK112-AL112-AM112 -> 0 | AO112: =L112 -> 7 | AP112: =K112 -> 5 | AQ112: =((AL112*3)+AM112)*AQ108 -> 3
B113: 1 | D113: 14:00:00 | E113: =E112+1 -> 11 | F113: ='G1'!$J$14 & IF('G1'!$K$14="S"," (WO)","") -> NANDO-RJ | K113: 7 | L113: 1 | M113: ='G1'!$J$17 & IF('G1'!$K$17="S"," (WO)","") -> PEDRO PRANDO-PR | S113: =COUNTBLANK(K113:L113) -> 0 | BA113: =IF(S113=0,1,0) -> 1 | BB113: =IF(AND(S113=0,K113>L113),1,0)*BG108 -> 1 | BC113: =IF(AND(S113=0,K113=L113),1,0)*BG108 -> 0 | BD113: =BA113-BB113-BC113 -> 0 | BE113: =K113 -> 7 | BF113: =L113 -> 1 | BG113: =((BB113*3)+BC113)*BG108 -> 3 | BY113: =IF(S113=0,1,0) -> 1 | BZ113: =IF(AND(S113=0,L113>K113),1,0)*CE108 -> 0 | CA113: =IF(AND(S113=0,K113=L113),1,0)*CE108 -> 0 | CB113: =BY113-BZ113-CA113 -> 1 | CC113: =L113 -> 1 | CD113: =K113 -> 7 | CE113: =((BZ113*3)+CA113)*CE108 -> 0
B114: 1 | E114: =E113+1 -> 12 | F114: ='G1'!$J$15 & IF('G1'!$K$15="S"," (WO)","") -> WEBER-RS | K114: 2 | L114: 5 | M114: ='G1'!$J$16 & IF('G1'!$K$16="S"," (WO)","") -> RENATO VARZEA-PE | S114: =COUNTBLANK(K114:L114) -> 0 | BI114: =IF(S114=0,1,0) -> 1 | BJ114: =IF(AND(S114=0,K114>L114),1,0)*BO108 -> 0 | BK114: =IF(AND(S114=0,K114=L114),1,0)*BO108 -> 0 | BL114: =BI114-BJ114-BK114 -> 1 | BM114: =K114 -> 2 | BN114: =L114 -> 5 | BO114: =((BJ114*3)+BK114)*BO108 -> 0 | BQ114: =IF(S114=0,1,0) -> 1 | BR114: =IF(AND(S114=0,L114>K114),1,0)*BW108 -> 1 | BS114: =IF(AND(S114=0,K114=L114),1,0)*BW108 -> 0 | BT114: =BQ114-BR114-BS114 -> 0 | BU114: =L114 -> 5 | BV114: =K114 -> 2 | BW114: =((BR114*3)+BS114)*BW108 -> 3
B115: 1
B116: 1 | C116: 2 | D116: =$D$7 -> 2022-06-16 | E116: 13 | F116: =F111 -> ALEX BAHR-SP | K116: 5 | L116: 5 | M116: =M112 -> QUARTIM-SP | S116: =COUNTBLANK(K116:L116) -> 0 | U116: =IF(S116=0,1,0) -> 1 | V116: =IF(AND(S116=0,K116>L116),1,0)*AA108 -> 0 | W116: =IF(AND(S116=0,K116=L116),1,0)*AA108 -> 1 | X116: =U116-V116-W116 -> 0 | Y116: =K116 -> 5 | Z116: =L116 -> 5 | AA116: =((V116*3)+W116)*AA108 -> 1 | AK116: =IF(S116=0,1,0) -> 1 | AL116: =IF(AND(S116=0,L116>K116),1,0)*AQ108 -> 0 | AM116: =IF(AND(S116=0,K116=L116),1,0)*AQ108 -> 1 | AN116: =AK116-AL116-AM116 -> 0 | AO116: =L116 -> 5 | AP116: =K116 -> 5 | AQ116: =((AL116*3)+AM116)*AQ108 -> 1 | CH116: 2ª
B117: 1 | E117: =E116+1 -> 14 | F117: =F112 -> CLEO JR-SP | K117: 2 | L117: 7 | M117: =M111 -> CELINHO-SP | S117: =COUNTBLANK(K117:L117) -> 0 | AC117: =IF(S117=0,1,0) -> 1 | AD117: =IF(AND(S117=0,K117>L117),1,0)*AI108 -> 0 | AE117: =IF(AND(S117=0,K117=L117),1,0)*AI108 -> 0 | AF117: =AC117-AD117-AE117 -> 1 | AG117: =K117 -> 2 | AH117: =L117 -> 7 | AI117: =((AD117*3)+AE117)*AI108 -> 0 | AS117: =IF(S117=0,1,0) -> 1 | AT117: =IF(AND(S117=0,L117>K117),1,0)*AY108 -> 1 | AU117: =IF(AND(S117=0,K117=L117),1,0)*AY108 -> 0 | AV117: =AS117-AT117-AU117 -> 0 | AW117: =L117 -> 7 | AX117: =K117 -> 2 | AY117: =((AT117*3)+AU117)*AY108 -> 3
B118: 1 | D118: 14:30:00 | E118: =E117+1 -> 15 | F118: =F113 -> NANDO-RJ | K118: 4 | L118: 1 | M118: =M114 -> RENATO VARZEA-PE | S118: =COUNTBLANK(K118:L118) -> 0 | BA118: =IF(S118=0,1,0) -> 1 | BB118: =IF(AND(S118=0,K118>L118),1,0)*BG108 -> 1 | BC118: =IF(AND(S118=0,K118=L118),1,0)*BG108 -> 0 | BD118: =BA118-BB118-BC118 -> 0 | BE118: =K118 -> 4 | BF118: =L118 -> 1 | BG118: =((BB118*3)+BC118)*BG108 -> 3 | BQ118: =IF(S118=0,1,0) -> 1 | BR118: =IF(AND(S118=0,L118>K118),1,0)*BW108 -> 0 | BS118: =IF(AND(S118=0,K118=L118),1,0)*BW108 -> 0 | BT118: =BQ118-BR118-BS118 -> 1 | BU118: =L118 -> 1 | BV118: =K118 -> 4 | BW118: =((BR118*3)+BS118)*BW108 -> 0
B119: 1 | E119: =E118+1 -> 16 | F119: =F114 -> WEBER-RS | K119: 3 | L119: 5 | M119: =M113 -> PEDRO PRANDO-PR | S119: =COUNTBLANK(K119:L119) -> 0 | BI119: =IF(S119=0,1,0) -> 1 | BJ119: =IF(AND(S119=0,K119>L119),1,0)*BO108 -> 0 | BK119: =IF(AND(S119=0,K119=L119),1,0)*BO108 -> 0 | BL119: =BI119-BJ119-BK119 -> 1 | BM119: =K119 -> 3 | BN119: =L119 -> 5 | BO119: =((BJ119*3)+BK119)*BO108 -> 0 | BY119: =IF(S119=0,1,0) -> 1 | BZ119: =IF(AND(S119=0,L119>K119),1,0)*CE108 -> 1 | CA119: =IF(AND(S119=0,K119=L119),1,0)*CE108 -> 0 | CB119: =BY119-BZ119-CA119 -> 0 | CC119: =L119 -> 5 | CD119: =K119 -> 3 | CE119: =((BZ119*3)+CA119)*CE108 -> 3
B121: 1 | C121: 3 | D121: =$D$7 -> 2022-06-16 | E121: 17 | F121: =F116 -> ALEX BAHR-SP | K121: 4 | L121: 4 | M121: =F117 -> CLEO JR-SP | S121: =COUNTBLANK(K121:L121) -> 0 | U121: =IF(S121=0,1,0) -> 1 | V121: =IF(AND(S121=0,K121>L121),1,0)*AA108 -> 0 | W121: =IF(AND(S121=0,K121=L121),1,0)*AA108 -> 1 | X121: =U121-V121-W121 -> 0 | Y121: =K121 -> 4 | Z121: =L121 -> 4 | AA121: =((V121*3)+W121)*AA108 -> 1 | AC121: =IF(S121=0,1,0) -> 1 | AD121: =IF(AND(S121=0,L121>K121),1,0)*AI108 -> 0 | AE121: =IF(AND(S121=0,K121=L121),1,0)*AI108 -> 1 | AF121: =AC121-AD121-AE121 -> 0 | AG121: =L121 -> 4 | AH121: =K121 -> 4 | AI121: =((AD121*3)+AE121)*AI108 -> 1 | CH121: 3ª
B122: 1 | E122: =E121+1 -> 18 | F122: =M116 -> QUARTIM-SP | K122: 3 | L122: 3 | M122: =M117 -> CELINHO-SP | S122: =COUNTBLANK(K122:L122) -> 0 | AK122: =IF(S122=0,1,0) -> 1 | AL122: =IF(AND(S122=0,K122>L122),1,0)*AQ108 -> 0 | AM122: =IF(AND(S122=0,K122=L122),1,0)*AQ108 -> 1 | AN122: =AK122-AL122-AM122 -> 0 | AO122: =K122 -> 3 | AP122: =L122 -> 3 | AQ122: =((AL122*3)+AM122)*AQ108 -> 1 | AS122: =IF(S122=0,1,0) -> 1 | AT122: =IF(AND(S122=0,L122>K122),1,0)*AY108 -> 0 | AU122: =IF(AND(S122=0,K122=L122),1,0)*AY108 -> 1 | AV122: =AS122-AT122-AU122 -> 0 | AW122: =L122 -> 3 | AX122: =K122 -> 3 | AY122: =((AT122*3)+AU122)*AY108 -> 1
B123: 1 | D123: 15:00:00 | E123: =E122+1 -> 19 | F123: =F118 -> NANDO-RJ | K123: 8 | L123: 1 | M123: =F119 -> WEBER-RS | S123: =COUNTBLANK(K123:L123) -> 0 | BA123: =IF(S123=0,1,0) -> 1 | BB123: =IF(AND(S123=0,K123>L123),1,0)*BG108 -> 1 | BC123: =IF(AND(S123=0,K123=L123),1,0)*BG108 -> 0 | BD123: =BA123-BB123-BC123 -> 0 | BE123: =K123 -> 8 | BF123: =L123 -> 1 | BG123: =((BB123*3)+BC123)*BG108 -> 3 | BI123: =IF(S123=0,1,0) -> 1 | BJ123: =IF(AND(S123=0,L123>K123),1,0)*BO108 -> 0 | BK123: =IF(AND(S123=0,K123=L123),1,0)*BO108 -> 0 | BL123: =BI123-BJ123-BK123 -> 1 | BM123: =L123 -> 1 | BN123: =K123 -> 8 | BO123: =((BJ123*3)+BK123)*BO108 -> 0
B124: 1 | E124: =E123+1 -> 20 | F124: =M118 -> RENATO VARZEA-PE | K124: 2 | L124: 3 | M124: =M119 -> PEDRO PRANDO-PR | S124: =COUNTBLANK(K124:L124) -> 0 | BQ124: =IF(S124=0,1,0) -> 1 | BR124: =IF(AND(S124=0,K124>L124),1,0)*BW108 -> 0 | BS124: =IF(AND(S124=0,K124=L124),1,0)*BW108 -> 0 | BT124: =BQ124-BR124-BS124 -> 1 | BU124: =K124 -> 2 | BV124: =L124 -> 3 | BW124: =((BR124*3)+BS124)*BW108 -> 0 | BY124: =IF(S124=0,1,0) -> 1 | BZ124: =IF(AND(S124=0,L124>K124),1,0)*CE108 -> 1 | CA124: =IF(AND(S124=0,K124=L124),1,0)*CE108 -> 0 | CB124: =BY124-BZ124-CA124 -> 0 | CC124: =L124 -> 3 | CD124: =K124 -> 2 | CE124: =((BZ124*3)+CA124)*CE108 -> 3
B126: 1 | C126: 4 | D126: =$D$7 -> 2022-06-16 | E126: 21 | F126: =F123 -> NANDO-RJ | K126: 7 | L126: 6 | M126: =M121 -> CLEO JR-SP | S126: =COUNTBLANK(K126:L126) -> 0 | AC126: =IF(S126=0,1,0) -> 1 | AD126: =IF(AND(S126=0,L126>K126),1,0)*AI108 -> 0 | AE126: =IF(AND(S126=0,K126=L126),1,0)*AI108 -> 0 | AF126: =AC126-AD126-AE126 -> 1 | AG126: =L126 -> 6 | AH126: =K126 -> 7 | AI126: =((AD126*3)+AE126)*AI108 -> 0 | BA126: =IF(S126=0,1,0) -> 1 | BB126: =IF(AND(S126=0,K126>L126),1,0)*BG108 -> 1 | BC126: =IF(AND(S126=0,K126=L126),1,0)*BG108 -> 0 | BD126: =BA126-BB126-BC126 -> 0 | BE126: =K126 -> 7 | BF126: =L126 -> 6 | BG126: =((BB126*3)+BC126)*BG108 -> 3 | CH126: 4ª
B127: 1 | E127: =E126+1 -> 22 | F127: =M123 -> WEBER-RS | K127: 2 | L127: 5 | M127: =F122 -> QUARTIM-SP | S127: =COUNTBLANK(K127:L127) -> 0 | AK127: =IF(S127=0,1,0) -> 1 | AL127: =IF(AND(S127=0,L127>K127),1,0)*AQ108 -> 1 | AM127: =IF(AND(S127=0,K127=L127),1,0)*AQ108 -> 0 | AN127: =AK127-AL127-AM127 -> 0 | AO127: =L127 -> 5 | AP127: =K127 -> 2 | AQ127: =((AL127*3)+AM127)*AQ108 -> 3 | BI127: =IF(S127=0,1,0) -> 1 | BJ127: =IF(AND(S127=0,K127>L127),1,0)*BO108 -> 0 | BK127: =IF(AND(S127=0,K127=L127),1,0)*BO108 -> 0 | BL127: =BI127-BJ127-BK127 -> 1 | BM127: =K127 -> 2 | BN127: =L127 -> 5 | BO127: =((BJ127*3)+BK127)*BO108 -> 0
B128: 1 | D128: 15:30:00 | E128: =E127+1 -> 23 | F128: =F124 -> RENATO VARZEA-PE | K128: 1 | L128: 5 | M128: =M122 -> CELINHO-SP | S128: =COUNTBLANK(K128:L128) -> 0 | AS128: =IF(S128=0,1,0) -> 1 | AT128: =IF(AND(S128=0,L128>K128),1,0)*AY108 -> 1 | AU128: =IF(AND(S128=0,K128=L128),1,0)*AY108 -> 0 | AV128: =AS128-AT128-AU128 -> 0 | AW128: =L128 -> 5 | AX128: =K128 -> 1 | AY128: =((AT128*3)+AU128)*AY108 -> 3 | BQ128: =IF(S128=0,1,0) -> 1 | BR128: =IF(AND(S128=0,K128>L128),1,0)*BW108 -> 0 | BS128: =IF(AND(S128=0,K128=L128),1,0)*BW108 -> 0 | BT128: =BQ128-BR128-BS128 -> 1 | BU128: =K128 -> 1 | BV128: =L128 -> 5 | BW128: =((BR128*3)+BS128)*BW108 -> 0
B129: 1 | E129: =E128+1 -> 24 | F129: =M124 -> PEDRO PRANDO-PR | K129: 1 | L129: 6 | M129: =F121 -> ALEX BAHR-SP | S129: =COUNTBLANK(K129:L129) -> 0 | U129: =IF(S129=0,1,0) -> 1 | V129: =IF(AND(S129=0,L129>K129),1,0)*AA108 -> 1 | W129: =IF(AND(S129=0,K129=L129),1,0)*AA108 -> 0 | X129: =U129-V129-W129 -> 0 | Y129: =L129 -> 6 | Z129: =K129 -> 1 | AA129: =((V129*3)+W129)*AA108 -> 3 | BY129: =IF(S129=0,1,0) -> 1 | BZ129: =IF(AND(S129=0,K129>L129),1,0)*CE108 -> 0 | CA129: =IF(AND(S129=0,K129=L129),1,0)*CE108 -> 0 | CB129: =BY129-BZ129-CA129 -> 1 | CC129: =K129 -> 1 | CD129: =L129 -> 6 | CE129: =((BZ129*3)+CA129)*CE108 -> 0
B131: 1 | C131: 5 | D131: =$D$7 -> 2022-06-16 | E131: 25 | F131: =F126 -> NANDO-RJ | K131: 7 | L131: 4 | M131: =M127 -> QUARTIM-SP | S131: =COUNTBLANK(K131:L131) -> 0 | AK131: =IF(S131=0,1,0) -> 1 | AL131: =IF(AND(S131=0,L131>K131),1,0)*AQ108 -> 0 | AM131: =IF(AND(S131=0,K131=L131),1,0)*AQ108 -> 0 | AN131: =AK131-AL131-AM131 -> 1 | AO131: =L131 -> 4 | AP131: =K131 -> 7 | AQ131: =((AL131*3)+AM131)*AQ108 -> 0 | BA131: =IF(S131=0,1,0) -> 1 | BB131: =IF(AND(S131=0,K131>L131),1,0)*BG108 -> 1 | BC131: =IF(AND(S131=0,K131=L131),1,0)*BG108 -> 0 | BD131: =BA131-BB131-BC131 -> 0 | BE131: =K131 -> 7 | BF131: =L131 -> 4 | BG131: =((BB131*3)+BC131)*BG108 -> 3 | CH131: 5ª
B132: 1 | E132: =E131+1 -> 26 | F132: =F127 -> WEBER-RS | K132: 4 | L132: 6 | M132: =M128 -> CELINHO-SP | S132: =COUNTBLANK(K132:L132) -> 0 | AS132: =IF(S132=0,1,0) -> 1 | AT132: =IF(AND(S132=0,L132>K132),1,0)*AY108 -> 1 | AU132: =IF(AND(S132=0,K132=L132),1,0)*AY108 -> 0 | AV132: =AS132-AT132-AU132 -> 0 | AW132: =L132 -> 6 | AX132: =K132 -> 4 | AY132: =((AT132*3)+AU132)*AY108 -> 3 | BI132: =IF(S132=0,1,0) -> 1 | BJ132: =IF(AND(S132=0,K132>L132),1,0)*BO108 -> 0 | BK132: =IF(AND(S132=0,K132=L132),1,0)*BO108 -> 0 | BL132: =BI132-BJ132-BK132 -> 1 | BM132: =K132 -> 4 | BN132: =L132 -> 6 | BO132: =((BJ132*3)+BK132)*BO108 -> 0
B133: 1 | D133: 16:00:00 | E133: =E132+1 -> 27 | F133: =F128 -> RENATO VARZEA-PE | K133: 5 | L133: 5 | M133: =M129 -> ALEX BAHR-SP | S133: =COUNTBLANK(K133:L133) -> 0 | U133: =IF(S133=0,1,0) -> 1 | V133: =IF(AND(S133=0,L133>K133),1,0)*AA108 -> 0 | W133: =IF(AND(S133=0,K133=L133),1,0)*AA108 -> 1 | X133: =U133-V133-W133 -> 0 | Y133: =L133 -> 5 | Z133: =K133 -> 5 | AA133: =((V133*3)+W133)*AA108 -> 1 | BQ133: =IF(S133=0,1,0) -> 1 | BR133: =IF(AND(S133=0,K133>L133),1,0)*BW108 -> 0 | BS133: =IF(AND(S133=0,K133=L133),1,0)*BW108 -> 1 | BT133: =BQ133-BR133-BS133 -> 0 | BU133: =K133 -> 5 | BV133: =L133 -> 5 | BW133: =((BR133*3)+BS133)*BW108 -> 1
B134: 1 | E134: =E133+1 -> 28 | F134: =F129 -> PEDRO PRANDO-PR | K134: 3 | L134: 3 | M134: =M126 -> CLEO JR-SP | S134: =COUNTBLANK(K134:L134) -> 0 | AC134: =IF(S134=0,1,0) -> 1 | AD134: =IF(AND(S134=0,L134>K134),1,0)*AI108 -> 0 | AE134: =IF(AND(S134=0,K134=L134),1,0)*AI108 -> 1 | AF134: =AC134-AD134-AE134 -> 0 | AG134: =L134 -> 3 | AH134: =K134 -> 3 | AI134: =((AD134*3)+AE134)*AI108 -> 1 | BY134: =IF(S134=0,1,0) -> 1 | BZ134: =IF(AND(S134=0,K134>L134),1,0)*CE108 -> 0 | CA134: =IF(AND(S134=0,K134=L134),1,0)*CE108 -> 1 | CB134: =BY134-BZ134-CA134 -> 0 | CC134: =K134 -> 3 | CD134: =L134 -> 3 | CE134: =((BZ134*3)+CA134)*CE108 -> 1
B136: 1 | C136: 6 | D136: =$D$7 -> 2022-06-16 | E136: 29 | F136: =F132 -> WEBER-RS | K136: 2 | L136: 4 | M136: =M134 -> CLEO JR-SP | S136: =COUNTBLANK(K136:L136) -> 0 | AC136: =IF(S136=0,1,0) -> 1 | AD136: =IF(AND(S136=0,L136>K136),1,0)*AI108 -> 1 | AE136: =IF(AND(S136=0,K136=L136),1,0)*AI108 -> 0 | AF136: =AC136-AD136-AE136 -> 0 | AG136: =L136 -> 4 | AH136: =K136 -> 2 | AI136: =((AD136*3)+AE136)*AI108 -> 3 | BI136: =IF(S136=0,1,0) -> 1 | BJ136: =IF(AND(S136=0,K136>L136),1,0)*BO108 -> 0 | BK136: =IF(AND(S136=0,K136=L136),1,0)*BO108 -> 0 | BL136: =BI136-BJ136-BK136 -> 1 | BM136: =K136 -> 2 | BN136: =L136 -> 4 | BO136: =((BJ136*3)+BK136)*BO108 -> 0 | CH136: 6ª
B137: 1 | E137: =E136+1 -> 30 | F137: =F131 -> NANDO-RJ | K137: 9 | L137: 4 | M137: =M133 -> ALEX BAHR-SP | S137: =COUNTBLANK(K137:L137) -> 0 | U137: =IF(S137=0,1,0) -> 1 | V137: =IF(AND(S137=0,L137>K137),1,0)*AA108 -> 0 | W137: =IF(AND(S137=0,K137=L137),1,0)*AA108 -> 0 | X137: =U137-V137-W137 -> 1 | Y137: =L137 -> 4 | Z137: =K137 -> 9 | AA137: =((V137*3)+W137)*AA108 -> 0 | BA137: =IF(S137=0,1,0) -> 1 | BB137: =IF(AND(S137=0,K137>L137),1,0)*BG108 -> 1 | BC137: =IF(AND(S137=0,K137=L137),1,0)*BG108 -> 0 | BD137: =BA137-BB137-BC137 -> 0 | BE137: =K137 -> 9 | BF137: =L137 -> 4 | BG137: =((BB137*3)+BC137)*BG108 -> 3
B138: 1 | D138: 16:30:00 | E138: =E137+1 -> 31 | F138: =F134 -> PEDRO PRANDO-PR | K138: 6 | L138: 4 | M138: =M132 -> CELINHO-SP | S138: =COUNTBLANK(K138:L138) -> 0 | AS138: =IF(S138=0,1,0) -> 1 | AT138: =IF(AND(S138=0,L138>K138),1,0)*AY108 -> 0 | AU138: =IF(AND(S138=0,K138=L138),1,0)*AY108 -> 0 | AV138: =AS138-AT138-AU138 -> 1 | AW138: =L138 -> 4 | AX138: =K138 -> 6 | AY138: =((AT138*3)+AU138)*AY108 -> 0 | BY138: =IF(S138=0,1,0) -> 1 | BZ138: =IF(AND(S138=0,K138>L138),1,0)*CE108 -> 1 | CA138: =IF(AND(S138=0,K138=L138),1,0)*CE108 -> 0 | CB138: =BY138-BZ138-CA138 -> 0 | CC138: =K138 -> 6 | CD138: =L138 -> 4 | CE138: =((BZ138*3)+CA138)*CE108 -> 3
B139: 1 | E139: =E138+1 -> 32 | F139: =F133 -> RENATO VARZEA-PE | K139: 1 | L139: 4 | M139: =M131 -> QUARTIM-SP | S139: =COUNTBLANK(K139:L139) -> 0 | AK139: =IF(S139=0,1,0) -> 1 | AL139: =IF(AND(S139=0,L139>K139),1,0)*AQ108 -> 1 | AM139: =IF(AND(S139=0,K139=L139),1,0)*AQ108 -> 0 | AN139: =AK139-AL139-AM139 -> 0 | AO139: =L139 -> 4 | AP139: =K139 -> 1 | AQ139: =((AL139*3)+AM139)*AQ108 -> 3 | BQ139: =IF(S139=0,1,0) -> 1 | BR139: =IF(AND(S139=0,K139>L139),1,0)*BW108 -> 0 | BS139: =IF(AND(S139=0,K139=L139),1,0)*BW108 -> 0 | BT139: =BQ139-BR139-BS139 -> 1 | BU139: =K139 -> 1 | BV139: =L139 -> 4 | BW139: =((BR139*3)+BS139)*BW108 -> 0
B141: 1 | C141: 7 | D141: =$D$7 -> 2022-06-16 | E141: 33 | F141: =F138 -> PEDRO PRANDO-PR | K141: 4 | L141: 5 | M141: =M139 -> QUARTIM-SP | S141: =COUNTBLANK(K141:L141) -> 0 | AK141: =IF(S141=0,1,0) -> 1 | AL141: =IF(AND(S141=0,L141>K141),1,0)*AQ108 -> 1 | AM141: =IF(AND(S141=0,K141=L141),1,0)*AQ108 -> 0 | AN141: =AK141-AL141-AM141 -> 0 | AO141: =L141 -> 5 | AP141: =K141 -> 4 | AQ141: =((AL141*3)+AM141)*AQ108 -> 3 | BY141: =IF(S141=0,1,0) -> 1 | BZ141: =IF(AND(S141=0,K141>L141),1,0)*CE108 -> 0 | CA141: =IF(AND(S141=0,K141=L141),1,0)*CE108 -> 0 | CB141: =BY141-BZ141-CA141 -> 1 | CC141: =K141 -> 4 | CD141: =L141 -> 5 | CE141: =((BZ141*3)+CA141)*CE108 -> 0 | CH141: 7ª
B142: 1 | E142: =E141+1 -> 34 | F142: =F136 -> WEBER-RS | K142: 3 | L142: 3 | M142: =M137 -> ALEX BAHR-SP | S142: =COUNTBLANK(K142:L142) -> 0 | U142: =IF(S142=0,1,0) -> 1 | V142: =IF(AND(S142=0,L142>K142),1,0)*AA108 -> 0 | W142: =IF(AND(S142=0,K142=L142),1,0)*AA108 -> 1 | X142: =U142-V142-W142 -> 0 | Y142: =L142 -> 3 | Z142: =K142 -> 3 | AA142: =((V142*3)+W142)*AA108 -> 1 | BI142: =IF(S142=0,1,0) -> 1 | BJ142: =IF(AND(S142=0,K142>L142),1,0)*BO108 -> 0 | BK142: =IF(AND(S142=0,K142=L142),1,0)*BO108 -> 1 | BL142: =BI142-BJ142-BK142 -> 0 | BM142: =K142 -> 3 | BN142: =L142 -> 3 | BO142: =((BJ142*3)+BK142)*BO108 -> 1
B143: 1 | D143: 17:00:00 | E143: =E142+1 -> 35 | F143: =F139 -> RENATO VARZEA-PE | K143: 5 | L143: 4 | M143: =M136 -> CLEO JR-SP | S143: =COUNTBLANK(K143:L143) -> 0 | AC143: =IF(S143=0,1,0) -> 1 | AD143: =IF(AND(S143=0,L143>K143),1,0)*AI108 -> 0 | AE143: =IF(AND(S143=0,K143=L143),1,0)*AI108 -> 0 | AF143: =AC143-AD143-AE143 -> 1 | AG143: =L143 -> 4 | AH143: =K143 -> 5 | AI143: =((AD143*3)+AE143)*AI108 -> 0 | BQ143: =IF(S143=0,1,0) -> 1 | BR143: =IF(AND(S143=0,K143>L143),1,0)*BW108 -> 1 | BS143: =IF(AND(S143=0,K143=L143),1,0)*BW108 -> 0 | BT143: =BQ143-BR143-BS143 -> 0 | BU143: =K143 -> 5 | BV143: =L143 -> 4 | BW143: =((BR143*3)+BS143)*BW108 -> 3
B144: 1 | E144: =E143+1 -> 36 | F144: =F137 -> NANDO-RJ | K144: 6 | L144: 6 | M144: =M138 -> CELINHO-SP | S144: =COUNTBLANK(K144:L144) -> 0 | AS144: =IF(S144=0,1,0) -> 1 | AT144: =IF(AND(S144=0,L144>K144),1,0)*AY108 -> 0 | AU144: =IF(AND(S144=0,K144=L144),1,0)*AY108 -> 1 | AV144: =AS144-AT144-AU144 -> 0 | AW144: =L144 -> 6 | AX144: =K144 -> 6 | AY144: =((AT144*3)+AU144)*AY108 -> 1 | BA144: =IF(S144=0,1,0) -> 1 | BB144: =IF(AND(S144=0,K144>L144),1,0)*BG108 -> 0 | BC144: =IF(AND(S144=0,K144=L144),1,0)*BG108 -> 1 | BD144: =BA144-BB144-BC144 -> 0 | BE144: =K144 -> 6 | BF144: =L144 -> 6 | BG144: =((BB144*3)+BC144)*BG108 -> 1
S145: =SUM(S111:S144) -> 0 | U145: =SUM(U111:U144) -> 7 | V145: 1 | W145: 4 | X145: 2 | Y145: 29 | Z145: 33 | AA145: 7 | AC145: =SUM(AC111:AC144) -> 7 | AD145: 1 | AE145: 2 | AF145: 4 | AG145: 28 | AH145: 35 | AI145: 5 | AK145: =SUM(AK111:AK144) -> 7 | AL145: 4 | AM145: 2 | AN145: 1 | AO145: 33 | AP145: 27 | AQ145: 14 | AS145: =SUM(AS111:AS144) -> 7 | AT145: 4 | AU145: 2 | AV145: 1 | AW145: 37 | AX145: 24 | AY145: 14 | BA145: =SUM(BA111:BA144) -> 7 | BB145: 6 | BC145: 1 | BD145: 0 | BE145: 48 | BF145: 23 | BG145: 19 | BI145: =SUM(BI111:BI144) -> 7 | BJ145: 0 | BK145: 1 | BL145: 6 | BM145: 17 | BN145: 36 | BO145: 1 | BQ145: =SUM(BQ111:BQ144) -> 7 | BR145: 2 | BS145: 1 | BT145: 4 | BU145: 20 | BV145: 27 | BW145: 7 | BY145: =SUM(BY111:BY144) -> 7 | BZ145: 3 | CA145: 1 | CB145: 3 | CC145: 23 | CD145: 30 | CE145: 10
C147: Class | D147: Botonistas | I147: PG | J147: J | K147: V | L147: E | M147: D | N147: GP | O147: GC | P147: SG | Q147: Sorteio | S147: Cl | U147: Botonista | AC147: J | AD147: V | AE147: E | AF147: D | AG147: GP | AH147: GC | AI147: PG | AJ147: Chave Sort | AR147: Cl | AT147: Botonista | BA147: J | BB147: V | BC147: E | BD147: D | BE147: GP | BF147: GC | BG147: PG | BH147: Chave Sort
B148: =IF($S$145=0,"è","") -> è | C148: =AR148 -> 1 | D148: =AT148 -> NANDO-RJ | I148: =BG148 -> 19 | J148: =BA148 -> 7 | K148: 6 | L148: 1 | M148: 0 | N148: 48 | O148: 23 | P148: =N148-O148 -> 25 | Q148: =IF(INT(BH148)=INT(BH149),ASC(CHAR(252)),"") ->  | S148: =RANK(AJ148,AJ148:AJ155,0) -> 6 | U148: =F111 -> ALEX BAHR-SP | AC148: =U145 -> 7 | AD148: 1 | AE148: 4 | AF148: 2 | AG148: 29 | AH148: 33 | AI148: 7 | AJ148: =(AI148*1000000000)+(AD148*1000000)+((AG148-AH148)*1000)+AG148+AR148/100 -> 7000996029 | AR148: 1 | AT148: =VLOOKUP(AR148,S148:AJ155,3,FALSE) -> NANDO-RJ | BA148: =VLOOKUP(AR148,S148:AJ155,11,FALSE) -> 7 | BB148: =VLOOKUP(AR148,S148:AJ155,12,FALSE) -> 6 | BC148: =VLOOKUP(AR148,S148:AJ155,13,FALSE) -> 1 | BD148: =VLOOKUP(AR148,S148:AJ155,14,FALSE) -> 0 | BE148: =VLOOKUP(AR148,S148:AJ155,15,FALSE) -> 48 | BF148: =VLOOKUP(AR148,S148:AJ155,16,FALSE) -> 23 | BG148: =VLOOKUP(AR148,S148:AJ155,17,FALSE) -> 19 | BH148: =VLOOKUP(AR148,S148:AJ155,18,FALSE) -> 1.900602505e+10 | BI148: =VLOOKUP($AR148,$S$37:$AI$42,17,FALSE) -> 
B149: =IF($S$145=0,"è","") -> è | C149: 2 | D149: =AT149 -> CELINHO-SP | I149: 14 | J149: 7 | K149: 4 | L149: 2 | M149: 1 | N149: 37 | O149: 24 | P149: 13 | Q149: =IF(OR(INT(BH149)=INT(BH148),INT(BH150)=INT(BH149)),ASC(CHAR(252)),"") ->  | S149: =RANK(AJ149,AJ148:AJ155,0) -> 7 | U149: =F112 -> CLEO JR-SP | AC149: =AC145 -> 7 | AD149: 1 | AE149: 2 | AF149: 4 | AG149: 28 | AH149: 35 | AI149: 5 | AJ149: 5000993028 | AR149: 2 | AT149: =VLOOKUP(AR149,S148:AJ155,3,FALSE) -> CELINHO-SP | BA149: =VLOOKUP(AR149,S148:AJ155,11,FALSE) -> 7 | BB149: =VLOOKUP(AR149,S148:AJ155,12,FALSE) -> 4 | BC149: =VLOOKUP(AR149,S148:AJ155,13,FALSE) -> 2 | BD149: =VLOOKUP(AR149,S148:AJ155,14,FALSE) -> 1 | BE149: =VLOOKUP(AR149,S148:AJ155,15,FALSE) -> 37 | BF149: =VLOOKUP(AR149,S148:AJ155,16,FALSE) -> 24 | BG149: =VLOOKUP(AR149,S148:AJ155,17,FALSE) -> 14 | BH149: =VLOOKUP(AR149,S148:AJ155,18,FALSE) -> 1.400401304e+10
B150: =IF($S$145=0,"è","") -> è | C150: 3 | D150: QUARTIM-SP | I150: 14 | J150: 7 | K150: 4 | L150: 2 | M150: 1 | N150: 33 | O150: 27 | P150: 6 | S150: =RANK(AJ150,AJ148:AJ155,0) -> 3 | U150: =M112 -> QUARTIM-SP | AC150: =AK145 -> 7 | AD150: 4 | AE150: 2 | AF150: 1 | AG150: 33 | AH150: 27 | AI150: 14 | AJ150: 1.400400603e+10 | AR150: 3 | AT150: =VLOOKUP(AR150,S148:AJ155,3,FALSE) -> QUARTIM-SP | BA150: =VLOOKUP(AR150,S148:AJ155,11,FALSE) -> 7 | BB150: =VLOOKUP(AR150,S148:AJ155,12,FALSE) -> 4 | BC150: =VLOOKUP(AR150,S148:AJ155,13,FALSE) -> 2 | BD150: =VLOOKUP(AR150,S148:AJ155,14,FALSE) -> 1 | BE150: =VLOOKUP(AR150,S148:AJ155,15,FALSE) -> 33 | BF150: =VLOOKUP(AR150,S148:AJ155,16,FALSE) -> 27 | BG150: =VLOOKUP(AR150,S148:AJ155,17,FALSE) -> 14 | BH150: =VLOOKUP(AR150,S148:AJ155,18,FALSE) -> 1.400400603e+10
B151: =IF($S$145=0,"è","") -> è | C151: 4 | D151: PEDRO PRANDO-PR | I151: 10 | J151: 7 | K151: 3 | L151: 1 | M151: 3 | N151: 23 | O151: 30 | P151: -7 | S151: =RANK(AJ151,AJ148:AJ155,0) -> 2 | U151: =M111 -> CELINHO-SP | AC151: =AS145 -> 7 | AD151: 4 | AE151: 2 | AF151: 1 | AG151: 37 | AH151: 24 | AI151: 14 | AJ151: 1.400401304e+10 | AR151: 4 | AT151: =VLOOKUP(AR151,S148:AJ155,3,FALSE) -> PEDRO PRANDO-PR | BA151: =VLOOKUP(AR151,S148:AJ155,11,FALSE) -> 7 | BB151: =VLOOKUP(AR151,S148:AJ155,12,FALSE) -> 3 | BC151: =VLOOKUP(AR151,S148:AJ155,13,FALSE) -> 1 | BD151: =VLOOKUP(AR151,S148:AJ155,14,FALSE) -> 3 | BE151: =VLOOKUP(AR151,S148:AJ155,15,FALSE) -> 23 | BF151: =VLOOKUP(AR151,S148:AJ155,16,FALSE) -> 30 | BG151: =VLOOKUP(AR151,S148:AJ155,17,FALSE) -> 10 | BH151: =VLOOKUP(AR151,S148:AJ155,18,FALSE) -> 1.000299302e+10
B152: =IF($S$145=0,"ð","") -> ð | C152: 5 | D152: RENATO VARZEA-PE | I152: 7 | J152: 7 | K152: 2 | L152: 1 | M152: 4 | N152: 20 | O152: 27 | P152: -7 | S152: =RANK(AJ152,AJ148:AJ155,0) -> 1 | U152: =F113 -> NANDO-RJ | AC152: =BA145 -> 7 | AD152: 6 | AE152: 1 | AF152: 0 | AG152: 48 | AH152: 23 | AI152: 19 | AJ152: 1.900602505e+10 | AR152: 5 | AT152: =VLOOKUP(AR152,S148:AJ155,3,FALSE) -> RENATO VARZEA-PE | BA152: =VLOOKUP(AR152,S148:AJ155,11,FALSE) -> 7 | BB152: =VLOOKUP(AR152,S148:AJ155,12,FALSE) -> 2 | BC152: =VLOOKUP(AR152,S148:AJ155,13,FALSE) -> 1 | BD152: =VLOOKUP(AR152,S148:AJ155,14,FALSE) -> 4 | BE152: =VLOOKUP(AR152,S148:AJ155,15,FALSE) -> 20 | BF152: =VLOOKUP(AR152,S148:AJ155,16,FALSE) -> 27 | BG152: =VLOOKUP(AR152,S148:AJ155,17,FALSE) -> 7 | BH152: =VLOOKUP(AR152,S148:AJ155,18,FALSE) -> 7001993020
B153: =IF($S$145=0,"ð","") -> ð | C153: 6 | D153: ALEX BAHR-SP | I153: 7 | J153: 7 | K153: 1 | L153: 4 | M153: 2 | N153: 29 | O153: 33 | P153: -4 | S153: =RANK(AJ153,AJ148:AJ155,0) -> 8 | U153: =F114 -> WEBER-RS | AC153: =BI145 -> 7 | AD153: 0 | AE153: 1 | AF153: 6 | AG153: 17 | AH153: 36 | AI153: 1 | AJ153: 999981017.1 | AR153: 6 | AT153: =VLOOKUP(AR153,S148:AJ155,3,FALSE) -> ALEX BAHR-SP | BA153: =VLOOKUP(AR153,S148:AJ155,11,FALSE) -> 7 | BB153: =VLOOKUP(AR153,S148:AJ155,12,FALSE) -> 1 | BC153: =VLOOKUP(AR153,S148:AJ155,13,FALSE) -> 4 | BD153: =VLOOKUP(AR153,S148:AJ155,14,FALSE) -> 2 | BE153: =VLOOKUP(AR153,S148:AJ155,15,FALSE) -> 29 | BF153: =VLOOKUP(AR153,S148:AJ155,16,FALSE) -> 33 | BG153: =VLOOKUP(AR153,S148:AJ155,17,FALSE) -> 7 | BH153: =VLOOKUP(AR153,S148:AJ155,18,FALSE) -> 7000996029
B154: =IF($S$145=0,"ð","") -> ð | C154: =AR154 -> 7 | D154: CLEO JR-SP | I154: 5 | J154: 7 | K154: 1 | L154: 2 | M154: 4 | N154: 28 | O154: 35 | P154: -7 | S154: =RANK(AJ154,AJ148:AJ155,0) -> 5 | U154: =M114 -> RENATO VARZEA-PE | AC154: =BQ145 -> 7 | AD154: 2 | AE154: 1 | AF154: 4 | AG154: 20 | AH154: 27 | AI154: 7 | AJ154: 7001993020 | AR154: 7 | AT154: =VLOOKUP(AR154,S148:AJ155,3,FALSE) -> CLEO JR-SP | BA154: =VLOOKUP(AR154,S148:AJ155,11,FALSE) -> 7 | BB154: =VLOOKUP(AR154,S148:AJ155,12,FALSE) -> 1 | BC154: =VLOOKUP(AR154,S148:AJ155,13,FALSE) -> 2 | BD154: =VLOOKUP(AR154,S148:AJ155,14,FALSE) -> 4 | BE154: =VLOOKUP(AR154,S148:AJ155,15,FALSE) -> 28 | BF154: =VLOOKUP(AR154,S148:AJ155,16,FALSE) -> 35 | BG154: =VLOOKUP(AR154,S148:AJ155,17,FALSE) -> 5 | BH154: =VLOOKUP(AR154,S148:AJ155,18,FALSE) -> 5000993028
B155: =IF($S$145=0,"ð","") -> ð | C155: =AR155 -> 8 | D155: WEBER-RS | I155: 1 | J155: 7 | K155: 0 | L155: 1 | M155: 6 | N155: 17 | O155: 36 | P155: -19 | S155: =RANK(AJ155,AJ148:AJ155,0) -> 4 | U155: =M113 -> PEDRO PRANDO-PR | AC155: =BY145 -> 7 | AD155: 3 | AE155: 1 | AF155: 3 | AG155: 23 | AH155: 30 | AI155: 10 | AJ155: 1.000299302e+10 | AR155: 8 | AT155: =VLOOKUP(AR155,S148:AJ155,3,FALSE) -> WEBER-RS | BA155: =VLOOKUP(AR155,S148:AJ155,11,FALSE) -> 7 | BB155: =VLOOKUP(AR155,S148:AJ155,12,FALSE) -> 0 | BC155: =VLOOKUP(AR155,S148:AJ155,13,FALSE) -> 1 | BD155: =VLOOKUP(AR155,S148:AJ155,14,FALSE) -> 6 | BE155: =VLOOKUP(AR155,S148:AJ155,15,FALSE) -> 17 | BF155: =VLOOKUP(AR155,S148:AJ155,16,FALSE) -> 36 | BG155: =VLOOKUP(AR155,S148:AJ155,17,FALSE) -> 1 | BH155: =VLOOKUP(AR155,S148:AJ155,18,FALSE) -> 999981017.1
C157: è | D157: 1a Divisão | N157: ð | O157: 4a Divisão
C160: =$C$4 -> Adulto - 1a Divisão | Q160: =CONCATENATE("1ª Fase - ", 'G1'!$L$9) -> 1ª Fase - Grupo 4 | U160: =F163 -> THIAGO LIMA-SP | AA160: =IF(RIGHT(U160,4)="(WO)",0,1) -> 1 | AC160: =F164 -> NILO-SP | AI160: =IF(RIGHT(AC160,4)="(WO)",0,1) -> 1 | AK160: =M164 -> ALCIDES-DF | AQ160: =IF(RIGHT(AK160,4)="(WO)",0,1) -> 1 | AS160: =M163 -> FRANÇA-SP | AY160: =IF(RIGHT(AS160,4)="(WO)",0,1) -> 1 | BA160: =F165 -> ALESSANDRO-RJ | BG160: =IF(RIGHT(BA160,4)="(WO)",0,1) -> 1 | BI160: =F166 -> HELVIO-PE | BO160: =IF(RIGHT(BI160,4)="(WO)",0,1) -> 1 | BQ160: =M166 -> PEDRO GERONASSO-PR | BW160: =IF(RIGHT(BQ160,4)="(WO)",0,1) -> 1 | BY160: =M165 -> THIAGO PENNA-RJ | CE160: =IF(RIGHT(BY160,4)="(WO)",0,1) -> 1
B161: Grp | C161: Rod. | D161: Data/Hora | E161: Mesa | F161: Jogos | S161: Ok | U161: J | V161: V | W161: E | X161: D | Y161: GP | Z161: GC | AA161: PG | AC161: J | AD161: V | AE161: E | AF161: D | AG161: GP | AH161: GC | AI161: PG | AK161: J | AL161: V | AM161: E | AN161: D | AO161: GP | AP161: GC | AQ161: PG | AS161: J | AT161: V | AU161: E | AV161: D | AW161: GP | AX161: GC | AY161: PG | BA161: J | BB161: V | BC161: E | BD161: D | BE161: GP | BF161: GC | BG161: PG | BI161: J | BJ161: V | BK161: E | BL161: D | BM161: GP | BN161: GC | BO161: PG | BQ161: J | BR161: V | BS161: E | BT161: D | BU161: GP | BV161: GC | BW161: PG | BY161: J | BZ161: V | CA161: E | CB161: D | CC161: GP | CD161: GC | CE161: PG | CH161: Rodada
B163: 1 | C163: 1 | D163: 2022-06-16 | E163: 13 | F163: ='G1'!$M$10 & IF('G1'!$N$10="S"," (WO)","") -> THIAGO LIMA-SP | K163: 5 | L163: 4 | M163: ='G1'!$M$13 & IF('G1'!$N$13="S"," (WO)","") -> FRANÇA-SP | S163: =COUNTBLANK(K163:L163) -> 0 | U163: =IF(S163=0,1,0) -> 1 | V163: =IF(AND(S163=0,K163>L163),1,0)*AA160 -> 1 | W163: =IF(AND(S163=0,K163=L163),1,0)*AA160 -> 0 | X163: =U163-V163-W163 -> 0 | Y163: =K163 -> 5 | Z163: =L163 -> 4 | AA163: =((V163*3)+W163)*AA160 -> 3 | AS163: =IF(S163=0,1,0) -> 1 | AT163: =IF(AND(S163=0,L163>K163),1,0)*AY160 -> 0 | AU163: =IF(AND(S163=0,K163=L163),1,0)*AY160 -> 0 | AV163: =AS163-AT163-AU163 -> 1 | AW163: =L163 -> 4 | AX163: =K163 -> 5 | AY163: =((AT163*3)+AU163)*AY160 -> 0 | CH163: 1ª
B164: 1 | E164: =E163+1 -> 14 | F164: ='G1'!$M$11 & IF('G1'!$N$11="S"," (WO)","") -> NILO-SP | K164: 3 | L164: 5 | M164: ='G1'!$M$12 & IF('G1'!$N$12="S"," (WO)","") -> ALCIDES-DF | S164: =COUNTBLANK(K164:L164) -> 0 | AC164: =IF(S164=0,1,0) -> 1 | AD164: =IF(AND(S164=0,K164>L164),1,0)*AI160 -> 0 | AE164: =IF(AND(S164=0,K164=L164),1,0)*AI160 -> 0 | AF164: =AC164-AD164-AE164 -> 1 | AG164: =K164 -> 3 | AH164: =L164 -> 5 | AI164: =((AD164*3)+AE164)*AI160 -> 0 | AK164: =IF(S164=0,1,0) -> 1 | AL164: =IF(AND(S164=0,L164>K164),1,0)*AQ160 -> 1 | AM164: =IF(AND(S164=0,K164=L164),1,0)*AQ160 -> 0 | AN164: =AK164-AL164-AM164 -> 0 | AO164: =L164 -> 5 | AP164: =K164 -> 3 | AQ164: =((AL164*3)+AM164)*AQ160 -> 3
B165: 1 | D165: 14:00:00 | E165: =E164+1 -> 15 | F165: ='G1'!$M$14 & IF('G1'!$N$14="S"," (WO)","") -> ALESSANDRO-RJ | K165: 2 | L165: 5 | M165: ='G1'!$M$17 & IF('G1'!$N$17="S"," (WO)","") -> THIAGO PENNA-RJ | S165: =COUNTBLANK(K165:L165) -> 0 | BA165: =IF(S165=0,1,0) -> 1 | BB165: =IF(AND(S165=0,K165>L165),1,0)*BG160 -> 0 | BC165: =IF(AND(S165=0,K165=L165),1,0)*BG160 -> 0 | BD165: =BA165-BB165-BC165 -> 1 | BE165: =K165 -> 2 | BF165: =L165 -> 5 | BG165: =((BB165*3)+BC165)*BG160 -> 0 | BY165: =IF(S165=0,1,0) -> 1 | BZ165: =IF(AND(S165=0,L165>K165),1,0)*CE160 -> 1 | CA165: =IF(AND(S165=0,K165=L165),1,0)*CE160 -> 0 | CB165: =BY165-BZ165-CA165 -> 0 | CC165: =L165 -> 5 | CD165: =K165 -> 2 | CE165: =((BZ165*3)+CA165)*CE160 -> 3
B166: 1 | E166: =E165+1 -> 16 | F166: ='G1'!$M$15 & IF('G1'!$N$15="S"," (WO)","") -> HELVIO-PE | K166: 1 | L166: 4 | M166: ='G1'!$M$16 & IF('G1'!$N$16="S"," (WO)","") -> PEDRO GERONASSO-PR | S166: =COUNTBLANK(K166:L166) -> 0 | BI166: =IF(S166=0,1,0) -> 1 | BJ166: =IF(AND(S166=0,K166>L166),1,0)*BO160 -> 0 | BK166: =IF(AND(S166=0,K166=L166),1,0)*BO160 -> 0 | BL166: =BI166-BJ166-BK166 -> 1 | BM166: =K166 -> 1 | BN166: =L166 -> 4 | BO166: =((BJ166*3)+BK166)*BO160 -> 0 | BQ166: =IF(S166=0,1,0) -> 1 | BR166: =IF(AND(S166=0,L166>K166),1,0)*BW160 -> 1 | BS166: =IF(AND(S166=0,K166=L166),1,0)*BW160 -> 0 | BT166: =BQ166-BR166-BS166 -> 0 | BU166: =L166 -> 4 | BV166: =K166 -> 1 | BW166: =((BR166*3)+BS166)*BW160 -> 3
B167: 1
B168: 1 | C168: 2 | D168: =$D$7 -> 2022-06-16 | E168: 17 | F168: =F163 -> THIAGO LIMA-SP | K168: 7 | L168: 3 | M168: =M164 -> ALCIDES-DF | S168: =COUNTBLANK(K168:L168) -> 0 | U168: =IF(S168=0,1,0) -> 1 | V168: =IF(AND(S168=0,K168>L168),1,0)*AA160 -> 1 | W168: =IF(AND(S168=0,K168=L168),1,0)*AA160 -> 0 | X168: =U168-V168-W168 -> 0 | Y168: =K168 -> 7 | Z168: =L168 -> 3 | AA168: =((V168*3)+W168)*AA160 -> 3 | AK168: =IF(S168=0,1,0) -> 1 | AL168: =IF(AND(S168=0,L168>K168),1,0)*AQ160 -> 0 | AM168: =IF(AND(S168=0,K168=L168),1,0)*AQ160 -> 0 | AN168: =AK168-AL168-AM168 -> 1 | AO168: =L168 -> 3 | AP168: =K168 -> 7 | AQ168: =((AL168*3)+AM168)*AQ160 -> 0 | CH168: 2ª
B169: 1 | E169: =E168+1 -> 18 | F169: =F164 -> NILO-SP | K169: 3 | L169: 5 | M169: =M163 -> FRANÇA-SP | S169: =COUNTBLANK(K169:L169) -> 0 | AC169: =IF(S169=0,1,0) -> 1 | AD169: =IF(AND(S169=0,K169>L169),1,0)*AI160 -> 0 | AE169: =IF(AND(S169=0,K169=L169),1,0)*AI160 -> 0 | AF169: =AC169-AD169-AE169 -> 1 | AG169: =K169 -> 3 | AH169: =L169 -> 5 | AI169: =((AD169*3)+AE169)*AI160 -> 0 | AS169: =IF(S169=0,1,0) -> 1 | AT169: =IF(AND(S169=0,L169>K169),1,0)*AY160 -> 1 | AU169: =IF(AND(S169=0,K169=L169),1,0)*AY160 -> 0 | AV169: =AS169-AT169-AU169 -> 0 | AW169: =L169 -> 5 | AX169: =K169 -> 3 | AY169: =((AT169*3)+AU169)*AY160 -> 3
B170: 1 | D170: 14:30:00 | E170: =E169+1 -> 19 | F170: =F165 -> ALESSANDRO-RJ | K170: 5 | L170: 2 | M170: =M166 -> PEDRO GERONASSO-PR | S170: =COUNTBLANK(K170:L170) -> 0 | BA170: =IF(S170=0,1,0) -> 1 | BB170: =IF(AND(S170=0,K170>L170),1,0)*BG160 -> 1 | BC170: =IF(AND(S170=0,K170=L170),1,0)*BG160 -> 0 | BD170: =BA170-BB170-BC170 -> 0 | BE170: =K170 -> 5 | BF170: =L170 -> 2 | BG170: =((BB170*3)+BC170)*BG160 -> 3 | BQ170: =IF(S170=0,1,0) -> 1 | BR170: =IF(AND(S170=0,L170>K170),1,0)*BW160 -> 0 | BS170: =IF(AND(S170=0,K170=L170),1,0)*BW160 -> 0 | BT170: =BQ170-BR170-BS170 -> 1 | BU170: =L170 -> 2 | BV170: =K170 -> 5 | BW170: =((BR170*3)+BS170)*BW160 -> 0
B171: 1 | E171: =E170+1 -> 20 | F171: =F166 -> HELVIO-PE | K171: 3 | L171: 5 | M171: =M165 -> THIAGO PENNA-RJ | S171: =COUNTBLANK(K171:L171) -> 0 | BI171: =IF(S171=0,1,0) -> 1 | BJ171: =IF(AND(S171=0,K171>L171),1,0)*BO160 -> 0 | BK171: =IF(AND(S171=0,K171=L171),1,0)*BO160 -> 0 | BL171: =BI171-BJ171-BK171 -> 1 | BM171: =K171 -> 3 | BN171: =L171 -> 5 | BO171: =((BJ171*3)+BK171)*BO160 -> 0 | BY171: =IF(S171=0,1,0) -> 1 | BZ171: =IF(AND(S171=0,L171>K171),1,0)*CE160 -> 1 | CA171: =IF(AND(S171=0,K171=L171),1,0)*CE160 -> 0 | CB171: =BY171-BZ171-CA171 -> 0 | CC171: =L171 -> 5 | CD171: =K171 -> 3 | CE171: =((BZ171*3)+CA171)*CE160 -> 3
B173: 1 | C173: 3 | D173: =$D$7 -> 2022-06-16 | E173: 21 | F173: =F168 -> THIAGO LIMA-SP | K173: 5 | L173: 4 | M173: =F169 -> NILO-SP | S173: =COUNTBLANK(K173:L173) -> 0 | U173: =IF(S173=0,1,0) -> 1 | V173: =IF(AND(S173=0,K173>L173),1,0)*AA160 -> 1 | W173: =IF(AND(S173=0,K173=L173),1,0)*AA160 -> 0 | X173: =U173-V173-W173 -> 0 | Y173: =K173 -> 5 | Z173: =L173 -> 4 | AA173: =((V173*3)+W173)*AA160 -> 3 | AC173: =IF(S173=0,1,0) -> 1 | AD173: =IF(AND(S173=0,L173>K173),1,0)*AI160 -> 0 | AE173: =IF(AND(S173=0,K173=L173),1,0)*AI160 -> 0 | AF173: =AC173-AD173-AE173 -> 1 | AG173: =L173 -> 4 | AH173: =K173 -> 5 | AI173: =((AD173*3)+AE173)*AI160 -> 0 | CH173: 3ª
B174: 1 | E174: =E173+1 -> 22 | F174: =M168 -> ALCIDES-DF | K174: 0 | L174: 5 | M174: =M169 -> FRANÇA-SP | S174: =COUNTBLANK(K174:L174) -> 0 | AK174: =IF(S174=0,1,0) -> 1 | AL174: =IF(AND(S174=0,K174>L174),1,0)*AQ160 -> 0 | AM174: =IF(AND(S174=0,K174=L174),1,0)*AQ160 -> 0 | AN174: =AK174-AL174-AM174 -> 1 | AO174: =K174 -> 0 | AP174: =L174 -> 5 | AQ174: =((AL174*3)+AM174)*AQ160 -> 0 | AS174: =IF(S174=0,1,0) -> 1 | AT174: =IF(AND(S174=0,L174>K174),1,0)*AY160 -> 1 | AU174: =IF(AND(S174=0,K174=L174),1,0)*AY160 -> 0 | AV174: =AS174-AT174-AU174 -> 0 | AW174: =L174 -> 5 | AX174: =K174 -> 0 | AY174: =((AT174*3)+AU174)*AY160 -> 3
B175: 1 | D175: 15:00:00 | E175: =E174+1 -> 23 | F175: =F170 -> ALESSANDRO-RJ | K175: 4 | L175: 1 | M175: =F171 -> HELVIO-PE | S175: =COUNTBLANK(K175:L175) -> 0 | BA175: =IF(S175=0,1,0) -> 1 | BB175: =IF(AND(S175=0,K175>L175),1,0)*BG160 -> 1 | BC175: =IF(AND(S175=0,K175=L175),1,0)*BG160 -> 0 | BD175: =BA175-BB175-BC175 -> 0 | BE175: =K175 -> 4 | BF175: =L175 -> 1 | BG175: =((BB175*3)+BC175)*BG160 -> 3 | BI175: =IF(S175=0,1,0) -> 1 | BJ175: =IF(AND(S175=0,L175>K175),1,0)*BO160 -> 0 | BK175: =IF(AND(S175=0,K175=L175),1,0)*BO160 -> 0 | BL175: =BI175-BJ175-BK175 -> 1 | BM175: =L175 -> 1 | BN175: =K175 -> 4 | BO175: =((BJ175*3)+BK175)*BO160 -> 0
B176: 1 | E176: =E175+1 -> 24 | F176: =M170 -> PEDRO GERONASSO-PR | K176: 6 | L176: 1 | M176: =M171 -> THIAGO PENNA-RJ | S176: =COUNTBLANK(K176:L176) -> 0 | BQ176: =IF(S176=0,1,0) -> 1 | BR176: =IF(AND(S176=0,K176>L176),1,0)*BW160 -> 1 | BS176: =IF(AND(S176=0,K176=L176),1,0)*BW160 -> 0 | BT176: =BQ176-BR176-BS176 -> 0 | BU176: =K176 -> 6 | BV176: =L176 -> 1 | BW176: =((BR176*3)+BS176)*BW160 -> 3 | BY176: =IF(S176=0,1,0) -> 1 | BZ176: =IF(AND(S176=0,L176>K176),1,0)*CE160 -> 0 | CA176: =IF(AND(S176=0,K176=L176),1,0)*CE160 -> 0 | CB176: =BY176-BZ176-CA176 -> 1 | CC176: =L176 -> 1 | CD176: =K176 -> 6 | CE176: =((BZ176*3)+CA176)*CE160 -> 0
B178: 1 | C178: 4 | D178: =$D$7 -> 2022-06-16 | E178: 25 | F178: =F175 -> ALESSANDRO-RJ | K178: 4 | L178: 3 | M178: =M173 -> NILO-SP | S178: =COUNTBLANK(K178:L178) -> 0 | AC178: =IF(S178=0,1,0) -> 1 | AD178: =IF(AND(S178=0,L178>K178),1,0)*AI160 -> 0 | AE178: =IF(AND(S178=0,K178=L178),1,0)*AI160 -> 0 | AF178: =AC178-AD178-AE178 -> 1 | AG178: =L178 -> 3 | AH178: =K178 -> 4 | AI178: =((AD178*3)+AE178)*AI160 -> 0 | BA178: =IF(S178=0,1,0) -> 1 | BB178: =IF(AND(S178=0,K178>L178),1,0)*BG160 -> 1 | BC178: =IF(AND(S178=0,K178=L178),1,0)*BG160 -> 0 | BD178: =BA178-BB178-BC178 -> 0 | BE178: =K178 -> 4 | BF178: =L178 -> 3 | BG178: =((BB178*3)+BC178)*BG160 -> 3 | CH178: 4ª
B179: 1 | E179: =E178+1 -> 26 | F179: =M175 -> HELVIO-PE | K179: 2 | L179: 4 | M179: =F174 -> ALCIDES-DF | S179: =COUNTBLANK(K179:L179) -> 0 | AK179: =IF(S179=0,1,0) -> 1 | AL179: =IF(AND(S179=0,L179>K179),1,0)*AQ160 -> 1 | AM179: =IF(AND(S179=0,K179=L179),1,0)*AQ160 -> 0 | AN179: =AK179-AL179-AM179 -> 0 | AO179: =L179 -> 4 | AP179: =K179 -> 2 | AQ179: =((AL179*3)+AM179)*AQ160 -> 3 | BI179: =IF(S179=0,1,0) -> 1 | BJ179: =IF(AND(S179=0,K179>L179),1,0)*BO160 -> 0 | BK179: =IF(AND(S179=0,K179=L179),1,0)*BO160 -> 0 | BL179: =BI179-BJ179-BK179 -> 1 | BM179: =K179 -> 2 | BN179: =L179 -> 4 | BO179: =((BJ179*3)+BK179)*BO160 -> 0
B180: 1 | D180: 15:30:00 | E180: =E179+1 -> 27 | F180: =F176 -> PEDRO GERONASSO-PR | K180: 3 | L180: 4 | M180: =M174 -> FRANÇA-SP | S180: =COUNTBLANK(K180:L180) -> 0 | AS180: =IF(S180=0,1,0) -> 1 | AT180: =IF(AND(S180=0,L180>K180),1,0)*AY160 -> 1 | AU180: =IF(AND(S180=0,K180=L180),1,0)*AY160 -> 0 | AV180: =AS180-AT180-AU180 -> 0 | AW180: =L180 -> 4 | AX180: =K180 -> 3 | AY180: =((AT180*3)+AU180)*AY160 -> 3 | BQ180: =IF(S180=0,1,0) -> 1 | BR180: =IF(AND(S180=0,K180>L180),1,0)*BW160 -> 0 | BS180: =IF(AND(S180=0,K180=L180),1,0)*BW160 -> 0 | BT180: =BQ180-BR180-BS180 -> 1 | BU180: =K180 -> 3 | BV180: =L180 -> 4 | BW180: =((BR180*3)+BS180)*BW160 -> 0
B181: 1 | E181: =E180+1 -> 28 | F181: =M176 -> THIAGO PENNA-RJ | K181: 4 | L181: 3 | M181: =F173 -> THIAGO LIMA-SP | S181: =COUNTBLANK(K181:L181) -> 0 | U181: =IF(S181=0,1,0) -> 1 | V181: =IF(AND(S181=0,L181>K181),1,0)*AA160 -> 0 | W181: =IF(AND(S181=0,K181=L181),1,0)*AA160 -> 0 | X181: =U181-V181-W181 -> 1 | Y181: =L181 -> 3 | Z181: =K181 -> 4 | AA181: =((V181*3)+W181)*AA160 -> 0 | BY181: =IF(S181=0,1,0) -> 1 | BZ181: =IF(AND(S181=0,K181>L181),1,0)*CE160 -> 1 | CA181: =IF(AND(S181=0,K181=L181),1,0)*CE160 -> 0 | CB181: =BY181-BZ181-CA181 -> 0 | CC181: =K181 -> 4 | CD181: =L181 -> 3 | CE181: =((BZ181*3)+CA181)*CE160 -> 3
B183: 1 | C183: 5 | D183: =$D$7 -> 2022-06-16 | E183: 29 | F183: =F178 -> ALESSANDRO-RJ | K183: 7 | L183: 4 | M183: =M179 -> ALCIDES-DF | S183: =COUNTBLANK(K183:L183) -> 0 | AK183: =IF(S183=0,1,0) -> 1 | AL183: =IF(AND(S183=0,L183>K183),1,0)*AQ160 -> 0 | AM183: =IF(AND(S183=0,K183=L183),1,0)*AQ160 -> 0 | AN183: =AK183-AL183-AM183 -> 1 | AO183: =L183 -> 4 | AP183: =K183 -> 7 | AQ183: =((AL183*3)+AM183)*AQ160 -> 0 | BA183: =IF(S183=0,1,0) -> 1 | BB183: =IF(AND(S183=0,K183>L183),1,0)*BG160 -> 1 | BC183: =IF(AND(S183=0,K183=L183),1,0)*BG160 -> 0 | BD183: =BA183-BB183-BC183 -> 0 | BE183: =K183 -> 7 | BF183: =L183 -> 4 | BG183: =((BB183*3)+BC183)*BG160 -> 3 | CH183: 5ª
B184: 1 | E184: =E183+1 -> 30 | F184: =F179 -> HELVIO-PE | K184: 3 | L184: 6 | M184: =M180 -> FRANÇA-SP | S184: =COUNTBLANK(K184:L184) -> 0 | AS184: =IF(S184=0,1,0) -> 1 | AT184: =IF(AND(S184=0,L184>K184),1,0)*AY160 -> 1 | AU184: =IF(AND(S184=0,K184=L184),1,0)*AY160 -> 0 | AV184: =AS184-AT184-AU184 -> 0 | AW184: =L184 -> 6 | AX184: =K184 -> 3 | AY184: =((AT184*3)+AU184)*AY160 -> 3 | BI184: =IF(S184=0,1,0) -> 1 | BJ184: =IF(AND(S184=0,K184>L184),1,0)*BO160 -> 0 | BK184: =IF(AND(S184=0,K184=L184),1,0)*BO160 -> 0 | BL184: =BI184-BJ184-BK184 -> 1 | BM184: =K184 -> 3 | BN184: =L184 -> 6 | BO184: =((BJ184*3)+BK184)*BO160 -> 0
B185: 1 | D185: 16:00:00 | E185: =E184+1 -> 31 | F185: =F180 -> PEDRO GERONASSO-PR | K185: 5 | L185: 2 | M185: =M181 -> THIAGO LIMA-SP | S185: =COUNTBLANK(K185:L185) -> 0 | U185: =IF(S185=0,1,0) -> 1 | V185: =IF(AND(S185=0,L185>K185),1,0)*AA160 -> 0 | W185: =IF(AND(S185=0,K185=L185),1,0)*AA160 -> 0 | X185: =U185-V185-W185 -> 1 | Y185: =L185 -> 2 | Z185: =K185 -> 5 | AA185: =((V185*3)+W185)*AA160 -> 0 | BQ185: =IF(S185=0,1,0) -> 1 | BR185: =IF(AND(S185=0,K185>L185),1,0)*BW160 -> 1 | BS185: =IF(AND(S185=0,K185=L185),1,0)*BW160 -> 0 | BT185: =BQ185-BR185-BS185 -> 0 | BU185: =K185 -> 5 | BV185: =L185 -> 2 | BW185: =((BR185*3)+BS185)*BW160 -> 3
B186: 1 | E186: =E185+1 -> 32 | F186: =F181 -> THIAGO PENNA-RJ | K186: 8 | L186: 2 | M186: =M178 -> NILO-SP | S186: =COUNTBLANK(K186:L186) -> 0 | AC186: =IF(S186=0,1,0) -> 1 | AD186: =IF(AND(S186=0,L186>K186),1,0)*AI160 -> 0 | AE186: =IF(AND(S186=0,K186=L186),1,0)*AI160 -> 0 | AF186: =AC186-AD186-AE186 -> 1 | AG186: =L186 -> 2 | AH186: =K186 -> 8 | AI186: =((AD186*3)+AE186)*AI160 -> 0 | BY186: =IF(S186=0,1,0) -> 1 | BZ186: =IF(AND(S186=0,K186>L186),1,0)*CE160 -> 1 | CA186: =IF(AND(S186=0,K186=L186),1,0)*CE160 -> 0 | CB186: =BY186-BZ186-CA186 -> 0 | CC186: =K186 -> 8 | CD186: =L186 -> 2 | CE186: =((BZ186*3)+CA186)*CE160 -> 3
B188: 1 | C188: 6 | D188: =$D$7 -> 2022-06-16 | E188: 33 | F188: =F184 -> HELVIO-PE | K188: 2 | L188: 6 | M188: =M186 -> NILO-SP | S188: =COUNTBLANK(K188:L188) -> 0 | AC188: =IF(S188=0,1,0) -> 1 | AD188: =IF(AND(S188=0,L188>K188),1,0)*AI160 -> 1 | AE188: =IF(AND(S188=0,K188=L188),1,0)*AI160 -> 0 | AF188: =AC188-AD188-AE188 -> 0 | AG188: =L188 -> 6 | AH188: =K188 -> 2 | AI188: =((AD188*3)+AE188)*AI160 -> 3 | BI188: =IF(S188=0,1,0) -> 1 | BJ188: =IF(AND(S188=0,K188>L188),1,0)*BO160 -> 0 | BK188: =IF(AND(S188=0,K188=L188),1,0)*BO160 -> 0 | BL188: =BI188-BJ188-BK188 -> 1 | BM188: =K188 -> 2 | BN188: =L188 -> 6 | BO188: =((BJ188*3)+BK188)*BO160 -> 0 | CH188: 6ª
B189: 1 | E189: =E188+1 -> 34 | F189: =F183 -> ALESSANDRO-RJ | K189: 4 | L189: 2 | M189: =M185 -> THIAGO LIMA-SP | S189: =COUNTBLANK(K189:L189) -> 0 | U189: =IF(S189=0,1,0) -> 1 | V189: =IF(AND(S189=0,L189>K189),1,0)*AA160 -> 0 | W189: =IF(AND(S189=0,K189=L189),1,0)*AA160 -> 0 | X189: =U189-V189-W189 -> 1 | Y189: =L189 -> 2 | Z189: =K189 -> 4 | AA189: =((V189*3)+W189)*AA160 -> 0 | BA189: =IF(S189=0,1,0) -> 1 | BB189: =IF(AND(S189=0,K189>L189),1,0)*BG160 -> 1 | BC189: =IF(AND(S189=0,K189=L189),1,0)*BG160 -> 0 | BD189: =BA189-BB189-BC189 -> 0 | BE189: =K189 -> 4 | BF189: =L189 -> 2 | BG189: =((BB189*3)+BC189)*BG160 -> 3
B190: 1 | D190: 16:30:00 | E190: =E189+1 -> 35 | F190: =F186 -> THIAGO PENNA-RJ | K190: 5 | L190: 5 | M190: =M184 -> FRANÇA-SP | S190: =COUNTBLANK(K190:L190) -> 0 | AS190: =IF(S190=0,1,0) -> 1 | AT190: =IF(AND(S190=0,L190>K190),1,0)*AY160 -> 0 | AU190: =IF(AND(S190=0,K190=L190),1,0)*AY160 -> 1 | AV190: =AS190-AT190-AU190 -> 0 | AW190: =L190 -> 5 | AX190: =K190 -> 5 | AY190: =((AT190*3)+AU190)*AY160 -> 1 | BY190: =IF(S190=0,1,0) -> 1 | BZ190: =IF(AND(S190=0,K190>L190),1,0)*CE160 -> 0 | CA190: =IF(AND(S190=0,K190=L190),1,0)*CE160 -> 1 | CB190: =BY190-BZ190-CA190 -> 0 | CC190: =K190 -> 5 | CD190: =L190 -> 5 | CE190: =((BZ190*3)+CA190)*CE160 -> 1
B191: 1 | E191: =E190+1 -> 36 | F191: =F185 -> PEDRO GERONASSO-PR | K191: 4 | L191: 5 | M191: =M183 -> ALCIDES-DF | S191: =COUNTBLANK(K191:L191) -> 0 | AK191: =IF(S191=0,1,0) -> 1 | AL191: =IF(AND(S191=0,L191>K191),1,0)*AQ160 -> 1 | AM191: =IF(AND(S191=0,K191=L191),1,0)*AQ160 -> 0 | AN191: =AK191-AL191-AM191 -> 0 | AO191: =L191 -> 5 | AP191: =K191 -> 4 | AQ191: =((AL191*3)+AM191)*AQ160 -> 3 | BQ191: =IF(S191=0,1,0) -> 1 | BR191: =IF(AND(S191=0,K191>L191),1,0)*BW160 -> 0 | BS191: =IF(AND(S191=0,K191=L191),1,0)*BW160 -> 0 | BT191: =BQ191-BR191-BS191 -> 1 | BU191: =K191 -> 4 | BV191: =L191 -> 5 | BW191: =((BR191*3)+BS191)*BW160 -> 0
B193: 1 | C193: 7 | D193: =$D$7 -> 2022-06-16 | E193: 37 | F193: =F190 -> THIAGO PENNA-RJ | K193: 7 | L193: 5 | M193: =M191 -> ALCIDES-DF | S193: =COUNTBLANK(K193:L193) -> 0 | AK193: =IF(S193=0,1,0) -> 1 | AL193: =IF(AND(S193=0,L193>K193),1,0)*AQ160 -> 0 | AM193: =IF(AND(S193=0,K193=L193),1,0)*AQ160 -> 0 | AN193: =AK193-AL193-AM193 -> 1 | AO193: =L193 -> 5 | AP193: =K193 -> 7 | AQ193: =((AL193*3)+AM193)*AQ160 -> 0 | BY193: =IF(S193=0,1,0) -> 1 | BZ193: =IF(AND(S193=0,K193>L193),1,0)*CE160 -> 1 | CA193: =IF(AND(S193=0,K193=L193),1,0)*CE160 -> 0 | CB193: =BY193-BZ193-CA193 -> 0 | CC193: =K193 -> 7 | CD193: =L193 -> 5 | CE193: =((BZ193*3)+CA193)*CE160 -> 3 | CH193: 7ª
B194: 1 | E194: =E193+1 -> 38 | F194: =F188 -> HELVIO-PE | K194: 0 | L194: 8 | M194: =M189 -> THIAGO LIMA-SP | S194: =COUNTBLANK(K194:L194) -> 0 | U194: =IF(S194=0,1,0) -> 1 | V194: =IF(AND(S194=0,L194>K194),1,0)*AA160 -> 1 | W194: =IF(AND(S194=0,K194=L194),1,0)*AA160 -> 0 | X194: =U194-V194-W194 -> 0 | Y194: =L194 -> 8 | Z194: =K194 -> 0 | AA194: =((V194*3)+W194)*AA160 -> 3 | BI194: =IF(S194=0,1,0) -> 1 | BJ194: =IF(AND(S194=0,K194>L194),1,0)*BO160 -> 0 | BK194: =IF(AND(S194=0,K194=L194),1,0)*BO160 -> 0 | BL194: =BI194-BJ194-BK194 -> 1 | BM194: =K194 -> 0 | BN194: =L194 -> 8 | BO194: =((BJ194*3)+BK194)*BO160 -> 0
B195: 1 | D195: 17:00:00 | E195: =E194+1 -> 39 | F195: =F191 -> PEDRO GERONASSO-PR | K195: 8 | L195: 9 | M195: =M188 -> NILO-SP | S195: =COUNTBLANK(K195:L195) -> 0 | AC195: =IF(S195=0,1,0) -> 1 | AD195: =IF(AND(S195=0,L195>K195),1,0)*AI160 -> 1 | AE195: =IF(AND(S195=0,K195=L195),1,0)*AI160 -> 0 | AF195: =AC195-AD195-AE195 -> 0 | AG195: =L195 -> 9 | AH195: =K195 -> 8 | AI195: =((AD195*3)+AE195)*AI160 -> 3 | BQ195: =IF(S195=0,1,0) -> 1 | BR195: =IF(AND(S195=0,K195>L195),1,0)*BW160 -> 0 | BS195: =IF(AND(S195=0,K195=L195),1,0)*BW160 -> 0 | BT195: =BQ195-BR195-BS195 -> 1 | BU195: =K195 -> 8 | BV195: =L195 -> 9 | BW195: =((BR195*3)+BS195)*BW160 -> 0
B196: 1 | E196: =E195+1 -> 40 | F196: =F189 -> ALESSANDRO-RJ | K196: 6 | L196: 5 | M196: =M190 -> FRANÇA-SP | S196: =COUNTBLANK(K196:L196) -> 0 | AS196: =IF(S196=0,1,0) -> 1 | AT196: =IF(AND(S196=0,L196>K196),1,0)*AY160 -> 0 | AU196: =IF(AND(S196=0,K196=L196),1,0)*AY160 -> 0 | AV196: =AS196-AT196-AU196 -> 1 | AW196: =L196 -> 5 | AX196: =K196 -> 6 | AY196: =((AT196*3)+AU196)*AY160 -> 0 | BA196: =IF(S196=0,1,0) -> 1 | BB196: =IF(AND(S196=0,K196>L196),1,0)*BG160 -> 1 | BC196: =IF(AND(S196=0,K196=L196),1,0)*BG160 -> 0 | BD196: =BA196-BB196-BC196 -> 0 | BE196: =K196 -> 6 | BF196: =L196 -> 5 | BG196: =((BB196*3)+BC196)*BG160 -> 3
S197: =SUM(S163:S196) -> 0 | U197: =SUM(U163:U196) -> 7 | V197: 4 | W197: 0 | X197: 3 | Y197: 32 | Z197: 24 | AA197: 12 | AC197: =SUM(AC163:AC196) -> 7 | AD197: 2 | AE197: 0 | AF197: 5 | AG197: 30 | AH197: 37 | AI197: 6 | AK197: =SUM(AK163:AK196) -> 7 | AL197: 3 | AM197: 0 | AN197: 4 | AO197: 26 | AP197: 35 | AQ197: 9 | AS197: =SUM(AS163:AS196) -> 7 | AT197: 4 | AU197: 1 | AV197: 2 | AW197: 34 | AX197: 25 | AY197: 13 | BA197: =SUM(BA163:BA196) -> 7 | BB197: 6 | BC197: 0 | BD197: 1 | BE197: 32 | BF197: 22 | BG197: 18 | BI197: =SUM(BI163:BI196) -> 7 | BJ197: 0 | BK197: 0 | BL197: 7 | BM197: 12 | BN197: 37 | BO197: 0 | BQ197: =SUM(BQ163:BQ196) -> 7 | BR197: 3 | BS197: 0 | BT197: 4 | BU197: 32 | BV197: 27 | BW197: 9 | BY197: =SUM(BY163:BY196) -> 7 | BZ197: 5 | CA197: 1 | CB197: 1 | CC197: 35 | CD197: 26 | CE197: 16
C199: Class | D199: Botonistas | I199: PG | J199: J | K199: V | L199: E | M199: D | N199: GP | O199: GC | P199: SG | Q199: Sorteio | S199: Cl | U199: Botonista | AC199: J | AD199: V | AE199: E | AF199: D | AG199: GP | AH199: GC | AI199: PG | AJ199: Chave Sort | AR199: Cl | AT199: Botonista | BA199: J | BB199: V | BC199: E | BD199: D | BE199: GP | BF199: GC | BG199: PG | BH199: Chave Sort
B200: =IF($S$197=0,"è","") -> è | C200: =AR200 -> 1 | D200: =AT200 -> ALESSANDRO-RJ | I200: =BG200 -> 18 | J200: =BA200 -> 7 | K200: 6 | L200: 0 | M200: 1 | N200: 32 | O200: 22 | P200: =N200-O200 -> 10 | Q200: =IF(INT(BH200)=INT(BH201),ASC(CHAR(252)),"") ->  | S200: =RANK(AJ200,AJ200:AJ207,0) -> 4 | U200: =F163 -> THIAGO LIMA-SP | AC200: =U197 -> 7 | AD200: 4 | AE200: 0 | AF200: 3 | AG200: 32 | AH200: 24 | AI200: 12 | AJ200: =(AI200*1000000000)+(AD200*1000000)+((AG200-AH200)*1000)+AG200+AR200/100 -> 1.200400803e+10 | AR200: 1 | AT200: =VLOOKUP(AR200,S200:AJ207,3,FALSE) -> ALESSANDRO-RJ | BA200: =VLOOKUP(AR200,S200:AJ207,11,FALSE) -> 7 | BB200: =VLOOKUP(AR200,S200:AJ207,12,FALSE) -> 6 | BC200: =VLOOKUP(AR200,S200:AJ207,13,FALSE) -> 0 | BD200: =VLOOKUP(AR200,S200:AJ207,14,FALSE) -> 1 | BE200: =VLOOKUP(AR200,S200:AJ207,15,FALSE) -> 32 | BF200: =VLOOKUP(AR200,S200:AJ207,16,FALSE) -> 22 | BG200: =VLOOKUP(AR200,S200:AJ207,17,FALSE) -> 18 | BH200: =VLOOKUP(AR200,S200:AJ207,18,FALSE) -> 1.800601003e+10 | BI200: =VLOOKUP($AR200,$S$37:$AI$42,17,FALSE) -> 
B201: =IF($S$197=0,"è","") -> è | C201: 2 | D201: =AT201 -> THIAGO PENNA-RJ | I201: 16 | J201: 7 | K201: 5 | L201: 1 | M201: 1 | N201: 35 | O201: 26 | P201: 9 | Q201: =IF(OR(INT(BH201)=INT(BH200),INT(BH202)=INT(BH201)),ASC(CHAR(252)),"") ->  | S201: =RANK(AJ201,AJ200:AJ207,0) -> 7 | U201: =F164 -> NILO-SP | AC201: =AC197 -> 7 | AD201: 2 | AE201: 0 | AF201: 5 | AG201: 30 | AH201: 37 | AI201: 6 | AJ201: 6001993030 | AR201: 2 | AT201: =VLOOKUP(AR201,S200:AJ207,3,FALSE) -> THIAGO PENNA-RJ | BA201: =VLOOKUP(AR201,S200:AJ207,11,FALSE) -> 7 | BB201: =VLOOKUP(AR201,S200:AJ207,12,FALSE) -> 5 | BC201: =VLOOKUP(AR201,S200:AJ207,13,FALSE) -> 1 | BD201: =VLOOKUP(AR201,S200:AJ207,14,FALSE) -> 1 | BE201: =VLOOKUP(AR201,S200:AJ207,15,FALSE) -> 35 | BF201: =VLOOKUP(AR201,S200:AJ207,16,FALSE) -> 26 | BG201: =VLOOKUP(AR201,S200:AJ207,17,FALSE) -> 16 | BH201: =VLOOKUP(AR201,S200:AJ207,18,FALSE) -> 1.600500904e+10
B202: =IF($S$197=0,"è","") -> è | C202: 3 | D202: FRANÇA-SP | I202: 13 | J202: 7 | K202: 4 | L202: 1 | M202: 2 | N202: 34 | O202: 25 | P202: 9 | S202: =RANK(AJ202,AJ200:AJ207,0) -> 6 | U202: =M164 -> ALCIDES-DF | AC202: =AK197 -> 7 | AD202: =AL197 -> 3 | AE202: =AM197 -> 0 | AF202: =AN197 -> 4 | AG202: =AO197 -> 26 | AH202: =AP197 -> 35 | AI202: =AQ197 -> 9 | AJ202: 9002991026 | AR202: 3 | AT202: =VLOOKUP(AR202,S200:AJ207,3,FALSE) -> FRANÇA-SP | BA202: =VLOOKUP(AR202,S200:AJ207,11,FALSE) -> 7 | BB202: =VLOOKUP(AR202,S200:AJ207,12,FALSE) -> 4 | BC202: =VLOOKUP(AR202,S200:AJ207,13,FALSE) -> 1 | BD202: =VLOOKUP(AR202,S200:AJ207,14,FALSE) -> 2 | BE202: =VLOOKUP(AR202,S200:AJ207,15,FALSE) -> 34 | BF202: =VLOOKUP(AR202,S200:AJ207,16,FALSE) -> 25 | BG202: =VLOOKUP(AR202,S200:AJ207,17,FALSE) -> 13 | BH202: =VLOOKUP(AR202,S200:AJ207,18,FALSE) -> 1.300400903e+10
B203: =IF($S$197=0,"è","") -> è | C203: 4 | D203: THIAGO LIMA-SP | I203: 12 | J203: 7 | K203: 4 | L203: 0 | M203: 3 | N203: 32 | O203: 24 | P203: 8 | S203: =RANK(AJ203,AJ200:AJ207,0) -> 3 | U203: =M163 -> FRANÇA-SP | AC203: =AS197 -> 7 | AD203: =AT197 -> 4 | AE203: =AU197 -> 1 | AF203: =AV197 -> 2 | AG203: =AW197 -> 34 | AH203: =AX197 -> 25 | AI203: =AY197 -> 13 | AJ203: 1.300400903e+10 | AR203: 4 | AT203: =VLOOKUP(AR203,S200:AJ207,3,FALSE) -> THIAGO LIMA-SP | BA203: =VLOOKUP(AR203,S200:AJ207,11,FALSE) -> 7 | BB203: =VLOOKUP(AR203,S200:AJ207,12,FALSE) -> 4 | BC203: =VLOOKUP(AR203,S200:AJ207,13,FALSE) -> 0 | BD203: =VLOOKUP(AR203,S200:AJ207,14,FALSE) -> 3 | BE203: =VLOOKUP(AR203,S200:AJ207,15,FALSE) -> 32 | BF203: =VLOOKUP(AR203,S200:AJ207,16,FALSE) -> 24 | BG203: =VLOOKUP(AR203,S200:AJ207,17,FALSE) -> 12 | BH203: =VLOOKUP(AR203,S200:AJ207,18,FALSE) -> 1.200400803e+10
B204: =IF($S$197=0,"ð","") -> ð | C204: 5 | D204: PEDRO GERONASSO-PR | I204: 9 | J204: 7 | K204: 3 | L204: 0 | M204: 4 | N204: 32 | O204: 27 | P204: 5 | S204: =RANK(AJ204,AJ200:AJ207,0) -> 1 | U204: =F165 -> ALESSANDRO-RJ | AC204: =BA197 -> 7 | AD204: =BB197 -> 6 | AE204: =BC197 -> 0 | AF204: =BD197 -> 1 | AG204: =BE197 -> 32 | AH204: =BF197 -> 22 | AI204: =BG197 -> 18 | AJ204: 1.800601003e+10 | AR204: 5 | AT204: =VLOOKUP(AR204,S200:AJ207,3,FALSE) -> PEDRO GERONASSO-PR | BA204: =VLOOKUP(AR204,S200:AJ207,11,FALSE) -> 7 | BB204: =VLOOKUP(AR204,S200:AJ207,12,FALSE) -> 3 | BC204: =VLOOKUP(AR204,S200:AJ207,13,FALSE) -> 0 | BD204: =VLOOKUP(AR204,S200:AJ207,14,FALSE) -> 4 | BE204: =VLOOKUP(AR204,S200:AJ207,15,FALSE) -> 32 | BF204: =VLOOKUP(AR204,S200:AJ207,16,FALSE) -> 27 | BG204: =VLOOKUP(AR204,S200:AJ207,17,FALSE) -> 9 | BH204: =VLOOKUP(AR204,S200:AJ207,18,FALSE) -> 9003005032
B205: =IF($S$197=0,"ð","") -> ð | C205: 6 | D205: ALCIDES-DF | I205: 9 | J205: 7 | K205: 3 | L205: 0 | M205: 4 | N205: 26 | O205: 35 | P205: -9 | S205: =RANK(AJ205,AJ200:AJ207,0) -> 8 | U205: =F166 -> HELVIO-PE | AC205: =BI197 -> 7 | AD205: =BJ197 -> 0 | AE205: =BK197 -> 0 | AF205: =BL197 -> 7 | AG205: =BM197 -> 12 | AH205: =BN197 -> 37 | AI205: =BO197 -> 0 | AJ205: -24987.94 | AR205: 6 | AT205: =VLOOKUP(AR205,S200:AJ207,3,FALSE) -> ALCIDES-DF | BA205: =VLOOKUP(AR205,S200:AJ207,11,FALSE) -> 7 | BB205: =VLOOKUP(AR205,S200:AJ207,12,FALSE) -> 3 | BC205: =VLOOKUP(AR205,S200:AJ207,13,FALSE) -> 0 | BD205: =VLOOKUP(AR205,S200:AJ207,14,FALSE) -> 4 | BE205: =VLOOKUP(AR205,S200:AJ207,15,FALSE) -> 26 | BF205: =VLOOKUP(AR205,S200:AJ207,16,FALSE) -> 35 | BG205: =VLOOKUP(AR205,S200:AJ207,17,FALSE) -> 9 | BH205: =VLOOKUP(AR205,S200:AJ207,18,FALSE) -> 9002991026
B206: =IF($S$197=0,"ð","") -> ð | C206: =AR206 -> 7 | D206: NILO-SP | I206: 6 | J206: 7 | K206: 2 | L206: 0 | M206: 5 | N206: 30 | O206: 37 | P206: -7 | S206: =RANK(AJ206,AJ200:AJ207,0) -> 5 | U206: =M166 -> PEDRO GERONASSO-PR | AC206: =BQ197 -> 7 | AD206: =BR197 -> 3 | AE206: =BS197 -> 0 | AF206: =BT197 -> 4 | AG206: =BU197 -> 32 | AH206: =BV197 -> 27 | AI206: =BW197 -> 9 | AJ206: 9003005032 | AR206: 7 | AT206: =VLOOKUP(AR206,S200:AJ207,3,FALSE) -> NILO-SP | BA206: =VLOOKUP(AR206,S200:AJ207,11,FALSE) -> 7 | BB206: =VLOOKUP(AR206,S200:AJ207,12,FALSE) -> 2 | BC206: =VLOOKUP(AR206,S200:AJ207,13,FALSE) -> 0 | BD206: =VLOOKUP(AR206,S200:AJ207,14,FALSE) -> 5 | BE206: =VLOOKUP(AR206,S200:AJ207,15,FALSE) -> 30 | BF206: =VLOOKUP(AR206,S200:AJ207,16,FALSE) -> 37 | BG206: =VLOOKUP(AR206,S200:AJ207,17,FALSE) -> 6 | BH206: =VLOOKUP(AR206,S200:AJ207,18,FALSE) -> 6001993030
B207: =IF($S$197=0,"ð","") -> ð | C207: =AR207 -> 8 | D207: HELVIO-PE | I207: 0 | J207: 7 | K207: 0 | L207: 0 | M207: 7 | N207: 12 | O207: 37 | P207: -25 | S207: =RANK(AJ207,AJ200:AJ207,0) -> 2 | U207: =M165 -> THIAGO PENNA-RJ | AC207: =BY197 -> 7 | AD207: =BZ197 -> 5 | AE207: =CA197 -> 1 | AF207: =CB197 -> 1 | AG207: =CC197 -> 35 | AH207: =CD197 -> 26 | AI207: =CE197 -> 16 | AJ207: 1.600500904e+10 | AR207: 8 | AT207: =VLOOKUP(AR207,S200:AJ207,3,FALSE) -> HELVIO-PE | BA207: =VLOOKUP(AR207,S200:AJ207,11,FALSE) -> 7 | BB207: =VLOOKUP(AR207,S200:AJ207,12,FALSE) -> 0 | BC207: =VLOOKUP(AR207,S200:AJ207,13,FALSE) -> 0 | BD207: =VLOOKUP(AR207,S200:AJ207,14,FALSE) -> 7 | BE207: =VLOOKUP(AR207,S200:AJ207,15,FALSE) -> 12 | BF207: =VLOOKUP(AR207,S200:AJ207,16,FALSE) -> 37 | BG207: =VLOOKUP(AR207,S200:AJ207,17,FALSE) -> 0 | BH207: =VLOOKUP(AR207,S200:AJ207,18,FALSE) -> -24987.94
C209: è | D209: 1a Divisão | N209: ð | O209: 4a Divisão
C212: =$C$4 -> Adulto - 1a Divisão | Q212: =CONCATENATE("1ª Fase - ", 'G1'!$C$19) -> 1ª Fase - Grupo 5 | U212: =F215 -> VICTOR VAROLI-SP | AA212: =IF(RIGHT(U212,4)="(WO)",0,1) -> 1 | AC212: =F216 -> ESPEL-SP | AI212: =IF(RIGHT(AC212,4)="(WO)",0,1) -> 1 | AK212: =M216 -> CHICONES-DF | AQ212: =IF(RIGHT(AK212,4)="(WO)",0,1) -> 1 | AS212: =M215 -> RODRIGO MORO-SP | AY212: =IF(RIGHT(AS212,4)="(WO)",0,1) -> 1 | BA212: =F217 -> IGOR-RJ | BG212: =IF(RIGHT(BA212,4)="(WO)",0,1) -> 1 | BI212: =F218 -> MARCO AURELIO-PB | BO212: =IF(RIGHT(BI212,4)="(WO)",0,1) -> 1 | BQ212: =M218 -> ADONES-PE | BW212: =IF(RIGHT(BQ212,4)="(WO)",0,1) -> 1 | BY212: =M217 -> LUCAS JAKA-PR | CE212: =IF(RIGHT(BY212,4)="(WO)",0,1) -> 1
B213: Grp | C213: Rod. | D213: Data/Hora | E213: Mesa | F213: Jogos | S213: Ok | U213: J | V213: V | W213: E | X213: D | Y213: GP | Z213: GC | AA213: PG | AC213: J | AD213: V | AE213: E | AF213: D | AG213: GP | AH213: GC | AI213: PG | AK213: J | AL213: V | AM213: E | AN213: D | AO213: GP | AP213: GC | AQ213: PG | AS213: J | AT213: V | AU213: E | AV213: D | AW213: GP | AX213: GC | AY213: PG | BA213: J | BB213: V | BC213: E | BD213: D | BE213: GP | BF213: GC | BG213: PG | BI213: J | BJ213: V | BK213: E | BL213: D | BM213: GP | BN213: GC | BO213: PG | BQ213: J | BR213: V | BS213: E | BT213: D | BU213: GP | BV213: GC | BW213: PG | BY213: J | BZ213: V | CA213: E | CB213: D | CC213: GP | CD213: GC | CE213: PG | CH213: Rodada
B215: 1 | C215: 1 | D215: 2022-06-16 | E215: 17 | F215: ='G1'!$D$20 & IF('G1'!$E$20="S"," (WO)","") -> VICTOR VAROLI-SP | K215: 6 | L215: 5 | M215: ='G1'!$D$23 & IF('G1'!$E$23="S"," (WO)","") -> RODRIGO MORO-SP | S215: =COUNTBLANK(K215:L215) -> 0 | U215: =IF(S215=0,1,0) -> 1 | V215: =IF(AND(S215=0,K215>L215),1,0)*AA212 -> 1 | W215: =IF(AND(S215=0,K215=L215),1,0)*AA212 -> 0 | X215: =U215-V215-W215 -> 0 | Y215: =K215 -> 6 | Z215: =L215 -> 5 | AA215: =((V215*3)+W215)*AA212 -> 3 | AS215: =IF(S215=0,1,0) -> 1 | AT215: =IF(AND(S215=0,L215>K215),1,0)*AY212 -> 0 | AU215: =IF(AND(S215=0,K215=L215),1,0)*AY212 -> 0 | AV215: =AS215-AT215-AU215 -> 1 | AW215: =L215 -> 5 | AX215: =K215 -> 6 | AY215: =((AT215*3)+AU215)*AY212 -> 0 | CH215: 1ª
B216: 1 | E216: =E215+1 -> 18 | F216: ='G1'!$D$21 & IF('G1'!$E$21="S"," (WO)","") -> ESPEL-SP | K216: 7 | L216: 1 | M216: ='G1'!$D$22 & IF('G1'!$E$22="S"," (WO)","") -> CHICONES-DF | S216: =COUNTBLANK(K216:L216) -> 0 | AC216: =IF(S216=0,1,0) -> 1 | AD216: =IF(AND(S216=0,K216>L216),1,0)*AI212 -> 1 | AE216: =IF(AND(S216=0,K216=L216),1,0)*AI212 -> 0 | AF216: =AC216-AD216-AE216 -> 0 | AG216: =K216 -> 7 | AH216: =L216 -> 1 | AI216: =((AD216*3)+AE216)*AI212 -> 3 | AK216: =IF(S216=0,1,0) -> 1 | AL216: =IF(AND(S216=0,L216>K216),1,0)*AQ212 -> 0 | AM216: =IF(AND(S216=0,K216=L216),1,0)*AQ212 -> 0 | AN216: =AK216-AL216-AM216 -> 1 | AO216: =L216 -> 1 | AP216: =K216 -> 7 | AQ216: =((AL216*3)+AM216)*AQ212 -> 0
B217: 1 | D217: 14:00:00 | E217: =E216+1 -> 19 | F217: ='G1'!$D$24 & IF('G1'!$E$24="S"," (WO)","") -> IGOR-RJ | K217: 6 | L217: 1 | M217: ='G1'!$D$27 & IF('G1'!$E$27="S"," (WO)","") -> LUCAS JAKA-PR | S217: =COUNTBLANK(K217:L217) -> 0 | BA217: =IF(S217=0,1,0) -> 1 | BB217: =IF(AND(S217=0,K217>L217),1,0)*BG212 -> 1 | BC217: =IF(AND(S217=0,K217=L217),1,0)*BG212 -> 0 | BD217: =BA217-BB217-BC217 -> 0 | BE217: =K217 -> 6 | BF217: =L217 -> 1 | BG217: =((BB217*3)+BC217)*BG212 -> 3 | BY217: =IF(S217=0,1,0) -> 1 | BZ217: =IF(AND(S217=0,L217>K217),1,0)*CE212 -> 0 | CA217: =IF(AND(S217=0,K217=L217),1,0)*CE212 -> 0 | CB217: =BY217-BZ217-CA217 -> 1 | CC217: =L217 -> 1 | CD217: =K217 -> 6 | CE217: =((BZ217*3)+CA217)*CE212 -> 0
B218: 1 | E218: =E217+1 -> 20 | F218: ='G1'!$D$25 & IF('G1'!$E$25="S"," (WO)","") -> MARCO AURELIO-PB | K218: 2 | L218: 4 | M218: ='G1'!$D$26 & IF('G1'!$E$26="S"," (WO)","") -> ADONES-PE | S218: =COUNTBLANK(K218:L218) -> 0 | BI218: =IF(S218=0,1,0) -> 1 | BJ218: =IF(AND(S218=0,K218>L218),1,0)*BO212 -> 0 | BK218: =IF(AND(S218=0,K218=L218),1,0)*BO212 -> 0 | BL218: =BI218-BJ218-BK218 -> 1 | BM218: =K218 -> 2 | BN218: =L218 -> 4 | BO218: =((BJ218*3)+BK218)*BO212 -> 0 | BQ218: =IF(S218=0,1,0) -> 1 | BR218: =IF(AND(S218=0,L218>K218),1,0)*BW212 -> 1 | BS218: =IF(AND(S218=0,K218=L218),1,0)*BW212 -> 0 | BT218: =BQ218-BR218-BS218 -> 0 | BU218: =L218 -> 4 | BV218: =K218 -> 2 | BW218: =((BR218*3)+BS218)*BW212 -> 3
B219: 1
B220: 1 | C220: 2 | D220: =$D$7 -> 2022-06-16 | E220: 21 | F220: =F215 -> VICTOR VAROLI-SP | K220: 8 | L220: 3 | M220: =M216 -> CHICONES-DF | S220: =COUNTBLANK(K220:L220) -> 0 | U220: =IF(S220=0,1,0) -> 1 | V220: =IF(AND(S220=0,K220>L220),1,0)*AA212 -> 1 | W220: =IF(AND(S220=0,K220=L220),1,0)*AA212 -> 0 | X220: =U220-V220-W220 -> 0 | Y220: =K220 -> 8 | Z220: =L220 -> 3 | AA220: =((V220*3)+W220)*AA212 -> 3 | AK220: =IF(S220=0,1,0) -> 1 | AL220: =IF(AND(S220=0,L220>K220),1,0)*AQ212 -> 0 | AM220: =IF(AND(S220=0,K220=L220),1,0)*AQ212 -> 0 | AN220: =AK220-AL220-AM220 -> 1 | AO220: =L220 -> 3 | AP220: =K220 -> 8 | AQ220: =((AL220*3)+AM220)*AQ212 -> 0 | CH220: 2ª
B221: 1 | E221: =E220+1 -> 22 | F221: =F216 -> ESPEL-SP | K221: 3 | L221: 9 | M221: =M215 -> RODRIGO MORO-SP | S221: =COUNTBLANK(K221:L221) -> 0 | AC221: =IF(S221=0,1,0) -> 1 | AD221: =IF(AND(S221=0,K221>L221),1,0)*AI212 -> 0 | AE221: =IF(AND(S221=0,K221=L221),1,0)*AI212 -> 0 | AF221: =AC221-AD221-AE221 -> 1 | AG221: =K221 -> 3 | AH221: =L221 -> 9 | AI221: =((AD221*3)+AE221)*AI212 -> 0 | AS221: =IF(S221=0,1,0) -> 1 | AT221: =IF(AND(S221=0,L221>K221),1,0)*AY212 -> 1 | AU221: =IF(AND(S221=0,K221=L221),1,0)*AY212 -> 0 | AV221: =AS221-AT221-AU221 -> 0 | AW221: =L221 -> 9 | AX221: =K221 -> 3 | AY221: =((AT221*3)+AU221)*AY212 -> 3
B222: 1 | D222: 14:30:00 | E222: =E221+1 -> 23 | F222: =F217 -> IGOR-RJ | K222: 6 | L222: 6 | M222: =M218 -> ADONES-PE | S222: =COUNTBLANK(K222:L222) -> 0 | BA222: =IF(S222=0,1,0) -> 1 | BB222: =IF(AND(S222=0,K222>L222),1,0)*BG212 -> 0 | BC222: =IF(AND(S222=0,K222=L222),1,0)*BG212 -> 1 | BD222: =BA222-BB222-BC222 -> 0 | BE222: =K222 -> 6 | BF222: =L222 -> 6 | BG222: =((BB222*3)+BC222)*BG212 -> 1 | BQ222: =IF(S222=0,1,0) -> 1 | BR222: =IF(AND(S222=0,L222>K222),1,0)*BW212 -> 0 | BS222: =IF(AND(S222=0,K222=L222),1,0)*BW212 -> 1 | BT222: =BQ222-BR222-BS222 -> 0 | BU222: =L222 -> 6 | BV222: =K222 -> 6 | BW222: =((BR222*3)+BS222)*BW212 -> 1
B223: 1 | E223: =E222+1 -> 24 | F223: =F218 -> MARCO AURELIO-PB | K223: 0 | L223: 7 | M223: =M217 -> LUCAS JAKA-PR | S223: =COUNTBLANK(K223:L223) -> 0 | BI223: =IF(S223=0,1,0) -> 1 | BJ223: =IF(AND(S223=0,K223>L223),1,0)*BO212 -> 0 | BK223: =IF(AND(S223=0,K223=L223),1,0)*BO212 -> 0 | BL223: =BI223-BJ223-BK223 -> 1 | BM223: =K223 -> 0 | BN223: =L223 -> 7 | BO223: =((BJ223*3)+BK223)*BO212 -> 0 | BY223: =IF(S223=0,1,0) -> 1 | BZ223: =IF(AND(S223=0,L223>K223),1,0)*CE212 -> 1 | CA223: =IF(AND(S223=0,K223=L223),1,0)*CE212 -> 0 | CB223: =BY223-BZ223-CA223 -> 0 | CC223: =L223 -> 7 | CD223: =K223 -> 0 | CE223: =((BZ223*3)+CA223)*CE212 -> 3
B225: 1 | C225: 3 | D225: =$D$7 -> 2022-06-16 | E225: 25 | F225: =F220 -> VICTOR VAROLI-SP | K225: 4 | L225: 8 | M225: =F221 -> ESPEL-SP | S225: =COUNTBLANK(K225:L225) -> 0 | U225: =IF(S225=0,1,0) -> 1 | V225: =IF(AND(S225=0,K225>L225),1,0)*AA212 -> 0 | W225: =IF(AND(S225=0,K225=L225),1,0)*AA212 -> 0 | X225: =U225-V225-W225 -> 1 | Y225: =K225 -> 4 | Z225: =L225 -> 8 | AA225: =((V225*3)+W225)*AA212 -> 0 | AC225: =IF(S225=0,1,0) -> 1 | AD225: =IF(AND(S225=0,L225>K225),1,0)*AI212 -> 1 | AE225: =IF(AND(S225=0,K225=L225),1,0)*AI212 -> 0 | AF225: =AC225-AD225-AE225 -> 0 | AG225: =L225 -> 8 | AH225: =K225 -> 4 | AI225: =((AD225*3)+AE225)*AI212 -> 3 | CH225: 3ª
B226: 1 | E226: =E225+1 -> 26 | F226: =M220 -> CHICONES-DF | K226: 4 | L226: 9 | M226: =M221 -> RODRIGO MORO-SP | S226: =COUNTBLANK(K226:L226) -> 0 | AK226: =IF(S226=0,1,0) -> 1 | AL226: =IF(AND(S226=0,K226>L226),1,0)*AQ212 -> 0 | AM226: =IF(AND(S226=0,K226=L226),1,0)*AQ212 -> 0 | AN226: =AK226-AL226-AM226 -> 1 | AO226: =K226 -> 4 | AP226: =L226 -> 9 | AQ226: =((AL226*3)+AM226)*AQ212 -> 0 | AS226: =IF(S226=0,1,0) -> 1 | AT226: =IF(AND(S226=0,L226>K226),1,0)*AY212 -> 1 | AU226: =IF(AND(S226=0,K226=L226),1,0)*AY212 -> 0 | AV226: =AS226-AT226-AU226 -> 0 | AW226: =L226 -> 9 | AX226: =K226 -> 4 | AY226: =((AT226*3)+AU226)*AY212 -> 3
B227: 1 | D227: 15:00:00 | E227: =E226+1 -> 27 | F227: =F222 -> IGOR-RJ | K227: 6 | L227: 3 | M227: =F223 -> MARCO AURELIO-PB | S227: =COUNTBLANK(K227:L227) -> 0 | BA227: =IF(S227=0,1,0) -> 1 | BB227: =IF(AND(S227=0,K227>L227),1,0)*BG212 -> 1 | BC227: =IF(AND(S227=0,K227=L227),1,0)*BG212 -> 0 | BD227: =BA227-BB227-BC227 -> 0 | BE227: =K227 -> 6 | BF227: =L227 -> 3 | BG227: =((BB227*3)+BC227)*BG212 -> 3 | BI227: =IF(S227=0,1,0) -> 1 | BJ227: =IF(AND(S227=0,L227>K227),1,0)*BO212 -> 0 | BK227: =IF(AND(S227=0,K227=L227),1,0)*BO212 -> 0 | BL227: =BI227-BJ227-BK227 -> 1 | BM227: =L227 -> 3 | BN227: =K227 -> 6 | BO227: =((BJ227*3)+BK227)*BO212 -> 0
B228: 1 | E228: =E227+1 -> 28 | F228: =M222 -> ADONES-PE | K228: 3 | L228: 4 | M228: =M223 -> LUCAS JAKA-PR | S228: =COUNTBLANK(K228:L228) -> 0 | BQ228: =IF(S228=0,1,0) -> 1 | BR228: =IF(AND(S228=0,K228>L228),1,0)*BW212 -> 0 | BS228: =IF(AND(S228=0,K228=L228),1,0)*BW212 -> 0 | BT228: =BQ228-BR228-BS228 -> 1 | BU228: =K228 -> 3 | BV228: =L228 -> 4 | BW228: =((BR228*3)+BS228)*BW212 -> 0 | BY228: =IF(S228=0,1,0) -> 1 | BZ228: =IF(AND(S228=0,L228>K228),1,0)*CE212 -> 1 | CA228: =IF(AND(S228=0,K228=L228),1,0)*CE212 -> 0 | CB228: =BY228-BZ228-CA228 -> 0 | CC228: =L228 -> 4 | CD228: =K228 -> 3 | CE228: =((BZ228*3)+CA228)*CE212 -> 3
B230: 1 | C230: 4 | D230: =$D$7 -> 2022-06-16 | E230: 29 | F230: =F227 -> IGOR-RJ | K230: 4 | L230: 6 | M230: =M225 -> ESPEL-SP | S230: =COUNTBLANK(K230:L230) -> 0 | AC230: =IF(S230=0,1,0) -> 1 | AD230: =IF(AND(S230=0,L230>K230),1,0)*AI212 -> 1 | AE230: =IF(AND(S230=0,K230=L230),1,0)*AI212 -> 0 | AF230: =AC230-AD230-AE230 -> 0 | AG230: =L230 -> 6 | AH230: =K230 -> 4 | AI230: =((AD230*3)+AE230)*AI212 -> 3 | BA230: =IF(S230=0,1,0) -> 1 | BB230: =IF(AND(S230=0,K230>L230),1,0)*BG212 -> 0 | BC230: =IF(AND(S230=0,K230=L230),1,0)*BG212 -> 0 | BD230: =BA230-BB230-BC230 -> 1 | BE230: =K230 -> 4 | BF230: =L230 -> 6 | BG230: =((BB230*3)+BC230)*BG212 -> 0 | CH230: 4ª
B231: 1 | E231: =E230+1 -> 30 | F231: =M227 -> MARCO AURELIO-PB | K231: 2 | L231: 0 | M231: =F226 -> CHICONES-DF | S231: =COUNTBLANK(K231:L231) -> 0 | AK231: =IF(S231=0,1,0) -> 1 | AL231: =IF(AND(S231=0,L231>K231),1,0)*AQ212 -> 0 | AM231: =IF(AND(S231=0,K231=L231),1,0)*AQ212 -> 0 | AN231: =AK231-AL231-AM231 -> 1 | AO231: =L231 -> 0 | AP231: =K231 -> 2 | AQ231: =((AL231*3)+AM231)*AQ212 -> 0 | BI231: =IF(S231=0,1,0) -> 1 | BJ231: =IF(AND(S231=0,K231>L231),1,0)*BO212 -> 1 | BK231: =IF(AND(S231=0,K231=L231),1,0)*BO212 -> 0 | BL231: =BI231-BJ231-BK231 -> 0 | BM231: =K231 -> 2 | BN231: =L231 -> 0 | BO231: =((BJ231*3)+BK231)*BO212 -> 3
B232: 1 | D232: 15:30:00 | E232: =E231+1 -> 31 | F232: =F228 -> ADONES-PE | K232: 2 | L232: 6 | M232: =M226 -> RODRIGO MORO-SP | S232: =COUNTBLANK(K232:L232) -> 0 | AS232: =IF(S232=0,1,0) -> 1 | AT232: =IF(AND(S232=0,L232>K232),1,0)*AY212 -> 1 | AU232: =IF(AND(S232=0,K232=L232),1,0)*AY212 -> 0 | AV232: =AS232-AT232-AU232 -> 0 | AW232: =L232 -> 6 | AX232: =K232 -> 2 | AY232: =((AT232*3)+AU232)*AY212 -> 3 | BQ232: =IF(S232=0,1,0) -> 1 | BR232: =IF(AND(S232=0,K232>L232),1,0)*BW212 -> 0 | BS232: =IF(AND(S232=0,K232=L232),1,0)*BW212 -> 0 | BT232: =BQ232-BR232-BS232 -> 1 | BU232: =K232 -> 2 | BV232: =L232 -> 6 | BW232: =((BR232*3)+BS232)*BW212 -> 0
B233: 1 | E233: =E232+1 -> 32 | F233: =M228 -> LUCAS JAKA-PR | K233: 5 | L233: 6 | M233: =F225 -> VICTOR VAROLI-SP | S233: =COUNTBLANK(K233:L233) -> 0 | U233: =IF(S233=0,1,0) -> 1 | V233: =IF(AND(S233=0,L233>K233),1,0)*AA212 -> 1 | W233: =IF(AND(S233=0,K233=L233),1,0)*AA212 -> 0 | X233: =U233-V233-W233 -> 0 | Y233: =L233 -> 6 | Z233: =K233 -> 5 | AA233: =((V233*3)+W233)*AA212 -> 3 | BY233: =IF(S233=0,1,0) -> 1 | BZ233: =IF(AND(S233=0,K233>L233),1,0)*CE212 -> 0 | CA233: =IF(AND(S233=0,K233=L233),1,0)*CE212 -> 0 | CB233: =BY233-BZ233-CA233 -> 1 | CC233: =K233 -> 5 | CD233: =L233 -> 6 | CE233: =((BZ233*3)+CA233)*CE212 -> 0
B235: 1 | C235: 5 | D235: =$D$7 -> 2022-06-16 | E235: 33 | F235: =F230 -> IGOR-RJ | K235: 11 | L235: 1 | M235: =M231 -> CHICONES-DF | S235: =COUNTBLANK(K235:L235) -> 0 | AK235: =IF(S235=0,1,0) -> 1 | AL235: =IF(AND(S235=0,L235>K235),1,0)*AQ212 -> 0 | AM235: =IF(AND(S235=0,K235=L235),1,0)*AQ212 -> 0 | AN235: =AK235-AL235-AM235 -> 1 | AO235: =L235 -> 1 | AP235: =K235 -> 11 | AQ235: =((AL235*3)+AM235)*AQ212 -> 0 | BA235: =IF(S235=0,1,0) -> 1 | BB235: =IF(AND(S235=0,K235>L235),1,0)*BG212 -> 1 | BC235: =IF(AND(S235=0,K235=L235),1,0)*BG212 -> 0 | BD235: =BA235-BB235-BC235 -> 0 | BE235: =K235 -> 11 | BF235: =L235 -> 1 | BG235: =((BB235*3)+BC235)*BG212 -> 3 | CH235: 5ª
B236: 1 | E236: =E235+1 -> 34 | F236: =F231 -> MARCO AURELIO-PB | K236: 1 | L236: 3 | M236: =M232 -> RODRIGO MORO-SP | S236: =COUNTBLANK(K236:L236) -> 0 | AS236: =IF(S236=0,1,0) -> 1 | AT236: =IF(AND(S236=0,L236>K236),1,0)*AY212 -> 1 | AU236: =IF(AND(S236=0,K236=L236),1,0)*AY212 -> 0 | AV236: =AS236-AT236-AU236 -> 0 | AW236: =L236 -> 3 | AX236: =K236 -> 1 | AY236: =((AT236*3)+AU236)*AY212 -> 3 | BI236: =IF(S236=0,1,0) -> 1 | BJ236: =IF(AND(S236=0,K236>L236),1,0)*BO212 -> 0 | BK236: =IF(AND(S236=0,K236=L236),1,0)*BO212 -> 0 | BL236: =BI236-BJ236-BK236 -> 1 | BM236: =K236 -> 1 | BN236: =L236 -> 3 | BO236: =((BJ236*3)+BK236)*BO212 -> 0
B237: 1 | D237: 16:00:00 | E237: =E236+1 -> 35 | F237: =F232 -> ADONES-PE | K237: 6 | L237: 4 | M237: =M233 -> VICTOR VAROLI-SP | S237: =COUNTBLANK(K237:L237) -> 0 | U237: =IF(S237=0,1,0) -> 1 | V237: =IF(AND(S237=0,L237>K237),1,0)*AA212 -> 0 | W237: =IF(AND(S237=0,K237=L237),1,0)*AA212 -> 0 | X237: =U237-V237-W237 -> 1 | Y237: =L237 -> 4 | Z237: =K237 -> 6 | AA237: =((V237*3)+W237)*AA212 -> 0 | BQ237: =IF(S237=0,1,0) -> 1 | BR237: =IF(AND(S237=0,K237>L237),1,0)*BW212 -> 1 | BS237: =IF(AND(S237=0,K237=L237),1,0)*BW212 -> 0 | BT237: =BQ237-BR237-BS237 -> 0 | BU237: =K237 -> 6 | BV237: =L237 -> 4 | BW237: =((BR237*3)+BS237)*BW212 -> 3
B238: 1 | E238: =E237+1 -> 36 | F238: =F233 -> LUCAS JAKA-PR | K238: 5 | L238: 4 | M238: =M230 -> ESPEL-SP | S238: =COUNTBLANK(K238:L238) -> 0 | AC238: =IF(S238=0,1,0) -> 1 | AD238: =IF(AND(S238=0,L238>K238),1,0)*AI212 -> 0 | AE238: =IF(AND(S238=0,K238=L238),1,0)*AI212 -> 0 | AF238: =AC238-AD238-AE238 -> 1 | AG238: =L238 -> 4 | AH238: =K238 -> 5 | AI238: =((AD238*3)+AE238)*AI212 -> 0 | BY238: =IF(S238=0,1,0) -> 1 | BZ238: =IF(AND(S238=0,K238>L238),1,0)*CE212 -> 1 | CA238: =IF(AND(S238=0,K238=L238),1,0)*CE212 -> 0 | CB238: =BY238-BZ238-CA238 -> 0 | CC238: =K238 -> 5 | CD238: =L238 -> 4 | CE238: =((BZ238*3)+CA238)*CE212 -> 3
B240: 1 | C240: 6 | D240: =$D$7 -> 2022-06-16 | E240: 37 | F240: =F236 -> MARCO AURELIO-PB | K240: 3 | L240: 7 | M240: =M238 -> ESPEL-SP | S240: =COUNTBLANK(K240:L240) -> 0 | AC240: =IF(S240=0,1,0) -> 1 | AD240: =IF(AND(S240=0,L240>K240),1,0)*AI212 -> 1 | AE240: =IF(AND(S240=0,K240=L240),1,0)*AI212 -> 0 | AF240: =AC240-AD240-AE240 -> 0 | AG240: =L240 -> 7 | AH240: =K240 -> 3 | AI240: =((AD240*3)+AE240)*AI212 -> 3 | BI240: =IF(S240=0,1,0) -> 1 | BJ240: =IF(AND(S240=0,K240>L240),1,0)*BO212 -> 0 | BK240: =IF(AND(S240=0,K240=L240),1,0)*BO212 -> 0 | BL240: =BI240-BJ240-BK240 -> 1 | BM240: =K240 -> 3 | BN240: =L240 -> 7 | BO240: =((BJ240*3)+BK240)*BO212 -> 0 | CH240: 6ª
B241: 1 | E241: =E240+1 -> 38 | F241: =F235 -> IGOR-RJ | K241: 7 | L241: 7 | M241: =M237 -> VICTOR VAROLI-SP | S241: =COUNTBLANK(K241:L241) -> 0 | U241: =IF(S241=0,1,0) -> 1 | V241: =IF(AND(S241=0,L241>K241),1,0)*AA212 -> 0 | W241: =IF(AND(S241=0,K241=L241),1,0)*AA212 -> 1 | X241: =U241-V241-W241 -> 0 | Y241: =L241 -> 7 | Z241: =K241 -> 7 | AA241: =((V241*3)+W241)*AA212 -> 1 | BA241: =IF(S241=0,1,0) -> 1 | BB241: =IF(AND(S241=0,K241>L241),1,0)*BG212 -> 0 | BC241: =IF(AND(S241=0,K241=L241),1,0)*BG212 -> 1 | BD241: =BA241-BB241-BC241 -> 0 | BE241: =K241 -> 7 | BF241: =L241 -> 7 | BG241: =((BB241*3)+BC241)*BG212 -> 1
B242: 1 | D242: 16:30:00 | E242: =E241+1 -> 39 | F242: =F238 -> LUCAS JAKA-PR | K242: 4 | L242: 6 | M242: =M236 -> RODRIGO MORO-SP | S242: =COUNTBLANK(K242:L242) -> 0 | AS242: =IF(S242=0,1,0) -> 1 | AT242: =IF(AND(S242=0,L242>K242),1,0)*AY212 -> 1 | AU242: =IF(AND(S242=0,K242=L242),1,0)*AY212 -> 0 | AV242: =AS242-AT242-AU242 -> 0 | AW242: =L242 -> 6 | AX242: =K242 -> 4 | AY242: =((AT242*3)+AU242)*AY212 -> 3 | BY242: =IF(S242=0,1,0) -> 1 | BZ242: =IF(AND(S242=0,K242>L242),1,0)*CE212 -> 0 | CA242: =IF(AND(S242=0,K242=L242),1,0)*CE212 -> 0 | CB242: =BY242-BZ242-CA242 -> 1 | CC242: =K242 -> 4 | CD242: =L242 -> 6 | CE242: =((BZ242*3)+CA242)*CE212 -> 0
B243: 1 | E243: =E242+1 -> 40 | F243: =F237 -> ADONES-PE | K243: 5 | L243: 1 | M243: =M235 -> CHICONES-DF | S243: =COUNTBLANK(K243:L243) -> 0 | AK243: =IF(S243=0,1,0) -> 1 | AL243: =IF(AND(S243=0,L243>K243),1,0)*AQ212 -> 0 | AM243: =IF(AND(S243=0,K243=L243),1,0)*AQ212 -> 0 | AN243: =AK243-AL243-AM243 -> 1 | AO243: =L243 -> 1 | AP243: =K243 -> 5 | AQ243: =((AL243*3)+AM243)*AQ212 -> 0 | BQ243: =IF(S243=0,1,0) -> 1 | BR243: =IF(AND(S243=0,K243>L243),1,0)*BW212 -> 1 | BS243: =IF(AND(S243=0,K243=L243),1,0)*BW212 -> 0 | BT243: =BQ243-BR243-BS243 -> 0 | BU243: =K243 -> 5 | BV243: =L243 -> 1 | BW243: =((BR243*3)+BS243)*BW212 -> 3
B245: 1 | C245: 7 | D245: =$D$7 -> 2022-06-16 | E245: 41 | F245: =F242 -> LUCAS JAKA-PR | K245: 9 | L245: 1 | M245: =M243 -> CHICONES-DF | S245: =COUNTBLANK(K245:L245) -> 0 | AK245: =IF(S245=0,1,0) -> 1 | AL245: =IF(AND(S245=0,L245>K245),1,0)*AQ212 -> 0 | AM245: =IF(AND(S245=0,K245=L245),1,0)*AQ212 -> 0 | AN245: =AK245-AL245-AM245 -> 1 | AO245: =L245 -> 1 | AP245: =K245 -> 9 | AQ245: =((AL245*3)+AM245)*AQ212 -> 0 | BY245: =IF(S245=0,1,0) -> 1 | BZ245: =IF(AND(S245=0,K245>L245),1,0)*CE212 -> 1 | CA245: =IF(AND(S245=0,K245=L245),1,0)*CE212 -> 0 | CB245: =BY245-BZ245-CA245 -> 0 | CC245: =K245 -> 9 | CD245: =L245 -> 1 | CE245: =((BZ245*3)+CA245)*CE212 -> 3 | CH245: 7ª
B246: 1 | E246: =E245+1 -> 42 | F246: =F240 -> MARCO AURELIO-PB | K246: 2 | L246: 8 | M246: =M241 -> VICTOR VAROLI-SP | S246: =COUNTBLANK(K246:L246) -> 0 | U246: =IF(S246=0,1,0) -> 1 | V246: =IF(AND(S246=0,L246>K246),1,0)*AA212 -> 1 | W246: =IF(AND(S246=0,K246=L246),1,0)*AA212 -> 0 | X246: =U246-V246-W246 -> 0 | Y246: =L246 -> 8 | Z246: =K246 -> 2 | AA246: =((V246*3)+W246)*AA212 -> 3 | BI246: =IF(S246=0,1,0) -> 1 | BJ246: =IF(AND(S246=0,K246>L246),1,0)*BO212 -> 0 | BK246: =IF(AND(S246=0,K246=L246),1,0)*BO212 -> 0 | BL246: =BI246-BJ246-BK246 -> 1 | BM246: =K246 -> 2 | BN246: =L246 -> 8 | BO246: =((BJ246*3)+BK246)*BO212 -> 0
B247: 1 | D247: 17:00:00 | E247: =E246+1 -> 43 | F247: =F243 -> ADONES-PE | K247: 4 | L247: 2 | M247: =M240 -> ESPEL-SP | S247: =COUNTBLANK(K247:L247) -> 0 | AC247: =IF(S247=0,1,0) -> 1 | AD247: =IF(AND(S247=0,L247>K247),1,0)*AI212 -> 0 | AE247: =IF(AND(S247=0,K247=L247),1,0)*AI212 -> 0 | AF247: =AC247-AD247-AE247 -> 1 | AG247: =L247 -> 2 | AH247: =K247 -> 4 | AI247: =((AD247*3)+AE247)*AI212 -> 0 | BQ247: =IF(S247=0,1,0) -> 1 | BR247: =IF(AND(S247=0,K247>L247),1,0)*BW212 -> 1 | BS247: =IF(AND(S247=0,K247=L247),1,0)*BW212 -> 0 | BT247: =BQ247-BR247-BS247 -> 0 | BU247: =K247 -> 4 | BV247: =L247 -> 2 | BW247: =((BR247*3)+BS247)*BW212 -> 3
... 474 more rows

Sheet G2
C2: =INFO!$C$1 -> 32º Campeonato Brasileiro Individual
C4: Adulto - 1a Divisão | R4: ="2a Fase - Grupo " & Q6 -> 2a Fase - Grupo 17
C5: Class | D5: BOTONISTAS | I5: PG | J5: J | K5: V | L5: E | M5: D | N5: GP | O5: GC | P5: SG | Q5: Gr. | R5: Seq | T5: >>> Atenção <<<
C6: =RESUMO!A438 -> 1o G1 | D6: =RESUMO!B438 -> ALDECOA-SP | I6: =RESUMO!D438 -> 16 | J6: =RESUMO!E438 -> 7 | K6: =RESUMO!F438 -> 5 | L6: =RESUMO!G438 -> 1 | M6: =RESUMO!H438 -> 1 | N6: =RESUMO!I438 -> 26 | O6: =RESUMO!J438 -> 21 | P6: =RESUMO!K438 -> 5 | Q6: 17 | R6: 1 | T6: Para completar o cálculo da 2a Fase proceda da seguinte forma:
C7: =RESUMO!A498 -> 1o G16 | D7: =RESUMO!B498 -> ARTHURZINHO-SP | I7: =RESUMO!D498 -> 21 | J7: =RESUMO!E498 -> 7 | K7: =RESUMO!F498 -> 7 | L7: =RESUMO!G498 -> 0 | M7: =RESUMO!H498 -> 0 | N7: =RESUMO!I498 -> 32 | O7: =RESUMO!J498 -> 15 | P7: =RESUMO!K498 -> 17 | Q7: 17 | R7: 2 | T7: 1) Coloque os Botonistas do mesmo Estado/Clube dentro de
C8: =RESUMO!A471 -> 2o G9 | D8: =RESUMO!B471 -> ALAN SILVA-GO | I8: =RESUMO!D471 -> 16 | J8: =RESUMO!E471 -> 7 | K8: =RESUMO!F471 -> 5 | L8: =RESUMO!G471 -> 1 | M8: =RESUMO!H471 -> 1 | N8: =RESUMO!I471 -> 30 | O8: =RESUMO!J471 -> 23 | P8: =RESUMO!K471 -> 7 | Q8: 17 | R8: 5 | T8: cada bloco.
C9: =RESUMO!A467 -> 2o G8 | D9: =RESUMO!B467 -> ROGERINHO-RJ | I9: =RESUMO!D467 -> 18 | J9: =RESUMO!E467 -> 7 | K9: =RESUMO!F467 -> 6 | L9: =RESUMO!G467 -> 0 | M9: =RESUMO!H467 -> 1 | N9: =RESUMO!I467 -> 36 | O9: =RESUMO!J467 -> 23 | P9: =RESUMO!K467 -> 13 | Q9: 17 | R9: 6 | T9: • 2 botonistas: posições 1 e 4 ou 2 e 3 ou 5 e 8 ou 6 e 7
C10: =RESUMO!A456 -> 3o G5 | D10: =RESUMO!B456 -> ADONES-PE | I10: =RESUMO!D456 -> 13 | J10: =RESUMO!E456 -> 7 | K10: =RESUMO!F456 -> 4 | L10: =RESUMO!G456 -> 1 | M10: =RESUMO!H456 -> 2 | N10: =RESUMO!I456 -> 30 | O10: =RESUMO!J456 -> 25 | P10: =RESUMO!K456 -> 5 | Q10: 17 | R10: 8 | T10: • 3 botonistas: posições 1, 2 e 4 ou 5, 6 e 8
C11: =RESUMO!A488 -> 3o G13 | D11: =RESUMO!B488 -> FAUSTINHO-RJ | I11: =RESUMO!D488 -> 11 | J11: =RESUMO!E488 -> 7 | K11: =RESUMO!F488 -> 3 | L11: =RESUMO!G488 -> 2 | M11: =RESUMO!H488 -> 2 | N11: =RESUMO!I488 -> 22 | O11: =RESUMO!J488 -> 20 | P11: =RESUMO!K488 -> 2 | Q11: 17 | R11: 7 | T11: • 4 botonistas: posições 1 a 4 ou 5 a 8
C12: =RESUMO!A485 -> 4o G12 | D12: =RESUMO!B485 -> LOIACONO-SP | I12: =RESUMO!D485 -> 12 | J12: =RESUMO!E485 -> 7 | K12: =RESUMO!F485 -> 4 | L12: =RESUMO!G485 -> 0 | M12: =RESUMO!H485 -> 3 | N12: =RESUMO!I485 -> 36 | O12: =RESUMO!J485 -> 36 | P12: =RESUMO!K485 -> 0 | Q12: 17 | R12: 3
C13: =RESUMO!A453 -> 4o G4 | D13: =RESUMO!B453 -> THIAGO LIMA-SP | I13: =RESUMO!D453 -> 12 | J13: =RESUMO!E453 -> 7 | K13: =RESUMO!F453 -> 4 | L13: =RESUMO!G453 -> 0 | M13: =RESUMO!H453 -> 3 | N13: =RESUMO!I453 -> 32 | O13: =RESUMO!J453 -> 24 | P13: =RESUMO!K453 -> 8 | Q13: 17 | R13: 4
C14: =$C$4 -> Adulto - 1a Divisão | R14: ="2a Fase - Grupo " & Q16 -> 2a Fase - Grupo 18
C15: Class | D15: BOTONISTAS | I15: PG | J15: J | K15: V | L15: E | M15: D | N15: GP | O15: GC | P15: SG | Q15: Gr. | R15: Seq
C16: =RESUMO!A442 -> 1o G2 | D16: =RESUMO!B442 -> QUINHO-SP | I16: =RESUMO!D442 -> 19 | J16: =RESUMO!E442 -> 7 | K16: =RESUMO!F442 -> 6 | L16: =RESUMO!G442 -> 1 | M16: =RESUMO!H442 -> 0 | N16: =RESUMO!I442 -> 48 | O16: =RESUMO!J442 -> 26 | P16: =RESUMO!K442 -> 22 | Q16: 18 | R16: 1
C17: =RESUMO!A494 -> 1o G15 | D17: =RESUMO!B494 -> ROBERTINHO-PR | I17: =RESUMO!D494 -> 16 | J17: =RESUMO!E494 -> 7 | K17: =RESUMO!F494 -> 5 | L17: =RESUMO!G494 -> 1 | M17: =RESUMO!H494 -> 1 | N17: =RESUMO!I494 -> 45 | O17: =RESUMO!J494 -> 25 | P17: =RESUMO!K494 -> 20 | Q17: 18 | R17: 5
C18: =RESUMO!A475 -> 2o G10 | D18: =RESUMO!B475 -> MURATORE-SP | I18: =RESUMO!D475 -> 12 | J18: =RESUMO!E475 -> 7 | K18: =RESUMO!F475 -> 3 | L18: =RESUMO!G475 -> 3 | M18: =RESUMO!H475 -> 1 | N18: =RESUMO!I475 -> 29 | O18: =RESUMO!J475 -> 26 | P18: =RESUMO!K475 -> 3 | Q18: 18 | R18: 2
C19: =RESUMO!A463 -> 2o G7 | D19: =RESUMO!B463 -> PIETRO VAROLI-SP | I19: =RESUMO!D463 -> 14 | J19: =RESUMO!E463 -> 7 | K19: =RESUMO!F463 -> 4 | L19: =RESUMO!G463 -> 2 | M19: =RESUMO!H463 -> 1 | N19: =RESUMO!I463 -> 34 | O19: =RESUMO!J463 -> 27 | P19: =RESUMO!K463 -> 7 | Q19: 18 | R19: 3
C20: =RESUMO!A460 -> 3o G6 | D20: =RESUMO!B460 -> PICOLINO-SP | I20: =RESUMO!D460 -> 10 | J20: =RESUMO!E460 -> 7 | K20: =RESUMO!F460 -> 3 | L20: =RESUMO!G460 -> 1 | M20: =RESUMO!H460 -> 3 | N20: =RESUMO!I460 -> 39 | O20: =RESUMO!J460 -> 30 | P20: =RESUMO!K460 -> 9 | Q20: 18 | R20: 4
C21: =RESUMO!A492 -> 3o G14 | D21: =RESUMO!B492 -> BEL-PE | I21: =RESUMO!D492 -> 12 | J21: =RESUMO!E492 -> 7 | K21: =RESUMO!F492 -> 4 | L21: =RESUMO!G492 -> 0 | M21: =RESUMO!H492 -> 3 | N21: =RESUMO!I492 -> 25 | O21: =RESUMO!J492 -> 24 | P21: =RESUMO!K492 -> 1 | Q21: 18 | R21: 6
C22: =RESUMO!A481 -> 4o G11 | D22: =RESUMO!B481 -> LUCAS CAVALCANTE-RJ | I22: =RESUMO!D481 -> 11 | J22: =RESUMO!E481 -> 7 | K22: =RESUMO!F481 -> 3 | L22: =RESUMO!G481 -> 2 | M22: =RESUMO!H481 -> 2 | N22: =RESUMO!I481 -> 36 | O22: =RESUMO!J481 -> 33 | P22: =RESUMO!K481 -> 3 | Q22: 18 | R22: 7
C23: =RESUMO!A449 -> 4o G3 | D23: =RESUMO!B449 -> PEDRO PRANDO-PR | I23: =RESUMO!D449 -> 10 | J23: =RESUMO!E449 -> 7 | K23: =RESUMO!F449 -> 3 | L23: =RESUMO!G449 -> 1 | M23: =RESUMO!H449 -> 3 | N23: =RESUMO!I449 -> 23 | O23: =RESUMO!J449 -> 30 | P23: =RESUMO!K449 -> -7 | Q23: 18 | R23: 8
C24: =$C$4 -> Adulto - 1a Divisão | R24: ="2a Fase - Grupo " & Q26 -> 2a Fase - Grupo 19
C25: Class | D25: BOTONISTAS | I25: PG | J25: J | K25: V | L25: E | M25: D | N25: GP | O25: GC | P25: SG | Q25: Gr. | R25: Seq
C26: =RESUMO!A446 -> 1o G3 | D26: =RESUMO!B446 -> NANDO-RJ | I26: =RESUMO!D446 -> 19 | J26: =RESUMO!E446 -> 7 | K26: =RESUMO!F446 -> 6 | L26: =RESUMO!G446 -> 1 | M26: =RESUMO!H446 -> 0 | N26: =RESUMO!I446 -> 48 | O26: =RESUMO!J446 -> 23 | P26: =RESUMO!K446 -> 25 | Q26: 19 | R26: 1
C27: =RESUMO!A490 -> 1o G14 | D27: =RESUMO!B490 -> DINEY-SP | I27: =RESUMO!D490 -> 19 | J27: =RESUMO!E490 -> 7 | K27: =RESUMO!F490 -> 6 | L27: =RESUMO!G490 -> 1 | M27: =RESUMO!H490 -> 0 | N27: =RESUMO!I490 -> 36 | O27: =RESUMO!J490 -> 19 | P27: =RESUMO!K490 -> 17 | Q27: 19 | R27: 5
C28: =RESUMO!A479 -> 2o G11 | D28: =RESUMO!B479 -> ERISMAR-SP | I28: =RESUMO!D479 -> 16 | J28: =RESUMO!E479 -> 7 | K28: =RESUMO!F479 -> 5 | L28: =RESUMO!G479 -> 1 | M28: =RESUMO!H479 -> 1 | N28: =RESUMO!I479 -> 38 | O28: =RESUMO!J479 -> 28 | P28: =RESUMO!K479 -> 10 | Q28: 19 | R28: 6
C29: =RESUMO!A459 -> 2o G6 | D29: =RESUMO!B459 -> MICHILIN-SP | I29: =RESUMO!D459 -> 15 | J29: =RESUMO!E459 -> 7 | K29: =RESUMO!F459 -> 5 | L29: =RESUMO!G459 -> 0 | M29: =RESUMO!H459 -> 2 | N29: =RESUMO!I459 -> 37 | O29: =RESUMO!J459 -> 23 | P29: =RESUMO!K459 -> 14 | Q29: 19 | R29: 7
C30: =RESUMO!A464 -> 3o G7 | D30: =RESUMO!B464 -> PIRICA-RJ | I30: =RESUMO!D464 -> 14 | J30: =RESUMO!E464 -> 7 | K30: =RESUMO!F464 -> 4 | L30: =RESUMO!G464 -> 2 | M30: =RESUMO!H464 -> 1 | N30: =RESUMO!I464 -> 33 | O30: =RESUMO!J464 -> 28 | P30: =RESUMO!K464 -> 5 | Q30: 19 | R30: 2
C31: =RESUMO!A496 -> 3o G15 | D31: =RESUMO!B496 -> CHRISTOFER-RJ | I31: =RESUMO!D496 -> 12 | J31: =RESUMO!E496 -> 7 | K31: =RESUMO!F496 -> 4 | L31: =RESUMO!G496 -> 0 | M31: =RESUMO!H496 -> 3 | N31: =RESUMO!I496 -> 23 | O31: =RESUMO!J496 -> 26 | P31: =RESUMO!K496 -> -3 | Q31: 19 | R31: 3
C32: =RESUMO!A477 -> 4o G10 | D32: =RESUMO!B477 -> RENAN PIMENTA-PR | I32: =RESUMO!D477 -> 10 | J32: =RESUMO!E477 -> 7 | K32: =RESUMO!F477 -> 3 | L32: =RESUMO!G477 -> 1 | M32: =RESUMO!H477 -> 3 | N32: =RESUMO!I477 -> 28 | O32: =RESUMO!J477 -> 23 | P32: =RESUMO!K477 -> 5 | Q32: 19 | R32: 4
C33: =RESUMO!A445 -> 4o G2 | D33: =RESUMO!B445 -> MATHEUS TINE-PE | I33: =RESUMO!D445 -> 10 | J33: =RESUMO!E445 -> 7 | K33: =RESUMO!F445 -> 3 | L33: =RESUMO!G445 -> 1 | M33: =RESUMO!H445 -> 3 | N33: =RESUMO!I445 -> 34 | O33: =RESUMO!J445 -> 33 | P33: =RESUMO!K445 -> 1 | Q33: 19 | R33: 8
C34: =$C$4 -> Adulto - 1a Divisão | R34: ="2a Fase - Grupo " & Q36 -> 2a Fase - Grupo 20
C35: Class | D35: BOTONISTAS | I35: PG | J35: J | K35: V | L35: E | M35: D | N35: GP | O35: GC | P35: SG | Q35: Gr. | R35: Seq
C36: =RESUMO!A450 -> 1o G4 | D36: =RESUMO!B450 -> ALESSANDRO-RJ | I36: =RESUMO!D450 -> 18 | J36: =RESUMO!E450 -> 7 | K36: =RESUMO!F450 -> 6 | L36: =RESUMO!G450 -> 0 | M36: =RESUMO!H450 -> 1 | N36: =RESUMO!I450 -> 32 | O36: =RESUMO!J450 -> 22 | P36: =RESUMO!K450 -> 10 | Q36: 20 | R36: 1
C37: =RESUMO!A486 -> 1o G13 | D37: =RESUMO!B486 -> VINICIUS MENDES-RJ | I37: =RESUMO!D486 -> 19 | J37: =RESUMO!E486 -> 7 | K37: =RESUMO!F486 -> 6 | L37: =RESUMO!G486 -> 1 | M37: =RESUMO!H486 -> 0 | N37: =RESUMO!I486 -> 30 | O37: =RESUMO!J486 -> 15 | P37: =RESUMO!K486 -> 15 | Q37: 20 | R37: 2
C38: =RESUMO!A483 -> 2o G12 | D38: =RESUMO!B483 -> DIOGO-RJ | I38: =RESUMO!D483 -> 15 | J38: =RESUMO!E483 -> 7 | K38: =RESUMO!F483 -> 5 | L38: =RESUMO!G483 -> 0 | M38: =RESUMO!H483 -> 2 | N38: =RESUMO!I483 -> 44 | O38: =RESUMO!J483 -> 36 | P38: =RESUMO!K483 -> 8 | Q38: 20 | R38: 3
C39: =RESUMO!A455 -> 2o G5 | D39: =RESUMO!B455 -> VICTOR VAROLI-SP | I39: =RESUMO!D455 -> 13 | J39: =RESUMO!E455 -> 7 | K39: =RESUMO!F455 -> 4 | L39: =RESUMO!G455 -> 1 | M39: =RESUMO!H455 -> 2 | N39: =RESUMO!I455 -> 43 | O39: =RESUMO!J455 -> 36 | P39: =RESUMO!K455 -> 7 | Q39: 20 | R39: 5
C40: =RESUMO!A468 -> 3o G8 | D40: =RESUMO!B468 -> GUERREIRO-SP | I40: =RESUMO!D468 -> 15 | J40: =RESUMO!E468 -> 7 | K40: =RESUMO!F468 -> 5 | L40: =RESUMO!G468 -> 0 | M40: =RESUMO!H468 -> 2 | N40: =RESUMO!I468 -> 42 | O40: =RESUMO!J468 -> 22 | P40: =RESUMO!K468 -> 20 | Q40: 20 | R40: 6
C41: =RESUMO!A500 -> 3o G16 | D41: =RESUMO!B500 -> FLAVINHO-RJ | I41: =RESUMO!D500 -> 11 | J41: =RESUMO!E500 -> 7 | K41: =RESUMO!F500 -> 3 | L41: =RESUMO!G500 -> 2 | M41: =RESUMO!H500 -> 2 | N41: =RESUMO!I500 -> 21 | O41: =RESUMO!J500 -> 19 | P41: =RESUMO!K500 -> 2 | Q41: 20 | R41: 4
C42: =RESUMO!A473 -> 4o G9 | D42: =RESUMO!B473 -> TADEU-SP | I42: =RESUMO!D473 -> 12 | J42: =RESUMO!E473 -> 7 | K42: =RESUMO!F473 -> 4 | L42: =RESUMO!G473 -> 0 | M42: =RESUMO!H473 -> 3 | N42: =RESUMO!I473 -> 29 | O42: =RESUMO!J473 -> 25 | P42: =RESUMO!K473 -> 4 | Q42: 20 | R42: 7
C43: =RESUMO!A441 -> 4o G1 | D43: =RESUMO!B441 -> LUCAS PRANDO-PR | I43: =RESUMO!D441 -> 12 | J43: =RESUMO!E441 -> 7 | K43: =RESUMO!F441 -> 4 | L43: =RESUMO!G441 -> 0 | M43: =RESUMO!H441 -> 3 | N43: =RESUMO!I441 -> 27 | O43: =RESUMO!J441 -> 22 | P43: =RESUMO!K441 -> 5 | Q43: 20 | R43: 8
C44: =$C$4 -> Adulto - 1a Divisão | R44: ="2a Fase - Grupo " & Q46 -> 2a Fase - Grupo 21
C45: Class | D45: BOTONISTAS | I45: PG | J45: J | K45: V | L45: E | M45: D | N45: GP | O45: GC | P45: SG | Q45: Gr. | R45: Seq | T45: >>> Atenção <<<
C46: =RESUMO!A454 -> 1o G5 | D46: =RESUMO!B454 -> RODRIGO MORO-SP | I46: =RESUMO!D454 -> 18 | J46: =RESUMO!E454 -> 7 | K46: =RESUMO!F454 -> 6 | L46: =RESUMO!G454 -> 0 | M46: =RESUMO!H454 -> 1 | N46: =RESUMO!I454 -> 46 | O46: =RESUMO!J454 -> 26 | P46: =RESUMO!K454 -> 20 | Q46: 21 | R46: 1 | T46: Para completar o cálculo da 2a Fase proceda da seguinte forma:
C47: =RESUMO!A482 -> 1o G12 | D47: =RESUMO!B482 -> BELINI-SP | I47: =RESUMO!D482 -> 19 | J47: =RESUMO!E482 -> 7 | K47: =RESUMO!F482 -> 6 | L47: =RESUMO!G482 -> 1 | M47: =RESUMO!H482 -> 0 | N47: =RESUMO!I482 -> 41 | O47: =RESUMO!J482 -> 25 | P47: =RESUMO!K482 -> 16 | Q47: 21 | R47: 2 | T47: 1) Coloque os Botonistas do mesmo Estado/Clube dentro de
C48: =RESUMO!A487 -> 2o G13 | D48: =RESUMO!B487 -> ANDRE RAFAEL-SP | I48: =RESUMO!D487 -> 18 | J48: =RESUMO!E487 -> 7 | K48: =RESUMO!F487 -> 6 | L48: =RESUMO!G487 -> 0 | M48: =RESUMO!H487 -> 1 | N48: =RESUMO!I487 -> 38 | O48: =RESUMO!J487 -> 21 | P48: =RESUMO!K487 -> 17 | Q48: 21 | R48: 3 | T48: cada bloco.
C49: =RESUMO!A451 -> 2o G4 | D49: =RESUMO!B451 -> THIAGO PENNA-RJ | I49: =RESUMO!D451 -> 16 | J49: =RESUMO!E451 -> 7 | K49: =RESUMO!F451 -> 5 | L49: =RESUMO!G451 -> 1 | M49: =RESUMO!H451 -> 1 | N49: =RESUMO!I451 -> 35 | O49: =RESUMO!J451 -> 26 | P49: =RESUMO!K451 -> 9 | Q49: 21 | R49: 5 | T49: • 2 botonistas: posições 1 e 4 ou 2 e 3 ou 5 e 8 ou 6 e 7
C50: =RESUMO!A440 -> 3o G1 | D50: =RESUMO!B440 -> PEDRO NETO-SP | I50: =RESUMO!D440 -> 13 | J50: =RESUMO!E440 -> 7 | K50: =RESUMO!F440 -> 4 | L50: =RESUMO!G440 -> 1 | M50: =RESUMO!H440 -> 2 | N50: =RESUMO!I440 -> 41 | O50: =RESUMO!J440 -> 33 | P50: =RESUMO!K440 -> 8 | Q50: 21 | R50: 4 | T50: • 3 botonistas: posições 1, 2 e 4 ou 5, 6 e 8
C51: =RESUMO!A472 -> 3o G9 | D51: =RESUMO!B472 -> GONZO-PR | I51: =RESUMO!D472 -> 12 | J51: =RESUMO!E472 -> 7 | K51: =RESUMO!F472 -> 4 | L51: =RESUMO!G472 -> 0 | M51: =RESUMO!H472 -> 3 | N51: =RESUMO!I472 -> 29 | O51: =RESUMO!J472 -> 22 | P51: =RESUMO!K472 -> 7 | Q51: 21 | R51: 6 | T51: • 4 botonistas: posições 1 a 4 ou 5 a 8
C52: =RESUMO!A469 -> 4o G8 | D52: =RESUMO!B469 -> ROGER-PR | I52: =RESUMO!D469 -> 12 | J52: =RESUMO!E469 -> 7 | K52: =RESUMO!F469 -> 4 | L52: =RESUMO!G469 -> 0 | M52: =RESUMO!H469 -> 3 | N52: =RESUMO!I469 -> 34 | O52: =RESUMO!J469 -> 29 | P52: =RESUMO!K469 -> 5 | Q52: 21 | R52: 7
C53: =RESUMO!A501 -> 4o G16 | D53: =RESUMO!B501 -> ERMESON-PE | I53: =RESUMO!D501 -> 11 | J53: =RESUMO!E501 -> 7 | K53: =RESUMO!F501 -> 3 | L53: =RESUMO!G501 -> 2 | M53: =RESUMO!H501 -> 2 | N53: =RESUMO!I501 -> 23 | O53: =RESUMO!J501 -> 22 | P53: =RESUMO!K501 -> 1 | Q53: 21 | R53: 8
C54: =$C$4 -> Adulto - 1a Divisão | R54: ="2a Fase - Grupo " & Q56 -> 2a Fase - Grupo 22
C55: Class | D55: BOTONISTAS | I55: PG | J55: J | K55: V | L55: E | M55: D | N55: GP | O55: GC | P55: SG | Q55: Gr. | R55: Seq
C56: =RESUMO!A458 -> 1o G6 | D56: =RESUMO!B458 -> LEO GONÇALVES-PR | I56: =RESUMO!D458 -> 19 | J56: =RESUMO!E458 -> 7 | K56: =RESUMO!F458 -> 6 | L56: =RESUMO!G458 -> 1 | M56: =RESUMO!H458 -> 0 | N56: =RESUMO!I458 -> 44 | O56: =RESUMO!J458 -> 29 | P56: =RESUMO!K458 -> 15 | Q56: 22 | R56: 1
C57: =RESUMO!A478 -> 1o G11 | D57: =RESUMO!B478 -> RODRIGO RIBEIRO-SP | I57: =RESUMO!D478 -> 19 | J57: =RESUMO!E478 -> 7 | K57: =RESUMO!F478 -> 6 | L57: =RESUMO!G478 -> 1 | M57: =RESUMO!H478 -> 0 | N57: =RESUMO!I478 -> 44 | O57: =RESUMO!J478 -> 23 | P57: =RESUMO!K478 -> 21 | Q57: 22 | R57: 5
C58: =RESUMO!A491 -> 2o G14 | D58: =RESUMO!B491 -> AMON-RA-RJ | I58: =RESUMO!D491 -> 15 | J58: =RESUMO!E491 -> 7 | K58: =RESUMO!F491 -> 5 | L58: =RESUMO!G491 -> 0 | M58: =RESUMO!H491 -> 2 | N58: =RESUMO!I491 -> 34 | O58: =RESUMO!J491 -> 22 | P58: =RESUMO!K491 -> 12 | Q58: 22 | R58: 2
C59: =RESUMO!A447 -> 2o G3 | D59: =RESUMO!B447 -> CELINHO-SP | I59: =RESUMO!D447 -> 14 | J59: =RESUMO!E447 -> 7 | K59: =RESUMO!F447 -> 4 | L59: =RESUMO!G447 -> 2 | M59: =RESUMO!H447 -> 1 | N59: =RESUMO!I447 -> 37 | O59: =RESUMO!J447 -> 24 | P59: =RESUMO!K447 -> 13 | Q59: 22 | R59: 6
C60: =RESUMO!A444 -> 3o G2 | D60: =RESUMO!B444 -> TIAGO MACHADO-SP | I60: =RESUMO!D444 -> 11 | J60: =RESUMO!E444 -> 7 | K60: =RESUMO!F444 -> 3 | L60: =RESUMO!G444 -> 2 | M60: =RESUMO!H444 -> 2 | N60: =RESUMO!I444 -> 32 | O60: =RESUMO!J444 -> 30 | P60: =RESUMO!K444 -> 2 | Q60: 22 | R60: 7
C61: =RESUMO!A476 -> 3o G10 | D61: =RESUMO!B476 -> GALDEANO-SP | I61: =RESUMO!D476 -> 11 | J61: =RESUMO!E476 -> 7 | K61: =RESUMO!F476 -> 3 | L61: =RESUMO!G476 -> 2 | M61: =RESUMO!H476 -> 2 | N61: =RESUMO!I476 -> 27 | O61: =RESUMO!J476 -> 23 | P61: =RESUMO!K476 -> 4 | Q61: 22 | R61: 8
C62: =RESUMO!A465 -> 4o G7 | D62: =RESUMO!B465 -> RAFAEL AQUINO-PE | I62: =RESUMO!D465 -> 12 | J62: =RESUMO!E465 -> 7 | K62: =RESUMO!F465 -> 4 | L62: =RESUMO!G465 -> 0 | M62: =RESUMO!H465 -> 3 | N62: =RESUMO!I465 -> 33 | O62: =RESUMO!J465 -> 35 | P62: =RESUMO!K465 -> -2 | Q62: 22 | R62: 3
C63: =RESUMO!A497 -> 4o G15 | D63: =RESUMO!B497 -> BRUNO BLOIS-SP | I63: =RESUMO!D497 -> 12 | J63: =RESUMO!E497 -> 7 | K63: =RESUMO!F497 -> 3 | L63: =RESUMO!G497 -> 3 | M63: =RESUMO!H497 -> 1 | N63: =RESUMO!I497 -> 32 | O63: =RESUMO!J497 -> 27 | P63: =RESUMO!K497 -> 5 | Q63: 22 | R63: 4
C64: =$C$4 -> Adulto - 1a Divisão | R64: ="2a Fase - Grupo " & Q66 -> 2a Fase - Grupo 23
C65: Class | D65: BOTONISTAS | I65: PG | J65: J | K65: V | L65: E | M65: D | N65: GP | O65: GC | P65: SG | Q65: Gr. | R65: Seq
C66: =RESUMO!A462 -> 1o G7 | D66: =RESUMO!B462 -> ALBARELLO-SP | I66: =RESUMO!D462 -> 14 | J66: =RESUMO!E462 -> 7 | K66: =RESUMO!F462 -> 4 | L66: =RESUMO!G462 -> 2 | M66: =RESUMO!H462 -> 1 | N66: =RESUMO!I462 -> 38 | O66: =RESUMO!J462 -> 25 | P66: =RESUMO!K462 -> 13 | Q66: 23 | R66: 1
C67: =RESUMO!A474 -> 1o G10 | D67: =RESUMO!B474 -> MARCUS VINICIUS-RJ | I67: =RESUMO!D474 -> 19 | J67: =RESUMO!E474 -> 7 | K67: =RESUMO!F474 -> 6 | L67: =RESUMO!G474 -> 1 | M67: =RESUMO!H474 -> 0 | N67: =RESUMO!I474 -> 37 | O67: =RESUMO!J474 -> 20 | P67: =RESUMO!K474 -> 17 | Q67: 23 | R67: 5
C68: =RESUMO!A495 -> 2o G15 | D68: =RESUMO!B495 -> RICARDO BONUCCI-SP | I68: =RESUMO!D495 -> 16 | J68: =RESUMO!E495 -> 7 | K68: =RESUMO!F495 -> 5 | L68: =RESUMO!G495 -> 1 | M68: =RESUMO!H495 -> 1 | N68: =RESUMO!I495 -> 38 | O68: =RESUMO!J495 -> 27 | P68: =RESUMO!K495 -> 11 | Q68: 23 | R68: 6
C69: =RESUMO!A443 -> 2o G2 | D69: =RESUMO!B443 -> RHANIERY-RJ | I69: =RESUMO!D443 -> 15 | J69: =RESUMO!E443 -> 7 | K69: =RESUMO!F443 -> 4 | L69: =RESUMO!G443 -> 3 | M69: =RESUMO!H443 -> 0 | N69: =RESUMO!I443 -> 33 | O69: =RESUMO!J443 -> 29 | P69: =RESUMO!K443 -> 4 | Q69: 23 | R69: 8
C70: =RESUMO!A448 -> 3o G3 | D70: =RESUMO!B448 -> QUARTIM-SP | I70: =RESUMO!D448 -> 14 | J70: =RESUMO!E448 -> 7 | K70: =RESUMO!F448 -> 4 | L70: =RESUMO!G448 -> 2 | M70: =RESUMO!H448 -> 1 | N70: =RESUMO!I448 -> 33 | O70: =RESUMO!J448 -> 27 | P70: =RESUMO!K448 -> 6 | Q70: 23 | R70: 2
C71: =RESUMO!A480 -> 3o G11 | D71: =RESUMO!B480 -> IVAN LEITE-SP | I71: =RESUMO!D480 -> 12 | J71: =RESUMO!E480 -> 7 | K71: =RESUMO!F480 -> 4 | L71: =RESUMO!G480 -> 0 | M71: =RESUMO!H480 -> 3 | N71: =RESUMO!I480 -> 41 | O71: =RESUMO!J480 -> 28 | P71: =RESUMO!K480 -> 13 | Q71: 23 | R71: 3
C72: =RESUMO!A461 -> 4o G6 | D72: =RESUMO!B461 -> SERGIO NENE-SP | I72: =RESUMO!D461 -> 10 | J72: =RESUMO!E461 -> 7 | K72: =RESUMO!F461 -> 3 | L72: =RESUMO!G461 -> 1 | M72: =RESUMO!H461 -> 3 | N72: =RESUMO!I461 -> 37 | O72: =RESUMO!J461 -> 30 | P72: =RESUMO!K461 -> 7 | Q72: 23 | R72: 4
C73: =RESUMO!A493 -> 4o G14 | D73: =RESUMO!B493 -> RODOLFO-RJ | I73: =RESUMO!D493 -> 12 | J73: =RESUMO!E493 -> 7 | K73: =RESUMO!F493 -> 4 | L73: =RESUMO!G493 -> 0 | M73: =RESUMO!H493 -> 3 | N73: =RESUMO!I493 -> 28 | O73: =RESUMO!J493 -> 29 | P73: =RESUMO!K493 -> -1 | Q73: 23 | R73: 7
C74: =$C$4 -> Adulto - 1a Divisão | R74: ="2a Fase - Grupo " & Q76 -> 2a Fase - Grupo 24
C75: Class | D75: BOTONISTAS | I75: PG | J75: J | K75: V | L75: E | M75: D | N75: GP | O75: GC | P75: SG | Q75: Gr. | R75: Seq
C76: =RESUMO!A466 -> 1o G8 | D76: =RESUMO!B466 -> FACCIO-SP | I76: =RESUMO!D466 -> 18 | J76: =RESUMO!E466 -> 7 | K76: =RESUMO!F466 -> 6 | L76: =RESUMO!G466 -> 0 | M76: =RESUMO!H466 -> 1 | N76: =RESUMO!I466 -> 42 | O76: =RESUMO!J466 -> 28 | P76: =RESUMO!K466 -> 14 | Q76: 24 | R76: 1
C77: =RESUMO!A470 -> 1o G9 | D77: =RESUMO!B470 -> JEFFERSON-SP | I77: =RESUMO!D470 -> 21 | J77: =RESUMO!E470 -> 7 | K77: =RESUMO!F470 -> 7 | L77: =RESUMO!G470 -> 0 | M77: =RESUMO!H470 -> 0 | N77: =RESUMO!I470 -> 46 | O77: =RESUMO!J470 -> 18 | P77: =RESUMO!K470 -> 28 | Q77: 24 | R77: 4
C78: =RESUMO!A499 -> 2o G16 | D78: =RESUMO!B499 -> BV-SP | I78: =RESUMO!D499 -> 16 | J78: =RESUMO!E499 -> 7 | K78: =RESUMO!F499 -> 5 | L78: =RESUMO!G499 -> 1 | M78: =RESUMO!H499 -> 1 | N78: =RESUMO!I499 -> 45 | O78: =RESUMO!J499 -> 27 | P78: =RESUMO!K499 -> 18 | Q78: 24 | R78: 2
C79: =RESUMO!A439 -> 2o G1 | D79: =RESUMO!B439 -> BIRA-RJ | I79: =RESUMO!D439 -> 13 | J79: =RESUMO!E439 -> 7 | K79: =RESUMO!F439 -> 4 | L79: =RESUMO!G439 -> 1 | M79: =RESUMO!H439 -> 2 | N79: =RESUMO!I439 -> 35 | O79: =RESUMO!J439 -> 25 | P79: =RESUMO!K439 -> 10 | Q79: 24 | R79: 5
C80: =RESUMO!A452 -> 3o G4 | D80: =RESUMO!B452 -> FRANÇA-SP | I80: =RESUMO!D452 -> 13 | J80: =RESUMO!E452 -> 7 | K80: =RESUMO!F452 -> 4 | L80: =RESUMO!G452 -> 1 | M80: =RESUMO!H452 -> 2 | N80: =RESUMO!I452 -> 34 | O80: =RESUMO!J452 -> 25 | P80: =RESUMO!K452 -> 9 | Q80: 24 | R80: 3
C81: =RESUMO!A484 -> 3o G12 | D81: =RESUMO!B484 -> KEVIN-RS | I81: =RESUMO!D484 -> 13 | J81: =RESUMO!E484 -> 7 | K81: =RESUMO!F484 -> 4 | L81: =RESUMO!G484 -> 1 | M81: =RESUMO!H484 -> 2 | N81: =RESUMO!I484 -> 27 | O81: =RESUMO!J484 -> 25 | P81: =RESUMO!K484 -> 2 | Q81: 24 | R81: 8
C82: =RESUMO!A457 -> 4o G5 | D82: =RESUMO!B457 -> LUCAS JAKA-PR | I82: =RESUMO!D457 -> 12 | J82: =RESUMO!E457 -> 7 | K82: =RESUMO!F457 -> 4 | L82: =RESUMO!G457 -> 0 | M82: =RESUMO!H457 -> 3 | N82: =RESUMO!I457 -> 35 | O82: =RESUMO!J457 -> 26 | P82: =RESUMO!K457 -> 9 | Q82: 24 | R82: 6
C83: =RESUMO!A489 -> 4o G13 | D83: =RESUMO!B489 -> IVAN SANTOS-PR | I83: =RESUMO!D489 -> 10 | J83: =RESUMO!E489 -> 7 | K83: =RESUMO!F489 -> 3 | L83: =RESUMO!G489 -> 1 | M83: =RESUMO!H489 -> 3 | N83: =RESUMO!I489 -> 27 | O83: =RESUMO!J489 -> 25 | P83: =RESUMO!K489 -> 2 | Q83: 24 | R83: 7
C84: Adulto - 4a Divisão | R84: ="2a Fase - Grupo " & Q86 -> 2a Fase - Grupo 25
C85: Class | D85: BOTONISTAS | I85: PG | J85: J | K85: V | L85: E | M85: D | N85: GP | O85: GC | P85: SG | Q85: Gr. | R85: Seq | T85: >>> Atenção <<<
C86: =RESUMO!A505 -> 5o G1 | D86: =RESUMO!B505 -> EMANUEL-PE | I86: =RESUMO!D505 -> 10 | J86: =RESUMO!E505 -> 7 | K86: =RESUMO!F505 -> 3 | L86: =RESUMO!G505 -> 1 | M86: =RESUMO!H505 -> 3 | N86: =RESUMO!I505 -> 30 | O86: =RESUMO!J505 -> 23 | P86: =RESUMO!K505 -> 7 | Q86: 25 | R86: 1 | T86: Para completar o cálculo da 2a Fase proceda da seguinte forma:
C87: =RESUMO!A565 -> 5o G16 | D87: =RESUMO!B565 -> BIRIGUI-PR | I87: =RESUMO!D565 -> 10 | J87: =RESUMO!E565 -> 7 | K87: =RESUMO!F565 -> 3 | L87: =RESUMO!G565 -> 1 | M87: =RESUMO!H565 -> 3 | N87: =RESUMO!I565 -> 21 | O87: =RESUMO!J565 -> 24 | P87: =RESUMO!K565 -> -3 | Q87: 25 | R87: 5 | T87: 1) Coloque os Botonistas do mesmo Estado/Clube dentro de
C88: =RESUMO!A538 -> 6o G9 | D88: =RESUMO!B538 -> ALEX LUCATELLI-SP | I88: =RESUMO!D538 -> 6 | J88: =RESUMO!E538 -> 7 | K88: =RESUMO!F538 -> 2 | L88: =RESUMO!G538 -> 0 | M88: =RESUMO!H538 -> 5 | N88: =RESUMO!I538 -> 29 | O88: =RESUMO!J538 -> 31 | P88: =RESUMO!K538 -> -2 | Q88: 25 | R88: 6 | T88: cada bloco.
C89: =RESUMO!A534 -> 6o G8 | D89: =RESUMO!B534 -> ANDERSON FEST-PE | I89: =RESUMO!D534 -> 6 | J89: =RESUMO!E534 -> 7 | K89: =RESUMO!F534 -> 2 | L89: =RESUMO!G534 -> 0 | M89: =RESUMO!H534 -> 5 | N89: =RESUMO!I534 -> 20 | O89: =RESUMO!J534 -> 30 | P89: =RESUMO!K534 -> -10 | Q89: 25 | R89: 2 | T89: • 2 botonistas: posições 1 e 4 ou 2 e 3 ou 5 e 8 ou 6 e 7
C90: =RESUMO!A523 -> 7o G5 | D90: =RESUMO!B523 -> MARCO AURELIO-PB | I90: =RESUMO!D523 -> 3 | J90: =RESUMO!E523 -> 7 | K90: =RESUMO!F523 -> 1 | L90: =RESUMO!G523 -> 0 | M90: =RESUMO!H523 -> 6 | N90: =RESUMO!I523 -> 13 | O90: =RESUMO!J523 -> 35 | P90: =RESUMO!K523 -> -22 | Q90: 25 | R90: 7 | T90: • 3 botonistas: posições 1, 2 e 4 ou 5, 6 e 8
C91: =RESUMO!A555 -> 7o G13 | D91: =RESUMO!B555 -> DHOLL-PE | I91: =RESUMO!D555 -> 7 | J91: =RESUMO!E555 -> 7 | K91: =RESUMO!F555 -> 2 | L91: =RESUMO!G555 -> 1 | M91: =RESUMO!H555 -> 4 | N91: =RESUMO!I555 -> 16 | O91: =RESUMO!J555 -> 22 | P91: =RESUMO!K555 -> -6 | Q91: 25 | R91: 3 | T91: • 4 botonistas: posições 1 a 4 ou 5 a 8
C92: =RESUMO!A552 -> 8o G12 | D92: =RESUMO!B552 -> MARCOS ALVES-CE | I92: =RESUMO!D552 -> 1 | J92: =RESUMO!E552 -> 7 | K92: =RESUMO!F552 -> 0 | L92: =RESUMO!G552 -> 1 | M92: =RESUMO!H552 -> 6 | N92: =RESUMO!I552 -> 27 | O92: =RESUMO!J552 -> 36 | P92: =RESUMO!K552 -> -9 | Q92: 25 | R92: 8
C93: =RESUMO!A520 -> 8o G4 | D93: =RESUMO!B520 -> HELVIO-PE | I93: =RESUMO!D520 -> 0 | J93: =RESUMO!E520 -> 7 | K93: =RESUMO!F520 -> 0 | L93: =RESUMO!G520 -> 0 | M93: =RESUMO!H520 -> 7 | N93: =RESUMO!I520 -> 12 | O93: =RESUMO!J520 -> 37 | P93: =RESUMO!K520 -> -25 | Q93: 25 | R93: 4
C94: =$C$84 -> Adulto - 4a Divisão | R94: ="2a Fase - Grupo " & Q96 -> 2a Fase - Grupo 26
C95: Class | D95: BOTONISTAS | I95: PG | J95: J | K95: V | L95: E | M95: D | N95: GP | O95: GC | P95: SG | Q95: Gr. | R95: Seq
C96: =RESUMO!A509 -> 5o G2 | D96: =RESUMO!B509 -> FARINHA-SP | I96: =RESUMO!D509 -> 9 | J96: =RESUMO!E509 -> 7 | K96: =RESUMO!F509 -> 3 | L96: =RESUMO!G509 -> 0 | M96: =RESUMO!H509 -> 4 | N96: =RESUMO!I509 -> 28 | O96: =RESUMO!J509 -> 32 | P96: =RESUMO!K509 -> -4 | Q96: 26 | R96: 1
C97: =RESUMO!A561 -> 5o G15 | D97: =RESUMO!B561 -> WALLACE MARINHO-PE | I97: =RESUMO!D561 -> 9 | J97: =RESUMO!E561 -> 7 | K97: =RESUMO!F561 -> 3 | L97: =RESUMO!G561 -> 0 | M97: =RESUMO!H561 -> 4 | N97: =RESUMO!I561 -> 40 | O97: =RESUMO!J561 -> 41 | P97: =RESUMO!K561 -> -1 | Q97: 26 | R97: 2
C98: =RESUMO!A542 -> 6o G10 | D98: =RESUMO!B542 -> RENATO BORGES-GO | I98: =RESUMO!D542 -> 9 | J98: =RESUMO!E542 -> 7 | K98: =RESUMO!F542 -> 3 | L98: =RESUMO!G542 -> 0 | M98: =RESUMO!H542 -> 4 | N98: =RESUMO!I542 -> 24 | O98: =RESUMO!J542 -> 29 | P98: =RESUMO!K542 -> -5 | Q98: 26 | R98: 3
C99: =RESUMO!A530 -> 6o G7 | D99: =RESUMO!B530 -> FRANCISCO JR-SP | I99: =RESUMO!D530 -> 8 | J99: =RESUMO!E530 -> 7 | K99: =RESUMO!F530 -> 2 | L99: =RESUMO!G530 -> 2 | M99: =RESUMO!H530 -> 3 | N99: =RESUMO!I530 -> 34 | O99: =RESUMO!J530 -> 36 | P99: =RESUMO!K530 -> -2 | Q99: 26 | R99: 4
C100: =RESUMO!A527 -> 7o G6 | D100: =RESUMO!B527 -> FAUSTO LIMA-RJ | I100: =RESUMO!D527 -> 6 | J100: =RESUMO!E527 -> 7 | K100: =RESUMO!F527 -> 2 | L100: =RESUMO!G527 -> 0 | M100: =RESUMO!H527 -> 5 | N100: =RESUMO!I527 -> 19 | O100: =RESUMO!J527 -> 32 | P100: =RESUMO!K527 -> -13 | Q100: 26 | R100: 5
C101: =RESUMO!A559 -> 7o G14 | D101: =RESUMO!B559 -> FERNANDO ET-PR | I101: =RESUMO!D559 -> 6 | J101: =RESUMO!E559 -> 7 | K101: =RESUMO!F559 -> 2 | L101: =RESUMO!G559 -> 0 | M101: =RESUMO!H559 -> 5 | N101: =RESUMO!I559 -> 31 | O101: =RESUMO!J559 -> 33 | P101: =RESUMO!K559 -> -2 | Q101: 26 | R101: 6
C102: =RESUMO!A548 -> 8o G11 | D102: =RESUMO!B548 -> DIGAO-DF | I102: =RESUMO!D548 -> 1 | J102: =RESUMO!E548 -> 7 | K102: =RESUMO!F548 -> 0 | L102: =RESUMO!G548 -> 1 | M102: =RESUMO!H548 -> 6 | N102: =RESUMO!I548 -> 20 | O102: =RESUMO!J548 -> 45 | P102: =RESUMO!K548 -> -25 | Q102: 26 | R102: 7
C103: =RESUMO!A516 -> 8o G3 | D103: =RESUMO!B516 -> WEBER-RS | I103: =RESUMO!D516 -> 1 | J103: =RESUMO!E516 -> 7 | K103: =RESUMO!F516 -> 0 | L103: =RESUMO!G516 -> 1 | M103: =RESUMO!H516 -> 6 | N103: =RESUMO!I516 -> 17 | O103: =RESUMO!J516 -> 36 | P103: =RESUMO!K516 -> -19 | Q103: 26 | R103: 8
C104: =$C$84 -> Adulto - 4a Divisão | R104: ="2a Fase - Grupo " & Q106 -> 2a Fase - Grupo 27
C105: Class | D105: BOTONISTAS | I105: PG | J105: J | K105: V | L105: E | M105: D | N105: GP | O105: GC | P105: SG | Q105: Gr. | R105: Seq
C106: =RESUMO!A513 -> 5o G3 | D106: =RESUMO!B513 -> RENATO VARZEA-PE | I106: =RESUMO!D513 -> 7 | J106: =RESUMO!E513 -> 7 | K106: =RESUMO!F513 -> 2 | L106: =RESUMO!G513 -> 1 | M106: =RESUMO!H513 -> 4 | N106: =RESUMO!I513 -> 20 | O106: =RESUMO!J513 -> 27 | P106: =RESUMO!K513 -> -7 | Q106: 27 | R106: 1
C107: =RESUMO!A557 -> 5o G14 | D107: =RESUMO!B557 -> LIMAO-SP | I107: =RESUMO!D557 -> 10 | J107: =RESUMO!E557 -> 7 | K107: =RESUMO!F557 -> 3 | L107: =RESUMO!G557 -> 1 | M107: =RESUMO!H557 -> 3 | N107: =RESUMO!I557 -> 26 | O107: =RESUMO!J557 -> 20 | P107: =RESUMO!K557 -> 6 | Q107: 27 | R107: 5
C108: =RESUMO!A546 -> 6o G11 | D108: =RESUMO!B546 -> MATHEUS CARVALHO-PE | I108: =RESUMO!D546 -> 6 | J108: =RESUMO!E546 -> 7 | K108: =RESUMO!F546 -> 2 | L108: =RESUMO!G546 -> 0 | M108: =RESUMO!H546 -> 5 | N108: =RESUMO!I546 -> 28 | O108: =RESUMO!J546 -> 36 | P108: =RESUMO!K546 -> -8 | Q108: 27 | R108: 2
C109: =RESUMO!A526 -> 6o G6 | D109: =RESUMO!B526 -> PABINHO-RJ | I109: =RESUMO!D526 -> 9 | J109: =RESUMO!E526 -> 7 | K109: =RESUMO!F526 -> 3 | L109: =RESUMO!G526 -> 0 | M109: =RESUMO!H526 -> 4 | N109: =RESUMO!I526 -> 33 | O109: =RESUMO!J526 -> 42 | P109: =RESUMO!K526 -> -9 | Q109: 27 | R109: 6
C110: =RESUMO!A531 -> 7o G7 | D110: =RESUMO!B531 -> CAETANO-PE | I110: =RESUMO!D531 -> 3 | J110: =RESUMO!E531 -> 7 | K110: =RESUMO!F531 -> 0 | L110: =RESUMO!G531 -> 3 | M110: =RESUMO!H531 -> 4 | N110: =RESUMO!I531 -> 26 | O110: =RESUMO!J531 -> 34 | P110: =RESUMO!K531 -> -8 | Q110: 27 | R110: 3
C111: =RESUMO!A563 -> 7o G15 | D111: =RESUMO!B563 -> DILE-SP | I111: =RESUMO!D563 -> 6 | J111: =RESUMO!E563 -> 7 | K111: =RESUMO!F563 -> 2 | L111: =RESUMO!G563 -> 0 | M111: =RESUMO!H563 -> 5 | N111: =RESUMO!I563 -> 30 | O111: =RESUMO!J563 -> 37 | P111: =RESUMO!K563 -> -7 | Q111: 27 | R111: 8
C112: =RESUMO!A544 -> 8o G10 | D112: =RESUMO!B544 -> MARCELO UCHOA-PE | I112: =RESUMO!D544 -> 1 | J112: =RESUMO!E544 -> 7 | K112: =RESUMO!F544 -> 0 | L112: =RESUMO!G544 -> 1 | M112: =RESUMO!H544 -> 6 | N112: =RESUMO!I544 -> 15 | O112: =RESUMO!J544 -> 27 | P112: =RESUMO!K544 -> -12 | Q112: 27 | R112: 4
C113: =RESUMO!A512 -> 8o G2 | D113: =RESUMO!B512 -> ROGERIO-PR | I113: =RESUMO!D512 -> 2 | J113: =RESUMO!E512 -> 7 | K113: =RESUMO!F512 -> 0 | L113: =RESUMO!G512 -> 2 | M113: =RESUMO!H512 -> 5 | N113: =RESUMO!I512 -> 24 | O113: =RESUMO!J512 -> 35 | P113: =RESUMO!K512 -> -11 | Q113: 27 | R113: 7
C114: =$C$84 -> Adulto - 4a Divisão | R114: ="2a Fase - Grupo " & Q116 -> 2a Fase - Grupo 28
C115: Class | D115: BOTONISTAS | I115: PG | J115: J | K115: V | L115: E | M115: D | N115: GP | O115: GC | P115: SG | Q115: Gr. | R115: Seq
C116: =RESUMO!A517 -> 5o G4 | D116: =RESUMO!B517 -> PEDRO GERONASSO-PR | I116: =RESUMO!D517 -> 9 | J116: =RESUMO!E517 -> 7 | K116: =RESUMO!F517 -> 3 | L116: =RESUMO!G517 -> 0 | M116: =RESUMO!H517 -> 4 | N116: =RESUMO!I517 -> 32 | O116: =RESUMO!J517 -> 27 | P116: =RESUMO!K517 -> 5 | Q116: 28 | R116: 1
C117: =RESUMO!A553 -> 5o G13 | D117: =RESUMO!B553 -> PC-SP | I117: =RESUMO!D553 -> 9 | J117: =RESUMO!E553 -> 7 | K117: =RESUMO!F553 -> 3 | L117: =RESUMO!G553 -> 0 | M117: =RESUMO!H553 -> 4 | N117: =RESUMO!I553 -> 30 | O117: =RESUMO!J553 -> 26 | P117: =RESUMO!K553 -> 4 | Q117: 28 | R117: 2
C118: =RESUMO!A550 -> 6o G12 | D118: =RESUMO!B550 -> PAPA-PE | I118: =RESUMO!D550 -> 9 | J118: =RESUMO!E550 -> 7 | K118: =RESUMO!F550 -> 3 | L118: =RESUMO!G550 -> 0 | M118: =RESUMO!H550 -> 4 | N118: =RESUMO!I550 -> 30 | O118: =RESUMO!J550 -> 32 | P118: =RESUMO!K550 -> -2 | Q118: 28 | R118: 4
C119: =RESUMO!A522 -> 6o G5 | D119: =RESUMO!B522 -> IGOR-RJ | I119: =RESUMO!D522 -> 11 | J119: =RESUMO!E522 -> 7 | K119: =RESUMO!F522 -> 3 | L119: =RESUMO!G522 -> 2 | M119: =RESUMO!H522 -> 2 | N119: =RESUMO!I522 -> 46 | O119: =RESUMO!J522 -> 32 | P119: =RESUMO!K522 -> 14 | Q119: 28 | R119: 5
C120: =RESUMO!A535 -> 7o G8 | D120: =RESUMO!B535 -> DENIS SNICHELOTTO-SC | I120: =RESUMO!D535 -> 6 | J120: =RESUMO!E535 -> 7 | K120: =RESUMO!F535 -> 2 | L120: =RESUMO!G535 -> 0 | M120: =RESUMO!H535 -> 5 | N120: =RESUMO!I535 -> 18 | O120: =RESUMO!J535 -> 38 | P120: =RESUMO!K535 -> -20 | Q120: 28 | R120: 6
C121: =RESUMO!A567 -> 7o G16 | D121: =RESUMO!B567 -> LUCAS BOA MORTE-RJ | I121: =RESUMO!D567 -> 3 | J121: =RESUMO!E567 -> 7 | K121: =RESUMO!F567 -> 1 | L121: =RESUMO!G567 -> 0 | M121: =RESUMO!H567 -> 6 | N121: =RESUMO!I567 -> 10 | O121: =RESUMO!J567 -> 28 | P121: =RESUMO!K567 -> -18 | Q121: 28 | R121: 8
C122: =RESUMO!A540 -> 8o G9 | D122: =RESUMO!B540 -> BRENO CASTILHO-MG | I122: =RESUMO!D540 -> 0 | J122: =RESUMO!E540 -> 7 | K122: =RESUMO!F540 -> 0 | L122: =RESUMO!G540 -> 0 | M122: =RESUMO!H540 -> 7 | N122: =RESUMO!I540 -> 11 | O122: =RESUMO!J540 -> 39 | P122: =RESUMO!K540 -> -28 | Q122: 28 | R122: 7
C123: =RESUMO!A508 -> 8o G1 | D123: =RESUMO!B508 -> AMADEU-SP | I123: =RESUMO!D508 -> 2 | J123: =RESUMO!E508 -> 7 | K123: =RESUMO!F508 -> 0 | L123: =RESUMO!G508 -> 2 | M123: =RESUMO!H508 -> 5 | N123: =RESUMO!I508 -> 17 | O123: =RESUMO!J508 -> 33 | P123: =RESUMO!K508 -> -16 | Q123: 28 | R123: 3
C124: =$C$84 -> Adulto - 4a Divisão | R124: ="2a Fase - Grupo " & Q126 -> 2a Fase - Grupo 29
C125: Class | D125: BOTONISTAS | I125: PG | J125: J | K125: V | L125: E | M125: D | N125: GP | O125: GC | P125: SG | Q125: Gr. | R125: Seq | T125: >>> Atenção <<<
C126: =RESUMO!A521 -> 5o G5 | D126: =RESUMO!B521 -> ESPEL-SP | I126: =RESUMO!D521 -> 12 | J126: =RESUMO!E521 -> 7 | K126: =RESUMO!F521 -> 4 | L126: =RESUMO!G521 -> 0 | M126: =RESUMO!H521 -> 3 | N126: =RESUMO!I521 -> 37 | O126: =RESUMO!J521 -> 30 | P126: =RESUMO!K521 -> 7 | Q126: 29 | R126: 1 | T126: Para completar o cálculo da 2a Fase proceda da seguinte forma:
C127: =RESUMO!A549 -> 5o G12 | D127: =RESUMO!B549 -> DIOGO FARIAS -SP | I127: =RESUMO!D549 -> 9 | J127: =RESUMO!E549 -> 7 | K127: =RESUMO!F549 -> 3 | L127: =RESUMO!G549 -> 0 | M127: =RESUMO!H549 -> 4 | N127: =RESUMO!I549 -> 29 | O127: =RESUMO!J549 -> 30 | P127: =RESUMO!K549 -> -1 | Q127: 29 | R127: 2 | T127: 1) Coloque os Botonistas do mesmo Estado/Clube dentro de
C128: =RESUMO!A554 -> 6o G13 | D128: =RESUMO!B554 -> DUDA-SP | I128: =RESUMO!D554 -> 7 | J128: =RESUMO!E554 -> 7 | K128: =RESUMO!F554 -> 2 | L128: =RESUMO!G554 -> 1 | M128: =RESUMO!H554 -> 4 | N128: =RESUMO!I554 -> 19 | O128: =RESUMO!J554 -> 24 | P128: =RESUMO!K554 -> -5 | Q128: 29 | R128: 3 | T128: cada bloco.
C129: =RESUMO!A518 -> 6o G4 | D129: =RESUMO!B518 -> ALCIDES-DF | I129: =RESUMO!D518 -> 9 | J129: =RESUMO!E518 -> 7 | K129: =RESUMO!F518 -> 3 | L129: =RESUMO!G518 -> 0 | M129: =RESUMO!H518 -> 4 | N129: =RESUMO!I518 -> 26 | O129: =RESUMO!J518 -> 35 | P129: =RESUMO!K518 -> -9 | Q129: 29 | R129: 5 | T129: • 2 botonistas: posições 1 e 4 ou 2 e 3 ou 5 e 8 ou 6 e 7
C130: =RESUMO!A507 -> 7o G1 | D130: =RESUMO!B507 -> NATHAN-MG | I130: =RESUMO!D507 -> 5 | J130: =RESUMO!E507 -> 7 | K130: =RESUMO!F507 -> 1 | L130: =RESUMO!G507 -> 2 | M130: =RESUMO!H507 -> 4 | N130: =RESUMO!I507 -> 15 | O130: =RESUMO!J507 -> 39 | P130: =RESUMO!K507 -> -24 | Q130: 29 | R130: 5 | T130: • 3 botonistas: posições 1, 2 e 4 ou 5, 6 e 8
C131: =RESUMO!A539 -> 7o G9 | D131: =RESUMO!B539 -> CLAUDIANOR-PE | I131: =RESUMO!D539 -> 4 | J131: =RESUMO!E539 -> 7 | K131: =RESUMO!F539 -> 1 | L131: =RESUMO!G539 -> 1 | M131: =RESUMO!H539 -> 5 | N131: =RESUMO!I539 -> 16 | O131: =RESUMO!J539 -> 33 | P131: =RESUMO!K539 -> -17 | Q131: 29 | R131: 6 | T131: • 4 botonistas: posições 1 a 4 ou 5 a 8
C132: =RESUMO!A536 -> 8o G8 | D132: =RESUMO!B536 -> LEANDRO SCHMIDT-MG | I132: =RESUMO!D536 -> 0 | J132: =RESUMO!E536 -> 7 | K132: =RESUMO!F536 -> 0 | L132: =RESUMO!G536 -> 0 | M132: =RESUMO!H536 -> 7 | N132: =RESUMO!I536 -> 9 | O132: =RESUMO!J536 -> 29 | P132: =RESUMO!K536 -> -20 | Q132: 29 | R132: 7
C133: =RESUMO!A568 -> 8o G16 | D133: =RESUMO!B568 -> BETO-MG | I133: =RESUMO!D568 -> 1 | J133: =RESUMO!E568 -> 7 | K133: =RESUMO!F568 -> 0 | L133: =RESUMO!G568 -> 1 | M133: =RESUMO!H568 -> 6 | N133: =RESUMO!I568 -> 13 | O133: =RESUMO!J568 -> 30 | P133: =RESUMO!K568 -> -17 | Q133: 29 | R133: 8
C134: =$C$84 -> Adulto - 4a Divisão | R134: ="2a Fase - Grupo " & Q136 -> 2a Fase - Grupo 30
C135: Class | D135: BOTONISTAS | I135: PG | J135: J | K135: V | L135: E | M135: D | N135: GP | O135: GC | P135: SG | Q135: Gr. | R135: Seq
C136: =RESUMO!A525 -> 5o G6 | D136: =RESUMO!B525 -> REGIS ABBOUD-SP | I136: =RESUMO!D525 -> 10 | J136: =RESUMO!E525 -> 7 | K136: =RESUMO!F525 -> 3 | L136: =RESUMO!G525 -> 1 | M136: =RESUMO!H525 -> 3 | N136: =RESUMO!I525 -> 33 | O136: =RESUMO!J525 -> 32 | P136: =RESUMO!K525 -> 1 | Q136: 30 | R136: 5
C137: =RESUMO!A545 -> 5o G11 | D137: =RESUMO!B545 -> DIEGO FERREIRA-PE | I137: =RESUMO!D545 -> 9 | J137: =RESUMO!E545 -> 7 | K137: =RESUMO!F545 -> 2 | L137: =RESUMO!G545 -> 3 | M137: =RESUMO!H545 -> 2 | N137: =RESUMO!I545 -> 32 | O137: =RESUMO!J545 -> 34 | P137: =RESUMO!K545 -> -2 | Q137: 30 | R137: 6
C138: =RESUMO!A558 -> 6o G14 | D138: =RESUMO!B558 -> RAFAEL SANTOS-SP | I138: =RESUMO!D558 -> 9 | J138: =RESUMO!E558 -> 7 | K138: =RESUMO!F558 -> 3 | L138: =RESUMO!G558 -> 0 | M138: =RESUMO!H558 -> 4 | N138: =RESUMO!I558 -> 27 | O138: =RESUMO!J558 -> 25 | P138: =RESUMO!K558 -> 2 | Q138: 30 | R138: 1
C139: =RESUMO!A514 -> 6o G3 | D139: =RESUMO!B514 -> ALEX BAHR-SP | I139: =RESUMO!D514 -> 7 | J139: =RESUMO!E514 -> 7 | K139: =RESUMO!F514 -> 1 | L139: =RESUMO!G514 -> 4 | M139: =RESUMO!H514 -> 2 | N139: =RESUMO!I514 -> 29 | O139: =RESUMO!J514 -> 33 | P139: =RESUMO!K514 -> -4 | Q139: 30 | R139: 2
C140: =RESUMO!A511 -> 7o G2 | D140: =RESUMO!B511 -> ANDERSON-RJ | I140: =RESUMO!D511 -> 3 | J140: =RESUMO!E511 -> 7 | K140: =RESUMO!F511 -> 0 | L140: =RESUMO!G511 -> 3 | M140: =RESUMO!H511 -> 4 | N140: =RESUMO!I511 -> 20 | O140: =RESUMO!J511 -> 29 | P140: =RESUMO!K511 -> -9 | Q140: 30 | R140: 7
C141: =RESUMO!A543 -> 7o G10 | D141: =RESUMO!B543 -> LEANDRIN-SP | I141: =RESUMO!D543 -> 7 | J141: =RESUMO!E543 -> 7 | K141: =RESUMO!F543 -> 2 | L141: =RESUMO!G543 -> 1 | M141: =RESUMO!H543 -> 4 | N141: =RESUMO!I543 -> 26 | O141: =RESUMO!J543 -> 38 | P141: =RESUMO!K543 -> -12 | Q141: 30 | R141: 3
C142: =RESUMO!A532 -> 8o G7 | D142: =RESUMO!B532 -> MARCO BUTANTA-SP | I142: =RESUMO!D532 -> 2 | J142: =RESUMO!E532 -> 7 | K142: =RESUMO!F532 -> 0 | L142: =RESUMO!G532 -> 2 | M142: =RESUMO!H532 -> 5 | N142: =RESUMO!I532 -> 20 | O142: =RESUMO!J532 -> 31 | P142: =RESUMO!K532 -> -11 | Q142: 30 | R142: 4
C143: =RESUMO!A564 -> 8o G15 | D143: =RESUMO!B564 -> THIAGO ASA-AL | I143: =RESUMO!D564 -> 3 | J143: =RESUMO!E564 -> 7 | K143: =RESUMO!F564 -> 1 | L143: =RESUMO!G564 -> 0 | M143: =RESUMO!H564 -> 6 | N143: =RESUMO!I564 -> 26 | O143: =RESUMO!J564 -> 40 | P143: =RESUMO!K564 -> -14 | Q143: 30 | R143: 8
C144: =$C$84 -> Adulto - 4a Divisão | R144: ="2a Fase - Grupo " & Q146 -> 2a Fase - Grupo 31
C145: Class | D145: BOTONISTAS | I145: PG | J145: J | K145: V | L145: E | M145: D | N145: GP | O145: GC | P145: SG | Q145: Gr. | R145: Seq
C146: =RESUMO!A529 -> 5o G7 | D146: =RESUMO!B529 -> FARO-PR | I146: =RESUMO!D529 -> 9 | J146: =RESUMO!E529 -> 7 | K146: =RESUMO!F529 -> 2 | L146: =RESUMO!G529 -> 3 | M146: =RESUMO!H529 -> 2 | N146: =RESUMO!I529 -> 28 | O146: =RESUMO!J529 -> 30 | P146: =RESUMO!K529 -> -2 | Q146: 31 | R146: 1
C147: =RESUMO!A541 -> 5o G10 | D147: =RESUMO!B541 -> ZERO-SP | I147: =RESUMO!D541 -> 10 | J147: =RESUMO!E541 -> 7 | K147: =RESUMO!F541 -> 3 | L147: =RESUMO!G541 -> 1 | M147: =RESUMO!H541 -> 3 | N147: =RESUMO!I541 -> 26 | O147: =RESUMO!J541 -> 26 | P147: =RESUMO!K541 -> 0 | Q147: 31 | R147: 2
C148: =RESUMO!A562 -> 6o G15 | D148: =RESUMO!B562 -> VANDER FELIPE-MG | I148: =RESUMO!D562 -> 7 | J148: =RESUMO!E562 -> 7 | K148: =RESUMO!F562 -> 2 | L148: =RESUMO!G562 -> 1 | M148: =RESUMO!H562 -> 4 | N148: =RESUMO!I562 -> 27 | O148: =RESUMO!J562 -> 38 | P148: =RESUMO!K562 -> -11 | Q148: 31 | R148: 5
C149: =RESUMO!A510 -> 6o G2 | D149: =RESUMO!B510 -> RAFAEL MOREIRA-CE | I149: =RESUMO!D510 -> 8 | J149: =RESUMO!E510 -> 7 | K149: =RESUMO!F510 -> 2 | L149: =RESUMO!G510 -> 2 | M149: =RESUMO!H510 -> 3 | N149: =RESUMO!I510 -> 29 | O149: =RESUMO!J510 -> 34 | P149: =RESUMO!K510 -> -5 | Q149: 31 | R149: 6
C150: =RESUMO!A515 -> 7o G3 | D150: =RESUMO!B515 -> CLEO JR-SP | I150: =RESUMO!D515 -> 5 | J150: =RESUMO!E515 -> 7 | K150: =RESUMO!F515 -> 1 | L150: =RESUMO!G515 -> 2 | M150: =RESUMO!H515 -> 4 | N150: =RESUMO!I515 -> 28 | O150: =RESUMO!J515 -> 35 | P150: =RESUMO!K515 -> -7 | Q150: 31 | R150: 3
C151: =RESUMO!A547 -> 7o G11 | D151: =RESUMO!B547 -> MANTENA-PR | I151: =RESUMO!D547 -> 5 | J151: =RESUMO!E547 -> 7 | K151: =RESUMO!F547 -> 1 | L151: =RESUMO!G547 -> 2 | M151: =RESUMO!H547 -> 4 | N151: =RESUMO!I547 -> 23 | O151: =RESUMO!J547 -> 35 | P151: =RESUMO!K547 -> -12 | Q151: 31 | R151: 4
C152: =RESUMO!A528 -> 8o G6 | D152: =RESUMO!B528 -> RYCHARDSON-PE | I152: =RESUMO!D528 -> 3 | J152: =RESUMO!E528 -> 7 | K152: =RESUMO!F528 -> 1 | L152: =RESUMO!G528 -> 0 | M152: =RESUMO!H528 -> 6 | N152: =RESUMO!I528 -> 20 | O152: =RESUMO!J528 -> 44 | P152: =RESUMO!K528 -> -24 | Q152: 31 | R152: 7
C153: =RESUMO!A560 -> 8o G14 | D153: =RESUMO!B560 -> SAMIR-MG | I153: =RESUMO!D560 -> 0 | J153: =RESUMO!E560 -> 7 | K153: =RESUMO!F560 -> 0 | L153: =RESUMO!G560 -> 0 | M153: =RESUMO!H560 -> 7 | N153: =RESUMO!I560 -> 3 | O153: =RESUMO!J560 -> 38 | P153: =RESUMO!K560 -> -35 | Q153: 31 | R153: 8
C154: =$C$84 -> Adulto - 4a Divisão | R154: ="2a Fase - Grupo " & Q156 -> 2a Fase - Grupo 32
C155: Class | D155: BOTONISTAS | I155: PG | J155: J | K155: V | L155: E | M155: D | N155: GP | O155: GC | P155: SG | Q155: Gr. | R155: Seq
C156: =RESUMO!A533 -> 5o G8 | D156: =RESUMO!B533 -> RINCO-SP | I156: =RESUMO!D533 -> 9 | J156: =RESUMO!E533 -> 7 | K156: =RESUMO!F533 -> 3 | L156: =RESUMO!G533 -> 0 | M156: =RESUMO!H533 -> 4 | N156: =RESUMO!I533 -> 27 | O156: =RESUMO!J533 -> 29 | P156: =RESUMO!K533 -> -2 | Q156: 32 | R156: 1
C157: =RESUMO!A537 -> 5o G9 | D157: =RESUMO!B537 -> MOACIR HENZE-RJ | I157: =RESUMO!D537 -> 12 | J157: =RESUMO!E537 -> 7 | K157: =RESUMO!F537 -> 4 | L157: =RESUMO!G537 -> 0 | M157: =RESUMO!H537 -> 3 | N157: =RESUMO!I537 -> 35 | O157: =RESUMO!J537 -> 34 | P157: =RESUMO!K537 -> 1 | Q157: 32 | R157: 4
C158: =RESUMO!A566 -> 6o G16 | D158: =RESUMO!B566 -> OG GIRAO-SP | I158: =RESUMO!D566 -> 7 | J158: =RESUMO!E566 -> 7 | K158: =RESUMO!F566 -> 2 | L158: =RESUMO!G566 -> 1 | M158: =RESUMO!H566 -> 4 | N158: =RESUMO!I566 -> 24 | O158: =RESUMO!J566 -> 24 | P158: =RESUMO!K566 -> 0 | Q158: 32 | R158: 2
C159: =RESUMO!A506 -> 6o G1 | D159: =RESUMO!B506 -> SCHINA-SC | I159: =RESUMO!D506 -> 8 | J159: =RESUMO!E506 -> 7 | K159: =RESUMO!F506 -> 2 | L159: =RESUMO!G506 -> 2 | M159: =RESUMO!H506 -> 3 | N159: =RESUMO!I506 -> 36 | O159: =RESUMO!J506 -> 31 | P159: =RESUMO!K506 -> 5 | Q159: 32 | R159: 5
C160: =RESUMO!A519 -> 7o G4 | D160: =RESUMO!B519 -> NILO-SP | I160: =RESUMO!D519 -> 6 | J160: =RESUMO!E519 -> 7 | K160: =RESUMO!F519 -> 2 | L160: =RESUMO!G519 -> 0 | M160: =RESUMO!H519 -> 5 | N160: =RESUMO!I519 -> 30 | O160: =RESUMO!J519 -> 37 | P160: =RESUMO!K519 -> -7 | Q160: 32 | R160: 3
C161: =RESUMO!A551 -> 7o G12 | D161: =RESUMO!B551 -> IBSEN-PR | I161: =RESUMO!D551 -> 4 | J161: =RESUMO!E551 -> 7 | K161: =RESUMO!F551 -> 1 | L161: =RESUMO!G551 -> 1 | M161: =RESUMO!H551 -> 5 | N161: =RESUMO!I551 -> 19 | O161: =RESUMO!J551 -> 33 | P161: =RESUMO!K551 -> -14 | Q161: 32 | R161: 6
C162: =RESUMO!A524 -> 8o G5 | D162: =RESUMO!B524 -> CHICONES-DF | I162: =RESUMO!D524 -> 0 | J162: =RESUMO!E524 -> 7 | K162: =RESUMO!F524 -> 0 | L162: =RESUMO!G524 -> 0 | M162: =RESUMO!H524 -> 7 | N162: =RESUMO!I524 -> 11 | O162: =RESUMO!J524 -> 51 | P162: =RESUMO!K524 -> -40 | Q162: 32 | R162: 7
C163: =RESUMO!A556 -> 8o G13 | D163: =RESUMO!B556 -> RODRIGO MARTINS-CE | I163: =RESUMO!D556 -> 0 | J163: =RESUMO!E556 -> 7 | K163: =RESUMO!F556 -> 0 | L163: =RESUMO!G556 -> 0 | M163: =RESUMO!H556 -> 7 | N163: =RESUMO!I556 -> 11 | O163: =RESUMO!J556 -> 40 | P163: =RESUMO!K556 -> -29 | Q163: 32 | R163: 8
C200: Adulto - 1a Divisão | R200: 2a Fase - Grupo 17
C201: Class | D201: BOTONISTAS | I201: PG | J201: J | K201: V | L201: E | M201: D | N201: GP | O201: GC | P201: SG | Q201: Gr. | R201: Seq
C202: 1o G1 | D202: ALDECOA-SP | I202: 16 | J202: 7 | K202: 5 | L202: 1 | M202: 1 | N202: 26 | O202: 21 | P202: 5 | Q202: 17 | R202: 1
C203: 1o G16 | D203: ARTHURZINHO-SP | I203: 21 | J203: 7 | K203: 7 | L203: 0 | M203: 0 | N203: 32 | O203: 15 | P203: 17 | Q203: 17 | R203: 2
C204: 4o G12 | D204: LOIACONO-SP | I204: 12 | J204: 7 | K204: 4 | L204: 0 | M204: 3 | N204: 36 | O204: 36 | P204: 0 | Q204: 17 | R204: 3
C205: 4o G4 | D205: THIAGO LIMA-SP | I205: 12 | J205: 7 | K205: 4 | L205: 0 | M205: 3 | N205: 32 | O205: 24 | P205: 8 | Q205: 17 | R205: 4
C206: 2o G9 | D206: ALAN SILVA-GO | I206: 16 | J206: 7 | K206: 5 | L206: 1 | M206: 1 | N206: 30 | O206: 23 | P206: 7 | Q206: 17 | R206: 5
C207: 2o G8 | D207: ROGERINHO-RJ | I207: 18 | J207: 7 | K207: 6 | L207: 0 | M207: 1 | N207: 36 | O207: 23 | P207: 13 | Q207: 17 | R207: 6
C208: 3o G13 | D208: FAUSTINHO-RJ | I208: 11 | J208: 7 | K208: 3 | L208: 2 | M208: 2 | N208: 22 | O208: 20 | P208: 2 | Q208: 17 | R208: 7
C209: 3o G5 | D209: ADONES-PE | I209: 13 | J209: 7 | K209: 4 | L209: 1 | M209: 2 | N209: 30 | O209: 25 | P209: 5 | Q209: 17 | R209: 8
C210: Adulto - 1a Divisão | R210: 2a Fase - Grupo 18
C211: Class | D211: BOTONISTAS | I211: PG | J211: J | K211: V | L211: E | M211: D | N211: GP | O211: GC | P211: SG | Q211: Gr. | R211: Seq
C212: 1o G2 | D212: QUINHO-SP | I212: 19 | J212: 7 | K212: 6 | L212: 1 | M212: 0 | N212: 48 | O212: 26 | P212: 22 | Q212: 18 | R212: 1
C213: 2o G10 | D213: MURATORE-SP | I213: 12 | J213: 7 | K213: 3 | L213: 3 | M213: 1 | N213: 29 | O213: 26 | P213: 3 | Q213: 18 | R213: 2
C214: 2o G7 | D214: PIETRO VAROLI-SP | I214: 14 | J214: 7 | K214: 4 | L214: 2 | M214: 1 | N214: 34 | O214: 27 | P214: 7 | Q214: 18 | R214: 3
C215: 3o G6 | D215: PICOLINO-SP | I215: 10 | J215: 7 | K215: 3 | L215: 1 | M215: 3 | N215: 39 | O215: 30 | P215: 9 | Q215: 18 | R215: 4
C216: 1o G15 | D216: ROBERTINHO-PR | I216: 16 | J216: 7 | K216: 5 | L216: 1 | M216: 1 | N216: 45 | O216: 25 | P216: 20 | Q216: 18 | R216: 5
C217: 3o G14 | D217: BEL-PE | I217: 12 | J217: 7 | K217: 4 | L217: 0 | M217: 3 | N217: 25 | O217: 24 | P217: 1 | Q217: 18 | R217: 6
C218: 4o G11 | D218: LUCAS CAVALCANTE-RJ | I218: 11 | J218: 7 | K218: 3 | L218: 2 | M218: 2 | N218: 36 | O218: 33 | P218: 3 | Q218: 18 | R218: 7
C219: 4o G3 | D219: PEDRO PRANDO-PR | I219: 10 | J219: 7 | K219: 3 | L219: 1 | M219: 3 | N219: 23 | O219: 30 | P219: -7 | Q219: 18 | R219: 8
C220: Adulto - 1a Divisão | R220: 2a Fase - Grupo 19
C221: Class | D221: BOTONISTAS | I221: PG | J221: J | K221: V | L221: E | M221: D | N221: GP | O221: GC | P221: SG | Q221: Gr. | R221: Seq
C222: 1o G3 | D222: NANDO-RJ | I222: 19 | J222: 7 | K222: 6 | L222: 1 | M222: 0 | N222: 48 | O222: 23 | P222: 25 | Q222: 19 | R222: 1
C223: 3o G7 | D223: PIRICA-RJ | I223: 14 | J223: 7 | K223: 4 | L223: 2 | M223: 1 | N223: 33 | O223: 28 | P223: 5 | Q223: 19 | R223: 2
C224: 3o G15 | D224: CHRISTOFER-RJ | I224: 12 | J224: 7 | K224: 4 | L224: 0 | M224: 3 | N224: 23 | O224: 26 | P224: -3 | Q224: 19 | R224: 3
C225: 4o G10 | D225: RENAN PIMENTA-PR | I225: 10 | J225: 7 | K225: 3 | L225: 1 | M225: 3 | N225: 28 | O225: 23 | P225: 5 | Q225: 19 | R225: 4
C226: 1o G14 | D226: DINEY-SP | I226: 19 | J226: 7 | K226: 6 | L226: 1 | M226: 0 | N226: 36 | O226: 19 | P226: 17 | Q226: 19 | R226: 5
C227: 2o G11 | D227: ERISMAR-SP | I227: 16 | J227: 7 | K227: 5 | L227: 1 | M227: 1 | N227: 38 | O227: 28 | P227: 10 | Q227: 19 | R227: 6
C228: 2o G6 | D228: MICHILIN-SP | I228: 15 | J228: 7 | K228: 5 | L228: 0 | M228: 2 | N228: 37 | O228: 23 | P228: 14 | Q228: 19 | R228: 7
C229: 4o G2 | D229: MATHEUS TINE-PE | I229: 10 | J229: 7 | K229: 3 | L229: 1 | M229: 3 | N229: 34 | O229: 33 | P229: 1 | Q229: 19 | R229: 8
C230: Adulto - 1a Divisão | R230: 2a Fase - Grupo 20
C231: Class | D231: BOTONISTAS | I231: PG | J231: J | K231: V | L231: E | M231: D | N231: GP | O231: GC | P231: SG | Q231: Gr. | R231: Seq
C232: 1o G4 | D232: ALESSANDRO-RJ | I232: 18 | J232: 7 | K232: 6 | L232: 0 | M232: 1 | N232: 32 | O232: 22 | P232: 10 | Q232: 20 | R232: 1
C233: 1o G13 | D233: VINICIUS MENDES-RJ | I233: 19 | J233: 7 | K233: 6 | L233: 1 | M233: 0 | N233: 30 | O233: 15 | P233: 15 | Q233: 20 | R233: 2
C234: 2o G12 | D234: DIOGO-RJ | I234: 15 | J234: 7 | K234: 5 | L234: 0 | M234: 2 | N234: 44 | O234: 36 | P234: 8 | Q234: 20 | R234: 3
C235: 3o G16 | D235: FLAVINHO-RJ | I235: 11 | J235: 7 | K235: 3 | L235: 2 | M235: 2 | N235: 21 | O235: 19 | P235: 2 | Q235: 20 | R235: 4
C236: 2o G5 | D236: VICTOR VAROLI-SP | I236: 13 | J236: 7 | K236: 4 | L236: 1 | M236: 2 | N236: 43 | O236: 36 | P236: 7 | Q236: 20 | R236: 5
C237: 3o G8 | D237: GUERREIRO-SP | I237: 15 | J237: 7 | K237: 5 | L237: 0 | M237: 2 | N237: 42 | O237: 22 | P237: 20 | Q237: 20 | R237: 6
C238: 4o G9 | D238: TADEU-SP | I238: 12 | J238: 7 | K238: 4 | L238: 0 | M238: 3 | N238: 29 | O238: 25 | P238: 4 | Q238: 20 | R238: 7
... 121 more rows

Sheet F2
S1: =#REF!+#REF!+#REF!+#REF! -> 
C2: =INFO!$C$1 -> 32º Campeonato Brasileiro Individual
C4: ='G2'!$C$200 -> Adulto - 1a Divisão | Q4: ='G2'!$R$200 -> 2a Fase - Grupo 17 | U4: =F7 -> ALDECOA-SP | AA4: =IF(RIGHT(U4,4)="(WO)",0,1) -> 1 | AC4: =F8 -> ARTHURZINHO-SP | AI4: =IF(RIGHT(AC4,4)="(WO)",0,1) -> 1 | AK4: =M8 -> LOIACONO-SP | AQ4: =IF(RIGHT(AK4,4)="(WO)",0,1) -> 1 | AS4: =M7 -> THIAGO LIMA-SP | AY4: =IF(RIGHT(AS4,4)="(WO)",0,1) -> 1 | BA4: =F9 -> ALAN SILVA-GO | BG4: =IF(RIGHT(BA4,4)="(WO)",0,1) -> 1 | BI4: =F10 -> ROGERINHO-RJ | BO4: =IF(RIGHT(BI4,4)="(WO)",0,1) -> 1 | BQ4: =M10 -> FAUSTINHO-RJ | BW4: =IF(RIGHT(BQ4,4)="(WO)",0,1) -> 1 | BY4: =M9 -> ADONES-PE | CE4: =IF(RIGHT(BY4,4)="(WO)",0,1) -> 1
B5: Grp | C5: Rod. | D5: Data/Hora | E5: Mesa | F5: Jogos | S5: Ok | U5: J | V5: V | W5: E | X5: D | Y5: GP | Z5: GC | AA5: PG | AC5: J | AD5: V | AE5: E | AF5: D | AG5: GP | AH5: GC | AI5: PG | AK5: J | AL5: V | AM5: E | AN5: D | AO5: GP | AP5: GC | AQ5: PG | AS5: J | AT5: V | AU5: E | AV5: D | AW5: GP | AX5: GC | AY5: PG | BA5: J | BB5: V | BC5: E | BD5: D | BE5: GP | BF5: GC | BG5: PG | BI5: J | BJ5: V | BK5: E | BL5: D | BM5: GP | BN5: GC | BO5: PG | BQ5: J | BR5: V | BS5: E | BT5: D | BU5: GP | BV5: GC | BW5: PG | BY5: J | BZ5: V | CA5: E | CB5: D | CC5: GP | CD5: GC | CE5: PG | CH5: Rodada
B7: 1 | C7: 8 | D7: 2022-06-17 | E7: 1 | F7: =D44 -> ALDECOA-SP | K7: 3 | L7: 2 | M7: =D47 -> THIAGO LIMA-SP | S7: =COUNTBLANK(K7:L7) -> 0 | U7: =IF(S7=0,1,0) -> 1 | V7: =IF(AND(S7=0,K7>L7),1,0)*AA4 -> 1 | W7: =IF(AND(S7=0,K7=L7),1,0)*AA4 -> 0 | X7: =U7-V7-W7 -> 0 | Y7: =K7 -> 3 | Z7: =L7 -> 2 | AA7: =((V7*3)+W7)*AA4 -> 3 | AS7: =IF(S7=0,1,0) -> 1 | AT7: =IF(AND(S7=0,L7>K7),1,0)*AY4 -> 0 | AU7: =IF(AND(S7=0,K7=L7),1,0)*AY4 -> 0 | AV7: =AS7-AT7-AU7 -> 1 | AW7: =L7 -> 2 | AX7: =K7 -> 3 | AY7: =((AT7*3)+AU7)*AY4 -> 0 | CH7: 1ª
B8: 1 | E8: =E7+1 -> 2 | F8: =D45 -> ARTHURZINHO-SP | K8: 5 | L8: 1 | M8: =D46 -> LOIACONO-SP | S8: =COUNTBLANK(K8:L8) -> 0 | AC8: =IF(S8=0,1,0) -> 1 | AD8: =IF(AND(S8=0,K8>L8),1,0)*AI4 -> 1 | AE8: =IF(AND(S8=0,K8=L8),1,0)*AI4 -> 0 | AF8: =AC8-AD8-AE8 -> 0 | AG8: =K8 -> 5 | AH8: =L8 -> 1 | AI8: =((AD8*3)+AE8)*AI4 -> 3 | AK8: =IF(S8=0,1,0) -> 1 | AL8: =IF(AND(S8=0,L8>K8),1,0)*AQ4 -> 0 | AM8: =IF(AND(S8=0,K8=L8),1,0)*AQ4 -> 0 | AN8: =AK8-AL8-AM8 -> 1 | AO8: =L8 -> 1 | AP8: =K8 -> 5 | AQ8: =((AL8*3)+AM8)*AQ4 -> 0
B9: 1 | D9: 14:00:00 | E9: =E8+1 -> 3 | F9: =D48 -> ALAN SILVA-GO | K9: 4 | L9: 2 | M9: =D51 -> ADONES-PE | S9: =COUNTBLANK(K9:L9) -> 0 | BA9: =IF(S9=0,1,0) -> 1 | BB9: =IF(AND(S9=0,K9>L9),1,0)*BG4 -> 1 | BC9: =IF(AND(S9=0,K9=L9),1,0)*BG4 -> 0 | BD9: =BA9-BB9-BC9 -> 0 | BE9: =K9 -> 4 | BF9: =L9 -> 2 | BG9: =((BB9*3)+BC9)*BG4 -> 3 | BY9: =IF(S9=0,1,0) -> 1 | BZ9: =IF(AND(S9=0,L9>K9),1,0)*CE4 -> 0 | CA9: =IF(AND(S9=0,K9=L9),1,0)*CE4 -> 0 | CB9: =BY9-BZ9-CA9 -> 1 | CC9: =L9 -> 2 | CD9: =K9 -> 4 | CE9: =((BZ9*3)+CA9)*CE4 -> 0
B10: 1 | E10: =E9+1 -> 4 | F10: =D49 -> ROGERINHO-RJ | K10: 3 | L10: 0 | M10: =D50 -> FAUSTINHO-RJ | S10: =COUNTBLANK(K10:L10) -> 0 | BI10: =IF(S10=0,1,0) -> 1 | BJ10: =IF(AND(S10=0,K10>L10),1,0)*BO4 -> 1 | BK10: =IF(AND(S10=0,K10=L10),1,0)*BO4 -> 0 | BL10: =BI10-BJ10-BK10 -> 0 | BM10: =K10 -> 3 | BN10: =L10 -> 0 | BO10: =((BJ10*3)+BK10)*BO4 -> 3 | BQ10: =IF(S10=0,1,0) -> 1 | BR10: =IF(AND(S10=0,L10>K10),1,0)*BW4 -> 0 | BS10: =IF(AND(S10=0,K10=L10),1,0)*BW4 -> 0 | BT10: =BQ10-BR10-BS10 -> 1 | BU10: =L10 -> 0 | BV10: =K10 -> 3 | BW10: =((BR10*3)+BS10)*BW4 -> 0
B11: 1
B12: 1 | C12: 9 | D12: =$D$7 -> 2022-06-17 | E12: 5 | F12: =F7 -> ALDECOA-SP | K12: 6 | L12: 1 | M12: =M8 -> LOIACONO-SP | S12: =COUNTBLANK(K12:L12) -> 0 | U12: =IF(S12=0,1,0) -> 1 | V12: =IF(AND(S12=0,K12>L12),1,0)*AA4 -> 1 | W12: =IF(AND(S12=0,K12=L12),1,0)*AA4 -> 0 | X12: =U12-V12-W12 -> 0 | Y12: =K12 -> 6 | Z12: =L12 -> 1 | AA12: =((V12*3)+W12)*AA4 -> 3 | AK12: =IF(S12=0,1,0) -> 1 | AL12: =IF(AND(S12=0,L12>K12),1,0)*AQ4 -> 0 | AM12: =IF(AND(S12=0,K12=L12),1,0)*AQ4 -> 0 | AN12: =AK12-AL12-AM12 -> 1 | AO12: =L12 -> 1 | AP12: =K12 -> 6 | AQ12: =((AL12*3)+AM12)*AQ4 -> 0 | CH12: 2ª
B13: 1 | E13: =E12+1 -> 6 | F13: =F8 -> ARTHURZINHO-SP | K13: 2 | L13: 3 | M13: =M7 -> THIAGO LIMA-SP | S13: =COUNTBLANK(K13:L13) -> 0 | AC13: =IF(S13=0,1,0) -> 1 | AD13: =IF(AND(S13=0,K13>L13),1,0)*AI4 -> 0 | AE13: =IF(AND(S13=0,K13=L13),1,0)*AI4 -> 0 | AF13: =AC13-AD13-AE13 -> 1 | AG13: =K13 -> 2 | AH13: =L13 -> 3 | AI13: =((AD13*3)+AE13)*AI4 -> 0 | AS13: =IF(S13=0,1,0) -> 1 | AT13: =IF(AND(S13=0,L13>K13),1,0)*AY4 -> 1 | AU13: =IF(AND(S13=0,K13=L13),1,0)*AY4 -> 0 | AV13: =AS13-AT13-AU13 -> 0 | AW13: =L13 -> 3 | AX13: =K13 -> 2 | AY13: =((AT13*3)+AU13)*AY4 -> 3
B14: 1 | D14: 14:30:00 | E14: =E13+1 -> 7 | F14: =F9 -> ALAN SILVA-GO | K14: 5 | L14: 3 | M14: =M10 -> FAUSTINHO-RJ | S14: =COUNTBLANK(K14:L14) -> 0 | BA14: =IF(S14=0,1,0) -> 1 | BB14: =IF(AND(S14=0,K14>L14),1,0)*BG4 -> 1 | BC14: =IF(AND(S14=0,K14=L14),1,0)*BG4 -> 0 | BD14: =BA14-BB14-BC14 -> 0 | BE14: =K14 -> 5 | BF14: =L14 -> 3 | BG14: =((BB14*3)+BC14)*BG4 -> 3 | BQ14: =IF(S14=0,1,0) -> 1 | BR14: =IF(AND(S14=0,L14>K14),1,0)*BW4 -> 0 | BS14: =IF(AND(S14=0,K14=L14),1,0)*BW4 -> 0 | BT14: =BQ14-BR14-BS14 -> 1 | BU14: =L14 -> 3 | BV14: =K14 -> 5 | BW14: =((BR14*3)+BS14)*BW4 -> 0
B15: 1 | E15: =E14+1 -> 8 | F15: =F10 -> ROGERINHO-RJ | K15: 5 | L15: 3 | M15: =M9 -> ADONES-PE | S15: =COUNTBLANK(K15:L15) -> 0 | BI15: =IF(S15=0,1,0) -> 1 | BJ15: =IF(AND(S15=0,K15>L15),1,0)*BO4 -> 1 | BK15: =IF(AND(S15=0,K15=L15),1,0)*BO4 -> 0 | BL15: =BI15-BJ15-BK15 -> 0 | BM15: =K15 -> 5 | BN15: =L15 -> 3 | BO15: =((BJ15*3)+BK15)*BO4 -> 3 | BY15: =IF(S15=0,1,0) -> 1 | BZ15: =IF(AND(S15=0,L15>K15),1,0)*CE4 -> 0 | CA15: =IF(AND(S15=0,K15=L15),1,0)*CE4 -> 0 | CB15: =BY15-BZ15-CA15 -> 1 | CC15: =L15 -> 3 | CD15: =K15 -> 5 | CE15: =((BZ15*3)+CA15)*CE4 -> 0
B17: 1 | C17: 10 | D17: =$D$7 -> 2022-06-17 | E17: 9 | F17: =F12 -> ALDECOA-SP | K17: 6 | L17: 2 | M17: =F13 -> ARTHURZINHO-SP | S17: =COUNTBLANK(K17:L17) -> 0 | U17: =IF(S17=0,1,0) -> 1 | V17: =IF(AND(S17=0,K17>L17),1,0)*AA4 -> 1 | W17: =IF(AND(S17=0,K17=L17),1,0)*AA4 -> 0 | X17: =U17-V17-W17 -> 0 | Y17: =K17 -> 6 | Z17: =L17 -> 2 | AA17: =((V17*3)+W17)*AA4 -> 3 | AC17: =IF(S17=0,1,0) -> 1 | AD17: =IF(AND(S17=0,L17>K17),1,0)*AI4 -> 0 | AE17: =IF(AND(S17=0,K17=L17),1,0)*AI4 -> 0 | AF17: =AC17-AD17-AE17 -> 1 | AG17: =L17 -> 2 | AH17: =K17 -> 6 | AI17: =((AD17*3)+AE17)*AI4 -> 0 | CH17: 3ª
B18: 1 | E18: =E17+1 -> 10 | F18: =M12 -> LOIACONO-SP | K18: 3 | L18: 9 | M18: =M13 -> THIAGO LIMA-SP | S18: =COUNTBLANK(K18:L18) -> 0 | AK18: =IF(S18=0,1,0) -> 1 | AL18: =IF(AND(S18=0,K18>L18),1,0)*AQ4 -> 0 | AM18: =IF(AND(S18=0,K18=L18),1,0)*AQ4 -> 0 | AN18: =AK18-AL18-AM18 -> 1 | AO18: =K18 -> 3 | AP18: =L18 -> 9 | AQ18: =((AL18*3)+AM18)*AQ4 -> 0 | AS18: =IF(S18=0,1,0) -> 1 | AT18: =IF(AND(S18=0,L18>K18),1,0)*AY4 -> 1 | AU18: =IF(AND(S18=0,K18=L18),1,0)*AY4 -> 0 | AV18: =AS18-AT18-AU18 -> 0 | AW18: =L18 -> 9 | AX18: =K18 -> 3 | AY18: =((AT18*3)+AU18)*AY4 -> 3
B19: 1 | D19: 15:00:00 | E19: =E18+1 -> 11 | F19: =F14 -> ALAN SILVA-GO | K19: 3 | L19: 3 | M19: =F15 -> ROGERINHO-RJ | S19: =COUNTBLANK(K19:L19) -> 0 | BA19: =IF(S19=0,1,0) -> 1 | BB19: =IF(AND(S19=0,K19>L19),1,0)*BG4 -> 0 | BC19: =IF(AND(S19=0,K19=L19),1,0)*BG4 -> 1 | BD19: =BA19-BB19-BC19 -> 0 | BE19: =K19 -> 3 | BF19: =L19 -> 3 | BG19: =((BB19*3)+BC19)*BG4 -> 1 | BI19: =IF(S19=0,1,0) -> 1 | BJ19: =IF(AND(S19=0,L19>K19),1,0)*BO4 -> 0 | BK19: =IF(AND(S19=0,K19=L19),1,0)*BO4 -> 1 | BL19: =BI19-BJ19-BK19 -> 0 | BM19: =L19 -> 3 | BN19: =K19 -> 3 | BO19: =((BJ19*3)+BK19)*BO4 -> 1
B20: 1 | E20: =E19+1 -> 12 | F20: =M14 -> FAUSTINHO-RJ | K20: 3 | L20: 5 | M20: =M15 -> ADONES-PE | S20: =COUNTBLANK(K20:L20) -> 0 | BQ20: =IF(S20=0,1,0) -> 1 | BR20: =IF(AND(S20=0,K20>L20),1,0)*BW4 -> 0 | BS20: =IF(AND(S20=0,K20=L20),1,0)*BW4 -> 0 | BT20: =BQ20-BR20-BS20 -> 1 | BU20: =K20 -> 3 | BV20: =L20 -> 5 | BW20: =((BR20*3)+BS20)*BW4 -> 0 | BY20: =IF(S20=0,1,0) -> 1 | BZ20: =IF(AND(S20=0,L20>K20),1,0)*CE4 -> 1 | CA20: =IF(AND(S20=0,K20=L20),1,0)*CE4 -> 0 | CB20: =BY20-BZ20-CA20 -> 0 | CC20: =L20 -> 5 | CD20: =K20 -> 3 | CE20: =((BZ20*3)+CA20)*CE4 -> 3
B22: 1 | C22: 11 | D22: =$D$7 -> 2022-06-17 | E22: 13 | F22: =F19 -> ALAN SILVA-GO | K22: 4 | L22: 4 | M22: =M17 -> ARTHURZINHO-SP | S22: =COUNTBLANK(K22:L22) -> 0 | AC22: =IF(S22=0,1,0) -> 1 | AD22: =IF(AND(S22=0,L22>K22),1,0)*AI4 -> 0 | AE22: =IF(AND(S22=0,K22=L22),1,0)*AI4 -> 1 | AF22: =AC22-AD22-AE22 -> 0 | AG22: =L22 -> 4 | AH22: =K22 -> 4 | AI22: =((AD22*3)+AE22)*AI4 -> 1 | BA22: =IF(S22=0,1,0) -> 1 | BB22: =IF(AND(S22=0,K22>L22),1,0)*BG4 -> 0 | BC22: =IF(AND(S22=0,K22=L22),1,0)*BG4 -> 1 | BD22: =BA22-BB22-BC22 -> 0 | BE22: =K22 -> 4 | BF22: =L22 -> 4 | BG22: =((BB22*3)+BC22)*BG4 -> 1 | CH22: 4ª
B23: 1 | E23: =E22+1 -> 14 | F23: =M19 -> ROGERINHO-RJ | K23: 2 | L23: 4 | M23: =F18 -> LOIACONO-SP | S23: =COUNTBLANK(K23:L23) -> 0 | AK23: =IF(S23=0,1,0) -> 1 | AL23: =IF(AND(S23=0,L23>K23),1,0)*AQ4 -> 1 | AM23: =IF(AND(S23=0,K23=L23),1,0)*AQ4 -> 0 | AN23: =AK23-AL23-AM23 -> 0 | AO23: =L23 -> 4 | AP23: =K23 -> 2 | AQ23: =((AL23*3)+AM23)*AQ4 -> 3 | BI23: =IF(S23=0,1,0) -> 1 | BJ23: =IF(AND(S23=0,K23>L23),1,0)*BO4 -> 0 | BK23: =IF(AND(S23=0,K23=L23),1,0)*BO4 -> 0 | BL23: =BI23-BJ23-BK23 -> 1 | BM23: =K23 -> 2 | BN23: =L23 -> 4 | BO23: =((BJ23*3)+BK23)*BO4 -> 0
B24: 1 | D24: 15:30:00 | E24: =E23+1 -> 15 | F24: =F20 -> FAUSTINHO-RJ | K24: 0 | L24: 7 | M24: =M18 -> THIAGO LIMA-SP | S24: =COUNTBLANK(K24:L24) -> 0 | AS24: =IF(S24=0,1,0) -> 1 | AT24: =IF(AND(S24=0,L24>K24),1,0)*AY4 -> 1 | AU24: =IF(AND(S24=0,K24=L24),1,0)*AY4 -> 0 | AV24: =AS24-AT24-AU24 -> 0 | AW24: =L24 -> 7 | AX24: =K24 -> 0 | AY24: =((AT24*3)+AU24)*AY4 -> 3 | BQ24: =IF(S24=0,1,0) -> 1 | BR24: =IF(AND(S24=0,K24>L24),1,0)*BW4 -> 0 | BS24: =IF(AND(S24=0,K24=L24),1,0)*BW4 -> 0 | BT24: =BQ24-BR24-BS24 -> 1 | BU24: =K24 -> 0 | BV24: =L24 -> 7 | BW24: =((BR24*3)+BS24)*BW4 -> 0
B25: 1 | E25: =E24+1 -> 16 | F25: =M20 -> ADONES-PE | K25: 1 | L25: 2 | M25: =F17 -> ALDECOA-SP | S25: =COUNTBLANK(K25:L25) -> 0 | U25: =IF(S25=0,1,0) -> 1 | V25: =IF(AND(S25=0,L25>K25),1,0)*AA4 -> 1 | W25: =IF(AND(S25=0,K25=L25),1,0)*AA4 -> 0 | X25: =U25-V25-W25 -> 0 | Y25: =L25 -> 2 | Z25: =K25 -> 1 | AA25: =((V25*3)+W25)*AA4 -> 3 | BY25: =IF(S25=0,1,0) -> 1 | BZ25: =IF(AND(S25=0,K25>L25),1,0)*CE4 -> 0 | CA25: =IF(AND(S25=0,K25=L25),1,0)*CE4 -> 0 | CB25: =BY25-BZ25-CA25 -> 1 | CC25: =K25 -> 1 | CD25: =L25 -> 2 | CE25: =((BZ25*3)+CA25)*CE4 -> 0
B27: 1 | C27: 12 | D27: =$D$7 -> 2022-06-17 | E27: 17 | F27: =F22 -> ALAN SILVA-GO | K27: 4 | L27: 2 | M27: =M23 -> LOIACONO-SP | S27: =COUNTBLANK(K27:L27) -> 0 | AK27: =IF(S27=0,1,0) -> 1 | AL27: =IF(AND(S27=0,L27>K27),1,0)*AQ4 -> 0 | AM27: =IF(AND(S27=0,K27=L27),1,0)*AQ4 -> 0 | AN27: =AK27-AL27-AM27 -> 1 | AO27: =L27 -> 2 | AP27: =K27 -> 4 | AQ27: =((AL27*3)+AM27)*AQ4 -> 0 | BA27: =IF(S27=0,1,0) -> 1 | BB27: =IF(AND(S27=0,K27>L27),1,0)*BG4 -> 1 | BC27: =IF(AND(S27=0,K27=L27),1,0)*BG4 -> 0 | BD27: =BA27-BB27-BC27 -> 0 | BE27: =K27 -> 4 | BF27: =L27 -> 2 | BG27: =((BB27*3)+BC27)*BG4 -> 3 | CH27: 5ª
B28: 1 | E28: =E27+1 -> 18 | F28: =F23 -> ROGERINHO-RJ | K28: 4 | L28: 7 | M28: =M24 -> THIAGO LIMA-SP | S28: =COUNTBLANK(K28:L28) -> 0 | AS28: =IF(S28=0,1,0) -> 1 | AT28: =IF(AND(S28=0,L28>K28),1,0)*AY4 -> 1 | AU28: =IF(AND(S28=0,K28=L28),1,0)*AY4 -> 0 | AV28: =AS28-AT28-AU28 -> 0 | AW28: =L28 -> 7 | AX28: =K28 -> 4 | AY28: =((AT28*3)+AU28)*AY4 -> 3 | BI28: =IF(S28=0,1,0) -> 1 | BJ28: =IF(AND(S28=0,K28>L28),1,0)*BO4 -> 0 | BK28: =IF(AND(S28=0,K28=L28),1,0)*BO4 -> 0 | BL28: =BI28-BJ28-BK28 -> 1 | BM28: =K28 -> 4 | BN28: =L28 -> 7 | BO28: =((BJ28*3)+BK28)*BO4 -> 0
B29: 1 | D29: 16:00:00 | E29: =E28+1 -> 19 | F29: =F24 -> FAUSTINHO-RJ | K29: 2 | L29: 6 | M29: =M25 -> ALDECOA-SP | S29: =COUNTBLANK(K29:L29) -> 0 | U29: =IF(S29=0,1,0) -> 1 | V29: =IF(AND(S29=0,L29>K29),1,0)*AA4 -> 1 | W29: =IF(AND(S29=0,K29=L29),1,0)*AA4 -> 0 | X29: =U29-V29-W29 -> 0 | Y29: =L29 -> 6 | Z29: =K29 -> 2 | AA29: =((V29*3)+W29)*AA4 -> 3 | BQ29: =IF(S29=0,1,0) -> 1 | BR29: =IF(AND(S29=0,K29>L29),1,0)*BW4 -> 0 | BS29: =IF(AND(S29=0,K29=L29),1,0)*BW4 -> 0 | BT29: =BQ29-BR29-BS29 -> 1 | BU29: =K29 -> 2 | BV29: =L29 -> 6 | BW29: =((BR29*3)+BS29)*BW4 -> 0
B30: 1 | E30: =E29+1 -> 20 | F30: =F25 -> ADONES-PE | K30: 2 | L30: 3 | M30: =M22 -> ARTHURZINHO-SP | S30: =COUNTBLANK(K30:L30) -> 0 | AC30: =IF(S30=0,1,0) -> 1 | AD30: =IF(AND(S30=0,L30>K30),1,0)*AI4 -> 1 | AE30: =IF(AND(S30=0,K30=L30),1,0)*AI4 -> 0 | AF30: =AC30-AD30-AE30 -> 0 | AG30: =L30 -> 3 | AH30: =K30 -> 2 | AI30: =((AD30*3)+AE30)*AI4 -> 3 | BY30: =IF(S30=0,1,0) -> 1 | BZ30: =IF(AND(S30=0,K30>L30),1,0)*CE4 -> 0 | CA30: =IF(AND(S30=0,K30=L30),1,0)*CE4 -> 0 | CB30: =BY30-BZ30-CA30 -> 1 | CC30: =K30 -> 2 | CD30: =L30 -> 3 | CE30: =((BZ30*3)+CA30)*CE4 -> 0
B32: 1 | C32: 13 | D32: =$D$7 -> 2022-06-17 | E32: 21 | F32: =F28 -> ROGERINHO-RJ | K32: 4 | L32: 3 | M32: =M30 -> ARTHURZINHO-SP | S32: =COUNTBLANK(K32:L32) -> 0 | AC32: =IF(S32=0,1,0) -> 1 | AD32: =IF(AND(S32=0,L32>K32),1,0)*AI4 -> 0 | AE32: =IF(AND(S32=0,K32=L32),1,0)*AI4 -> 0 | AF32: =AC32-AD32-AE32 -> 1 | AG32: =L32 -> 3 | AH32: =K32 -> 4 | AI32: =((AD32*3)+AE32)*AI4 -> 0 | BI32: =IF(S32=0,1,0) -> 1 | BJ32: =IF(AND(S32=0,K32>L32),1,0)*BO4 -> 1 | BK32: =IF(AND(S32=0,K32=L32),1,0)*BO4 -> 0 | BL32: =BI32-BJ32-BK32 -> 0 | BM32: =K32 -> 4 | BN32: =L32 -> 3 | BO32: =((BJ32*3)+BK32)*BO4 -> 3 | CH32: 6ª
B33: 1 | E33: =E32+1 -> 22 | F33: =F27 -> ALAN SILVA-GO | K33: 1 | L33: 3 | M33: =M29 -> ALDECOA-SP | S33: =COUNTBLANK(K33:L33) -> 0 | U33: =IF(S33=0,1,0) -> 1 | V33: =IF(AND(S33=0,L33>K33),1,0)*AA4 -> 1 | W33: =IF(AND(S33=0,K33=L33),1,0)*AA4 -> 0 | X33: =U33-V33-W33 -> 0 | Y33: =L33 -> 3 | Z33: =K33 -> 1 | AA33: =((V33*3)+W33)*AA4 -> 3 | BA33: =IF(S33=0,1,0) -> 1 | BB33: =IF(AND(S33=0,K33>L33),1,0)*BG4 -> 0 | BC33: =IF(AND(S33=0,K33=L33),1,0)*BG4 -> 0 | BD33: =BA33-BB33-BC33 -> 1 | BE33: =K33 -> 1 | BF33: =L33 -> 3 | BG33: =((BB33*3)+BC33)*BG4 -> 0
B34: 1 | D34: 16:30:00 | E34: =E33+1 -> 23 | F34: =F30 -> ADONES-PE | K34: 4 | L34: 6 | M34: =M28 -> THIAGO LIMA-SP | S34: =COUNTBLANK(K34:L34) -> 0 | AS34: =IF(S34=0,1,0) -> 1 | AT34: =IF(AND(S34=0,L34>K34),1,0)*AY4 -> 1 | AU34: =IF(AND(S34=0,K34=L34),1,0)*AY4 -> 0 | AV34: =AS34-AT34-AU34 -> 0 | AW34: =L34 -> 6 | AX34: =K34 -> 4 | AY34: =((AT34*3)+AU34)*AY4 -> 3 | BY34: =IF(S34=0,1,0) -> 1 | BZ34: =IF(AND(S34=0,K34>L34),1,0)*CE4 -> 0 | CA34: =IF(AND(S34=0,K34=L34),1,0)*CE4 -> 0 | CB34: =BY34-BZ34-CA34 -> 1 | CC34: =K34 -> 4 | CD34: =L34 -> 6 | CE34: =((BZ34*3)+CA34)*CE4 -> 0
B35: 1 | E35: =E34+1 -> 24 | F35: =F29 -> FAUSTINHO-RJ | K35: 3 | L35: 5 | M35: =M27 -> LOIACONO-SP | S35: =COUNTBLANK(K35:L35) -> 0 | AK35: =IF(S35=0,1,0) -> 1 | AL35: =IF(AND(S35=0,L35>K35),1,0)*AQ4 -> 1 | AM35: =IF(AND(S35=0,K35=L35),1,0)*AQ4 -> 0 | AN35: =AK35-AL35-AM35 -> 0 | AO35: =L35 -> 5 | AP35: =K35 -> 3 | AQ35: =((AL35*3)+AM35)*AQ4 -> 3 | BQ35: =IF(S35=0,1,0) -> 1 | BR35: =IF(AND(S35=0,K35>L35),1,0)*BW4 -> 0 | BS35: =IF(AND(S35=0,K35=L35),1,0)*BW4 -> 0 | BT35: =BQ35-BR35-BS35 -> 1 | BU35: =K35 -> 3 | BV35: =L35 -> 5 | BW35: =((BR35*3)+BS35)*BW4 -> 0
B37: 1 | C37: 14 | D37: =$D$7 -> 2022-06-17 | E37: 25 | F37: =F34 -> ADONES-PE | K37: 1 | L37: 5 | M37: =M35 -> LOIACONO-SP | S37: =COUNTBLANK(K37:L37) -> 0 | AK37: =IF(S37=0,1,0) -> 1 | AL37: =IF(AND(S37=0,L37>K37),1,0)*AQ4 -> 1 | AM37: =IF(AND(S37=0,K37=L37),1,0)*AQ4 -> 0 | AN37: =AK37-AL37-AM37 -> 0 | AO37: =L37 -> 5 | AP37: =K37 -> 1 | AQ37: =((AL37*3)+AM37)*AQ4 -> 3 | BY37: =IF(S37=0,1,0) -> 1 | BZ37: =IF(AND(S37=0,K37>L37),1,0)*CE4 -> 0 | CA37: =IF(AND(S37=0,K37=L37),1,0)*CE4 -> 0 | CB37: =BY37-BZ37-CA37 -> 1 | CC37: =K37 -> 1 | CD37: =L37 -> 5 | CE37: =((BZ37*3)+CA37)*CE4 -> 0 | CH37: 7ª
B38: 1 | E38: =E37+1 -> 26 | F38: =F32 -> ROGERINHO-RJ | K38: 4 | L38: 2 | M38: =M33 -> ALDECOA-SP | S38: =COUNTBLANK(K38:L38) -> 0 | U38: =IF(S38=0,1,0) -> 1 | V38: =IF(AND(S38=0,L38>K38),1,0)*AA4 -> 0 | W38: =IF(AND(S38=0,K38=L38),1,0)*AA4 -> 0 | X38: =U38-V38-W38 -> 1 | Y38: =L38 -> 2 | Z38: =K38 -> 4 | AA38: =((V38*3)+W38)*AA4 -> 0 | BI38: =IF(S38=0,1,0) -> 1 | BJ38: =IF(AND(S38=0,K38>L38),1,0)*BO4 -> 1 | BK38: =IF(AND(S38=0,K38=L38),1,0)*BO4 -> 0 | BL38: =BI38-BJ38-BK38 -> 0 | BM38: =K38 -> 4 | BN38: =L38 -> 2 | BO38: =((BJ38*3)+BK38)*BO4 -> 3
B39: 1 | D39: 17:00:00 | E39: =E38+1 -> 27 | F39: =F35 -> FAUSTINHO-RJ | K39: 3 | L39: 6 | M39: =M32 -> ARTHURZINHO-SP | S39: =COUNTBLANK(K39:L39) -> 0 | AC39: =IF(S39=0,1,0) -> 1 | AD39: =IF(AND(S39=0,L39>K39),1,0)*AI4 -> 1 | AE39: =IF(AND(S39=0,K39=L39),1,0)*AI4 -> 0 | AF39: =AC39-AD39-AE39 -> 0 | AG39: =L39 -> 6 | AH39: =K39 -> 3 | AI39: =((AD39*3)+AE39)*AI4 -> 3 | BQ39: =IF(S39=0,1,0) -> 1 | BR39: =IF(AND(S39=0,K39>L39),1,0)*BW4 -> 0 | BS39: =IF(AND(S39=0,K39=L39),1,0)*BW4 -> 0 | BT39: =BQ39-BR39-BS39 -> 1 | BU39: =K39 -> 3 | BV39: =L39 -> 6 | BW39: =((BR39*3)+BS39)*BW4 -> 0
B40: 1 | E40: =E39+1 -> 28 | F40: =F33 -> ALAN SILVA-GO | K40: 5 | L40: 5 | M40: =M34 -> THIAGO LIMA-SP | S40: =COUNTBLANK(K40:L40) -> 0 | AS40: =IF(S40=0,1,0) -> 1 | AT40: =IF(AND(S40=0,L40>K40),1,0)*AY4 -> 0 | AU40: =IF(AND(S40=0,K40=L40),1,0)*AY4 -> 1 | AV40: =AS40-AT40-AU40 -> 0 | AW40: =L40 -> 5 | AX40: =K40 -> 5 | AY40: =((AT40*3)+AU40)*AY4 -> 1 | BA40: =IF(S40=0,1,0) -> 1 | BB40: =IF(AND(S40=0,K40>L40),1,0)*BG4 -> 0 | BC40: =IF(AND(S40=0,K40=L40),1,0)*BG4 -> 1 | BD40: =BA40-BB40-BC40 -> 0 | BE40: =K40 -> 5 | BF40: =L40 -> 5 | BG40: =((BB40*3)+BC40)*BG4 -> 1
S41: =SUM(S7:S40) -> 0 | U41: =SUM(U7:U40) -> 7 | V41: 6 | W41: 0 | X41: 1 | Y41: 28 | Z41: 13 | AA41: =SUM(AA7:AA40) -> 18 | AC41: =SUM(AC7:AC40) -> 7 | AD41: 3 | AE41: 1 | AF41: 3 | AG41: 25 | AH41: 23 | AI41: 10 | AK41: =SUM(AK7:AK40) -> 7 | AL41: 3 | AM41: 0 | AN41: 4 | AO41: 21 | AP41: 30 | AQ41: 9 | AS41: =SUM(AS7:AS40) -> 7 | AT41: 5 | AU41: 1 | AV41: 1 | AW41: 39 | AX41: 21 | AY41: 16 | BA41: =SUM(BA7:BA40) -> 7 | BB41: 3 | BC41: 3 | BD41: 1 | BE41: 26 | BF41: 22 | BG41: 12 | BI41: =SUM(BI7:BI40) -> 7 | BJ41: 4 | BK41: 1 | BL41: 2 | BM41: 25 | BN41: 22 | BO41: 13 | BQ41: =SUM(BQ7:BQ40) -> 7 | BR41: 0 | BS41: 0 | BT41: 7 | BU41: 14 | BV41: 37 | BW41: 0 | BY41: =SUM(BY7:BY40) -> 7 | BZ41: 1 | CA41: 0 | CB41: 6 | CC41: 18 | CD41: 28 | CE41: 3
C42: Acumulado da 1a Fase | S42: Resumo da 1a Fase
C43: Class | D43: Botonistas | I43: PG | J43: J | K43: V | L43: E | M43: D | N43: GP | O43: GC | P43: SG | S43: Cl | U43: Nome | AC43: J | AD43: V | AE43: E | AF43: D | AG43: GP | AH43: GC | AI43: PG
C44: ='G2'!C202 -> 1o G1 | D44: ='G2'!D202 -> ALDECOA-SP | I44: ='G2'!I202 -> 16 | J44: ='G2'!J202 -> 7 | K44: ='G2'!K202 -> 5 | L44: ='G2'!L202 -> 1 | M44: ='G2'!M202 -> 1 | N44: ='G2'!N202 -> 26 | O44: ='G2'!O202 -> 21 | P44: ='G2'!P202 -> 5 | U44: =D44 -> ALDECOA-SP | AC44: =J44 -> 7 | AD44: =K44 -> 5 | AE44: 1 | AF44: 1 | AG44: 26 | AH44: 21 | AI44: =I44 -> 16
C45: ='G2'!C203 -> 1o G16 | D45: ='G2'!D203 -> ARTHURZINHO-SP | I45: ='G2'!I203 -> 21 | J45: ='G2'!J203 -> 7 | K45: ='G2'!K203 -> 7 | L45: ='G2'!L203 -> 0 | M45: ='G2'!M203 -> 0 | N45: ='G2'!N203 -> 32 | O45: ='G2'!O203 -> 15 | P45: ='G2'!P203 -> 17 | U45: =D45 -> ARTHURZINHO-SP | AC45: =J45 -> 7 | AD45: =K45 -> 7 | AE45: =L45 -> 0 | AF45: =M45 -> 0 | AG45: =N45 -> 32 | AH45: =O45 -> 15 | AI45: =I45 -> 21
C46: ='G2'!C204 -> 4o G12 | D46: ='G2'!D204 -> LOIACONO-SP | I46: ='G2'!I204 -> 12 | J46: ='G2'!J204 -> 7 | K46: ='G2'!K204 -> 4 | L46: ='G2'!L204 -> 0 | M46: ='G2'!M204 -> 3 | N46: ='G2'!N204 -> 36 | O46: ='G2'!O204 -> 36 | P46: ='G2'!P204 -> 0 | U46: =D46 -> LOIACONO-SP | AC46: =J46 -> 7 | AD46: 4 | AE46: 0 | AF46: 3 | AG46: 36 | AH46: 36 | AI46: 12
C47: ='G2'!C205 -> 4o G4 | D47: ='G2'!D205 -> THIAGO LIMA-SP | I47: ='G2'!I205 -> 12 | J47: ='G2'!J205 -> 7 | K47: ='G2'!K205 -> 4 | L47: ='G2'!L205 -> 0 | M47: ='G2'!M205 -> 3 | N47: ='G2'!N205 -> 32 | O47: ='G2'!O205 -> 24 | P47: ='G2'!P205 -> 8 | U47: THIAGO LIMA-SP | AC47: 7 | AD47: 4 | AE47: 0 | AF47: 3 | AG47: 32 | AH47: 24 | AI47: 12
C48: ='G2'!C206 -> 2o G9 | D48: ='G2'!D206 -> ALAN SILVA-GO | I48: ='G2'!I206 -> 16 | J48: ='G2'!J206 -> 7 | K48: ='G2'!K206 -> 5 | L48: ='G2'!L206 -> 1 | M48: ='G2'!M206 -> 1 | N48: ='G2'!N206 -> 30 | O48: ='G2'!O206 -> 23 | P48: ='G2'!P206 -> 7 | U48: ALAN SILVA-GO | AC48: 7 | AD48: 5 | AE48: 1 | AF48: 1 | AG48: 30 | AH48: 23 | AI48: 16
C49: ='G2'!C207 -> 2o G8 | D49: ='G2'!D207 -> ROGERINHO-RJ | I49: ='G2'!I207 -> 18 | J49: ='G2'!J207 -> 7 | K49: ='G2'!K207 -> 6 | L49: ='G2'!L207 -> 0 | M49: ='G2'!M207 -> 1 | N49: ='G2'!N207 -> 36 | O49: ='G2'!O207 -> 23 | P49: ='G2'!P207 -> 13 | U49: ROGERINHO-RJ | AC49: 7 | AD49: 6 | AE49: 0 | AF49: 1 | AG49: 36 | AH49: 23 | AI49: 18
C50: ='G2'!C208 -> 3o G13 | D50: ='G2'!D208 -> FAUSTINHO-RJ | I50: ='G2'!I208 -> 11 | J50: ='G2'!J208 -> 7 | K50: ='G2'!K208 -> 3 | L50: ='G2'!L208 -> 2 | M50: ='G2'!M208 -> 2 | N50: ='G2'!N208 -> 22 | O50: ='G2'!O208 -> 20 | P50: ='G2'!P208 -> 2 | U50: FAUSTINHO-RJ | AC50: 7 | AD50: 3 | AE50: 2 | AF50: 2 | AG50: 22 | AH50: 20 | AI50: 11
C51: ='G2'!C209 -> 3o G5 | D51: ='G2'!D209 -> ADONES-PE | I51: ='G2'!I209 -> 13 | J51: ='G2'!J209 -> 7 | K51: ='G2'!K209 -> 4 | L51: ='G2'!L209 -> 1 | M51: ='G2'!M209 -> 2 | N51: ='G2'!N209 -> 30 | O51: ='G2'!O209 -> 25 | P51: ='G2'!P209 -> 5 | U51: ADONES-PE | AC51: 7 | AD51: 4 | AE51: 1 | AF51: 2 | AG51: 30 | AH51: 25 | AI51: 13
C52: 2a Fase | S52: Resumo da 2a Fase
C53: Class | D53: Botonistas | I53: PG | J53: J | K53: V | L53: E | M53: D | N53: GP | O53: GC | P53: SG | Q53: Sorteio | S53: Cl | U53: Botonista | AC53: J | AD53: V | AE53: E | AF53: D | AG53: GP | AH53: GC | AI53: PG | AJ53: Chave Sort | AR53: Cl | AT53: Botonista | BA53: J | BB53: V | BC53: E | BD53: D | BE53: GP | BF53: GC | BG53: PG | BH53: Chave Sort
B54: =IF($S$41=0,"è","") -> è | C54: =AR54 -> 1 | D54: =AT54 -> ALDECOA-SP | I54: =BG54 -> 18 | J54: =BA54 -> 7 | K54: 6 | L54: 0 | M54: 1 | N54: =BE54 -> 28 | O54: 13 | P54: =N54-O54 -> 15 | Q54: =IF(INT(BH54)=INT(BH55),ASC(CHAR(252)),"") ->  | S54: =RANK(AJ54,AJ54:AJ61,0) -> 1 | U54: =F7 -> ALDECOA-SP | AC54: =U41 -> 7 | AD54: 6 | AE54: 0 | AF54: 1 | AG54: 28 | AH54: 13 | AI54: 18 | AJ54: =(AI54*1000000000000000)+((AI54+AI44)*1000000000000)+((AD54+AD44)*1000000000)+((AG54+AG44-AH54-AH44)*1000000)+((AG54+AG44)*1000)+((AG54-AH54))+(AR54/10) -> 1.803401102e+16 | AR54: 1 | AT54: =VLOOKUP(AR54,S54:AJ61,3,FALSE) -> ALDECOA-SP | BA54: =VLOOKUP(AR54,S54:AJ61,11,FALSE) -> 7 | BB54: =VLOOKUP(AR54,S54:AJ61,12,FALSE) -> 6 | BC54: =VLOOKUP(AR54,S54:AJ61,13,FALSE) -> 0 | BD54: =VLOOKUP(AR54,S54:AJ61,14,FALSE) -> 1 | BE54: =VLOOKUP(AR54,S54:AJ61,15,FALSE) -> 28 | BF54: =VLOOKUP(AR54,S54:AJ61,16,FALSE) -> 13 | BG54: =VLOOKUP(AR54,S54:AJ61,17,FALSE) -> 18 | BH54: =VLOOKUP(AR54,S54:AJ61,18,FALSE) -> 1.803401102e+16 | BI54: =VLOOKUP($AR54,$S$37:$AI$51,17,FALSE) -> 
B55: =IF($S$41=0,"è","") -> è | C55: 2 | D55: =AT55 -> THIAGO LIMA-SP | I55: 16 | J55: 7 | K55: 5 | L55: 1 | M55: 1 | N55: 39 | O55: 21 | P55: 18 | Q55: =IF(OR(INT(BH55)=INT(BH54),INT(BH56)=INT(BH55)),ASC(CHAR(252)),"") ->  | S55: =RANK(AJ55,AJ54:AJ61,0) -> 5 | U55: =U45 -> ARTHURZINHO-SP | AC55: =AC41 -> 7 | AD55: 3 | AE55: 1 | AF55: 3 | AG55: 25 | AH55: 23 | AI55: 10 | AJ55: =(AI55*1000000000000000)+((AI55+AI45)*1000000000000)+((AD55+AD45)*1000000000)+((AG55+AG45-AH55-AH45)*1000000)+((AG55+AG45)*1000)+((AG55-AH55))+(AR55/10) -> 1.003101002e+16 | AR55: 2 | AT55: =VLOOKUP(AR55,S54:AJ61,3,FALSE) -> THIAGO LIMA-SP | BA55: =VLOOKUP(AR55,S54:AJ61,11,FALSE) -> 7 | BB55: =VLOOKUP(AR55,S54:AJ61,12,FALSE) -> 5 | BC55: =VLOOKUP(AR55,S54:AJ61,13,FALSE) -> 1 | BD55: =VLOOKUP(AR55,S54:AJ61,14,FALSE) -> 1 | BE55: =VLOOKUP(AR55,S54:AJ61,15,FALSE) -> 39 | BF55: =VLOOKUP(AR55,S54:AJ61,16,FALSE) -> 21 | BG55: =VLOOKUP(AR55,S54:AJ61,17,FALSE) -> 16 | BH55: =VLOOKUP(AR55,S54:AJ61,18,FALSE) -> 1.602800903e+16
B56: è | C56: 3 | D56: ROGERINHO-RJ | I56: 13 | J56: 7 | K56: 4 | L56: 1 | M56: 2 | N56: 25 | O56: 22 | P56: 3 | S56: =RANK(AJ56,AJ54:AJ61,0) -> 6 | U56: =U46 -> LOIACONO-SP | AC56: =AK41 -> 7 | AD56: 3 | AE56: 0 | AF56: 4 | AG56: 21 | AH56: 30 | AI56: 9 | AJ56: =(AI56*1000000000000000)+((AI56+AI46)*1000000000000)+((AD56+AD46)*1000000000)+((AG56+AG46-AH56-AH46)*1000000)+((AG56+AG46)*1000)+((AG56-AH56))+(AR56/10) -> 9021006991056992 | AR56: 3 | AT56: =VLOOKUP(AR56,S54:AJ61,3,FALSE) -> ROGERINHO-RJ | BA56: =VLOOKUP(AR56,S54:AJ61,11,FALSE) -> 7 | BB56: =VLOOKUP(AR56,S54:AJ61,12,FALSE) -> 4 | BC56: =VLOOKUP(AR56,S54:AJ61,13,FALSE) -> 1 | BD56: =VLOOKUP(AR56,S54:AJ61,14,FALSE) -> 2 | BE56: =VLOOKUP(AR56,S54:AJ61,15,FALSE) -> 25 | BF56: =VLOOKUP(AR56,S54:AJ61,16,FALSE) -> 22 | BG56: =VLOOKUP(AR56,S54:AJ61,17,FALSE) -> 13 | BH56: =VLOOKUP(AR56,S54:AJ61,18,FALSE) -> 1.303101002e+16
B57: è | C57: 4 | D57: ALAN SILVA-GO | I57: 12 | J57: 7 | K57: 3 | L57: 3 | M57: 1 | N57: 26 | O57: 22 | P57: 4 | S57: =RANK(AJ57,AJ54:AJ61,0) -> 2 | U57: THIAGO LIMA-SP | AC57: =AS41 -> 7 | AD57: 5 | AE57: 1 | AF57: 1 | AG57: 39 | AH57: 21 | AI57: 16 | AJ57: =(AI57*1000000000000000)+((AI57+AI47)*1000000000000)+((AD57+AD47)*1000000000)+((AG57+AG47-AH57-AH47)*1000000)+((AG57+AG47)*1000)+((AG57-AH57))+(AR57/10) -> 1.602800903e+16 | AR57: 4 | AT57: =VLOOKUP(AR57,S54:AJ61,3,FALSE) -> ALAN SILVA-GO | BA57: =VLOOKUP(AR57,S54:AJ61,11,FALSE) -> 7 | BB57: =VLOOKUP(AR57,S54:AJ61,12,FALSE) -> 3 | BC57: =VLOOKUP(AR57,S54:AJ61,13,FALSE) -> 3 | BD57: =VLOOKUP(AR57,S54:AJ61,14,FALSE) -> 1 | BE57: =VLOOKUP(AR57,S54:AJ61,15,FALSE) -> 26 | BF57: =VLOOKUP(AR57,S54:AJ61,16,FALSE) -> 22 | BG57: =VLOOKUP(AR57,S54:AJ61,17,FALSE) -> 12 | BH57: =VLOOKUP(AR57,S54:AJ61,18,FALSE) -> 1.202800801e+16
B58: =IF($S$41=0,"ð","") -> ð | C58: 5 | D58: ARTHURZINHO-SP | I58: 10 | J58: 7 | K58: 3 | L58: 1 | M58: 3 | N58: 25 | O58: 23 | P58: 2 | S58: =RANK(AJ58,AJ54:AJ61,0) -> 4 | U58: ALAN SILVA-GO | AC58: =BA41 -> 7 | AD58: 3 | AE58: 3 | AF58: 1 | AG58: 26 | AH58: 22 | AI58: 12 | AJ58: 1.202800801e+16 | AR58: 5 | AT58: =VLOOKUP(AR58,S54:AJ61,3,FALSE) -> ARTHURZINHO-SP | BA58: =VLOOKUP(AR58,S54:AJ61,11,FALSE) -> 7 | BB58: =VLOOKUP(AR58,S54:AJ61,12,FALSE) -> 3 | BC58: =VLOOKUP(AR58,S54:AJ61,13,FALSE) -> 1 | BD58: =VLOOKUP(AR58,S54:AJ61,14,FALSE) -> 3 | BE58: =VLOOKUP(AR58,S54:AJ61,15,FALSE) -> 25 | BF58: =VLOOKUP(AR58,S54:AJ61,16,FALSE) -> 23 | BG58: =VLOOKUP(AR58,S54:AJ61,17,FALSE) -> 10 | BH58: =VLOOKUP(AR58,S54:AJ61,18,FALSE) -> 1.003101002e+16
B59: =IF($S$41=0,"ð","") -> ð | C59: 6 | D59: LOIACONO-SP | I59: 9 | J59: 7 | K59: 3 | L59: 0 | M59: 4 | N59: 21 | O59: 30 | P59: -9 | S59: =RANK(AJ59,AJ54:AJ61,0) -> 3 | U59: ROGERINHO-RJ | AC59: =BI41 -> 7 | AD59: 4 | AE59: 1 | AF59: 2 | AG59: 25 | AH59: 22 | AI59: 13 | AJ59: 1.303101002e+16 | AR59: 6 | AT59: =VLOOKUP(AR59,S54:AJ61,3,FALSE) -> LOIACONO-SP | BA59: =VLOOKUP(AR59,S54:AJ61,11,FALSE) -> 7 | BB59: =VLOOKUP(AR59,S54:AJ61,12,FALSE) -> 3 | BC59: =VLOOKUP(AR59,S54:AJ61,13,FALSE) -> 0 | BD59: =VLOOKUP(AR59,S54:AJ61,14,FALSE) -> 4 | BE59: =VLOOKUP(AR59,S54:AJ61,15,FALSE) -> 21 | BF59: =VLOOKUP(AR59,S54:AJ61,16,FALSE) -> 30 | BG59: =VLOOKUP(AR59,S54:AJ61,17,FALSE) -> 9 | BH59: =VLOOKUP(AR59,S54:AJ61,18,FALSE) -> 9021006991056992
B60: ð | C60: =AR60 -> 7 | D60: ADONES-PE | I60: 3 | J60: 7 | K60: 1 | L60: 0 | M60: 6 | N60: 18 | O60: 28 | P60: -10 | S60: =RANK(AJ60,AJ54:AJ61,0) -> 8 | U60: FAUSTINHO-RJ | AC60: =BQ41 -> 7 | AD60: 0 | AE60: 0 | AF60: 7 | AG60: 14 | AH60: 37 | AI60: 0 | AJ60: 1.100297904e+13 | AR60: 7 | AT60: =VLOOKUP(AR60,S54:AJ61,3,FALSE) -> ADONES-PE | BA60: =VLOOKUP(AR60,S54:AJ61,11,FALSE) -> 7 | BB60: =VLOOKUP(AR60,S54:AJ61,12,FALSE) -> 1 | BC60: =VLOOKUP(AR60,S54:AJ61,13,FALSE) -> 0 | BD60: =VLOOKUP(AR60,S54:AJ61,14,FALSE) -> 6 | BE60: =VLOOKUP(AR60,S54:AJ61,15,FALSE) -> 18 | BF60: =VLOOKUP(AR60,S54:AJ61,16,FALSE) -> 28 | BG60: =VLOOKUP(AR60,S54:AJ61,17,FALSE) -> 3 | BH60: =VLOOKUP(AR60,S54:AJ61,18,FALSE) -> 3016004995047991
B61: ð | C61: =AR61 -> 8 | D61: FAUSTINHO-RJ | I61: 0 | J61: 7 | K61: 0 | L61: 0 | M61: 7 | N61: 14 | O61: 37 | P61: -23 | S61: =RANK(AJ61,AJ54:AJ61,0) -> 7 | U61: ADONES-PE | AC61: =BY41 -> 7 | AD61: 1 | AE61: 0 | AF61: 6 | AG61: 18 | AH61: 28 | AI61: 3 | AJ61: 3016004995047991 | AR61: 8 | AT61: =VLOOKUP(AR61,S54:AJ61,3,FALSE) -> FAUSTINHO-RJ | BA61: =VLOOKUP(AR61,S54:AJ61,11,FALSE) -> 7 | BB61: =VLOOKUP(AR61,S54:AJ61,12,FALSE) -> 0 | BC61: =VLOOKUP(AR61,S54:AJ61,13,FALSE) -> 0 | BD61: =VLOOKUP(AR61,S54:AJ61,14,FALSE) -> 7 | BE61: =VLOOKUP(AR61,S54:AJ61,15,FALSE) -> 14 | BF61: =VLOOKUP(AR61,S54:AJ61,16,FALSE) -> 37 | BG61: =VLOOKUP(AR61,S54:AJ61,17,FALSE) -> 0 | BH61: =VLOOKUP(AR61,S54:AJ61,18,FALSE) -> 1.100297904e+13
C63: è | D63: 1a Divisão | N63: ð | O63: 3a Divisão
C66: ='G2'!$C$210 -> Adulto - 1a Divisão | Q66: ='G2'!$R$210 -> 2a Fase - Grupo 18 | U66: =F69 -> QUINHO-SP | AA66: =IF(RIGHT(U66,4)="(WO)",0,1) -> 1 | AC66: =F70 -> MURATORE-SP | AI66: =IF(RIGHT(AC66,4)="(WO)",0,1) -> 1 | AK66: =M70 -> PIETRO VAROLI-SP | AQ66: =IF(RIGHT(AK66,4)="(WO)",0,1) -> 1 | AS66: =M69 -> PICOLINO-SP | AY66: =IF(RIGHT(AS66,4)="(WO)",0,1) -> 1 | BA66: =F71 -> ROBERTINHO-PR | BG66: =IF(RIGHT(BA66,4)="(WO)",0,1) -> 1 | BI66: =F72 -> BEL-PE | BO66: =IF(RIGHT(BI66,4)="(WO)",0,1) -> 1 | BQ66: =M72 -> LUCAS CAVALCANTE-RJ | BW66: =IF(RIGHT(BQ66,4)="(WO)",0,1) -> 1 | BY66: =M71 -> PEDRO PRANDO-PR | CE66: =IF(RIGHT(BY66,4)="(WO)",0,1) -> 1
B67: Grp | C67: Rod. | D67: Data/Hora | E67: Mesa | F67: Jogos | S67: Ok | U67: J | V67: V | W67: E | X67: D | Y67: GP | Z67: GC | AA67: PG | AC67: J | AD67: V | AE67: E | AF67: D | AG67: GP | AH67: GC | AI67: PG | AK67: J | AL67: V | AM67: E | AN67: D | AO67: GP | AP67: GC | AQ67: PG | AS67: J | AT67: V | AU67: E | AV67: D | AW67: GP | AX67: GC | AY67: PG | BA67: J | BB67: V | BC67: E | BD67: D | BE67: GP | BF67: GC | BG67: PG | BI67: J | BJ67: V | BK67: E | BL67: D | BM67: GP | BN67: GC | BO67: PG | BQ67: J | BR67: V | BS67: E | BT67: D | BU67: GP | BV67: GC | BW67: PG | BY67: J | BZ67: V | CA67: E | CB67: D | CC67: GP | CD67: GC | CE67: PG | CH67: Rodada
B69: 1 | C69: 8 | D69: 2022-06-17 | E69: 5 | F69: =D106 -> QUINHO-SP | K69: 5 | L69: 1 | M69: =D109 -> PICOLINO-SP | S69: =COUNTBLANK(K69:L69) -> 0 | U69: =IF(S69=0,1,0) -> 1 | V69: =IF(AND(S69=0,K69>L69),1,0)*AA66 -> 1 | W69: =IF(AND(S69=0,K69=L69),1,0)*AA66 -> 0 | X69: =U69-V69-W69 -> 0 | Y69: =K69 -> 5 | Z69: =L69 -> 1 | AA69: =((V69*3)+W69)*AA66 -> 3 | AS69: =IF(S69=0,1,0) -> 1 | AT69: =IF(AND(S69=0,L69>K69),1,0)*AY66 -> 0 | AU69: =IF(AND(S69=0,K69=L69),1,0)*AY66 -> 0 | AV69: =AS69-AT69-AU69 -> 1 | AW69: =L69 -> 1 | AX69: =K69 -> 5 | AY69: =((AT69*3)+AU69)*AY66 -> 0 | CH69: 1ª
B70: 1 | E70: =E69+1 -> 6 | F70: =D107 -> MURATORE-SP | K70: 3 | L70: 7 | M70: =D108 -> PIETRO VAROLI-SP | S70: =COUNTBLANK(K70:L70) -> 0 | AC70: =IF(S70=0,1,0) -> 1 | AD70: =IF(AND(S70=0,K70>L70),1,0)*AI66 -> 0 | AE70: =IF(AND(S70=0,K70=L70),1,0)*AI66 -> 0 | AF70: =AC70-AD70-AE70 -> 1 | AG70: =K70 -> 3 | AH70: =L70 -> 7 | AI70: =((AD70*3)+AE70)*AI66 -> 0 | AK70: =IF(S70=0,1,0) -> 1 | AL70: =IF(AND(S70=0,L70>K70),1,0)*AQ66 -> 1 | AM70: =IF(AND(S70=0,K70=L70),1,0)*AQ66 -> 0 | AN70: =AK70-AL70-AM70 -> 0 | AO70: =L70 -> 7 | AP70: =K70 -> 3 | AQ70: =((AL70*3)+AM70)*AQ66 -> 3
B71: 1 | D71: 14:00:00 | E71: =E70+1 -> 7 | F71: =D110 -> ROBERTINHO-PR | K71: 1 | L71: 5 | M71: =D113 -> PEDRO PRANDO-PR | S71: =COUNTBLANK(K71:L71) -> 0 | BA71: =IF(S71=0,1,0) -> 1 | BB71: =IF(AND(S71=0,K71>L71),1,0)*BG66 -> 0 | BC71: =IF(AND(S71=0,K71=L71),1,0)*BG66 -> 0 | BD71: =BA71-BB71-BC71 -> 1 | BE71: =K71 -> 1 | BF71: =L71 -> 5 | BG71: =((BB71*3)+BC71)*BG66 -> 0 | BY71: =IF(S71=0,1,0) -> 1 | BZ71: =IF(AND(S71=0,L71>K71),1,0)*CE66 -> 1 | CA71: =IF(AND(S71=0,K71=L71),1,0)*CE66 -> 0 | CB71: =BY71-BZ71-CA71 -> 0 | CC71: =L71 -> 5 | CD71: =K71 -> 1 | CE71: =((BZ71*3)+CA71)*CE66 -> 3
B72: 1 | E72: =E71+1 -> 8 | F72: =D111 -> BEL-PE | K72: 2 | L72: 6 | M72: =D112 -> LUCAS CAVALCANTE-RJ | S72: =COUNTBLANK(K72:L72) -> 0 | BI72: =IF(S72=0,1,0) -> 1 | BJ72: =IF(AND(S72=0,K72>L72),1,0)*BO66 -> 0 | BK72: =IF(AND(S72=0,K72=L72),1,0)*BO66 -> 0 | BL72: =BI72-BJ72-BK72 -> 1 | BM72: =K72 -> 2 | BN72: =L72 -> 6 | BO72: =((BJ72*3)+BK72)*BO66 -> 0 | BQ72: =IF(S72=0,1,0) -> 1 | BR72: =IF(AND(S72=0,L72>K72),1,0)*BW66 -> 1 | BS72: =IF(AND(S72=0,K72=L72),1,0)*BW66 -> 0 | BT72: =BQ72-BR72-BS72 -> 0 | BU72: =L72 -> 6 | BV72: =K72 -> 2 | BW72: =((BR72*3)+BS72)*BW66 -> 3
B73: 1
B74: 1 | C74: 9 | D74: =$D$7 -> 2022-06-17 | E74: 9 | F74: =F69 -> QUINHO-SP | K74: 4 | L74: 6 | M74: =M70 -> PIETRO VAROLI-SP | S74: =COUNTBLANK(K74:L74) -> 0 | U74: =IF(S74=0,1,0) -> 1 | V74: =IF(AND(S74=0,K74>L74),1,0)*AA66 -> 0 | W74: =IF(AND(S74=0,K74=L74),1,0)*AA66 -> 0 | X74: =U74-V74-W74 -> 1 | Y74: =K74 -> 4 | Z74: =L74 -> 6 | AA74: =((V74*3)+W74)*AA66 -> 0 | AK74: =IF(S74=0,1,0) -> 1 | AL74: =IF(AND(S74=0,L74>K74),1,0)*AQ66 -> 1 | AM74: =IF(AND(S74=0,K74=L74),1,0)*AQ66 -> 0 | AN74: =AK74-AL74-AM74 -> 0 | AO74: =L74 -> 6 | AP74: =K74 -> 4 | AQ74: =((AL74*3)+AM74)*AQ66 -> 3 | CH74: 2ª
B75: 1 | E75: =E74+1 -> 10 | F75: =F70 -> MURATORE-SP | K75: 2 | L75: 4 | M75: =M69 -> PICOLINO-SP | S75: =COUNTBLANK(K75:L75) -> 0 | AC75: =IF(S75=0,1,0) -> 1 | AD75: =IF(AND(S75=0,K75>L75),1,0)*AI66 -> 0 | AE75: =IF(AND(S75=0,K75=L75),1,0)*AI66 -> 0 | AF75: =AC75-AD75-AE75 -> 1 | AG75: =K75 -> 2 | AH75: =L75 -> 4 | AI75: =((AD75*3)+AE75)*AI66 -> 0 | AS75: =IF(S75=0,1,0) -> 1 | AT75: =IF(AND(S75=0,L75>K75),1,0)*AY66 -> 1 | AU75: =IF(AND(S75=0,K75=L75),1,0)*AY66 -> 0 | AV75: =AS75-AT75-AU75 -> 0 | AW75: =L75 -> 4 | AX75: =K75 -> 2 | AY75: =((AT75*3)+AU75)*AY66 -> 3
B76: 1 | D76: 14:30:00 | E76: =E75+1 -> 11 | F76: =F71 -> ROBERTINHO-PR | K76: 7 | L76: 2 | M76: =M72 -> LUCAS CAVALCANTE-RJ | S76: =COUNTBLANK(K76:L76) -> 0 | BA76: =IF(S76=0,1,0) -> 1 | BB76: =IF(AND(S76=0,K76>L76),1,0)*BG66 -> 1 | BC76: =IF(AND(S76=0,K76=L76),1,0)*BG66 -> 0 | BD76: =BA76-BB76-BC76 -> 0 | BE76: =K76 -> 7 | BF76: =L76 -> 2 | BG76: =((BB76*3)+BC76)*BG66 -> 3 | BQ76: =IF(S76=0,1,0) -> 1 | BR76: =IF(AND(S76=0,L76>K76),1,0)*BW66 -> 0 | BS76: =IF(AND(S76=0,K76=L76),1,0)*BW66 -> 0 | BT76: =BQ76-BR76-BS76 -> 1 | BU76: =L76 -> 2 | BV76: =K76 -> 7 | BW76: =((BR76*3)+BS76)*BW66 -> 0
B77: 1 | E77: =E76+1 -> 12 | F77: =F72 -> BEL-PE | K77: 4 | L77: 4 | M77: =M71 -> PEDRO PRANDO-PR | S77: =COUNTBLANK(K77:L77) -> 0 | BI77: =IF(S77=0,1,0) -> 1 | BJ77: =IF(AND(S77=0,K77>L77),1,0)*BO66 -> 0 | BK77: =IF(AND(S77=0,K77=L77),1,0)*BO66 -> 1 | BL77: =BI77-BJ77-BK77 -> 0 | BM77: =K77 -> 4 | BN77: =L77 -> 4 | BO77: =((BJ77*3)+BK77)*BO66 -> 1 | BY77: =IF(S77=0,1,0) -> 1 | BZ77: =IF(AND(S77=0,L77>K77),1,0)*CE66 -> 0 | CA77: =IF(AND(S77=0,K77=L77),1,0)*CE66 -> 1 | CB77: =BY77-BZ77-CA77 -> 0 | CC77: =L77 -> 4 | CD77: =K77 -> 4 | CE77: =((BZ77*3)+CA77)*CE66 -> 1
B79: 1 | C79: 10 | D79: =$D$7 -> 2022-06-17 | E79: 13 | F79: =F74 -> QUINHO-SP | K79: 6 | L79: 3 | M79: =F75 -> MURATORE-SP | S79: =COUNTBLANK(K79:L79) -> 0 | U79: =IF(S79=0,1,0) -> 1 | V79: =IF(AND(S79=0,K79>L79),1,0)*AA66 -> 1 | W79: =IF(AND(S79=0,K79=L79),1,0)*AA66 -> 0 | X79: =U79-V79-W79 -> 0 | Y79: =K79 -> 6 | Z79: =L79 -> 3 | AA79: =((V79*3)+W79)*AA66 -> 3 | AC79: =IF(S79=0,1,0) -> 1 | AD79: =IF(AND(S79=0,L79>K79),1,0)*AI66 -> 0 | AE79: =IF(AND(S79=0,K79=L79),1,0)*AI66 -> 0 | AF79: =AC79-AD79-AE79 -> 1 | AG79: =L79 -> 3 | AH79: =K79 -> 6 | AI79: =((AD79*3)+AE79)*AI66 -> 0 | CH79: 3ª
B80: 1 | E80: =E79+1 -> 14 | F80: =M74 -> PIETRO VAROLI-SP | K80: 4 | L80: 3 | M80: =M75 -> PICOLINO-SP | S80: =COUNTBLANK(K80:L80) -> 0 | AK80: =IF(S80=0,1,0) -> 1 | AL80: =IF(AND(S80=0,K80>L80),1,0)*AQ66 -> 1 | AM80: =IF(AND(S80=0,K80=L80),1,0)*AQ66 -> 0 | AN80: =AK80-AL80-AM80 -> 0 | AO80: =K80 -> 4 | AP80: =L80 -> 3 | AQ80: =((AL80*3)+AM80)*AQ66 -> 3 | AS80: =IF(S80=0,1,0) -> 1 | AT80: =IF(AND(S80=0,L80>K80),1,0)*AY66 -> 0 | AU80: =IF(AND(S80=0,K80=L80),1,0)*AY66 -> 0 | AV80: =AS80-AT80-AU80 -> 1 | AW80: =L80 -> 3 | AX80: =K80 -> 4 | AY80: =((AT80*3)+AU80)*AY66 -> 0
B81: 1 | D81: 15:00:00 | E81: =E80+1 -> 15 | F81: =F76 -> ROBERTINHO-PR | K81: 5 | L81: 2 | M81: =F77 -> BEL-PE | S81: =COUNTBLANK(K81:L81) -> 0 | BA81: =IF(S81=0,1,0) -> 1 | BB81: =IF(AND(S81=0,K81>L81),1,0)*BG66 -> 1 | BC81: =IF(AND(S81=0,K81=L81),1,0)*BG66 -> 0 | BD81: =BA81-BB81-BC81 -> 0 | BE81: =K81 -> 5 | BF81: =L81 -> 2 | BG81: =((BB81*3)+BC81)*BG66 -> 3 | BI81: =IF(S81=0,1,0) -> 1 | BJ81: =IF(AND(S81=0,L81>K81),1,0)*BO66 -> 0 | BK81: =IF(AND(S81=0,K81=L81),1,0)*BO66 -> 0 | BL81: =BI81-BJ81-BK81 -> 1 | BM81: =L81 -> 2 | BN81: =K81 -> 5 | BO81: =((BJ81*3)+BK81)*BO66 -> 0
B82: 1 | E82: =E81+1 -> 16 | F82: =M76 -> LUCAS CAVALCANTE-RJ | K82: 5 | L82: 3 | M82: =M77 -> PEDRO PRANDO-PR | S82: =COUNTBLANK(K82:L82) -> 0 | BQ82: =IF(S82=0,1,0) -> 1 | BR82: =IF(AND(S82=0,K82>L82),1,0)*BW66 -> 1 | BS82: =IF(AND(S82=0,K82=L82),1,0)*BW66 -> 0 | BT82: =BQ82-BR82-BS82 -> 0 | BU82: =K82 -> 5 | BV82: =L82 -> 3 | BW82: =((BR82*3)+BS82)*BW66 -> 3 | BY82: =IF(S82=0,1,0) -> 1 | BZ82: =IF(AND(S82=0,L82>K82),1,0)*CE66 -> 0 | CA82: =IF(AND(S82=0,K82=L82),1,0)*CE66 -> 0 | CB82: =BY82-BZ82-CA82 -> 1 | CC82: =L82 -> 3 | CD82: =K82 -> 5 | CE82: =((BZ82*3)+CA82)*CE66 -> 0
B84: 1 | C84: 11 | D84: =$D$7 -> 2022-06-17 | E84: 17 | F84: =F81 -> ROBERTINHO-PR | K84: 6 | L84: 7 | M84: =M79 -> MURATORE-SP | S84: =COUNTBLANK(K84:L84) -> 0 | AC84: =IF(S84=0,1,0) -> 1 | AD84: =IF(AND(S84=0,L84>K84),1,0)*AI66 -> 1 | AE84: =IF(AND(S84=0,K84=L84),1,0)*AI66 -> 0 | AF84: =AC84-AD84-AE84 -> 0 | AG84: =L84 -> 7 | AH84: =K84 -> 6 | AI84: =((AD84*3)+AE84)*AI66 -> 3 | BA84: =IF(S84=0,1,0) -> 1 | BB84: =IF(AND(S84=0,K84>L84),1,0)*BG66 -> 0 | BC84: =IF(AND(S84=0,K84=L84),1,0)*BG66 -> 0 | BD84: =BA84-BB84-BC84 -> 1 | BE84: =K84 -> 6 | BF84: =L84 -> 7 | BG84: =((BB84*3)+BC84)*BG66 -> 0 | CH84: 4ª
B85: 1 | E85: =E84+1 -> 18 | F85: =M81 -> BEL-PE | K85: 4 | L85: 3 | M85: =F80 -> PIETRO VAROLI-SP | S85: =COUNTBLANK(K85:L85) -> 0 | AK85: =IF(S85=0,1,0) -> 1 | AL85: =IF(AND(S85=0,L85>K85),1,0)*AQ66 -> 0 | AM85: =IF(AND(S85=0,K85=L85),1,0)*AQ66 -> 0 | AN85: =AK85-AL85-AM85 -> 1 | AO85: =L85 -> 3 | AP85: =K85 -> 4 | AQ85: =((AL85*3)+AM85)*AQ66 -> 0 | BI85: =IF(S85=0,1,0) -> 1 | BJ85: =IF(AND(S85=0,K85>L85),1,0)*BO66 -> 1 | BK85: =IF(AND(S85=0,K85=L85),1,0)*BO66 -> 0 | BL85: =BI85-BJ85-BK85 -> 0 | BM85: =K85 -> 4 | BN85: =L85 -> 3 | BO85: =((BJ85*3)+BK85)*BO66 -> 3
B86: 1 | D86: 15:30:00 | E86: =E85+1 -> 19 | F86: =F82 -> LUCAS CAVALCANTE-RJ | K86: 5 | L86: 3 | M86: =M80 -> PICOLINO-SP | S86: =COUNTBLANK(K86:L86) -> 0 | AS86: =IF(S86=0,1,0) -> 1 | AT86: =IF(AND(S86=0,L86>K86),1,0)*AY66 -> 0 | AU86: =IF(AND(S86=0,K86=L86),1,0)*AY66 -> 0 | AV86: =AS86-AT86-AU86 -> 1 | AW86: =L86 -> 3 | AX86: =K86 -> 5 | AY86: =((AT86*3)+AU86)*AY66 -> 0 | BQ86: =IF(S86=0,1,0) -> 1 | BR86: =IF(AND(S86=0,K86>L86),1,0)*BW66 -> 1 | BS86: =IF(AND(S86=0,K86=L86),1,0)*BW66 -> 0 | BT86: =BQ86-BR86-BS86 -> 0 | BU86: =K86 -> 5 | BV86: =L86 -> 3 | BW86: =((BR86*3)+BS86)*BW66 -> 3
B87: 1 | E87: =E86+1 -> 20 | F87: =M82 -> PEDRO PRANDO-PR | K87: 4 | L87: 3 | M87: =F79 -> QUINHO-SP | S87: =COUNTBLANK(K87:L87) -> 0 | U87: =IF(S87=0,1,0) -> 1 | V87: =IF(AND(S87=0,L87>K87),1,0)*AA66 -> 0 | W87: =IF(AND(S87=0,K87=L87),1,0)*AA66 -> 0 | X87: =U87-V87-W87 -> 1 | Y87: =L87 -> 3 | Z87: =K87 -> 4 | AA87: =((V87*3)+W87)*AA66 -> 0 | BY87: =IF(S87=0,1,0) -> 1 | BZ87: =IF(AND(S87=0,K87>L87),1,0)*CE66 -> 1 | CA87: =IF(AND(S87=0,K87=L87),1,0)*CE66 -> 0 | CB87: =BY87-BZ87-CA87 -> 0 | CC87: =K87 -> 4 | CD87: =L87 -> 3 | CE87: =((BZ87*3)+CA87)*CE66 -> 3
B89: 1 | C89: 12 | D89: =$D$7 -> 2022-06-17 | E89: 21 | F89: =F84 -> ROBERTINHO-PR | K89: 5 | L89: 8 | M89: =M85 -> PIETRO VAROLI-SP | S89: =COUNTBLANK(K89:L89) -> 0 | AK89: =IF(S89=0,1,0) -> 1 | AL89: =IF(AND(S89=0,L89>K89),1,0)*AQ66 -> 1 | AM89: =IF(AND(S89=0,K89=L89),1,0)*AQ66 -> 0 | AN89: =AK89-AL89-AM89 -> 0 | AO89: =L89 -> 8 | AP89: =K89 -> 5 | AQ89: =((AL89*3)+AM89)*AQ66 -> 3 | BA89: =IF(S89=0,1,0) -> 1 | BB89: =IF(AND(S89=0,K89>L89),1,0)*BG66 -> 0 | BC89: =IF(AND(S89=0,K89=L89),1,0)*BG66 -> 0 | BD89: =BA89-BB89-BC89 -> 1 | BE89: =K89 -> 5 | BF89: =L89 -> 8 | BG89: =((BB89*3)+BC89)*BG66 -> 0 | CH89: 5ª
B90: 1 | E90: =E89+1 -> 22 | F90: =F85 -> BEL-PE | K90: 2 | L90: 5 | M90: =M86 -> PICOLINO-SP | S90: =COUNTBLANK(K90:L90) -> 0 | AS90: =IF(S90=0,1,0) -> 1 | AT90: =IF(AND(S90=0,L90>K90),1,0)*AY66 -> 1 | AU90: =IF(AND(S90=0,K90=L90),1,0)*AY66 -> 0 | AV90: =AS90-AT90-AU90 -> 0 | AW90: =L90 -> 5 | AX90: =K90 -> 2 | AY90: =((AT90*3)+AU90)*AY66 -> 3 | BI90: =IF(S90=0,1,0) -> 1 | BJ90: =IF(AND(S90=0,K90>L90),1,0)*BO66 -> 0 | BK90: =IF(AND(S90=0,K90=L90),1,0)*BO66 -> 0 | BL90: =BI90-BJ90-BK90 -> 1 | BM90: =K90 -> 2 | BN90: =L90 -> 5 | BO90: =((BJ90*3)+BK90)*BO66 -> 0
B91: 1 | D91: 16:00:00 | E91: =E90+1 -> 23 | F91: =F86 -> LUCAS CAVALCANTE-RJ | K91: 5 | L91: 8 | M91: =M87 -> QUINHO-SP | S91: =COUNTBLANK(K91:L91) -> 0 | U91: =IF(S91=0,1,0) -> 1 | V91: =IF(AND(S91=0,L91>K91),1,0)*AA66 -> 1 | W91: =IF(AND(S91=0,K91=L91),1,0)*AA66 -> 0 | X91: =U91-V91-W91 -> 0 | Y91: =L91 -> 8 | Z91: =K91 -> 5 | AA91: =((V91*3)+W91)*AA66 -> 3 | BQ91: =IF(S91=0,1,0) -> 1 | BR91: =IF(AND(S91=0,K91>L91),1,0)*BW66 -> 0 | BS91: =IF(AND(S91=0,K91=L91),1,0)*BW66 -> 0 | BT91: =BQ91-BR91-BS91 -> 1 | BU91: =K91 -> 5 | BV91: =L91 -> 8 | BW91: =((BR91*3)+BS91)*BW66 -> 0
B92: 1 | E92: =E91+1 -> 24 | F92: =F87 -> PEDRO PRANDO-PR | K92: 4 | L92: 4 | M92: =M84 -> MURATORE-SP | S92: =COUNTBLANK(K92:L92) -> 0 | AC92: =IF(S92=0,1,0) -> 1 | AD92: =IF(AND(S92=0,L92>K92),1,0)*AI66 -> 0 | AE92: =IF(AND(S92=0,K92=L92),1,0)*AI66 -> 1 | AF92: =AC92-AD92-AE92 -> 0 | AG92: =L92 -> 4 | AH92: =K92 -> 4 | AI92: =((AD92*3)+AE92)*AI66 -> 1 | BY92: =IF(S92=0,1,0) -> 1 | BZ92: =IF(AND(S92=0,K92>L92),1,0)*CE66 -> 0 | CA92: =IF(AND(S92=0,K92=L92),1,0)*CE66 -> 1 | CB92: =BY92-BZ92-CA92 -> 0 | CC92: =K92 -> 4 | CD92: =L92 -> 4 | CE92: =((BZ92*3)+CA92)*CE66 -> 1
B94: 1 | C94: 13 | D94: =$D$7 -> 2022-06-17 | E94: 25 | F94: =F90 -> BEL-PE | K94: 2 | L94: 4 | M94: =M92 -> MURATORE-SP | S94: =COUNTBLANK(K94:L94) -> 0 | AC94: =IF(S94=0,1,0) -> 1 | AD94: =IF(AND(S94=0,L94>K94),1,0)*AI66 -> 1 | AE94: =IF(AND(S94=0,K94=L94),1,0)*AI66 -> 0 | AF94: =AC94-AD94-AE94 -> 0 | AG94: =L94 -> 4 | AH94: =K94 -> 2 | AI94: =((AD94*3)+AE94)*AI66 -> 3 | BI94: =IF(S94=0,1,0) -> 1 | BJ94: =IF(AND(S94=0,K94>L94),1,0)*BO66 -> 0 | BK94: =IF(AND(S94=0,K94=L94),1,0)*BO66 -> 0 | BL94: =BI94-BJ94-BK94 -> 1 | BM94: =K94 -> 2 | BN94: =L94 -> 4 | BO94: =((BJ94*3)+BK94)*BO66 -> 0 | CH94: 6ª
B95: 1 | E95: =E94+1 -> 26 | F95: =F89 -> ROBERTINHO-PR | K95: 7 | L95: 10 | M95: =M91 -> QUINHO-SP | S95: =COUNTBLANK(K95:L95) -> 0 | U95: =IF(S95=0,1,0) -> 1 | V95: =IF(AND(S95=0,L95>K95),1,0)*AA66 -> 1 | W95: =IF(AND(S95=0,K95=L95),1,0)*AA66 -> 0 | X95: =U95-V95-W95 -> 0 | Y95: =L95 -> 10 | Z95: =K95 -> 7 | AA95: =((V95*3)+W95)*AA66 -> 3 | BA95: =IF(S95=0,1,0) -> 1 | BB95: =IF(AND(S95=0,K95>L95),1,0)*BG66 -> 0 | BC95: =IF(AND(S95=0,K95=L95),1,0)*BG66 -> 0 | BD95: =BA95-BB95-BC95 -> 1 | BE95: =K95 -> 7 | BF95: =L95 -> 10 | BG95: =((BB95*3)+BC95)*BG66 -> 0
B96: 1 | D96: 16:30:00 | E96: =E95+1 -> 27 | F96: =F92 -> PEDRO PRANDO-PR | K96: 5 | L96: 6 | M96: =M90 -> PICOLINO-SP | S96: =COUNTBLANK(K96:L96) -> 0 | AS96: =IF(S96=0,1,0) -> 1 | AT96: =IF(AND(S96=0,L96>K96),1,0)*AY66 -> 1 | AU96: =IF(AND(S96=0,K96=L96),1,0)*AY66 -> 0 | AV96: =AS96-AT96-AU96 -> 0 | AW96: =L96 -> 6 | AX96: =K96 -> 5 | AY96: =((AT96*3)+AU96)*AY66 -> 3 | BY96: =IF(S96=0,1,0) -> 1 | BZ96: =IF(AND(S96=0,K96>L96),1,0)*CE66 -> 0 | CA96: =IF(AND(S96=0,K96=L96),1,0)*CE66 -> 0 | CB96: =BY96-BZ96-CA96 -> 1 | CC96: =K96 -> 5 | CD96: =L96 -> 6 | CE96: =((BZ96*3)+CA96)*CE66 -> 0
B97: 1 | E97: =E96+1 -> 28 | F97: =F91 -> LUCAS CAVALCANTE-RJ | K97: 6 | L97: 5 | M97: =M89 -> PIETRO VAROLI-SP | S97: =COUNTBLANK(K97:L97) -> 0 | AK97: =IF(S97=0,1,0) -> 1 | AL97: =IF(AND(S97=0,L97>K97),1,0)*AQ66 -> 0 | AM97: =IF(AND(S97=0,K97=L97),1,0)*AQ66 -> 0 | AN97: =AK97-AL97-AM97 -> 1 | AO97: =L97 -> 5 | AP97: =K97 -> 6 | AQ97: =((AL97*3)+AM97)*AQ66 -> 0 | BQ97: =IF(S97=0,1,0) -> 1 | BR97: =IF(AND(S97=0,K97>L97),1,0)*BW66 -> 1 | BS97: =IF(AND(S97=0,K97=L97),1,0)*BW66 -> 0 | BT97: =BQ97-BR97-BS97 -> 0 | BU97: =K97 -> 6 | BV97: =L97 -> 5 | BW97: =((BR97*3)+BS97)*BW66 -> 3
B99: 1 | C99: 14 | D99: =$D$7 -> 2022-06-17 | E99: 29 | F99: =F96 -> PEDRO PRANDO-PR | K99: 5 | L99: 6 | M99: =M97 -> PIETRO VAROLI-SP | S99: =COUNTBLANK(K99:L99) -> 0 | AK99: =IF(S99=0,1,0) -> 1 | AL99: =IF(AND(S99=0,L99>K99),1,0)*AQ66 -> 1 | AM99: =IF(AND(S99=0,K99=L99),1,0)*AQ66 -> 0 | AN99: =AK99-AL99-AM99 -> 0 | AO99: =L99 -> 6 | AP99: =K99 -> 5 | AQ99: =((AL99*3)+AM99)*AQ66 -> 3 | BY99: =IF(S99=0,1,0) -> 1 | BZ99: =IF(AND(S99=0,K99>L99),1,0)*CE66 -> 0 | CA99: =IF(AND(S99=0,K99=L99),1,0)*CE66 -> 0 | CB99: =BY99-BZ99-CA99 -> 1 | CC99: =K99 -> 5 | CD99: =L99 -> 6 | CE99: =((BZ99*3)+CA99)*CE66 -> 0 | CH99: 7ª
B100: 1 | E100: =E99+1 -> 30 | F100: =F94 -> BEL-PE | K100: 3 | L100: 9 | M100: =M95 -> QUINHO-SP | S100: =COUNTBLANK(K100:L100) -> 0 | U100: =IF(S100=0,1,0) -> 1 | V100: =IF(AND(S100=0,L100>K100),1,0)*AA66 -> 1 | W100: =IF(AND(S100=0,K100=L100),1,0)*AA66 -> 0 | X100: =U100-V100-W100 -> 0 | Y100: =L100 -> 9 | Z100: =K100 -> 3 | AA100: =((V100*3)+W100)*AA66 -> 3 | BI100: =IF(S100=0,1,0) -> 1 | BJ100: =IF(AND(S100=0,K100>L100),1,0)*BO66 -> 0 | BK100: =IF(AND(S100=0,K100=L100),1,0)*BO66 -> 0 | BL100: =BI100-BJ100-BK100 -> 1 | BM100: =K100 -> 3 | BN100: =L100 -> 9 | BO100: =((BJ100*3)+BK100)*BO66 -> 0
B101: 1 | D101: 17:00:00 | E101: =E100+1 -> 31 | F101: =F97 -> LUCAS CAVALCANTE-RJ | K101: 5 | L101: 4 | M101: =M94 -> MURATORE-SP | S101: =COUNTBLANK(K101:L101) -> 0 | AC101: =IF(S101=0,1,0) -> 1 | AD101: =IF(AND(S101=0,L101>K101),1,0)*AI66 -> 0 | AE101: =IF(AND(S101=0,K101=L101),1,0)*AI66 -> 0 | AF101: =AC101-AD101-AE101 -> 1 | AG101: =L101 -> 4 | AH101: =K101 -> 5 | AI101: =((AD101*3)+AE101)*AI66 -> 0 | BQ101: =IF(S101=0,1,0) -> 1 | BR101: =IF(AND(S101=0,K101>L101),1,0)*BW66 -> 1 | BS101: =IF(AND(S101=0,K101=L101),1,0)*BW66 -> 0 | BT101: =BQ101-BR101-BS101 -> 0 | BU101: =K101 -> 5 | BV101: =L101 -> 4 | BW101: =((BR101*3)+BS101)*BW66 -> 3
B102: 1 | E102: =E101+1 -> 32 | F102: =F95 -> ROBERTINHO-PR | K102: 5 | L102: 6 | M102: =M96 -> PICOLINO-SP | S102: =COUNTBLANK(K102:L102) -> 0 | AS102: =IF(S102=0,1,0) -> 1 | AT102: =IF(AND(S102=0,L102>K102),1,0)*AY66 -> 1 | AU102: =IF(AND(S102=0,K102=L102),1,0)*AY66 -> 0 | AV102: =AS102-AT102-AU102 -> 0 | AW102: =L102 -> 6 | AX102: =K102 -> 5 | AY102: =((AT102*3)+AU102)*AY66 -> 3 | BA102: =IF(S102=0,1,0) -> 1 | BB102: =IF(AND(S102=0,K102>L102),1,0)*BG66 -> 0 | BC102: =IF(AND(S102=0,K102=L102),1,0)*BG66 -> 0 | BD102: =BA102-BB102-BC102 -> 1 | BE102: =K102 -> 5 | BF102: =L102 -> 6 | BG102: =((BB102*3)+BC102)*BG66 -> 0
S103: =SUM(S69:S102) -> 0 | U103: =SUM(U69:U102) -> 7 | V103: 5 | W103: 0 | X103: 2 | Y103: 45 | Z103: 29 | AA103: =SUM(AA69:AA102) -> 15 | AC103: =SUM(AC69:AC102) -> 7 | AD103: 2 | AE103: 1 | AF103: 4 | AG103: 27 | AH103: 34 | AI103: 7 | AK103: =SUM(AK69:AK102) -> 7 | AL103: 5 | AM103: 0 | AN103: 2 | AO103: 39 | AP103: 30 | AQ103: 15 | AS103: =SUM(AS69:AS102) -> 7 | AT103: 4 | AU103: 0 | AV103: 3 | AW103: 28 | AX103: 28 | AY103: 12 | BA103: =SUM(BA69:BA102) -> 7 | BB103: 2 | BC103: 0 | BD103: 5 | BE103: 36 | BF103: 40 | BG103: 6 | BI103: =SUM(BI69:BI102) -> 7 | BJ103: 1 | BK103: 1 | BL103: 5 | BM103: 19 | BN103: 36 | BO103: 4 | BQ103: =SUM(BQ69:BQ102) -> 7 | BR103: 5 | BS103: 0 | BT103: 2 | BU103: 34 | BV103: 32 | BW103: 15 | BY103: =SUM(BY69:BY102) -> 7 | BZ103: 2 | CA103: 2 | CB103: 3 | CC103: 30 | CD103: 29 | CE103: 8
C104: Acumulado da 1a Fase | S104: Resumo da 1a Fase
C105: Class | D105: Botonistas | I105: PG | J105: J | K105: V | L105: E | M105: D | N105: GP | O105: GC | P105: SG | S105: Cl | U105: Nome | AC105: J | AD105: V | AE105: E | AF105: D | AG105: GP | AH105: GC | AI105: PG
C106: ='G2'!C212 -> 1o G2 | D106: ='G2'!D212 -> QUINHO-SP | I106: ='G2'!I212 -> 19 | J106: ='G2'!J212 -> 7 | K106: ='G2'!K212 -> 6 | L106: ='G2'!L212 -> 1 | M106: ='G2'!M212 -> 0 | N106: ='G2'!N212 -> 48 | O106: ='G2'!O212 -> 26 | P106: ='G2'!P212 -> 22 | U106: =D106 -> QUINHO-SP | AC106: =J106 -> 7 | AD106: =K106 -> 6 | AE106: =L106 -> 1 | AF106: =M106 -> 0 | AG106: =N106 -> 48 | AH106: =O106 -> 26 | AI106: =I106 -> 19
C107: ='G2'!C213 -> 2o G10 | D107: ='G2'!D213 -> MURATORE-SP | I107: ='G2'!I213 -> 12 | J107: ='G2'!J213 -> 7 | K107: ='G2'!K213 -> 3 | L107: ='G2'!L213 -> 3 | M107: ='G2'!M213 -> 1 | N107: ='G2'!N213 -> 29 | O107: ='G2'!O213 -> 26 | P107: ='G2'!P213 -> 3 | U107: =D107 -> MURATORE-SP | AC107: =J107 -> 7 | AD107: 3 | AE107: 3 | AF107: 1 | AG107: 29 | AH107: 26 | AI107: =I107 -> 12
C108: ='G2'!C214 -> 2o G7 | D108: ='G2'!D214 -> PIETRO VAROLI-SP | I108: ='G2'!I214 -> 14 | J108: ='G2'!J214 -> 7 | K108: ='G2'!K214 -> 4 | L108: ='G2'!L214 -> 2 | M108: ='G2'!M214 -> 1 | N108: ='G2'!N214 -> 34 | O108: ='G2'!O214 -> 27 | P108: ='G2'!P214 -> 7 | U108: =D108 -> PIETRO VAROLI-SP | AC108: 7 | AD108: 4 | AE108: 2 | AF108: 1 | AG108: 34 | AH108: 27 | AI108: 14
C109: ='G2'!C215 -> 3o G6 | D109: ='G2'!D215 -> PICOLINO-SP | I109: ='G2'!I215 -> 10 | J109: ='G2'!J215 -> 7 | K109: ='G2'!K215 -> 3 | L109: ='G2'!L215 -> 1 | M109: ='G2'!M215 -> 3 | N109: ='G2'!N215 -> 39 | O109: ='G2'!O215 -> 30 | P109: ='G2'!P215 -> 9 | U109: =D109 -> PICOLINO-SP | AC109: 7 | AD109: 3 | AE109: 1 | AF109: 3 | AG109: 39 | AH109: 30 | AI109: 10
C110: ='G2'!C216 -> 1o G15 | D110: ='G2'!D216 -> ROBERTINHO-PR | I110: ='G2'!I216 -> 16 | J110: ='G2'!J216 -> 7 | K110: ='G2'!K216 -> 5 | L110: ='G2'!L216 -> 1 | M110: ='G2'!M216 -> 1 | N110: ='G2'!N216 -> 45 | O110: ='G2'!O216 -> 25 | P110: ='G2'!P216 -> 20 | U110: =D110 -> ROBERTINHO-PR | AC110: 7 | AD110: 5 | AE110: 1 | AF110: 1 | AG110: 45 | AH110: 25 | AI110: 16
C111: ='G2'!C217 -> 3o G14 | D111: ='G2'!D217 -> BEL-PE | I111: ='G2'!I217 -> 12 | J111: ='G2'!J217 -> 7 | K111: ='G2'!K217 -> 4 | L111: ='G2'!L217 -> 0 | M111: ='G2'!M217 -> 3 | N111: ='G2'!N217 -> 25 | O111: ='G2'!O217 -> 24 | P111: ='G2'!P217 -> 1 | U111: =D111 -> BEL-PE | AC111: 7 | AD111: 4 | AE111: 0 | AF111: 3 | AG111: 25 | AH111: 24 | AI111: 12
C112: ='G2'!C218 -> 4o G11 | D112: ='G2'!D218 -> LUCAS CAVALCANTE-RJ | I112: ='G2'!I218 -> 11 | J112: ='G2'!J218 -> 7 | K112: ='G2'!K218 -> 3 | L112: ='G2'!L218 -> 2 | M112: ='G2'!M218 -> 2 | N112: ='G2'!N218 -> 36 | O112: ='G2'!O218 -> 33 | P112: ='G2'!P218 -> 3 | U112: =D112 -> LUCAS CAVALCANTE-RJ | AC112: 7 | AD112: 3 | AE112: 2 | AF112: 2 | AG112: 36 | AH112: 33 | AI112: 11
C113: ='G2'!C219 -> 4o G3 | D113: ='G2'!D219 -> PEDRO PRANDO-PR | I113: ='G2'!I219 -> 10 | J113: ='G2'!J219 -> 7 | K113: ='G2'!K219 -> 3 | L113: ='G2'!L219 -> 1 | M113: ='G2'!M219 -> 3 | N113: ='G2'!N219 -> 23 | O113: ='G2'!O219 -> 30 | P113: ='G2'!P219 -> -7 | U113: =D113 -> PEDRO PRANDO-PR | AC113: 7 | AD113: 3 | AE113: 1 | AF113: 3 | AG113: 23 | AH113: 30 | AI113: 10
C114: 2a Fase | S114: Resumo da 2a Fase
C115: Class | D115: Botonistas | I115: PG | J115: J | K115: V | L115: E | M115: D | N115: GP | O115: GC | P115: SG | Q115: Sorteio | S115: Cl | U115: Botonista | AC115: J | AD115: V | AE115: E | AF115: D | AG115: GP | AH115: GC | AI115: PG | AJ115: Chave Sort | AR115: Cl | AT115: Botonista | BA115: J | BB115: V | BC115: E | BD115: D | BE115: GP | BF115: GC | BG115: PG | BH115: Chave Sort
B116: =IF($S$103=0,"è","") -> è | C116: =AR116 -> 1 | D116: =AT116 -> QUINHO-SP | I116: =BG116 -> 15 | J116: =BA116 -> 7 | K116: 5 | L116: 0 | M116: 2 | N116: 45 | O116: 29 | P116: =N116-O116 -> 16 | Q116: =IF(INT(BH116)=INT(BH117),ASC(CHAR(252)),"") ->  | S116: =RANK(AJ116,AJ116:AJ123,0) -> 1 | U116: =F69 -> QUINHO-SP | AC116: =U103 -> 7 | AD116: =V103 -> 5 | AE116: =W103 -> 0 | AF116: =X103 -> 2 | AG116: =Y103 -> 45 | AH116: =Z103 -> 29 | AI116: =AA103 -> 15 | AJ116: =(AI116*1000000000000000)+((AI116+AI106)*1000000000000)+((AD116+AD106)*1000000000)+((AG116+AG106-AH116-AH106)*1000000)+((AG116+AG106)*1000)+((AG116-AH116))+(AR116/10) -> 1.503401104e+16 | AR116: 1 | AT116: =VLOOKUP(AR116,S116:AJ123,3,FALSE) -> QUINHO-SP | BA116: =VLOOKUP(AR116,S116:AJ123,11,FALSE) -> 7 | BB116: =VLOOKUP(AR116,S116:AJ123,12,FALSE) -> 5 | BC116: =VLOOKUP(AR116,S116:AJ123,13,FALSE) -> 0 | BD116: =VLOOKUP(AR116,S116:AJ123,14,FALSE) -> 2 | BE116: =VLOOKUP(AR116,S116:AJ123,15,FALSE) -> 45 | BF116: =VLOOKUP(AR116,S116:AJ123,16,FALSE) -> 29 | BG116: =VLOOKUP(AR116,S116:AJ123,17,FALSE) -> 15 | BH116: =VLOOKUP(AR116,S116:AJ123,18,FALSE) -> 1.503401104e+16 | BI116: =VLOOKUP($AR116,$S$37:$AI$51,17,FALSE) -> 
B117: =IF($S$103=0,"è","") -> è | C117: 2 | D117: =AT117 -> PIETRO VAROLI-SP | I117: 15 | J117: 7 | K117: 5 | L117: 0 | M117: 2 | N117: 39 | O117: 30 | P117: 9 | Q117: =IF(OR(INT(BH117)=INT(BH116),INT(BH118)=INT(BH117)),ASC(CHAR(252)),"") ->  | S117: =RANK(AJ117,AJ116:AJ123,0) -> 6 | U117: =U107 -> MURATORE-SP | AC117: =AC103 -> 7 | AD117: 2 | AE117: 1 | AF117: 4 | AG117: 27 | AH117: 34 | AI117: 7 | AJ117: =(AI117*1000000000000000)+((AI117+AI107)*1000000000000)+((AD117+AD107)*1000000000)+((AG117+AG107-AH117-AH107)*1000000)+((AG117+AG107)*1000)+((AG117-AH117))+(AR117/10) -> 7019004996055993 | AR117: 2 | AT117: =VLOOKUP(AR117,S116:AJ123,3,FALSE) -> PIETRO VAROLI-SP | BA117: =VLOOKUP(AR117,S116:AJ123,11,FALSE) -> 7 | BB117: =VLOOKUP(AR117,S116:AJ123,12,FALSE) -> 5 | BC117: =VLOOKUP(AR117,S116:AJ123,13,FALSE) -> 0 | BD117: =VLOOKUP(AR117,S116:AJ123,14,FALSE) -> 2 | BE117: =VLOOKUP(AR117,S116:AJ123,15,FALSE) -> 39 | BF117: =VLOOKUP(AR117,S116:AJ123,16,FALSE) -> 30 | BG117: =VLOOKUP(AR117,S116:AJ123,17,FALSE) -> 15 | BH117: =VLOOKUP(AR117,S116:AJ123,18,FALSE) -> 1.502900902e+16
B118: =IF($S$103=0,"è","") -> è | C118: 3 | D118: LUCAS CAVALCANTE-RJ | I118: 15 | J118: 7 | K118: 5 | L118: 0 | M118: 2 | N118: 34 | O118: 32 | P118: 2 | S118: =RANK(AJ118,AJ116:AJ123,0) -> 2 | U118: =U108 -> PIETRO VAROLI-SP | AC118: =AK103 -> 7 | AD118: =AL103 -> 5 | AE118: =AM103 -> 0 | AF118: =AN103 -> 2 | AG118: =AO103 -> 39 | AH118: =AP103 -> 30 | AI118: =AQ103 -> 15 | AJ118: =(AI118*1000000000000000)+((AI118+AI108)*1000000000000)+((AD118+AD108)*1000000000)+((AG118+AG108-AH118-AH108)*1000000)+((AG118+AG108)*1000)+((AG118-AH118))+(AR118/10) -> 1.502900902e+16 | AR118: 3 | AT118: =VLOOKUP(AR118,S116:AJ123,3,FALSE) -> LUCAS CAVALCANTE-RJ | BA118: =VLOOKUP(AR118,S116:AJ123,11,FALSE) -> 7 | BB118: =VLOOKUP(AR118,S116:AJ123,12,FALSE) -> 5 | BC118: =VLOOKUP(AR118,S116:AJ123,13,FALSE) -> 0 | BD118: =VLOOKUP(AR118,S116:AJ123,14,FALSE) -> 2 | BE118: =VLOOKUP(AR118,S116:AJ123,15,FALSE) -> 34 | BF118: =VLOOKUP(AR118,S116:AJ123,16,FALSE) -> 32 | BG118: =VLOOKUP(AR118,S116:AJ123,17,FALSE) -> 15 | BH118: =VLOOKUP(AR118,S116:AJ123,18,FALSE) -> 1.502600801e+16
B119: =IF($S$103=0,"è","") -> è | C119: 4 | D119: PICOLINO-SP | I119: 12 | J119: 7 | K119: 4 | L119: 0 | M119: 3 | N119: 28 | O119: 28 | P119: 0 | S119: =RANK(AJ119,AJ116:AJ123,0) -> 4 | U119: PICOLINO-SP | AC119: =AS103 -> 7 | AD119: =AT103 -> 4 | AE119: =AU103 -> 0 | AF119: =AV103 -> 3 | AG119: =AW103 -> 28 | AH119: =AX103 -> 28 | AI119: =AY103 -> 12 | AJ119: =(AI119*1000000000000000)+((AI119+AI109)*1000000000000)+((AD119+AD109)*1000000000)+((AG119+AG109-AH119-AH109)*1000000)+((AG119+AG109)*1000)+((AG119-AH119))+(AR119/10) -> 1.202200701e+16 | AR119: 4 | AT119: =VLOOKUP(AR119,S116:AJ123,3,FALSE) -> PICOLINO-SP | BA119: =VLOOKUP(AR119,S116:AJ123,11,FALSE) -> 7 | BB119: =VLOOKUP(AR119,S116:AJ123,12,FALSE) -> 4 | BC119: =VLOOKUP(AR119,S116:AJ123,13,FALSE) -> 0 | BD119: =VLOOKUP(AR119,S116:AJ123,14,FALSE) -> 3 | BE119: =VLOOKUP(AR119,S116:AJ123,15,FALSE) -> 28 | BF119: =VLOOKUP(AR119,S116:AJ123,16,FALSE) -> 28 | BG119: =VLOOKUP(AR119,S116:AJ123,17,FALSE) -> 12 | BH119: =VLOOKUP(AR119,S116:AJ123,18,FALSE) -> 1.202200701e+16
B120: =IF($S$103=0,"ð","") -> ð | C120: 5 | D120: PEDRO PRANDO-PR | I120: 8 | J120: 7 | K120: 2 | L120: 2 | M120: 3 | N120: 30 | O120: 29 | P120: 1 | S120: =RANK(AJ120,AJ116:AJ123,0) -> 7 | U120: ROBERTINHO-PR | AC120: =BA103 -> 7 | AD120: =BB103 -> 2 | AE120: =BC103 -> 0 | AF120: =BD103 -> 5 | AG120: =BE103 -> 36 | AH120: =BF103 -> 40 | AI120: =BG103 -> 6 | AJ120: =(AI120*1000000000000000)+((AI120+AI110)*1000000000000)+((AD120+AD110)*1000000000)+((AG120+AG110-AH120-AH110)*1000000)+((AG120+AG110)*1000)+((AG120-AH120))+(AR120/10) -> 6022007016080996 | AR120: 5 | AT120: =VLOOKUP(AR120,S116:AJ123,3,FALSE) -> PEDRO PRANDO-PR | BA120: =VLOOKUP(AR120,S116:AJ123,11,FALSE) -> 7 | BB120: =VLOOKUP(AR120,S116:AJ123,12,FALSE) -> 2 | BC120: =VLOOKUP(AR120,S116:AJ123,13,FALSE) -> 2 | BD120: =VLOOKUP(AR120,S116:AJ123,14,FALSE) -> 3 | BE120: =VLOOKUP(AR120,S116:AJ123,15,FALSE) -> 30 | BF120: =VLOOKUP(AR120,S116:AJ123,16,FALSE) -> 29 | BG120: =VLOOKUP(AR120,S116:AJ123,17,FALSE) -> 8 | BH120: =VLOOKUP(AR120,S116:AJ123,18,FALSE) -> 8018004994053002
B121: =IF($S$103=0,"ð","") -> ð | C121: 6 | D121: MURATORE-SP | I121: 7 | J121: 7 | K121: 2 | L121: 1 | M121: 4 | N121: 27 | O121: 34 | P121: -7 | S121: =RANK(AJ121,AJ116:AJ123,0) -> 8 | U121: BEL-PE | AC121: =BI103 -> 7 | AD121: =BJ103 -> 1 | AE121: =BK103 -> 1 | AF121: =BL103 -> 5 | AG121: =BM103 -> 19 | AH121: =BN103 -> 36 | AI121: =BO103 -> 4 | AJ121: 4.016004984e+15 | AR121: 6 | AT121: =VLOOKUP(AR121,S116:AJ123,3,FALSE) -> MURATORE-SP | BA121: =VLOOKUP(AR121,S116:AJ123,11,FALSE) -> 7 | BB121: =VLOOKUP(AR121,S116:AJ123,12,FALSE) -> 2 | BC121: =VLOOKUP(AR121,S116:AJ123,13,FALSE) -> 1 | BD121: =VLOOKUP(AR121,S116:AJ123,14,FALSE) -> 4 | BE121: =VLOOKUP(AR121,S116:AJ123,15,FALSE) -> 27 | BF121: =VLOOKUP(AR121,S116:AJ123,16,FALSE) -> 34 | BG121: =VLOOKUP(AR121,S116:AJ123,17,FALSE) -> 7 | BH121: =VLOOKUP(AR121,S116:AJ123,18,FALSE) -> 7019004996055993
B122: ð | C122: =AR122 -> 7 | D122: ROBERTINHO-PR | I122: 6 | J122: 7 | K122: 2 | L122: 0 | M122: 5 | N122: 36 | O122: 40 | P122: -4 | S122: =RANK(AJ122,AJ116:AJ123,0) -> 3 | U122: LUCAS CAVALCANTE-RJ | AC122: =BQ103 -> 7 | AD122: =BR103 -> 5 | AE122: =BS103 -> 0 | AF122: =BT103 -> 2 | AG122: =BU103 -> 34 | AH122: =BV103 -> 32 | AI122: =BW103 -> 15 | AJ122: 1.502600801e+16 | AR122: 7 | AT122: =VLOOKUP(AR122,S116:AJ123,3,FALSE) -> ROBERTINHO-PR | BA122: =VLOOKUP(AR122,S116:AJ123,11,FALSE) -> 7 | BB122: =VLOOKUP(AR122,S116:AJ123,12,FALSE) -> 2 | BC122: =VLOOKUP(AR122,S116:AJ123,13,FALSE) -> 0 | BD122: =VLOOKUP(AR122,S116:AJ123,14,FALSE) -> 5 | BE122: =VLOOKUP(AR122,S116:AJ123,15,FALSE) -> 36 | BF122: =VLOOKUP(AR122,S116:AJ123,16,FALSE) -> 40 | BG122: =VLOOKUP(AR122,S116:AJ123,17,FALSE) -> 6 | BH122: =VLOOKUP(AR122,S116:AJ123,18,FALSE) -> 6022007016080996
B123: ð | C123: =AR123 -> 8 | D123: BEL-PE | I123: 4 | J123: 7 | K123: 1 | L123: 1 | M123: 5 | N123: 19 | O123: 36 | P123: -17 | S123: =RANK(AJ123,AJ116:AJ123,0) -> 5 | U123: PEDRO PRANDO-PR | AC123: =BY103 -> 7 | AD123: =BZ103 -> 2 | AE123: =CA103 -> 2 | AF123: =CB103 -> 3 | AG123: =CC103 -> 30 | AH123: =CD103 -> 29 | AI123: =CE103 -> 8 | AJ123: 8018004994053002 | AR123: 8 | AT123: =VLOOKUP(AR123,S116:AJ123,3,FALSE) -> BEL-PE | BA123: =VLOOKUP(AR123,S116:AJ123,11,FALSE) -> 7 | BB123: =VLOOKUP(AR123,S116:AJ123,12,FALSE) -> 1 | BC123: =VLOOKUP(AR123,S116:AJ123,13,FALSE) -> 1 | BD123: =VLOOKUP(AR123,S116:AJ123,14,FALSE) -> 5 | BE123: =VLOOKUP(AR123,S116:AJ123,15,FALSE) -> 19 | BF123: =VLOOKUP(AR123,S116:AJ123,16,FALSE) -> 36 | BG123: =VLOOKUP(AR123,S116:AJ123,17,FALSE) -> 4 | BH123: =VLOOKUP(AR123,S116:AJ123,18,FALSE) -> 4.016004984e+15
C125: è | D125: 1a Divisão | N125: ð | O125: 3a Divisão
C128: ='G2'!$C$220 -> Adulto - 1a Divisão | Q128: ='G2'!$R$220 -> 2a Fase - Grupo 19 | U128: =F131 -> NANDO-RJ | AA128: =IF(RIGHT(U128,4)="(WO)",0,1) -> 1 | AC128: =F132 -> PIRICA-RJ | AI128: =IF(RIGHT(AC128,4)="(WO)",0,1) -> 1 | AK128: =M132 -> CHRISTOFER-RJ | AQ128: =IF(RIGHT(AK128,4)="(WO)",0,1) -> 1 | AS128: =M131 -> RENAN PIMENTA-PR | AY128: =IF(RIGHT(AS128,4)="(WO)",0,1) -> 1 | BA128: =F133 -> DINEY-SP | BG128: =IF(RIGHT(BA128,4)="(WO)",0,1) -> 1 | BI128: =F134 -> ERISMAR-SP | BO128: =IF(RIGHT(BI128,4)="(WO)",0,1) -> 1 | BQ128: =M134 -> MICHILIN-SP | BW128: =IF(RIGHT(BQ128,4)="(WO)",0,1) -> 1 | BY128: =M133 -> MATHEUS TINE-PE | CE128: =IF(RIGHT(BY128,4)="(WO)",0,1) -> 1
B129: Grp | C129: Rod. | D129: Data/Hora | E129: Mesa | F129: Jogos | S129: Ok | U129: J | V129: V | W129: E | X129: D | Y129: GP | Z129: GC | AA129: PG | AC129: J | AD129: V | AE129: E | AF129: D | AG129: GP | AH129: GC | AI129: PG | AK129: J | AL129: V | AM129: E | AN129: D | AO129: GP | AP129: GC | AQ129: PG | AS129: J | AT129: V | AU129: E | AV129: D | AW129: GP | AX129: GC | AY129: PG | BA129: J | BB129: V | BC129: E | BD129: D | BE129: GP | BF129: GC | BG129: PG | BI129: J | BJ129: V | BK129: E | BL129: D | BM129: GP | BN129: GC | BO129: PG | BQ129: J | BR129: V | BS129: E | BT129: D | BU129: GP | BV129: GC | BW129: PG | BY129: J | BZ129: V | CA129: E | CB129: D | CC129: GP | CD129: GC | CE129: PG | CH129: Rodada
B131: 1 | C131: 8 | D131: 2022-06-17 | E131: 9 | F131: =D168 -> NANDO-RJ | K131: 6 | L131: 4 | M131: =D171 -> RENAN PIMENTA-PR | S131: =COUNTBLANK(K131:L131) -> 0 | U131: =IF(S131=0,1,0) -> 1 | V131: =IF(AND(S131=0,K131>L131),1,0)*AA128 -> 1 | W131: =IF(AND(S131=0,K131=L131),1,0)*AA128 -> 0 | X131: =U131-V131-W131 -> 0 | Y131: =K131 -> 6 | Z131: =L131 -> 4 | AA131: =((V131*3)+W131)*AA128 -> 3 | AS131: =IF(S131=0,1,0) -> 1 | AT131: =IF(AND(S131=0,L131>K131),1,0)*AY128 -> 0 | AU131: =IF(AND(S131=0,K131=L131),1,0)*AY128 -> 0 | AV131: =AS131-AT131-AU131 -> 1 | AW131: =L131 -> 4 | AX131: =K131 -> 6 | AY131: =((AT131*3)+AU131)*AY128 -> 0 | CH131: 1ª
B132: 1 | E132: =E131+1 -> 10 | F132: =D169 -> PIRICA-RJ | K132: 4 | L132: 0 | M132: =D170 -> CHRISTOFER-RJ | S132: =COUNTBLANK(K132:L132) -> 0 | AC132: =IF(S132=0,1,0) -> 1 | AD132: =IF(AND(S132=0,K132>L132),1,0)*AI128 -> 1 | AE132: =IF(AND(S132=0,K132=L132),1,0)*AI128 -> 0 | AF132: =AC132-AD132-AE132 -> 0 | AG132: =K132 -> 4 | AH132: =L132 -> 0 | AI132: =((AD132*3)+AE132)*AI128 -> 3 | AK132: =IF(S132=0,1,0) -> 1 | AL132: =IF(AND(S132=0,L132>K132),1,0)*AQ128 -> 0 | AM132: =IF(AND(S132=0,K132=L132),1,0)*AQ128 -> 0 | AN132: =AK132-AL132-AM132 -> 1 | AO132: =L132 -> 0 | AP132: =K132 -> 4 | AQ132: =((AL132*3)+AM132)*AQ128 -> 0
B133: 1 | D133: 14:00:00 | E133: =E132+1 -> 11 | F133: =D172 -> DINEY-SP | K133: 6 | L133: 3 | M133: =D175 -> MATHEUS TINE-PE | S133: =COUNTBLANK(K133:L133) -> 0 | BA133: =IF(S133=0,1,0) -> 1 | BB133: =IF(AND(S133=0,K133>L133),1,0)*BG128 -> 1 | BC133: =IF(AND(S133=0,K133=L133),1,0)*BG128 -> 0 | BD133: =BA133-BB133-BC133 -> 0 | BE133: =K133 -> 6 | BF133: =L133 -> 3 | BG133: =((BB133*3)+BC133)*BG128 -> 3 | BY133: =IF(S133=0,1,0) -> 1 | BZ133: =IF(AND(S133=0,L133>K133),1,0)*CE128 -> 0 | CA133: =IF(AND(S133=0,K133=L133),1,0)*CE128 -> 0 | CB133: =BY133-BZ133-CA133 -> 1 | CC133: =L133 -> 3 | CD133: =K133 -> 6 | CE133: =((BZ133*3)+CA133)*CE128 -> 0
B134: 1 | E134: =E133+1 -> 12 | F134: =D173 -> ERISMAR-SP | K134: 4 | L134: 7 | M134: =D174 -> MICHILIN-SP | S134: =COUNTBLANK(K134:L134) -> 0 | BI134: =IF(S134=0,1,0) -> 1 | BJ134: =IF(AND(S134=0,K134>L134),1,0)*BO128 -> 0 | BK134: =IF(AND(S134=0,K134=L134),1,0)*BO128 -> 0 | BL134: =BI134-BJ134-BK134 -> 1 | BM134: =K134 -> 4 | BN134: =L134 -> 7 | BO134: =((BJ134*3)+BK134)*BO128 -> 0 | BQ134: =IF(S134=0,1,0) -> 1 | BR134: =IF(AND(S134=0,L134>K134),1,0)*BW128 -> 1 | BS134: =IF(AND(S134=0,K134=L134),1,0)*BW128 -> 0 | BT134: =BQ134-BR134-BS134 -> 0 | BU134: =L134 -> 7 | BV134: =K134 -> 4 | BW134: =((BR134*3)+BS134)*BW128 -> 3
B135: 1
B136: 1 | C136: 9 | D136: =$D$7 -> 2022-06-17 | E136: 13 | F136: =F131 -> NANDO-RJ | K136: 4 | L136: 3 | M136: =M132 -> CHRISTOFER-RJ | S136: =COUNTBLANK(K136:L136) -> 0 | U136: =IF(S136=0,1,0) -> 1 | V136: =IF(AND(S136=0,K136>L136),1,0)*AA128 -> 1 | W136: =IF(AND(S136=0,K136=L136),1,0)*AA128 -> 0 | X136: =U136-V136-W136 -> 0 | Y136: =K136 -> 4 | Z136: =L136 -> 3 | AA136: =((V136*3)+W136)*AA128 -> 3 | AK136: =IF(S136=0,1,0) -> 1 | AL136: =IF(AND(S136=0,L136>K136),1,0)*AQ128 -> 0 | AM136: =IF(AND(S136=0,K136=L136),1,0)*AQ128 -> 0 | AN136: =AK136-AL136-AM136 -> 1 | AO136: =L136 -> 3 | AP136: =K136 -> 4 | AQ136: =((AL136*3)+AM136)*AQ128 -> 0 | CH136: 2ª
B137: 1 | E137: =E136+1 -> 14 | F137: =F132 -> PIRICA-RJ | K137: 4 | L137: 2 | M137: =M131 -> RENAN PIMENTA-PR | S137: =COUNTBLANK(K137:L137) -> 0 | AC137: =IF(S137=0,1,0) -> 1 | AD137: =IF(AND(S137=0,K137>L137),1,0)*AI128 -> 1 | AE137: =IF(AND(S137=0,K137=L137),1,0)*AI128 -> 0 | AF137: =AC137-AD137-AE137 -> 0 | AG137: =K137 -> 4 | AH137: =L137 -> 2 | AI137: =((AD137*3)+AE137)*AI128 -> 3 | AS137: =IF(S137=0,1,0) -> 1 | AT137: =IF(AND(S137=0,L137>K137),1,0)*AY128 -> 0 | AU137: =IF(AND(S137=0,K137=L137),1,0)*AY128 -> 0 | AV137: =AS137-AT137-AU137 -> 1 | AW137: =L137 -> 2 | AX137: =K137 -> 4 | AY137: =((AT137*3)+AU137)*AY128 -> 0
B138: 1 | D138: 14:30:00 | E138: =E137+1 -> 15 | F138: =F133 -> DINEY-SP | K138: 5 | L138: 3 | M138: =M134 -> MICHILIN-SP | S138: =COUNTBLANK(K138:L138) -> 0 | BA138: =IF(S138=0,1,0) -> 1 | BB138: =IF(AND(S138=0,K138>L138),1,0)*BG128 -> 1 | BC138: =IF(AND(S138=0,K138=L138),1,0)*BG128 -> 0 | BD138: =BA138-BB138-BC138 -> 0 | BE138: =K138 -> 5 | BF138: =L138 -> 3 | BG138: =((BB138*3)+BC138)*BG128 -> 3 | BQ138: =IF(S138=0,1,0) -> 1 | BR138: =IF(AND(S138=0,L138>K138),1,0)*BW128 -> 0 | BS138: =IF(AND(S138=0,K138=L138),1,0)*BW128 -> 0 | BT138: =BQ138-BR138-BS138 -> 1 | BU138: =L138 -> 3 | BV138: =K138 -> 5 | BW138: =((BR138*3)+BS138)*BW128 -> 0
B139: 1 | E139: =E138+1 -> 16 | F139: =F134 -> ERISMAR-SP | K139: 6 | L139: 5 | M139: =M133 -> MATHEUS TINE-PE | S139: =COUNTBLANK(K139:L139) -> 0 | BI139: =IF(S139=0,1,0) -> 1 | BJ139: =IF(AND(S139=0,K139>L139),1,0)*BO128 -> 1 | BK139: =IF(AND(S139=0,K139=L139),1,0)*BO128 -> 0 | BL139: =BI139-BJ139-BK139 -> 0 | BM139: =K139 -> 6 | BN139: =L139 -> 5 | BO139: =((BJ139*3)+BK139)*BO128 -> 3 | BY139: =IF(S139=0,1,0) -> 1 | BZ139: =IF(AND(S139=0,L139>K139),1,0)*CE128 -> 0 | CA139: =IF(AND(S139=0,K139=L139),1,0)*CE128 -> 0 | CB139: =BY139-BZ139-CA139 -> 1 | CC139: =L139 -> 5 | CD139: =K139 -> 6 | CE139: =((BZ139*3)+CA139)*CE128 -> 0
B141: 1 | C141: 10 | D141: =$D$7 -> 2022-06-17 | E141: 17 | F141: =F136 -> NANDO-RJ | K141: 2 | L141: 6 | M141: =F137 -> PIRICA-RJ | S141: =COUNTBLANK(K141:L141) -> 0 | U141: =IF(S141=0,1,0) -> 1 | V141: =IF(AND(S141=0,K141>L141),1,0)*AA128 -> 0 | W141: =IF(AND(S141=0,K141=L141),1,0)*AA128 -> 0 | X141: =U141-V141-W141 -> 1 | Y141: =K141 -> 2 | Z141: =L141 -> 6 | AA141: =((V141*3)+W141)*AA128 -> 0 | AC141: =IF(S141=0,1,0) -> 1 | AD141: =IF(AND(S141=0,L141>K141),1,0)*AI128 -> 1 | AE141: =IF(AND(S141=0,K141=L141),1,0)*AI128 -> 0 | AF141: =AC141-AD141-AE141 -> 0 | AG141: =L141 -> 6 | AH141: =K141 -> 2 | AI141: =((AD141*3)+AE141)*AI128 -> 3 | CH141: 3ª
B142: 1 | E142: =E141+1 -> 18 | F142: =M136 -> CHRISTOFER-RJ | K142: 2 | L142: 5 | M142: =M137 -> RENAN PIMENTA-PR | S142: =COUNTBLANK(K142:L142) -> 0 | AK142: =IF(S142=0,1,0) -> 1 | AL142: =IF(AND(S142=0,K142>L142),1,0)*AQ128 -> 0 | AM142: =IF(AND(S142=0,K142=L142),1,0)*AQ128 -> 0 | AN142: =AK142-AL142-AM142 -> 1 | AO142: =K142 -> 2 | AP142: =L142 -> 5 | AQ142: =((AL142*3)+AM142)*AQ128 -> 0 | AS142: =IF(S142=0,1,0) -> 1 | AT142: =IF(AND(S142=0,L142>K142),1,0)*AY128 -> 1 | AU142: =IF(AND(S142=0,K142=L142),1,0)*AY128 -> 0 | AV142: =AS142-AT142-AU142 -> 0 | AW142: =L142 -> 5 | AX142: =K142 -> 2 | AY142: =((AT142*3)+AU142)*AY128 -> 3
